Workbook

Sheet START
A1: =muni -> KZN434 Ubuhlebezwe

Sheet Instructions
D2: 2020
X4: Yes
X5: No
W7: Type of Entities Range: | X7: Parent Municipality
X8: Consolidated Information
W10: Date linked | X10: 17
W11: Date | X11: =VLOOKUP(X10,W39:X55,2) -> Mid-Year Assessment | Y11: 2013-08-01
W19: MTREF Range: | X19: 2008
X20: 2009
X21: 2010
X22: 2011
X23: 2012
X24: 2013
X25: 2014
X26: 2015
X27: 2016
X28: 2017
X29: 2018
X30: 2019
X31: 2020
X32: 2021
X33: 2022
W34: MTREF Linked:
W35: MTREF: | X35: 10
X36: =INDEX(X19:X33,X35,1) -> 2017
W37: Fin Year:
X38: =MTREF&"/"&RIGHT(MTREF,2)+1 -> 2017/18
V39: Date/type of report | W39: 1 | X39: M01 July
W40: 2 | X40: M02 August
W41: 3 | X41: M03 September
W42: 4 | X42: M04 October
W43: 5 | X43: M05 November
W44: 6 | X44: M06 December
W45: 7 | X45: M07 January
W46: 8 | X46: M08 February
W47: 9 | X47: M09 March
W48: 10 | X48: M10 April
W49: 11 | X49: M11 May
W50: 12 | X50: M12 June
W51: 13 | X51: Q1 First Quarter
W52: 14 | X52: Q2 Second Quarter
W53: 15 | X53: Q3 Third Quarter
W54: 16 | X54: Q4 Fourth Quarter
W55: 17 | X55: Mid-Year Assessment

Sheet Template names (hidden)
A1: Common sheet headings
A2: Head1 | B2: =HLOOKUP(MTREF,Headings,2) -> 2016/17 | C2: Prior year -1
A3: Head2 | B3: =HLOOKUP(MTREF,Headings,5) -> Budget Year 2017/18 | C3: Year of approved budget
A4: Head2A | B4: =HLOOKUP(MTREF,Headings,4) -> 2017/18 | C4: Approved budget year
A5: Head3 | B5: =HLOOKUP(MTREF,Headings,3) -> 2017/18 Medium Term Revenue & Expenditure Framework | C5: MTREF header name
A6: Head5 | B6: Audited Outcome
A7: Head5A | B7: Outcome
A8: Head5B | B8: Pre-audit outcome
A9: Head6 | B9: Original Budget
A10: Head7 | B10: Adjusted Budget
A11: Head8 | B11: Full Year Forecast
A12: Head9 | B12: =HLOOKUP(MTREF,Headings,5) -> Budget Year 2017/18 | C12: 1st year of MTREF | D12: Year1
A13: Head10 | B13: =HLOOKUP(MTREF,Headings,6) -> Budget Year +1 2018/19 | C13: 2nd year of MTREF | D13: Year2
A14: Head11 | B14: =HLOOKUP(MTREF,Headings,7) -> Budget Year +2 2019/20 | C14: 3rd year of MTREF | D14: Year3
A15: Head12 | B15: Forecast 2010/11 | D15: Year4
A16: Head13 | B16: Forecast 2011/12 | D16: Year5
A17: Head14 | B17: Forecast 2012/13 | D17: Year6
A18: Head15 | B18: Forecast 2013/14 | D18: Year7
A19: Head16 | B19: Forecast 2014/15 | D19: Year8
A20: Head17 | B20: Forecast 2015/16 | D20: Year9
A21: Head18 | B21: Forecast 2016/17 | D21: Year10
A22: Head19 | B22: Forecast 2017/18 | D22: Year11
A23: Head20 | B23: Forecast 2018/19 | D23: Year12
A24: Head21 | B24: Forecast 2019/20 | D24: Year13
A25: Head22 | B25: Forecast 2020/21 | D25: Year14
A26: Head23 | B26: Forecast 2021/22 | D26: Year15
A27: Head24 | B27: Description | D27: Desc
A28: Head25 | B28: Schedule of funding diligence | D28: fdil
A29: Head26 | B29: Vote Description | D29: VDesc
A30: Head27 | B30: Ref
A31: Head27a | B31: References
A32: Head28 | B32: Surplus/ (Deficit) for the year | D32: Result
A33: Head29 | B33: Annual target 2007/08
A34: Head30 | B34: Revised target 2007/08
A35: Head31 | B35: Quarter ended 30 September
A36: Head32 | B36: Quarter ended 31 December
A37: Head33 | B37: Quarter ended 31 March
A38: Head34 | B38: Quarter ended 30 June
A39: Head35 | B39: Variance explanation
A40: Head36 | B40: YTD Actual 31 Dec
A41: Head37 | B41: YTD Budget 31 Dec
A42: Head38 | B42: Monthly actual
A43: Head39 | B43: YearTD actual
A44: Head40 | B44: YearTD budget
A45: Head41 | B45: YTD variance
A46: Head42 | B46: Surplus/ (Deficit) for the yr/period
A47: Head43 | B47: =Head3&" Summary" -> 2017/18 Medium Term Revenue & Expenditure Framework Summary
A48: Head44 | B48: 1996 Census
A49: Head45 | B49: 2001 Census
A50: Head46 | B50: - Adjustments Budget - Month YYYY
A51: Head47 | B51: Previous target year to complete
A52: Head48 | B52: Present value
A53: Head49 | B53: Virement
A54: Head50 | B54: Other Adjusts.
A55: Head51 | B55: Accum. Funds
A56: Head52 | B56: Multi-year capital
A57: Head53 | B57: Unfore. Unavoid.
A58: Head54 | B58: Prior Adjusted
A59: Head55 | B59: Nat. or Prov. Govt
A60: Head56 | B60: Total Adjusts.
A61: Head57 | B61: =date -> Mid-Year Assessment
A62: Head58 | B62: Parent muni.
A63: Head59 | B63: Downward adjusts
A64: Head60 | B64: Month | C64: Report header part name | D64: =MONTH(date) -> 
A65: SFPerf1 | B65: Budgeted Financial Performance
A66: SFPerf2 | B66: Forecast Financial Performance
A67: SFPos1 | B67: Budgeted Financial Position
A68: SFPos2 | B68: Forecast Financial Position
A69: Cash1 | B69: Budget Cash Flow
A70: Cash2 | B70: Forecast Cash Flow
A71: RandM | B71: Expenditure includes repairs & maintenance of R'000
A72: Standard nomenclature
A73: Muni | B73: ='Lookup and lists'!B27 -> KZN434 Ubuhlebezwe
A74: Municipal Entities | B74: 2 | C74: Type of report: | D74: 5
A75: =IF((MuniEntities=1)*(MuniType=2),"YES","NO") -> NO | B75: Does this municipality have entities (consolidated budget and entity budgets required)? YES/NO
A76: s71 (Monthly Mayor report) schedules and charts
A77: S71sum | B77: =IF(Consolques="YES",E77,F77) -> Table C1 Monthly Budget Statement Summary | D77: Table C1 | E77: =D77&"Consolidated Monthly Budget Statement Summary" -> Table C1 Consolidated Monthly Budget Statement Summary | F77: =D77&"Monthly Budget Statement Summary" -> Table C1 Monthly Budget Statement Summary
A78: S71C | B78: Table C3 Monthly Budget Statement - Financial Performance (revenue and expenditure by municipal vote) | D78: Table C3 | E78: =D78&"Consolidated Monthly Budget Statement - Financial Performance (revenue and expenditure by municipal vote) " -> Table C3 Consolidated Monthly Budget Statement - Financial Performance (revenue and expenditure by municipal vote) | F78: =D78&"Monthly Budget Statement - Financial Performance (revenue and expenditure by municipal vote)" -> Table C3 Monthly Budget Statement - Financial Performance (revenue and expenditure by municipal vote)
A79: S71A | B79: =IF(Consolques="YES",E79,F79) -> Table C2 Monthly Budget Statement - Financial Performance (functional classification) | D79: Table C2 | E79: =D79&"Consolidated Monthly Budget Statement - Financial Performance (functional classification) " -> Table C2 Consolidated Monthly Budget Statement - Financial Performance (functional classification) | F79: =D79&"Monthly Budget Statement - Financial Performance (functional classification)" -> Table C2 Monthly Budget Statement - Financial Performance (functional classification)
A80: S71B | B80: =IF(Consolques="YES",E80,F80) -> Table C4 Monthly Budget Statement - Financial Performance (revenue and expenditure) | D80: Table C4 | E80: =D80&"Consolidated Monthly Budget Statement - Financial Performance (revenue and expenditure) " -> Table C4 Consolidated Monthly Budget Statement - Financial Performance (revenue and expenditure) | F80: =D80&"Monthly Budget Statement - Financial Performance (revenue and expenditure)" -> Table C4 Monthly Budget Statement - Financial Performance (revenue and expenditure)
A81: S71D | B81: =IF(Consolques="YES",E81,F81) -> Table C5 Monthly Budget Statement - Capital Expenditure (municipal vote, functional classification and funding) | D81: Table C5 | E81: =D81&"Consolidated Monthly Budget Statement - Capital Expenditure (municipal vote, functional classification and funding " -> Table C5 Consolidated Monthly Budget Statement - Capital Expenditure (municipal vote, functional classification and funding | F81: =D81&"Monthly Budget Statement - Capital Expenditure (municipal vote, functional classification and funding)" -> Table C5 Monthly Budget Statement - Capital Expenditure (municipal vote, functional classification and funding)
A82: S71E | B82: Table C6 Monthly Budget Statement - Financial Position | D82: Table C6 | E82: =D82&"Consolidated Monthly Budget Statement - Financial Position " -> Table C6 Consolidated Monthly Budget Statement - Financial Position | F82: =D82&"Monthly Budget Statement - Financial Position" -> Table C6 Monthly Budget Statement - Financial Position
A83: S71F | B83: Table C7 Monthly Budget Statement - Cash Flow | D83: Table C7 | E83: =D83&"Consolidated Monthly Budget Statement - Cash Flow " -> Table C7 Consolidated Monthly Budget Statement - Cash Flow | F83: =D83&"Monthly Budget Statement - Cash Flow " -> Table C7 Monthly Budget Statement - Cash Flow
A84: S71G | B84: =D84&"Material variance explanations " -> Supporting Table SC1 Material variance explanations | D84: Supporting Table SC1
A85: S71H | B85: =D85&"Monthly Budget Statement - performance indicators " -> Supporting Table SC2 Monthly Budget Statement - performance indicators | D85: Supporting Table SC2
A86: S71I | B86: =D86&"Monthly Budget Statement - aged debtors" -> Supporting Table SC3 Monthly Budget Statement - aged debtors | D86: Supporting Table SC3
A87: S71J | B87: =D87&"Monthly Budget Statement - aged creditors " -> Supporting Table SC4 Monthly Budget Statement - aged creditors | D87: Supporting Table SC4
A88: S71K | B88: =D88&"Monthly Budget Statement - investment portfolio " -> Supporting Table SC5 Monthly Budget Statement - investment portfolio | D88: Supporting Table SC5
A89: S71L | B89: =D89&"Monthly Budget Statement - transfers and grant receipts " -> Supporting Table SC6 Monthly Budget Statement - transfers and grant receipts | D89: Supporting Table SC6
A90: S71M | B90: =D90&" Monthly Budget Statement - transfers and grant expenditure " -> Supporting Table SC7(1) Monthly Budget Statement - transfers and grant expenditure | D90: Supporting Table SC7(1)
A91: S71N | B91: =D91&"Monthly Budget Statement - councillor and staff benefits " -> Supporting Table SC8 Monthly Budget Statement - councillor and staff benefits | D91: Supporting Table SC8
A92: S71O | B92: =D92&"Monthly Budget Statement - actuals and revised targets for cash receipts" -> Supporting Table SC9 Monthly Budget Statement - actuals and revised targets for cash receipts | D92: Supporting Table SC9
A93: S71P | B93: =IF(Consolques="YES",E93,F93) -> NOT REQUIRED - municipality does not have entities or this is the parent municipality's budget | D93: Supporting Table SC10 | E93: =D93&"Monthly Budget Statement - Parent Municipality Financial Performance (revenue and expenditure) " -> Supporting Table SC10 Monthly Budget Statement - Parent Municipality Financial Performance (revenue and expenditure) | F93: NOT REQUIRED - municipality does not have entities or this is the parent municipality's budget
A94: S71Q | B94: NOT REQUIRED - municipality does not have entities or this is the parent municipality's budget | D94: Supporting Table SC11 | E94: =D94&"Monthly Budget Statement - summary of municipal entities" -> Supporting Table SC11 Monthly Budget Statement - summary of municipal entities | F94: NOT REQUIRED - municipality does not have entities or this is the parent municipality's budget
A95: S71R | B95: Supporting Table SC12 Monthly Budget Statement - capital expenditure trend | D95: Supporting Table SC12 | E95: =D95&"Consolidated Monthly Budget Statement - capital expenditure trend " -> Supporting Table SC12 Consolidated Monthly Budget Statement - capital expenditure trend | F95: =D95&"Monthly Budget Statement - capital expenditure trend" -> Supporting Table SC12 Monthly Budget Statement - capital expenditure trend
A96: S71Sa | B96: Supporting Table SC13a Monthly Budget Statement - capital expenditure on new assets by asset class | D96: Supporting Table SC13a | E96: =D96&"Consolidated Monthly Budget Statement - capital expenditure on new assets by asset class" -> Supporting Table SC13a Consolidated Monthly Budget Statement - capital expenditure on new assets by asset class | F96: =D96&"Monthly Budget Statement - capital expenditure on new assets by asset class" -> Supporting Table SC13a Monthly Budget Statement - capital expenditure on new assets by asset class
A97: S71Sb | B97: Supporting Table SC13b Monthly Budget Statement - capital expenditure on renewal of existing assets by asset class | D97: Supporting Table SC13b | E97: =D97&"Consolidated Monthly Budget Statement - capital expenditure on renewal of existing assets by asset class" -> Supporting Table SC13b Consolidated Monthly Budget Statement - capital expenditure on renewal of existing assets by asset class | F97: =D97&"Monthly Budget Statement - capital expenditure on renewal of existing assets by asset class" -> Supporting Table SC13b Monthly Budget Statement - capital expenditure on renewal of existing assets by asset class
A98: S71Sc | B98: Supporting Table SC13c Monthly Budget Statement - expenditure on repairs and maintenance by asset class | D98: Supporting Table SC13c | E98: =D98&"Consolidated Monthly Budget Statement - expenditure on repairs and maintenance by asset class" -> Supporting Table SC13c Consolidated Monthly Budget Statement - expenditure on repairs and maintenance by asset class | F98: =D98&"Monthly Budget Statement - expenditure on repairs and maintenance by asset class" -> Supporting Table SC13c Monthly Budget Statement - expenditure on repairs and maintenance by asset class
A99: S71Sd | B99: Supporting Table SC13d Monthly Budget Statement - depreciation by asset class | D99: Supporting Table SC13d | E99: =D99&"Consolidated Monthly Budget Statement - depreciation by asset class" -> Supporting Table SC13d Consolidated Monthly Budget Statement - depreciation by asset class | F99: =D99&"Monthly Budget Statement - depreciation by asset class" -> Supporting Table SC13d Monthly Budget Statement - depreciation by asset class
A100: S71Se | B100: =IF(Consolques="YES",E100,F100) -> Supporting Table SC13e Monthly Budget Statement - capital expenditure on upgrading of existing assets by asset class | D100: Supporting Table SC13e | E100: =D100&"Consolidated Monthly Budget Statement - capital expenditure on upgrading of existing assets by asset class" -> Supporting Table SC13e Consolidated Monthly Budget Statement - capital expenditure on upgrading of existing assets by asset class | F100: =D100&"Monthly Budget Statement - capital expenditure on upgrading of existing assets by asset class" -> Supporting Table SC13e Monthly Budget Statement - capital expenditure on upgrading of existing assets by asset class
B101: s71 charts listing
B102: =D102&Head2A&" Capital Expenditure Monthly Trend: actual v target" -> Chart C1 2017/18 Capital Expenditure Monthly Trend: actual v target | D102: Chart C1
B103: =D103&Head2A&" Capital Expenditure: YTD actual v YTD target" -> Chart C2 2017/18 Capital Expenditure: YTD actual v YTD target | D103: Chart C2
B104: =D104&"Aged Consumer Debtors Analysis" -> Chart C3 Aged Consumer Debtors Analysis | D104: Chart C3
B105: =D105&"Consumer Debtors (total by Debtor Customer Category)" -> Chart C4 Consumer Debtors (total by Debtor Customer Category) | D105: Chart C4
B106: =D106&"Aged Creditors Analysis" -> Chart C5 Aged Creditors Analysis | D106: Chart C5
A107: S71T | B107: =D107&" Monthly Budget Statement - Expenditure against approved rollovers" -> Supporting Table SC7(2) Monthly Budget Statement - Expenditure against approved rollovers | D107: Supporting Table SC7(2)

Sheet Lookup and lists (hidden)
A1: Description | B1: 2007 | C1: 2008 | D1: 2009 | E1: 2010 | F1: 2011 | G1: 2012 | H1: 2013 | I1: 2014 | J1: 2015 | K1: 2016 | L1: 2017 | M1: 2018 | N1: 2019 | O1: 2020 | Q1: Grants: | R1: National - opex | S1: Provincial - opex | T1: National - capex | U1: Provincial - capex | V1: YESNO
A2: ='Template names'!C2 -> Prior year -1 | B2: 2006/07 | C2: 2007/08 | D2: 2008/09 | E2: =E1-1&"/"&RIGHT(E1,2)-0 -> 2009/10 | F2: =F1-1&"/"&RIGHT(F1,2)-0 -> 2010/11 | G2: 2011/12 | H2: 2012/13 | I2: 2013/14 | J2: 2014/15 | K2: 2015/16 | L2: 2016/17 | M2: 2017/18 | N2: 2018/19 | O2: 2019/20 | R2: Local Government Equitable Share | S2: Health subsidy | T2: Municipal Infrastructure Grant (MIG) | U2: Agriculture | V2: Yes
A3: ='Template names'!C5 -> MTREF header name | B3: 2007/08 Medium Term Revenue & Expenditure Framework | C3: 2008/09 Medium Term Revenue & Expenditure Framework | D3: 2009/10 Medium Term Revenue & Expenditure Framework | E3: =E1&"/"&RIGHT(E1,2)+1&" Medium Term Revenue & Expenditure Framework" -> 2010/11 Medium Term Revenue & Expenditure Framework | F3: =F1&"/"&RIGHT(F1,2)+1&" Medium Term Revenue & Expenditure Framework" -> 2011/12 Medium Term Revenue & Expenditure Framework | G3: 2012/13 Medium Term Revenue & Expenditure Framework | H3: 2013/14 Medium Term Revenue & Expenditure Framework | I3: 2014/15 Medium Term Revenue & Expenditure Framework | J3: 2015/16 Medium Term Revenue & Expenditure Framework | K3: 2016/17 Medium Term Revenue & Expenditure Framework | L3: 2017/18 Medium Term Revenue & Expenditure Framework | M3: 2018/19 Medium Term Revenue & Expenditure Framework | N3: 2019/20 Medium Term Revenue & Expenditure Framework | O3: 2020/21 Medium Term Revenue & Expenditure Framework | R3: RSC Levy Replacement | S3: Ambulance subsidy | T3: Public Transport and Systems | U3: Education | V3: No
A4: ='Template names'!C4 -> Approved budget year | B4: 2007/08 | C4: 2008/09 | D4: 2009/10 | E4: =E1&"/"&RIGHT(E1,2)+1 -> 2010/11 | F4: =F1&"/"&RIGHT(F1,2)+1 -> 2011/12 | G4: 2012/13 | H4: 2013/14 | I4: 2014/15 | J4: 2015/16 | K4: 2016/17 | L4: 2017/18 | M4: 2018/19 | N4: 2019/20 | O4: 2020/21 | R4: Finance Management | S4: Housing | T4: Rural Transport Services and Infrastructure | U4: Health
A5: ='Template names'!C12 -> 1st year of MTREF | B5: Budget Year 2007/08 | C5: Budget Year 2008/09 | D5: Budget Year 2009/10 | E5: ="Budget Year "&E1&"/"&RIGHT(E1,2)+1 -> Budget Year 2010/11 | F5: ="Budget Year "&F1&"/"&RIGHT(F1,2)+1 -> Budget Year 2011/12 | G5: Budget Year 2012/13 | H5: Budget Year 2013/14 | I5: Budget Year 2014/15 | J5: Budget Year 2015/16 | K5: Budget Year 2016/17 | L5: Budget Year 2017/18 | M5: Budget Year 2018/19 | N5: Budget Year 2019/20 | O5: Budget Year 2020/21 | R5: Municipal Systems Improvement | S5: Sport and Recreation | T5: Regional Bulk Infrastructure | U5: Housing and Local Government
A6: ='Template names'!C13 -> 2nd year of MTREF | B6: Budget Year +1 2008/09 | C6: Budget Year +1 2009/10 | D6: Budget Year +1 2010/11 | E6: ="Budget Year +1 "&E1+1&"/"&RIGHT(E1,2)+2 -> Budget Year +1 2011/12 | F6: ="Budget Year +1 "&F1+1&"/"&RIGHT(F1,2)+2 -> Budget Year +1 2012/13 | G6: Budget Year +1 2013/14 | H6: Budget Year +1 2014/15 | I6: Budget Year +1 2015/16 | J6: Budget Year +1 2016/17 | K6: Budget Year +1 2017/18 | L6: Budget Year +1 2018/19 | M6: Budget Year +1 2019/20 | N6: Budget Year +1 2020/21 | O6: Budget Year +1 2021/22 | R6: Water Services Operating Subsidy | T6: Rural Households Infrastructure | U6: Other Departments
A7: ='Template names'!C14 -> 3rd year of MTREF | B7: Budget Year +2 2009/10 | C7: Budget Year +2 2010/11 | D7: Budget Year +2 2011/12 | E7: ="Budget Year +2 "&E1+2&"/"&RIGHT(E1,2)+3 -> Budget Year +2 2012/13 | F7: ="Budget Year +2 "&F1+2&"/"&RIGHT(F1,2)+3 -> Budget Year +2 2013/14 | G7: Budget Year +2 2014/15 | H7: Budget Year +2 2015/16 | I7: Budget Year +2 2016/17 | J7: Budget Year +2 2017/18 | K7: Budget Year +2 2018/19 | L7: Budget Year +2 2019/20 | M7: Budget Year +2 2020/21 | N7: Budget Year +2 2021/22 | O7: Budget Year +2 2022/23 | R7: Energy Efficiency and Demand Management | T7: Neighbourhood Development Partnership | U7: Public Works, Roads, Transport
A8: NOTE: This sheet should not be directly amended - select headings from sheet 'S' | R8: Integrated National Electrification Programme | T8: 2010 FIFA World Cup Stadiums Development | U8: Sport and Recreation
R9: Municipal Drought Relief
R10: 2010 FIFA World Cup Operating
R11: Electricity Demand Side Management
R12: EPWP Incentive
A26: Name link | B26: 125
A27: Name of Muni | B27: =INDEX(B28:B311,B26,1) -> KZN434 Ubuhlebezwe
B28: Choose name from list | C28: Set name on 'Instructions' sheet
B29: BUF Buffalo City | C29: Eastern Cape
B30: NMA Nelson Mandela Bay | C30: Eastern Cape
B31: EC101 Dr. Beyers Naude | C31: Eastern Cape
B32: EC102 Blue Crane Route | C32: Eastern Cape
B33: EC104 Makana | C33: Eastern Cape
B34: EC105 Ndlambe | C34: Eastern Cape
B35: EC106 Sundays River Valley | C35: Eastern Cape
B36: EC108 Kouga | C36: Eastern Cape
B37: EC109 Kou-Kamma | C37: Eastern Cape
B38: DC10 Sarah Baartman | C38: Eastern Cape
B39: EC121 Mbhashe | C39: Eastern Cape
B40: EC122 Mnquma | C40: Eastern Cape
B41: EC123 Great Kei | C41: Eastern Cape
B42: EC124 Amahlathi | C42: Eastern Cape
B43: EC126 Ngqushwa | C43: Eastern Cape
B44: EC129 Raymond Mhlaba | C44: Eastern Cape
B45: DC12 Amathole | C45: Eastern Cape
B46: EC131 Inxuba Yethemba | C46: Eastern Cape
B47: EC135 Intsika Yethu | C47: Eastern Cape
B48: EC136 Emalahleni (Ec) | C48: Eastern Cape
B49: EC137 Engcobo | C49: Eastern Cape
B50: EC138 Sakhisizwe | C50: Eastern Cape
B51: EC139 Enoch Mgijima | C51: Eastern Cape
B52: DC13 Chris Hani | C52: Eastern Cape
B53: EC141 Elundini | C53: Eastern Cape
B54: EC142 Senqu | C54: Eastern Cape
B55: EC145 Walter Sisulu | C55: Eastern Cape
B56: DC14 Joe Gqabi | C56: Eastern Cape
B57: EC153 Ngquza Hills | C57: Eastern Cape
B58: EC154 Port St Johns | C58: Eastern Cape
B59: EC155 Nyandeni | C59: Eastern Cape
B60: EC156 Mhlontlo | C60: Eastern Cape
B61: EC157 King Sabata Dalindyebo | C61: Eastern Cape
B62: DC15 O .R. Tambo | C62: Eastern Cape
B63: EC441 Matatiele | C63: Eastern Cape
B64: EC442 Umzimvubu | C64: Eastern Cape
B65: EC443 Mbizana | C65: Eastern Cape
B66: EC444 Ntabankulu | C66: Eastern Cape
B67: DC44 Alfred Nzo | C67: Eastern Cape
B68: MAN Mangaung | C68: Free State
B69: FS161 Letsemeng | C69: Free State
B70: FS162 Kopanong | C70: Free State
B71: FS163 Mohokare | C71: Free State
B72: DC16 Xhariep | C72: Free State
B73: FS181 Masilonyana | C73: Free State
B74: FS182 Tokologo | C74: Free State
B75: FS183 Tswelopele | C75: Free State
B76: FS184 Matjhabeng | C76: Free State
B77: FS185 Nala | C77: Free State
B78: DC18 Lejweleputswa | C78: Free State
B79: FS191 Setsoto | C79: Free State
B80: FS192 Dihlabeng | C80: Free State
B81: FS193 Nketoana | C81: Free State
B82: FS194 Maluti-a-Phofung | C82: Free State
B83: FS195 Phumelela | C83: Free State
B84: FS196 Mantsopa | C84: Free State
B85: DC19 Thabo Mofutsanyana | C85: Free State
B86: FS201 Moqhaka | C86: Free State
B87: FS203 Ngwathe | C87: Free State
B88: FS204 Metsimaholo | C88: Free State
B89: FS205 Mafube | C89: Free State
B90: DC20 Fezile Dabi | C90: Free State
B91: EKU Ekurhuleni Metro | C91: Gauteng
B92: JHB City Of Johannesburg | C92: Gauteng
B93: TSH City Of Tshwane | C93: Gauteng
B94: GT421 Emfuleni | C94: Gauteng
B95: GT422 Midvaal | C95: Gauteng
B96: GT423 Lesedi | C96: Gauteng
B97: DC42 Sedibeng | C97: Gauteng
B98: GT481 Mogale City | C98: Gauteng
B99: GT484 Merafong City | C99: Gauteng
B100: GT485 GT485 | C100: Gauteng
B101: DC48 West Rand | C101: Gauteng
B102: ETH eThekwini | C102: Kwazulu-Natal
B103: KZN212 Umdoni | C103: Kwazulu-Natal
B104: KZN213 Umzumbe | C104: Kwazulu-Natal
B105: KZN214 uMuziwabantu | C105: Kwazulu-Natal
B106: KZN216 Ray Nkonyeni | C106: Kwazulu-Natal
B107: DC21 Ugu | C107: Kwazulu-Natal
B108: KZN221 uMshwathi | C108: Kwazulu-Natal
B109: KZN222 uMngeni | C109: Kwazulu-Natal
B110: KZN223 Mpofana | C110: Kwazulu-Natal
B111: KZN224 Impendle | C111: Kwazulu-Natal
B112: KZN225 Msunduzi | C112: Kwazulu-Natal
B113: KZN226 Mkhambathini | C113: Kwazulu-Natal
B114: KZN227 Richmond | C114: Kwazulu-Natal
B115: DC22 uMgungundlovu | C115: Kwazulu-Natal
B116: KZN235 Okhahlamba | C116: Kwazulu-Natal
B117: KZN237 Inkosi Langalibalele | C117: Kwazulu-Natal
B118: KZN238 Alfred Duma | C118: Kwazulu-Natal
B119: DC23 Uthukela | C119: Kwazulu-Natal
B120: KZN241 Endumeni | C120: Kwazulu-Natal
B121: KZN242 Nquthu | C121: Kwazulu-Natal
B122: KZN244 Msinga | C122: Kwazulu-Natal
B123: KZN245 Umvoti | C123: Kwazulu-Natal
B124: DC24 Umzinyathi | C124: Kwazulu-Natal
B125: KZN252 Newcastle | C125: Kwazulu-Natal
B126: KZN253 eMadlangeni | C126: Kwazulu-Natal
B127: KZN254 Dannhauser | C127: Kwazulu-Natal
B128: DC25 Amajuba | C128: Kwazulu-Natal
B129: KZN261 eDumbe | C129: Kwazulu-Natal
B130: KZN262 uPhongolo | C130: Kwazulu-Natal
B131: KZN263 Abaqulusi | C131: Kwazulu-Natal
B132: KZN265 Nongoma | C132: Kwazulu-Natal
B133: KZN266 Ulundi | C133: Kwazulu-Natal
B134: DC26 Zululand | C134: Kwazulu-Natal
B135: KZN271 Umhlabuyalingana | C135: Kwazulu-Natal
B136: KZN272 Jozini | C136: Kwazulu-Natal
B137: KZN275 Mtubatuba | C137: Kwazulu-Natal
B138: KZN276 The New Big 5 False Bay | C138: Kwazulu-Natal
B139: DC27 Umkhanyakude | C139: Kwazulu-Natal
B140: KZN281 Mfolozi | C140: Kwazulu-Natal
B141: KZN282 uMhlathuze | C141: Kwazulu-Natal
B142: KZN284 uMlalazi | C142: Kwazulu-Natal
B143: KZN285 Mthonjaneni | C143: Kwazulu-Natal
B144: KZN286 Nkandla | C144: Kwazulu-Natal
B145: DC28 King Cetshwayo | C145: Kwazulu-Natal
B146: KZN291 Mandeni | C146: Kwazulu-Natal
B147: KZN292 KwaDukuza | C147: Kwazulu-Natal
B148: KZN293 Ndwedwe | C148: Kwazulu-Natal
B149: KZN294 Maphumulo | C149: Kwazulu-Natal
B150: DC29 iLembe | C150: Kwazulu-Natal
B151: KZN433 Greater Kokstad | C151: Kwazulu-Natal
B152: KZN434 Ubuhlebezwe | C152: Kwazulu-Natal
B153: KZN435 Umzimkhulu | C153: Kwazulu-Natal
B154: KZN436 Dr Nkosazana Dlamini Zuma | C154: Kwazulu-Natal
B155: DC43 Harry Gwala | C155: Kwazulu-Natal
B156: LIM331 Greater Giyani | C156: Limpopo
B157: LIM332 Greater Letaba | C157: Limpopo
B158: LIM333 Greater Tzaneen | C158: Limpopo
B159: LIM334 Ba-Phalaborwa | C159: Limpopo
B160: LIM335 Maruleng | C160: Limpopo
B161: DC33 Mopani | C161: Limpopo
B162: LIM341 Musina | C162: Limpopo
B163: LIM343 Thulamela | C163: Limpopo
B164: LIM344 Makhado | C164: Limpopo
B165: LIM345 LIM345 | C165: Limpopo
B166: DC34 Vhembe | C166: Limpopo
B167: LIM351 Blouberg | C167: Limpopo
B168: LIM353 Molemole | C168: Limpopo
B169: LIM354 Polokwane | C169: Limpopo
B170: LIM355 Lepelle-Nkumpi | C170: Limpopo
B171: DC35 Capricorn | C171: Limpopo
B172: LIM361 Thabazimbi | C172: Limpopo
B173: LIM362 Lephalale | C173: Limpopo
B174: LIM366 Bela Bela | C174: Limpopo
B175: LIM367 Mogalakwena | C175: Limpopo
B176: LIM368 LIM368 | C176: Limpopo
B177: DC36 Waterberg | C177: Limpopo
B178: LIM471 Ephraim Mogale | C178: Limpopo
B179: LIM472 Elias Motsoaledi | C179: Limpopo
B180: LIM473 Makhuduthamaga | C180: Limpopo
B181: LIM476 LIM476 | C181: Limpopo
B182: DC47 Sekhukhune | C182: Limpopo
B183: MP301 Albert Luthuli | C183: Mpumalanga
B184: MP302 Msukaligwa | C184: Mpumalanga
B185: MP303 Mkhondo | C185: Mpumalanga
B186: MP304 Pixley Ka Seme (MP) | C186: Mpumalanga
B187: MP305 Lekwa | C187: Mpumalanga
B188: MP306 Dipaleseng | C188: Mpumalanga
B189: MP307 Govan Mbeki | C189: Mpumalanga
B190: DC30 Gert Sibande | C190: Mpumalanga
B191: MP311 Victor Khanye | C191: Mpumalanga
B192: MP312 Emalahleni (Mp) | C192: Mpumalanga
B193: MP313 Steve Tshwete | C193: Mpumalanga
B194: MP314 Emakhazeni | C194: Mpumalanga
B195: MP315 Thembisile Hani | C195: Mpumalanga
B196: MP316 Dr J.S. Moroka | C196: Mpumalanga
B197: DC31 Nkangala | C197: Mpumalanga
B198: MP321 Thaba Chweu | C198: Mpumalanga
B199: MP324 Nkomazi | C199: Mpumalanga
B200: MP325 Bushbuckridge | C200: Mpumalanga
B201: MP326 City of Mbombela | C201: Mpumalanga
B202: DC32 Ehlanzeni | C202: Mpumalanga
B203: NC451 Joe Morolong | C203: Northern Cape
B204: NC452 Ga-Segonyana | C204: Northern Cape
B205: NC453 Gamagara | C205: Northern Cape
B206: DC45 John Taolo Gaetsewe | C206: Northern Cape
B207: NC061 Richtersveld | C207: Northern Cape
B208: NC062 Nama Khoi | C208: Northern Cape
B209: NC064 Kamiesberg | C209: Northern Cape
B210: NC065 Hantam | C210: Northern Cape
B211: NC066 Karoo Hoogland | C211: Northern Cape
B212: NC067 Khai-Ma | C212: Northern Cape
B213: DC6 Namakwa | C213: Northern Cape
... 73 more rows

Sheet Org structure
A1: Organisational Structure Votes | C1: Organisational Structure Sub-Votes | E1: Display Sub-Votes
A2: =B2&" - "&C2 -> Vote 1 - EXECUTIVE & COUNCIL | B2: Vote 1 | C2: EXECUTIVE & COUNCIL
A3: =B13&" - "& C13 -> Vote 2 - BUDGET & TREASURY | B3: 1.1 | C3: Council | D3: =CONCATENATE(B3, " - ", C3) -> 1.1 - Council | E3: =IF(C3="[Name of sub-vote]"," ",D3) -> 1.1 - Council
A4: =B24&" - "&C24 -> Vote 3 - CORPORATE SERVCES | B4: 1.2 | C4: Municipal Manager | D4: 1.2 - Municipal Manager | E4: =IF(C4="[Name of sub-vote]"," ",D4) -> 1.2 - Municipal Manager
A5: =B35&" - "&C35 -> Vote 4 - COMMUNITY & SOCIAL SERVICES | B5: 1.3 | C5: [Name of sub-vote] | D5: 1.3 - [Name of sub-vote]
A6: =B46&" - "&C46 -> Vote 5 - SPORT & RECREATION/PARKS | B6: 1.4 | C6: [Name of sub-vote] | D6: 1.4 - [Name of sub-vote]
A7: =B57&" - "&C57 -> Vote 6 - PUBLIC SAFETY | B7: 1.5 | C7: [Name of sub-vote] | D7: 1.5 - [Name of sub-vote]
A8: =B68&" - "&C68 -> Vote 7 - HOUSING | B8: 1.6 | C8: [Name of sub-vote] | D8: 1.6 - [Name of sub-vote]
A9: =B79&" - "&C79 -> Vote 8 - INFRASTRUCTURE, PLANNING & DEVELOPMENT | B9: 1.7 | C9: [Name of sub-vote] | D9: 1.7 - [Name of sub-vote]
A10: =B90&" - "&C90 -> Vote 9 - ROADS TRANSPORT | B10: 1.8 | C10: [Name of sub-vote] | D10: 1.8 - [Name of sub-vote]
A11: =B101&" - "&C101 -> Vote 10 - [NAME OF VOTE 10] | B11: 1.9 | C11: [Name of sub-vote] | D11: 1.9 - [Name of sub-vote]
A12: =B112&" - "&C112 -> Vote 11 - [NAME OF VOTE 11] | B12: 1.10 | C12: [Name of sub-vote] | D12: 1.10 - [Name of sub-vote]
A13: =B123&" - "&C123 -> Vote 12 - [NAME OF VOTE 12] | B13: Vote 2 | C13: BUDGET & TREASURY
A14: =B134&" - "&C134 -> Vote 13 - [NAME OF VOTE 13] | B14: 2.1 | C14: Budget & Treasury | D14: =CONCATENATE(B14, " - ", C14) -> 2.1 - Budget & Treasury | E14: =IF(C14="[Name of sub-vote]"," ",D14) -> 2.1 - Budget & Treasury
A15: =B145&" - "&C145 -> Vote 14 - [NAME OF VOTE 14] | B15: 2.2 | C15: [Name of sub-vote] | D15: 2.2 - [Name of sub-vote] | E15: =IF(C15="[Name of sub-vote]"," ",D15) -> 
A16: =B156&" - "&C156 -> Vote 15 - [NAME OF VOTE 15] | B16: 2.3 | C16: [Name of sub-vote] | D16: 2.3 - [Name of sub-vote]
B17: 2.4 | C17: [Name of sub-vote] | D17: 2.4 - [Name of sub-vote]
B18: 2.5 | C18: [Name of sub-vote] | D18: 2.5 - [Name of sub-vote]
B19: 2.6 | C19: [Name of sub-vote] | D19: 2.6 - [Name of sub-vote]
B20: 2.7 | C20: [Name of sub-vote] | D20: 2.7 - [Name of sub-vote]
B21: 2.8 | C21: [Name of sub-vote] | D21: 2.8 - [Name of sub-vote]
B22: 2.9 | C22: [Name of sub-vote] | D22: 2.9 - [Name of sub-vote]
B23: 2.10 | C23: [Name of sub-vote] | D23: 2.10 - [Name of sub-vote]
B24: Vote 3 | C24: CORPORATE SERVCES
B25: 3.1 | C25: Corporate Services/Other Admin | D25: =CONCATENATE(B25, " - ", C25) -> 3.1 - Corporate Services/Other Admin | E25: =IF(C25="[Name of sub-vote]"," ",D25) -> 3.1 - Corporate Services/Other Admin
B26: 3.2 | C26: Muncipal Estates/Property Services | D26: 3.2 - Muncipal Estates/Property Services | E26: =IF(C26="[Name of sub-vote]"," ",D26) -> 3.2 - Muncipal Estates/Property Services
B27: 3.3 | C27: [Name of sub-vote] | D27: 3.3 - [Name of sub-vote]
B28: 3.4 | C28: [Name of sub-vote] | D28: 3.4 - [Name of sub-vote]
B29: 3.5 | C29: [Name of sub-vote] | D29: 3.5 - [Name of sub-vote]
B30: 3.6 | C30: [Name of sub-vote] | D30: 3.6 - [Name of sub-vote]
B31: 3.7 | C31: [Name of sub-vote] | D31: 3.7 - [Name of sub-vote]
B32: 3.8 | C32: [Name of sub-vote] | D32: 3.8 - [Name of sub-vote]
B33: 3.9 | C33: [Name of sub-vote] | D33: 3.9 - [Name of sub-vote]
B34: 3.10 | C34: [Name of sub-vote] | D34: 3.10 - [Name of sub-vote]
B35: Vote 4 | C35: COMMUNITY & SOCIAL SERVICES
B36: 4.1 | C36: Libraries | D36: =CONCATENATE(B36, " - ", C36) -> 4.1 - Libraries | E36: =IF(C36="[Name of sub-vote]"," ",D36) -> 4.1 - Libraries
B37: 4.2 | C37: Community Halls & Facilities | D37: 4.2 - Community Halls & Facilities | E37: =IF(C37="[Name of sub-vote]"," ",D37) -> 4.2 - Community Halls & Facilities
B38: 4.3 | C38: Cemeteries | D38: 4.3 - Cemeteries | E38: 4.3 - Cemeteries
B39: 4.4 | C39: Child Care | D39: 4.4 - Child Care | E39: 4.4 - Child Care
B40: 4.5 | C40: Thusong Centre | D40: 4.5 - Thusong Centre | E40: 4.5 - Thusong Centre
B41: 4.6 | C41: Social Development | D41: 4.6 - Social Development | E41: 4.6 - Social Development
B42: 4.7 | C42: Solid Waste Removal (Refuse) | D42: 4.7 - Solid Waste Removal (Refuse) | E42: 4.7 - Solid Waste Removal (Refuse)
B43: 4.8 | C43: [Name of sub-vote] | D43: 4.8 - [Name of sub-vote]
B44: 4.9 | C44: [Name of sub-vote] | D44: 4.9 - [Name of sub-vote]
B45: 4.10 | C45: [Name of sub-vote] | D45: 4.10 - [Name of sub-vote]
B46: Vote 5 | C46: SPORT & RECREATION/PARKS
B47: 5.1 | C47: Sport & Recreation | D47: =CONCATENATE(B47, " - ", C47) -> 5.1 - Sport & Recreation | E47: =IF(C47="[Name of sub-vote]"," ",D47) -> 5.1 - Sport & Recreation
B48: 5.2 | C48: Parks | D48: 5.2 - Parks | E48: =IF(C48="[Name of sub-vote]"," ",D48) -> 5.2 - Parks
B49: 5.3 | C49: [Name of sub-vote] | D49: 5.3 - [Name of sub-vote]
B50: 5.4 | C50: [Name of sub-vote] | D50: 5.4 - [Name of sub-vote]
B51: 5.5 | C51: [Name of sub-vote] | D51: 5.5 - [Name of sub-vote]
B52: 5.6 | C52: [Name of sub-vote] | D52: 5.6 - [Name of sub-vote]
B53: 5.7 | C53: [Name of sub-vote] | D53: 5.7 - [Name of sub-vote]
B54: 5.8 | C54: [Name of sub-vote] | D54: 5.8 - [Name of sub-vote]
B55: 5.9 | C55: [Name of sub-vote] | D55: 5.9 - [Name of sub-vote]
B56: 5.10 | C56: [Name of sub-vote] | D56: 5.10 - [Name of sub-vote]
B57: Vote 6 | C57: PUBLIC SAFETY
B58: 6.1 | C58: Law Enforcement/Traffic | D58: =CONCATENATE(B58, " - ", C58) -> 6.1 - Law Enforcement/Traffic | E58: =IF(C58="[Name of sub-vote]"," ",D58) -> 6.1 - Law Enforcement/Traffic
B59: 6.2 | C59: Disaster Management - Fire | D59: 6.2 - Disaster Management - Fire | E59: =IF(C59="[Name of sub-vote]"," ",D59) -> 6.2 - Disaster Management - Fire
B60: 6.3 | C60: [Name of sub-vote] | D60: 6.3 - [Name of sub-vote]
B61: 6.4 | C61: [Name of sub-vote] | D61: 6.4 - [Name of sub-vote]
B62: 6.5 | C62: [Name of sub-vote] | D62: 6.5 - [Name of sub-vote]
B63: 6.6 | C63: [Name of sub-vote] | D63: 6.6 - [Name of sub-vote]
B64: 6.7 | C64: [Name of sub-vote] | D64: 6.7 - [Name of sub-vote]
B65: 6.8 | C65: [Name of sub-vote] | D65: 6.8 - [Name of sub-vote]
B66: 6.9 | C66: [Name of sub-vote] | D66: 6.9 - [Name of sub-vote]
B67: 6.10 | C67: [Name of sub-vote] | D67: 6.10 - [Name of sub-vote]
B68: Vote 7 | C68: HOUSING
B69: 7.1 | C69: Housing | D69: =CONCATENATE(B69, " - ", C69) -> 7.1 - Housing | E69: =IF(C69="[Name of sub-vote]"," ",D69) -> 7.1 - Housing
B70: 7.2 | C70: [Name of sub-vote] | D70: 7.2 - [Name of sub-vote] | E70: =IF(C70="[Name of sub-vote]"," ",D70) -> 
B71: 7.3 | C71: [Name of sub-vote] | D71: 7.3 - [Name of sub-vote]
B72: 7.4 | C72: [Name of sub-vote] | D72: 7.4 - [Name of sub-vote]
B73: 7.5 | C73: [Name of sub-vote] | D73: 7.5 - [Name of sub-vote]
B74: 7.6 | C74: [Name of sub-vote] | D74: 7.6 - [Name of sub-vote]
B75: 7.7 | C75: [Name of sub-vote] | D75: 7.7 - [Name of sub-vote]
B76: 7.8 | C76: [Name of sub-vote] | D76: 7.8 - [Name of sub-vote]
B77: 7.9 | C77: [Name of sub-vote] | D77: 7.9 - [Name of sub-vote]
B78: 7.10 | C78: [Name of sub-vote] | D78: 7.10 - [Name of sub-vote]
B79: Vote 8 | C79: INFRASTRUCTURE, PLANNING & DEVELOPMENT
B80: 8.1 | C80: Economic Planning & Development | D80: =CONCATENATE(B80, " - ", C80) -> 8.1 - Economic Planning & Development | E80: =IF(C80="[Name of sub-vote]"," ",D80) -> 8.1 - Economic Planning & Development
B81: 8.2 | C81: Town Planning | D81: 8.2 - Town Planning | E81: =IF(C81="[Name of sub-vote]"," ",D81) -> 8.2 - Town Planning
B82: 8.3 | C82: [Name of sub-vote] | D82: 8.3 - [Name of sub-vote]
B83: 8.4 | C83: [Name of sub-vote] | D83: 8.4 - [Name of sub-vote]
B84: 8.5 | C84: [Name of sub-vote] | D84: 8.5 - [Name of sub-vote]
B85: 8.6 | C85: [Name of sub-vote] | D85: 8.6 - [Name of sub-vote]
B86: 8.7 | C86: [Name of sub-vote] | D86: 8.7 - [Name of sub-vote]
B87: 8.8 | C87: [Name of sub-vote] | D87: 8.8 - [Name of sub-vote]
B88: 8.9 | C88: [Name of sub-vote] | D88: 8.9 - [Name of sub-vote]
B89: 8.10 | C89: [Name of sub-vote] | D89: 8.10 - [Name of sub-vote]
B90: Vote 9 | C90: ROADS TRANSPORT
B91: 9.1 | C91: Roads | D91: =CONCATENATE(B91, " - ", C91) -> 9.1 - Roads | E91: =IF(C91="[Name of sub-vote]"," ",D91) -> 9.1 - Roads
B92: 9.2 | C92: Vehicle Licencing & Testing | D92: 9.2 - Vehicle Licencing & Testing | E92: =IF(C92="[Name of sub-vote]"," ",D92) -> 9.2 - Vehicle Licencing & Testing
B93: 9.3 | C93: Technical Services | D93: 9.3 - Technical Services | E93: 9.3 - Technical Services
B94: 9.4 | C94: [Name of sub-vote] | D94: 9.4 - [Name of sub-vote]
B95: 9.5 | C95: [Name of sub-vote] | D95: 9.5 - [Name of sub-vote]
B96: 9.6 | C96: [Name of sub-vote] | D96: 9.6 - [Name of sub-vote]
B97: 9.7 | C97: [Name of sub-vote] | D97: 9.7 - [Name of sub-vote]
B98: 9.8 | C98: [Name of sub-vote] | D98: 9.8 - [Name of sub-vote]
B99: 9.9 | C99: [Name of sub-vote] | D99: 9.9 - [Name of sub-vote]
B100: 9.10 | C100: [Name of sub-vote] | D100: 9.10 - [Name of sub-vote]
B101: Vote 10 | C101: [NAME OF VOTE 10]
B102: 10.1 | C102: [Name of sub-vote] | D102: =CONCATENATE(B102, " - ", C102) -> 10.1 - [Name of sub-vote] | E102: =IF(C102="[Name of sub-vote]"," ",D102) -> 
B103: 10.2 | C103: [Name of sub-vote] | D103: 10.2 - [Name of sub-vote] | E103: =IF(C103="[Name of sub-vote]"," ",D103) -> 
B104: 10.3 | C104: [Name of sub-vote] | D104: 10.3 - [Name of sub-vote]
B105: 10.4 | C105: [Name of sub-vote] | D105: 10.4 - [Name of sub-vote]
B106: 10.5 | C106: [Name of sub-vote] | D106: 10.5 - [Name of sub-vote]
B107: 10.6 | C107: [Name of sub-vote] | D107: 10.6 - [Name of sub-vote]
B108: 10.7 | C108: [Name of sub-vote] | D108: 10.7 - [Name of sub-vote]
B109: 10.8 | C109: [Name of sub-vote] | D109: 10.8 - [Name of sub-vote]
B110: 10.9 | C110: [Name of sub-vote] | D110: 10.9 - [Name of sub-vote]
B111: 10.10 | C111: [Name of sub-vote] | D111: 10.10 - [Name of sub-vote]
B112: Vote 11 | C112: [NAME OF VOTE 11]
B113: 11.1 | C113: [Name of sub-vote] | D113: =CONCATENATE(B113, " - ", C113) -> 11.1 - [Name of sub-vote] | E113: =IF(C113="[Name of sub-vote]"," ",D113) -> 
B114: 11.2 | C114: [Name of sub-vote] | D114: 11.2 - [Name of sub-vote] | E114: =IF(C114="[Name of sub-vote]"," ",D114) -> 
B115: 11.3 | C115: [Name of sub-vote] | D115: 11.3 - [Name of sub-vote]
B116: 11.4 | C116: [Name of sub-vote] | D116: 11.4 - [Name of sub-vote]
B117: 11.5 | C117: [Name of sub-vote] | D117: 11.5 - [Name of sub-vote]
B118: 11.6 | C118: [Name of sub-vote] | D118: 11.6 - [Name of sub-vote]
B119: 11.7 | C119: [Name of sub-vote] | D119: 11.7 - [Name of sub-vote]
B120: 11.8 | C120: [Name of sub-vote] | D120: 11.8 - [Name of sub-vote]
B121: 11.9 | C121: [Name of sub-vote] | D121: 11.9 - [Name of sub-vote]
B122: 11.10 | C122: [Name of sub-vote] | D122: 11.10 - [Name of sub-vote]
B123: Vote 12 | C123: [NAME OF VOTE 12]
B124: 12.1 | C124: [Name of sub-vote] | D124: =CONCATENATE(B124, " - ", C124) -> 12.1 - [Name of sub-vote] | E124: =IF(C124="[Name of sub-vote]"," ",D124) -> 
B125: 12.2 | C125: [Name of sub-vote] | D125: 12.2 - [Name of sub-vote] | E125: =IF(C125="[Name of sub-vote]"," ",D125) -> 
B126: 12.3 | C126: [Name of sub-vote] | D126: 12.3 - [Name of sub-vote]
B127: 12.4 | C127: [Name of sub-vote] | D127: 12.4 - [Name of sub-vote]
B128: 12.5 | C128: [Name of sub-vote] | D128: 12.5 - [Name of sub-vote]
B129: 12.6 | C129: [Name of sub-vote] | D129: 12.6 - [Name of sub-vote]
B130: 12.7 | C130: [Name of sub-vote] | D130: 12.7 - [Name of sub-vote]
B131: 12.8 | C131: [Name of sub-vote] | D131: 12.8 - [Name of sub-vote]
B132: 12.9 | C132: [Name of sub-vote] | D132: 12.9 - [Name of sub-vote]
B133: 12.10 | C133: [Name of sub-vote] | D133: 12.10 - [Name of sub-vote]
B134: Vote 13 | C134: [NAME OF VOTE 13]
B135: 13.1 | C135: [Name of sub-vote] | D135: =CONCATENATE(B135, " - ", C135) -> 13.1 - [Name of sub-vote] | E135: =IF(C135="[Name of sub-vote]"," ",D135) -> 
B136: 13.2 | C136: [Name of sub-vote] | D136: 13.2 - [Name of sub-vote] | E136: =IF(C136="[Name of sub-vote]"," ",D136) -> 
B137: 13.3 | C137: [Name of sub-vote] | D137: 13.3 - [Name of sub-vote]
B138: 13.4 | C138: [Name of sub-vote] | D138: 13.4 - [Name of sub-vote]
B139: 13.5 | C139: [Name of sub-vote] | D139: 13.5 - [Name of sub-vote]
B140: 13.6 | C140: [Name of sub-vote] | D140: 13.6 - [Name of sub-vote]
B141: 13.7 | C141: [Name of sub-vote] | D141: 13.7 - [Name of sub-vote]
B142: 13.8 | C142: [Name of sub-vote] | D142: 13.8 - [Name of sub-vote]
B143: 13.9 | C143: [Name of sub-vote] | D143: 13.9 - [Name of sub-vote]
B144: 13.10 | C144: [Name of sub-vote] | D144: 13.10 - [Name of sub-vote]
B145: Vote 14 | C145: [NAME OF VOTE 14]
B146: 14.1 | C146: [Name of sub-vote] | D146: =CONCATENATE(B146, " - ", C146) -> 14.1 - [Name of sub-vote] | E146: =IF(C146="[Name of sub-vote]"," ",D146) -> 
B147: 14.2 | C147: [Name of sub-vote] | D147: 14.2 - [Name of sub-vote] | E147: =IF(C147="[Name of sub-vote]"," ",D147) -> 
B148: 14.3 | C148: [Name of sub-vote] | D148: 14.3 - [Name of sub-vote]
B149: 14.4 | C149: [Name of sub-vote] | D149: 14.4 - [Name of sub-vote]
B150: 14.5 | C150: [Name of sub-vote] | D150: 14.5 - [Name of sub-vote]
B151: 14.6 | C151: [Name of sub-vote] | D151: 14.6 - [Name of sub-vote]
B152: 14.7 | C152: [Name of sub-vote] | D152: 14.7 - [Name of sub-vote]
B153: 14.8 | C153: [Name of sub-vote] | D153: 14.8 - [Name of sub-vote]
B154: 14.9 | C154: [Name of sub-vote] | D154: 14.9 - [Name of sub-vote]
B155: 14.10 | C155: [Name of sub-vote] | D155: 14.10 - [Name of sub-vote]
B156: Vote 15 | C156: [NAME OF VOTE 15]
B157: 15.1 | C157: [Name of sub-vote] | D157: =CONCATENATE(B157, " - ", C157) -> 15.1 - [Name of sub-vote] | E157: =IF(C157="[Name of sub-vote]"," ",D157) -> 
B158: 15.2 | C158: [Name of sub-vote] | D158: 15.2 - [Name of sub-vote] | E158: =IF(C158="[Name of sub-vote]"," ",D158) -> 
B159: 15.3 | C159: [Name of sub-vote] | D159: 15.3 - [Name of sub-vote] | E159: =IF(C159="[Name of sub-vote]"," ",D159) -> 
B160: 15.4 | C160: [Name of sub-vote] | D160: 15.4 - [Name of sub-vote]
B161: 15.5 | C161: [Name of sub-vote] | D161: 15.5 - [Name of sub-vote]
B162: 15.6 | C162: [Name of sub-vote] | D162: 15.6 - [Name of sub-vote]
B163: 15.7 | C163: [Name of sub-vote] | D163: 15.7 - [Name of sub-vote]
B164: 15.8 | C164: [Name of sub-vote] | D164: 15.8 - [Name of sub-vote]
B165: 15.9 | C165: [Name of sub-vote] | D165: 15.9 - [Name of sub-vote]
B166: 15.10 | C166: [Name of sub-vote] | D166: 15.10 - [Name of sub-vote]

Sheet Contacts
A1: =muni&" - "&" Contact Information" -> KZN434 Ubuhlebezwe - Contact Information
A3: A. GENERAL INFORMATION
A4: Municipality | B4: =muni -> KZN434 Ubuhlebezwe | C4: Set name on 'Instructions' sheet
A6: Grade | B6: 3 | C6: 1 Grade in terms of the Remuneration of Public Office Bearers Act.
A8: Province | B8: =IF(B4>" ",VLOOKUP(B4,'Lookup and lists'!B28:C311,2, FALSE)," ") -> Kwazulu-Natal
A10: Web Address | B10: www.ubuhlebezwe.gov.za
A12: e-mail Address | B12: admin@ubuhlebezwe.gov.za
A14: B. CONTACT INFORMATION
A15: Postal address:
A16: P.O. Box | B16: 132
A17: City / Town | B17: ixopo
A18: Postal Code | B18: 3276
A20: Street address
A21: Building | B21: UBUHLEBEZWE MUNICIPALITY
A22: Street No. & Name | B22: 29 Margaret St Ixopo
A23: City / Town | B23: Ixopo
A24: Postal Code | B24: 3276
A26: General Contacts
A27: Telephone number | B27: 0398347700
A28: Fax number | B28: 0398341168
A30: C. POLITICAL LEADERSHIP
A31: Speaker: | C31: Secretary/PA to the Speaker:
A32: ID Number | C32: ID Number
A33: Title | B33: Mr | C33: Title
A34: Name | B34: Z.C Mngonyama | C34: Name | D34: Zodumo Dlamini
A35: Telephone number | B35: 0398347700 | C35: Telephone number | D35: 0398347700
A36: Cell number | B36: 0786751894 | C36: Cell number
A37: Fax number | B37: 0398341168 | C37: Fax number | D37: 0398341168
A38: E-mail address | B38: czmngonyama@ubuhlebezwe.gov.za | C38: E-mail address | D38: zdlamini@ubuhlebezwe.org.za
A40: Mayor/Executive Mayor: | C40: Secretary/PA to the Mayor/Executive Mayor:
A41: ID Number | C41: ID Number
A42: Title | B42: Mr | C42: Title
A43: Name | B43: Zamo Nxumalo | C43: Name | D43: Nelly Chiliza
A44: Telephone number | B44: 0398347700 | C44: Telephone number | D44: 0398347700
A45: Cell number | B45: 0834643726 | C45: Cell number
A46: Fax number | B46: 0398341168 | C46: Fax number | D46: 0398341168
A47: E-mail address | B47: zdnxumalo@ubuhlebezwe.gov.za | C47: E-mail address | D47: nchiliza@ubuhlebezwe.org.za
A49: Deputy Mayor/Executive Mayor: | C49: Secretary/PA to the Deputy Mayor/Executive Mayor:
A50: ID Number | C50: ID Number
A51: Title | B51: Ms | C51: Title | D51: Ms
A52: Name | B52: EB Ngubo | C52: Name | D52: Zodumo
A53: Telephone number | B53: 0398347700 | C53: Telephone number | D53: 0398347700
A54: Cell number | B54: 0839465761 | C54: Cell number
A55: Fax number | B55: 0398341168 | C55: Fax number | D55: 0398341168
A56: E-mail address | B56: thobilengb@gmail.com | C56: E-mail address | D56: nchiliza@ubuhlebezwe.org.za
A58: D. MANAGEMENT LEADERSHIP
A59: Municipal Manager: | C59: Secretary/PA to the Municipal Manager:
A60: ID Number | C60: ID Number
A61: Title | B61: Mr | C61: Title | D61: Ms
A62: Name | B62: Gamakulu Sineke | C62: Name | D62: Zama Khumalo
A63: Telephone number | B63: 0398347700 | C63: Telephone number | D63: 0398347700
A64: Cell number | B64: 0767947046 | C64: Cell number | D64: 0767947046
A65: Fax number | B65: 0398341168 | C65: Fax number | D65: 0398341168
A66: E-mail address | B66: mm@ubuhlebezwe.org.za | C66: E-mail address | D66: zkhumalo@ubuhlebezwe.org.za
A68: Chief Financial Officer | C68: Secretary/PA to the Chief Financial Officer
A69: ID Number | C69: ID Number
A70: Title | B70: Mrs | C70: Title
A71: Name | B71: NK SIBOBI | C71: Name
A72: Telephone number | B72: 0398347700 | C72: Telephone number
A73: Cell number | B73: 0725808850 | C73: Cell number
A74: Fax number | B74: 0398341168 | C74: Fax number
A75: E-mail address | B75: NKSIBOBI@UBUHLEBEZWE.GOV.ZA | C75: E-mail address
A77: Official responsible for submitting financial information | C77: Official responsible for submitting financial information
A78: ID Number | C78: ID Number
A79: Title | C79: Title
A80: Name | C80: Name
A81: Telephone number | C81: Telephone number
A82: Cell number | C82: Cell number
A83: Fax number | C83: Fax number
A84: E-mail address | C84: E-mail address
A85: Official responsible for submitting financial information | C85: Official responsible for submitting financial information
A86: ID Number | C86: ID Number
A87: Title | C87: Title
A88: Name | C88: Name
A89: Telephone number | C89: Telephone number
A90: Cell number | C90: Cell number
A91: Fax number | C91: Fax number
A92: E-mail address | C92: E-mail address
A93: Official responsible for submitting financial information | C93: Official responsible for submitting financial information
A94: ID Number | C94: ID Number
A95: Title | C95: Title
A96: Name | C96: Name
A97: Telephone number | C97: Telephone number
A98: Cell number | C98: Cell number
A99: Fax number | C99: Fax number
A100: E-mail address | C100: E-mail address
A101: Official responsible for submitting financial information | C101: Official responsible for submitting financial information
A102: ID Number | C102: ID Number
A103: Title | C103: Title
A104: Name | C104: Name
A105: Telephone number | C105: Telephone number
A106: Cell number | C106: Cell number
A107: Fax number | C107: Fax number
A108: E-mail address | C108: E-mail address
A109: Official responsible for submitting financial information | C109: Official responsible for submitting financial information
A110: ID Number | C110: ID Number
A111: Title | C111: Title
A112: Name | C112: Name
A113: Telephone number | C113: Telephone number
A114: Cell number | C114: Cell number
A115: Fax number | C115: Fax number
A116: E-mail address | C116: E-mail address
A117: Official responsible for submitting financial information | C117: Official responsible for submitting financial information
A118: ID Number | C118: ID Number
A119: Title | C119: Title
A120: Name | C120: Name
A121: Telephone number | C121: Telephone number
A122: Cell number | C122: Cell number
A123: Fax number | C123: Fax number
A124: E-mail address | C124: E-mail address
A125: Official responsible for submitting financial information | C125: Official responsible for submitting financial information
A126: ID Number | C126: ID Number
A127: Title | C127: Title
A128: Name | C128: Name
A129: Telephone number | C129: Telephone number
A130: Cell number | C130: Cell number
A131: Fax number | C131: Fax number
A132: E-mail address | C132: E-mail address
A133: Official responsible for submitting financial information
A134: ID Number
A135: Title
A136: Name
A137: Telephone number
A138: Cell number
A139: Fax number
A140: E-mail address

Sheet C1-Sum
A1: =muni& " - "&s71sum& " - "&date -> KZN434 Ubuhlebezwe - Table C1 Monthly Budget Statement Summary - Mid-Year Assessment
A2: =desc -> Description | B2: =Head1 -> 2016/17 | C2: =Head2 -> Budget Year 2017/18
B3: =Head5 -> Audited Outcome | C3: =Head6 -> Original Budget | D3: =Head7 -> Adjusted Budget | E3: =Head38 -> Monthly actual | F3: =Head39 -> YearTD actual | G3: =Head40 -> YearTD budget | H3: =Head41 -> YTD variance | I3: =Head41 -> YTD variance | J3: =Head8 -> Full Year Forecast
A4: R thousands | I4: %
A5: Financial Performance
A6: Property rates | B6: =SUM('C4-FinPerf RE'!C6:C6) -> 0 | C6: =SUM('C4-FinPerf RE'!D6:D6) -> 15747822 | D6: =SUM('C4-FinPerf RE'!E6:E6) -> 15747822 | E6: =SUM('C4-FinPerf RE'!F6:F6) -> 1089047.22 | F6: =SUM('C4-FinPerf RE'!G6:G6) -> 6650444.44 | G6: =SUM('C4-FinPerf RE'!H6:H6) -> 7873911 | H6: =F6-G6 -> -1223466.56 | I6: =IF(H6=0,"",H6/G6) -> -0.1553823202 | J6: =SUM('C4-FinPerf RE'!K6:K6) -> 15747822
A7: Service charges | B7: =SUM('C4-FinPerf RE'!C7:C11) -> 0 | C7: =SUM('C4-FinPerf RE'!D7:D11) -> 1990711 | D7: =SUM('C4-FinPerf RE'!E7:E11) -> 1990711 | E7: =SUM('C4-FinPerf RE'!F7:F11) -> 178820.91 | F7: =SUM('C4-FinPerf RE'!G7:G11) -> 992054.9 | G7: =SUM('C4-FinPerf RE'!H7:H11) -> 995355.5 | H7: =F7-G7 -> -3300.6 | I7: =IF(H7=0,"",H7/G7) -> -0.003316001167 | J7: =SUM('C4-FinPerf RE'!K7:K11) -> 1990711
A8: Investment revenue | B8: ='C4-FinPerf RE'!C13 -> 0 | C8: ='C4-FinPerf RE'!D13 -> 7000000 | D8: ='C4-FinPerf RE'!E13 -> 7000000 | E8: ='C4-FinPerf RE'!F13 -> 354041.99 | F8: ='C4-FinPerf RE'!G13 -> 4600178.68 | G8: ='C4-FinPerf RE'!H13 -> 3500000 | H8: =F8-G8 -> 1100178.68 | I8: =IF(H8=0,"",H8/G8) -> 0.3143367657 | J8: ='C4-FinPerf RE'!K13 -> 7000000
A9: Transfers and subsidies | B9: ='C4-FinPerf RE'!C19 -> 0 | C9: ='C4-FinPerf RE'!D19 -> 99114000 | D9: ='C4-FinPerf RE'!E19 -> 99114000 | E9: ='C4-FinPerf RE'!F19 -> 33108986.14 | F9: ='C4-FinPerf RE'!G19 -> 73676838.96 | G9: ='C4-FinPerf RE'!H19 -> 49557000 | H9: =F9-G9 -> 24119838.96 | I9: =IF(H9=0,"",H9/G9) -> 0.4867090211 | J9: ='C4-FinPerf RE'!K19 -> 99114000
A10: Other own revenue | B10: ='C4-FinPerf RE'!C12+'C4-FinPerf RE'!C14+'C4-FinPerf RE'!C15+'C4-FinPerf RE'!C16+'C4-FinPerf RE'!C17+'C4-FinPerf RE'!C18+'C4-FinPerf RE'!C20+'C4-FinPerf RE'!C21 -> 0 | C10: ='C4-FinPerf RE'!D12+'C4-FinPerf RE'!D14+'C4-FinPerf RE'!D15+'C4-FinPerf RE'!D16+'C4-FinPerf RE'!D17+'C4-FinPerf RE'!D18+'C4-FinPerf RE'!D20+'C4-FinPerf RE'!D21 -> 10494500 | D10: ='C4-FinPerf RE'!E12+'C4-FinPerf RE'!E14+'C4-FinPerf RE'!E15+'C4-FinPerf RE'!E16+'C4-FinPerf RE'!E17+'C4-FinPerf RE'!E18+'C4-FinPerf RE'!E20+'C4-FinPerf RE'!E21 -> 10494500 | E10: ='C4-FinPerf RE'!F12+'C4-FinPerf RE'!F14+'C4-FinPerf RE'!F15+'C4-FinPerf RE'!F16+'C4-FinPerf RE'!F17+'C4-FinPerf RE'!F18+'C4-FinPerf RE'!F20+'C4-FinPerf RE'!F21 -> 337226.01 | F10: ='C4-FinPerf RE'!G12+'C4-FinPerf RE'!G14+'C4-FinPerf RE'!G15+'C4-FinPerf RE'!G16+'C4-FinPerf RE'!G17+'C4-FinPerf RE'!G18+'C4-FinPerf RE'!G20+'C4-FinPerf RE'!G21 -> 2749747.5 | G10: ='C4-FinPerf RE'!H12+'C4-FinPerf RE'!H14+'C4-FinPerf RE'!H15+'C4-FinPerf RE'!H16+'C4-FinPerf RE'!H17+'C4-FinPerf RE'!H18+'C4-FinPerf RE'!H20+'C4-FinPerf RE'!H21 -> 5247250 | H10: =F10-G10 -> -2497502.5 | I10: =IF(H10=0,"",H10/G10) -> -0.4759640764 | J10: ='C4-FinPerf RE'!K12+'C4-FinPerf RE'!K14+'C4-FinPerf RE'!K15+'C4-FinPerf RE'!K16+'C4-FinPerf RE'!K17+'C4-FinPerf RE'!K18+'C4-FinPerf RE'!K20+'C4-FinPerf RE'!K21 -> 10494500
A11: Total Revenue (excluding capital transfers and contributions) | B11: =SUM(B6:B10) -> 0 | C11: 134347033 | D11: 134347033 | E11: 35068122.27 | F11: 88669264.48 | G11: 67173516.5 | H11: =F11-G11 -> 21495747.98 | I11: =IF(H11=0,"",H11/G11) -> 0.3200033153 | J11: 134347033
A12: Employee costs | B12: ='C4-FinPerf RE'!C25 -> 0 | C12: ='C4-FinPerf RE'!D25 -> 67684860.82 | D12: ='C4-FinPerf RE'!E25 -> 67684860.82 | E12: ='C4-FinPerf RE'!F25 -> 0 | F12: ='C4-FinPerf RE'!G25 -> 32827157.36 | G12: ='C4-FinPerf RE'!H25 -> 33842430.41 | H12: -1015273.049 | I12: -0.03000000405 | J12: ='C4-FinPerf RE'!K25 -> 67684860.82
A13: Remuneration of Councillors | B13: ='C4-FinPerf RE'!C26 -> 0 | C13: ='C4-FinPerf RE'!D26 -> 9854978 | D13: ='C4-FinPerf RE'!E26 -> 9854978 | E13: ='C4-FinPerf RE'!F26 -> 0 | F13: ='C4-FinPerf RE'!G26 -> 4471162.18 | G13: ='C4-FinPerf RE'!H26 -> 4927489 | H13: -456326.82 | I13: -0.09260838938 | J13: ='C4-FinPerf RE'!K26 -> 9854978
A14: Depreciation & asset impairment | B14: ='C4-FinPerf RE'!C28 -> 0 | C14: ='C4-FinPerf RE'!D28 -> 19000000 | D14: ='C4-FinPerf RE'!E28 -> 19000000 | E14: ='C4-FinPerf RE'!F28 -> 0 | F14: ='C4-FinPerf RE'!G28 -> 9500000 | G14: ='C4-FinPerf RE'!H28 -> 9500000 | H14: 0 | J14: ='C4-FinPerf RE'!K28 -> 19000000
A15: Finance charges | B15: ='C4-FinPerf RE'!C29 -> 0 | C15: ='C4-FinPerf RE'!D29 -> 0 | D15: ='C4-FinPerf RE'!E29 -> 0 | E15: ='C4-FinPerf RE'!F29 -> 0 | F15: ='C4-FinPerf RE'!G29 -> 0 | G15: ='C4-FinPerf RE'!H29 -> 0 | H15: 0 | J15: ='C4-FinPerf RE'!K29 -> 0
A16: Materials and bulk purchases | B16: =SUM('C4-FinPerf RE'!C30:C31) -> 0 | C16: =SUM('C4-FinPerf RE'!D30:D31) -> 4186385 | D16: =SUM('C4-FinPerf RE'!E30:E31) -> 4186385 | E16: =SUM('C4-FinPerf RE'!F30:F31) -> 0 | F16: =SUM('C4-FinPerf RE'!G30:G31) -> 1868677.86 | G16: =SUM('C4-FinPerf RE'!H30:H31) -> 2093192.5 | H16: -224514.64 | I16: -0.1072594327 | J16: =SUM('C4-FinPerf RE'!K30:K31) -> 4186385
A17: Transfers and subsidies | B17: ='C4-FinPerf RE'!C33 -> 0 | C17: ='C4-FinPerf RE'!D33 -> 4221000 | D17: ='C4-FinPerf RE'!E33 -> 4221000 | E17: ='C4-FinPerf RE'!F33 -> 0 | F17: ='C4-FinPerf RE'!G33 -> 1522952.81 | G17: ='C4-FinPerf RE'!H33 -> 2110500 | H17: -587547.19 | I17: -0.2783924141 | J17: ='C4-FinPerf RE'!K33 -> 4221000
A18: Other expenditure | B18: ='C4-FinPerf RE'!C36-SUM('C1-Sum'!B12:B17) -> 0 | C18: ='C4-FinPerf RE'!D36-SUM('C1-Sum'!C12:C17) -> 40136500 | D18: ='C4-FinPerf RE'!E36-SUM('C1-Sum'!D12:D17) -> 40136500 | E18: ='C4-FinPerf RE'!F36-SUM('C1-Sum'!E12:E17) -> 302450561 | F18: ='C4-FinPerf RE'!G36-SUM('C1-Sum'!F12:F17) -> 15958164.02 | G18: ='C4-FinPerf RE'!H36-SUM('C1-Sum'!G12:G17) -> 20068250 | H18: -4110085.98 | I18: -0.2048054006 | J18: ='C4-FinPerf RE'!K36-SUM('C1-Sum'!J12:J17) -> 40136500
A19: Total Expenditure | B19: =SUM(B12:B18) -> 0 | C19: 145083723.8 | D19: 145083723.8 | E19: 302450561 | F19: 66148114.23 | G19: 72541861.91 | H19: -6393747.679 | I19: -0.08813873136 | J19: =SUM(J12:J18) -> 145083723.8
A20: Surplus/(Deficit) | B20: =B11-B19 -> 0 | C20: -10736690.82 | D20: -10736690.82 | E20: -267382438.7 | F20: 22521150.25 | G20: -5368345.409 | H20: 27889495.66 | I20: -5.195175335 | J20: =J11-J19 -> -10736690.82
A21: ='C4-FinPerf RE'!A39 -> Transfers and subsidies - capital (monetary allocations) (National / Provincial and District) | B21: ='C4-FinPerf RE'!C39 -> 0 | C21: ='C4-FinPerf RE'!D39 -> 47834051.69 | D21: ='C4-FinPerf RE'!E39 -> 47834051.69 | E21: ='C4-FinPerf RE'!F39 -> 6116338.09 | F21: ='C4-FinPerf RE'!G39 -> 24625383.79 | G21: ='C4-FinPerf RE'!H39 -> 23917025.84 | H21: 708357.945 | I21: 0.02961730901 | J21: ='C4-FinPerf RE'!K39 -> 47834051.69
A22: Contributions & Contributed assets | B22: =SUM('C4-FinPerf RE'!C40:C41) -> 0 | C22: =SUM('C4-FinPerf RE'!D40:D41) -> 0 | D22: =SUM('C4-FinPerf RE'!E40:E41) -> 0 | E22: =SUM('C4-FinPerf RE'!F40:F41) -> 0 | F22: =SUM('C4-FinPerf RE'!G40:G41) -> 0 | G22: =SUM('C4-FinPerf RE'!H40:H41) -> 0 | H22: 0 | J22: =SUM('C4-FinPerf RE'!K40:K41) -> 0
A23: Surplus/(Deficit) after capital transfers & contributions | B23: =B20+B21+B22 -> 0 | C23: 37097360.87 | D23: 37097360.87 | E23: -261266100.6 | F23: 47146534.04 | G23: 18548680.44 | H23: 28597853.6 | I23: 1.541772942 | J23: =J20+J21+J22 -> 37097360.87
A24: Share of surplus/ (deficit) of associate | B24: ='C4-FinPerf RE'!C47 -> 0 | C24: ='C4-FinPerf RE'!D47 -> 0 | D24: ='C4-FinPerf RE'!E47 -> 0 | E24: ='C4-FinPerf RE'!F47 -> 0 | F24: ='C4-FinPerf RE'!G47 -> 0 | G24: ='C4-FinPerf RE'!H47 -> 0 | H24: 0 | J24: ='C4-FinPerf RE'!K47 -> 0
A25: Surplus/ (Deficit) for the year | B25: =B23+B24 -> 0 | C25: 37097360.87 | D25: 37097360.87 | E25: -261266100.6 | F25: 47146534.04 | G25: 18548680.44 | H25: 28597853.6 | I25: 1.541772942 | J25: =J23+J24 -> 37097360.87
A27: Capital expenditure & funds sources
A28: Capital expenditure | B28: ='C5-Capex'!C40 -> 0 | C28: ='C5-Capex'!D40 -> 83009663.62 | D28: ='C5-Capex'!E40 -> 83009663.62 | E28: ='C5-Capex'!F40 -> 6661951.04 | F28: ='C5-Capex'!G40 -> 24075342.5 | G28: ='C5-Capex'!H40 -> 41504831.81 | H28: =F28-G28 -> -17429489.31 | I28: =IF(H28=0,"",H28/G28) -> -0.4199388011 | J28: ='C5-Capex'!K40 -> 83009663.62
A29: Capital transfers recognised | B29: ='C5-Capex'!C70 -> 0 | C29: ='C5-Capex'!D70 -> 47834051.69 | D29: ='C5-Capex'!E70 -> 47834051.69 | E29: ='C5-Capex'!F70 -> 6142072.35 | F29: ='C5-Capex'!G70 -> 23368165.8 | G29: ='C5-Capex'!H70 -> 23917025.84 | H29: -548860.045 | I29: -0.02294850742 | J29: ='C5-Capex'!K70 -> 47834051.69
A30: Public contributions & donations | B30: ='C5-Capex'!C71 -> 0 | C30: ='C5-Capex'!D71 -> 0 | D30: ='C5-Capex'!E71 -> 0 | E30: ='C5-Capex'!F71 -> 0 | F30: ='C5-Capex'!G71 -> 0 | G30: ='C5-Capex'!H71 -> 0 | H30: 0 | J30: ='C5-Capex'!K71 -> 0
A31: Borrowing | B31: ='C5-Capex'!C72 -> 0 | C31: ='C5-Capex'!D72 -> 0 | D31: ='C5-Capex'!E72 -> 0 | E31: ='C5-Capex'!F72 -> 0 | F31: ='C5-Capex'!G72 -> 0 | G31: ='C5-Capex'!H72 -> 0 | H31: 0 | J31: ='C5-Capex'!K72 -> 0
A32: Internally generated funds | B32: ='C5-Capex'!C73 -> 0 | C32: ='C5-Capex'!D73 -> 35175611.93 | D32: ='C5-Capex'!E73 -> 35175611.93 | E32: ='C5-Capex'!F73 -> 519878.69 | F32: ='C5-Capex'!G73 -> 707176.7 | G32: ='C5-Capex'!H73 -> 17587805.96 | H32: -16880629.27 | I32: -0.9597916476 | J32: ='C5-Capex'!K73 -> 35175611.93
A33: Total sources of capital funds | B33: =SUM(B29:B32) -> 0 | C33: 83009663.62 | D33: 83009663.62 | E33: =SUM(E29:E32) -> 6661951.04 | F33: =SUM(F29:F32) -> 24075342.5 | G33: =SUM(G29:G32) -> 41504831.81 | H33: -17429489.31 | I33: -0.4199388011 | J33: 83009663.62
A35: Financial position
A36: Total current assets | B36: ='C6-FinPos'!C13 -> 0 | C36: ='C6-FinPos'!D13 -> 126664387 | D36: ='C6-FinPos'!E13 -> 126664387 | F36: ='C6-FinPos'!F13 -> 153137673.1 | J36: ='C6-FinPos'!G13 -> 126664387
A37: Total non current assets | B37: ='C6-FinPos'!C25 -> 0 | C37: ='C6-FinPos'!D25 -> 270483457 | D37: ='C6-FinPos'!E25 -> 270483457 | F37: ='C6-FinPos'!F25 -> 41504831.81 | J37: ='C6-FinPos'!G25 -> 270483457
A38: Total current liabilities | B38: ='C6-FinPos'!C35 -> 0 | C38: ='C6-FinPos'!D35 -> 20474412 | D38: ='C6-FinPos'!E35 -> 20474412 | F38: ='C6-FinPos'!F35 -> 4042965.82 | J38: ='C6-FinPos'!G35 -> 20474412
A39: Total non current liabilities | B39: ='C6-FinPos'!C40 -> 0 | C39: ='C6-FinPos'!D40 -> 5589600 | D39: ='C6-FinPos'!E40 -> 5589600 | F39: ='C6-FinPos'!F40 -> 0 | J39: ='C6-FinPos'!G40 -> 5589600
A40: Community wealth/Equity | B40: ='C6-FinPos'!C48 -> 0 | C40: ='C6-FinPos'!D48 -> 371083832 | D40: ='C6-FinPos'!E48 -> 371083832 | F40: ='C6-FinPos'!F48 -> 190599539.1 | J40: ='C6-FinPos'!G48 -> 371083832
A42: Cash flows
A43: Net cash from (used) operating | B43: ='C7-CFlow'!C18 -> 0 | C43: ='C7-CFlow'!D18 -> 77982065.85 | D43: ='C7-CFlow'!E18 -> 77982065.85 | E43: ='C7-CFlow'!F18 -> 31104977.92 | F43: ='C7-CFlow'!G18 -> 84055651.89 | G43: ='C7-CFlow'!H18 -> 38991032.93 | H43: =G43-F43 -> -45064618.96 | I43: =IF(H43=0,"",H43/G43) -> -1.15576879 | J43: ='C7-CFlow'!K18 -> 77982065.85
A44: Net cash from (used) investing | B44: ='C7-CFlow'!C28 -> 0 | C44: ='C7-CFlow'!D28 -> 0 | D44: ='C7-CFlow'!E28 -> 0 | E44: ='C7-CFlow'!F28 -> 0 | F44: ='C7-CFlow'!G28 -> 0 | G44: ='C7-CFlow'!H28 -> 0 | H44: =G44-F44 -> 0 | I44: =IF(H44=0,"",H44/G44) ->  | J44: ='C7-CFlow'!K28 -> 0
A45: Net cash from (used) financing | B45: ='C7-CFlow'!C37 -> 0 | C45: ='C7-CFlow'!D37 -> 0 | D45: ='C7-CFlow'!E37 -> 0 | E45: ='C7-CFlow'!F37 -> 0 | F45: ='C7-CFlow'!G37 -> 0 | G45: ='C7-CFlow'!H37 -> 0 | H45: =G45-F45 -> 0 | I45: =IF(H45=0,"",H45/G45) ->  | J45: ='C7-CFlow'!K37 -> 0
A46: Cash/cash equivalents at the month/year end | B46: ='C7-CFlow'!C41 -> 0 | C46: ='C7-CFlow'!D41 -> 77982065.85 | D46: ='C7-CFlow'!E41 -> 77982065.85 | E46: ='C7-CFlow'!F41 -> 0 | F46: ='C7-CFlow'!G41 -> 84055651.89 | G46: ='C7-CFlow'!H41 -> 38991032.93 | H46: =G46-F46 -> -45064618.96 | I46: =IF(H46=0,"",H46/G46) -> -1.15576879 | J46: ='C7-CFlow'!K41 -> 77982065.85
A48: Debtors & creditors analysis | B48: ='SC3'!C3 -> 0-30 Days | C48: ='SC3'!D3 -> 31-60 Days | D48: ='SC3'!E3 -> 61-90 Days | E48: ='SC3'!F3 -> 91-120 Days | F48: ='SC3'!G3 -> 121-150 Dys | G48: ='SC3'!H3 -> 151-180 Dys | H48: ='SC3'!I3 -> 181 Dys-1 Yr | I48: ='SC3'!J3 -> Over 1Yr | J48: Total
A49: =LEFT('SC3'!A4,20) -> Debtors Age Analysis
A50: ='SC3'!A14 -> Total By Income Source | B50: ='SC3'!C14 -> -8111377.25 | C50: ='SC3'!D14 -> 647863.71 | D50: ='SC3'!E14 -> 615038.44 | E50: ='SC3'!F14 -> 589785.92 | F50: ='SC3'!G14 -> 217598.86 | G50: ='SC3'!H14 -> 245693.38 | H50: ='SC3'!I14 -> 7507246.84 | I50: ='SC3'!J14 -> 22207320.49 | J50: ='SC3'!K14 -> 23919170.39
A51: =LEFT('SC4'!A5,22) -> Creditors Age Analysis
A52: Total Creditors | B52: ='SC4'!C15 -> 0 | C52: ='SC4'!D15 -> 123725 | D52: ='SC4'!E15 -> 0 | E52: ='SC4'!F15 -> 0 | F52: ='SC4'!G15 -> 0 | G52: ='SC4'!H15 -> 0 | H52: ='SC4'!I15 -> 0 | I52: ='SC4'!J15 -> 0 | J52: ='SC4'!K15 -> 123725

Sheet C2-FinPerf SC
A1: =muni& " - "&S71A& " - "&date -> KZN434 Ubuhlebezwe - Table C2 Monthly Budget Statement - Financial Performance (functional classification) - Mid-Year Assessment
A2: =desc -> Description | B2: =head27 -> Ref | C2: =Head1 -> 2016/17 | D2: =Head2 -> Budget Year 2017/18
C3: =Head5 -> Audited Outcome | D3: =Head6 -> Original Budget | E3: =Head7 -> Adjusted Budget | F3: =Head38 -> Monthly actual | G3: =Head39 -> YearTD actual | H3: =Head40 -> YearTD budget | I3: =Head41 -> YTD variance | J3: =Head41 -> YTD variance | K3: =Head8 -> Full Year Forecast
A4: R thousands | B4: 1 | J4: %
A5: Revenue - Functional
A6: Governance and administration | C6: =SUM(C7:C9) -> 0 | D6: 125431822 | E6: 125431822 | F6: 34264271.5 | G6: 84394821.12 | H6: 62715911 | I6: =G6-H6 -> 21678910.12 | J6: =IF(I6=0,"",I6/H6) -> 0.3456684241 | K6: =SUM(K7:K9) -> 125431822
A7: Executive and council | C7: ='C2C'!C7 -> 0 | D7: ='C2C'!D7 -> 0 | E7: ='C2C'!E7 -> 0 | F7: ='C2C'!F7 -> 0 | G7: ='C2C'!G7 -> 0 | H7: ='C2C'!H7 -> 0 | I7: 0 | J7: =IF(I7=0,"",I7/H7) ->  | K7: ='C2C'!K7 -> 0
A8: Finance and administration | C8: ='C2C'!C10 -> 0 | D8: ='C2C'!D10 -> 125431822 | E8: ='C2C'!E10 -> 125431822 | F8: ='C2C'!F10 -> 34264271.5 | G8: ='C2C'!G10 -> 84394821.12 | H8: ='C2C'!H10 -> 62715911 | I8: 21678910.12 | J8: 0.3456684241 | K8: ='C2C'!K10 -> 125431822
A9: Internal audit | C9: ='C2C'!C25 -> 0 | D9: ='C2C'!D25 -> 0 | E9: ='C2C'!E25 -> 0 | F9: ='C2C'!F25 -> 0 | G9: ='C2C'!G25 -> 0 | H9: ='C2C'!H25 -> 0 | I9: 0 | K9: ='C2C'!K25 -> 0
A10: Community and public safety | C10: =SUM(C11:C15) -> 0 | D10: 4929500 | E10: 4929500 | F10: -170166 | G10: 2419174.1 | H10: 2464750 | I10: -45575.9 | J10: -0.01849108429 | K10: =SUM(K11:K15) -> 4929500
A11: Community and social services | C11: ='C2C'!C28 -> 0 | D11: ='C2C'!D28 -> 1054500 | E11: ='C2C'!E28 -> 1054500 | F11: ='C2C'!F28 -> -170166 | G11: ='C2C'!G28 -> 1117195.12 | H11: ='C2C'!H28 -> 527250 | I11: 589945.12 | J11: 1.118909663 | K11: ='C2C'!K28 -> 1054500
A12: Sport and recreation | C12: ='C2C'!C50 -> 0 | D12: ='C2C'!D50 -> 0 | E12: ='C2C'!E50 -> 0 | F12: ='C2C'!F50 -> 0 | G12: ='C2C'!G50 -> 0 | H12: ='C2C'!H50 -> 0 | I12: 0 | K12: ='C2C'!K50 -> 0
A13: Public safety | C13: ='C2C'!C56 -> 0 | D13: ='C2C'!D56 -> 3875000 | E13: ='C2C'!E56 -> 3875000 | F13: ='C2C'!F56 -> 0 | G13: ='C2C'!G56 -> 1301978.98 | H13: ='C2C'!H56 -> 1937500 | I13: -635521.02 | J13: -0.328010849 | K13: ='C2C'!K56 -> 3875000
A14: Housing | C14: ='C2C'!C63 -> 0 | D14: ='C2C'!D63 -> 0 | E14: ='C2C'!E63 -> 0 | F14: ='C2C'!F63 -> 0 | G14: ='C2C'!G63 -> 0 | H14: ='C2C'!H63 -> 0 | I14: =G14-H14 -> 0 | J14: =IF(I14=0,"",I14/H14) ->  | K14: ='C2C'!K63 -> 0
A15: Health | C15: ='C2C'!C66 -> 0 | D15: ='C2C'!D66 -> 0 | E15: ='C2C'!E66 -> 0 | F15: ='C2C'!F66 -> 0 | G15: ='C2C'!G66 -> 0 | H15: ='C2C'!H66 -> 0 | I15: 0 | K15: ='C2C'!K66 -> 0
A16: Economic and environmental services | C16: =SUM(C17:C19) -> 0 | D16: 49829051.69 | E16: 49829051.69 | F16: 236404.32 | G16: 25488598.15 | H16: 24914525.84 | I16: 574072.305 | J16: 0.02304167089 | K16: =SUM(K17:K19) -> 49829051.69
A17: Planning and development | C17: ='C2C'!C75 -> 0 | D17: ='C2C'!D75 -> 47969051.69 | E17: ='C2C'!E75 -> 47969051.69 | F17: ='C2C'!F75 -> 4614.5 | G17: ='C2C'!G75 -> 24655863.53 | H17: ='C2C'!H75 -> 23984525.84 | I17: 671337.685 | J17: 0.02799045057 | K17: ='C2C'!K75 -> 47969051.69
A18: Road transport | C18: ='C2C'!C86 -> 0 | D18: ='C2C'!D86 -> 1860000 | E18: ='C2C'!E86 -> 1860000 | F18: ='C2C'!F86 -> 231789.82 | G18: ='C2C'!G86 -> 832734.62 | H18: ='C2C'!H86 -> 930000 | I18: -97265.38 | J18: -0.1045864301 | K18: ='C2C'!K86 -> 1860000
A19: Environmental protection | C19: ='C2C'!C93 -> 0 | D19: ='C2C'!D93 -> 0 | E19: ='C2C'!E93 -> 0 | F19: ='C2C'!F93 -> 0 | G19: ='C2C'!G93 -> 0 | H19: ='C2C'!H93 -> 0 | I19: 0 | K19: ='C2C'!K93 -> 0
A20: Trading services | C20: =SUM(C21:C24) -> 0 | D20: =SUM(D21:D24) -> 1990711 | E20: 1990711 | F20: 178820.91 | G20: 992054.9 | H20: 995355.5 | I20: -3300.6 | J20: -0.003316001167 | K20: =SUM(K21:K24) -> 1990711
A21: Energy sources | C21: ='C2C'!C101 -> 0 | D21: ='C2C'!D101 -> 0 | E21: ='C2C'!E101 -> 0 | F21: ='C2C'!F101 -> 0 | G21: ='C2C'!G101 -> 0 | H21: ='C2C'!H101 -> 0 | I21: =G21-H21 -> 0 | K21: ='C2C'!K101 -> 0
A22: Water management | C22: ='C2C'!C105 -> 0 | D22: ='C2C'!D105 -> 0 | E22: ='C2C'!E105 -> 0 | F22: ='C2C'!F105 -> 0 | G22: ='C2C'!G105 -> 0 | H22: ='C2C'!H105 -> 0 | I22: =G22-H22 -> 0 | K22: ='C2C'!K105 -> 0
A23: Waste water management | C23: ='C2C'!C109 -> 0 | D23: ='C2C'!D109 -> 0 | E23: ='C2C'!E109 -> 0 | F23: ='C2C'!F109 -> 0 | G23: ='C2C'!G109 -> 0 | H23: ='C2C'!H109 -> 0 | I23: =G23-H23 -> 0 | K23: ='C2C'!K109 -> 0
A24: Waste management | C24: ='C2C'!C114 -> 0 | D24: ='C2C'!D114 -> 1990711 | E24: ='C2C'!E114 -> 1990711 | F24: ='C2C'!F114 -> 178820.91 | G24: ='C2C'!G114 -> 992054.9 | H24: ='C2C'!H114 -> 995355.5 | I24: =G24-H24 -> -3300.6 | J24: -0.003316001167 | K24: ='C2C'!K114 -> 1990711
A25: Other | B25: 4 | C25: ='C2C'!C119 -> 0 | D25: ='C2C'!D119 -> 0 | E25: ='C2C'!E119 -> 0 | F25: ='C2C'!F119 -> 0 | G25: ='C2C'!G119 -> 0 | H25: ='C2C'!H119 -> 0 | I25: =G25-H25 -> 0 | K25: ='C2C'!K119 -> 0
A26: Total Revenue - Functional | B26: 2 | C26: =C6+C10+C16+C20+C25 -> 0 | D26: =D6+D10+D16+D20+D25 -> 182181084.7 | E26: 182181084.7 | F26: 34509330.73 | G26: 113294648.3 | H26: 91090542.34 | I26: 22204105.93 | J26: 0.2437586313 | K26: =K6+K10+K16+K20+K25 -> 182181084.7
A28: Expenditure - Functional
A29: Governance and administration | C29: =SUM(C30:C32) -> 0 | D29: 85447150.9 | E29: 85447150.9 | F29: 0 | G29: 37931568.62 | H29: 42723575.45 | I29: =G29-H29 -> -4792006.83 | J29: =IF(I29=0,"",I29/H29) -> -0.112163057 | K29: =SUM(K30:K32) -> 85447150.9
A30: Executive and council | C30: ='C2C'!C130 -> 0 | D30: ='C2C'!D130 -> 23930097.19 | E30: ='C2C'!E130 -> 23930097.19 | F30: ='C2C'!F130 -> 0 | G30: ='C2C'!G130 -> 10219799.73 | H30: ='C2C'!H130 -> 11965048.59 | I30: -1745248.86 | J30: =IF(I30=0,"",I30/H30) -> -0.1458622459 | K30: ='C2C'!K130 -> 23930097.19
A31: Finance and administration | C31: ='C2C'!C133 -> 0 | D31: ='C2C'!D133 -> 37818818.77 | E31: ='C2C'!E133 -> 37818818.77 | F31: ='C2C'!F133 -> 0 | G31: ='C2C'!G133 -> 17363661.95 | H31: ='C2C'!H133 -> 18909409.39 | I31: -1545747.44 | J31: -0.08174488205 | K31: ='C2C'!K133 -> 37818818.77
A32: Internal audit | C32: ='C2C'!C148 -> 0 | D32: ='C2C'!D148 -> 23698234.94 | E32: ='C2C'!E148 -> 23698234.94 | F32: ='C2C'!F148 -> 0 | G32: ='C2C'!G148 -> 10348106.94 | H32: ='C2C'!H148 -> 11849117.47 | I32: -1501010.53 | J32: -0.1266769896 | K32: ='C2C'!K148 -> 23698234.94
A33: Community and public safety | C33: =SUM(C34:C38) -> 0 | D33: 25673755.1 | E33: 25673755.1 | F33: 0 | G33: 12642551.09 | H33: 12836877.55 | I33: -194326.46 | J33: -0.01513814082 | K33: =SUM(K34:K38) -> 25673755.1
A34: Community and social services | C34: ='C2C'!C151 -> 0 | D34: ='C2C'!D151 -> 9718051.921 | E34: ='C2C'!E151 -> 9718051.921 | F34: ='C2C'!F151 -> 0 | G34: ='C2C'!G151 -> 4423266.36 | H34: ='C2C'!H151 -> 4859025.96 | I34: -435759.6 | J34: -0.08968044286 | K34: ='C2C'!K151 -> 9718051.921
A35: Sport and recreation | C35: ='C2C'!C173 -> 0 | D35: ='C2C'!D173 -> 722735 | E35: ='C2C'!E173 -> 722735 | F35: ='C2C'!F173 -> 0 | G35: ='C2C'!G173 -> 409820.84 | H35: ='C2C'!H173 -> 361367.5 | I35: 48453.34 | J35: 0.1340832809 | K35: ='C2C'!K173 -> 722735
A36: Public safety | C36: ='C2C'!C179 -> 0 | D36: ='C2C'!D179 -> 13968206.81 | E36: ='C2C'!E179 -> 13968206.81 | F36: ='C2C'!F179 -> 0 | G36: ='C2C'!G179 -> 7221358.207 | H36: ='C2C'!H179 -> 6984103.407 | I36: 237254.8 | J36: 0.03397068832 | K36: ='C2C'!K179 -> 13968206.81
A37: Housing | C37: ='C2C'!C186 -> 0 | D37: ='C2C'!D186 -> 1264761.362 | E37: ='C2C'!E186 -> 1264761.362 | F37: ='C2C'!F186 -> 0 | G37: ='C2C'!G186 -> 588105.6808 | H37: ='C2C'!H186 -> 632380.6808 | I37: -44275 | J37: -0.07001320778 | K37: ='C2C'!K186 -> 1264761.362
A38: Health | C38: ='C2C'!C189 -> 0 | D38: ='C2C'!D189 -> 0 | E38: ='C2C'!E189 -> 0 | F38: ='C2C'!F189 -> 0 | G38: ='C2C'!G189 -> 0 | H38: ='C2C'!H189 -> 0 | I38: 0 | K38: ='C2C'!K189 -> 0
A39: Economic and environmental services | C39: =SUM(C40:C42) -> 0 | D39: 23835041.81 | E39: 23835041.81 | F39: 0 | G39: 10581093.9 | H39: 11917520.9 | I39: -1336427 | J39: -0.1121396816 | K39: =SUM(K40:K42) -> 23835041.81
A40: Planning and development | C40: ='C2C'!C198 -> 0 | D40: ='C2C'!D198 -> 14616162.66 | E40: ='C2C'!E198 -> 14616162.66 | F40: ='C2C'!F198 -> 0 | G40: ='C2C'!G198 -> 6480599.618 | H40: ='C2C'!H198 -> 7308081.328 | I40: -827481.71 | J40: -0.1132283116 | K40: ='C2C'!K198 -> 14616162.66
A41: Road transport | C41: ='C2C'!C209 -> 0 | D41: ='C2C'!D209 -> 9218879.152 | E41: ='C2C'!E209 -> 9218879.152 | F41: ='C2C'!F209 -> 0 | G41: ='C2C'!G209 -> 4100494.286 | H41: ='C2C'!H209 -> 4609439.576 | I41: -508945.29 | J41: -0.1104137025 | K41: ='C2C'!K209 -> 9218879.152
A42: Environmental protection | C42: ='C2C'!C216 -> 0 | D42: ='C2C'!D216 -> 0 | E42: ='C2C'!E216 -> 0 | F42: ='C2C'!F216 -> 0 | G42: ='C2C'!G216 -> 0 | H42: ='C2C'!H216 -> 0 | I42: 0 | K42: ='C2C'!K216 -> 0
A43: Trading services | C43: =SUM(C44:C47) -> 0 | D43: =SUM(D44:D47) -> 10127775.71 | E43: 10127775.71 | F43: 0 | G43: 4992900.616 | H43: 5063887.856 | I43: -70987.24 | J43: -0.01401832782 | K43: =SUM(K44:K47) -> 10127775.71
A44: Energy sources | C44: ='C2C'!C224 -> 0 | D44: ='C2C'!D224 -> 0 | E44: ='C2C'!E224 -> 0 | F44: ='C2C'!F224 -> 0 | G44: ='C2C'!G224 -> 0 | H44: ='C2C'!H224 -> 0 | I44: 0 | K44: ='C2C'!K224 -> 0
A45: Water management | C45: ='C2C'!C228 -> 0 | D45: ='C2C'!D228 -> 0 | E45: ='C2C'!E228 -> 0 | F45: ='C2C'!F228 -> 0 | G45: ='C2C'!G228 -> 0 | H45: ='C2C'!H228 -> 0 | I45: 0 | K45: ='C2C'!K228 -> 0
A46: Waste water management | C46: ='C2C'!C232 -> 0 | D46: ='C2C'!D232 -> 0 | E46: ='C2C'!E232 -> 0 | F46: ='C2C'!F232 -> 0 | G46: ='C2C'!G232 -> 0 | H46: ='C2C'!H232 -> 0 | I46: 0 | K46: ='C2C'!K232 -> 0
A47: Waste management | C47: ='C2C'!C237 -> 0 | D47: ='C2C'!D237 -> 10127775.71 | E47: ='C2C'!E237 -> 10127775.71 | F47: ='C2C'!F237 -> 0 | G47: ='C2C'!G237 -> 4992900.616 | H47: ='C2C'!H237 -> 5063887.856 | I47: -70987.24 | J47: -0.01401832782 | K47: ='C2C'!K237 -> 10127775.71
A48: Other | C48: ='C2C'!C242 -> 0 | D48: ='C2C'!D242 -> 0 | E48: ='C2C'!E242 -> 0 | F48: ='C2C'!F242 -> 0 | G48: ='C2C'!G242 -> 0 | H48: ='C2C'!H242 -> 0 | I48: 0 | K48: ='C2C'!K242 -> 0
A49: Total Expenditure - Functional | B49: 3 | C49: =C29+C33+C39+C43+C48 -> 0 | D49: =D29+D33+D39+D43+D48 -> 145083723.5 | E49: 145083723.5 | F49: 0 | G49: 66148114.23 | H49: 72541861.76 | I49: -6393747.53 | J49: -0.08813872948 | K49: =K29+K33+K39+K43+K48 -> 145083723.5
A50: Surplus/ (Deficit) for the year | C50: =C26-C49 -> 0 | D50: 37097361.17 | E50: 37097361.17 | F50: 34509330.73 | G50: 47146534.04 | H50: 18548680.59 | I50: =I26-I49 -> 28597853.46 | J50: =IF(I50=0,"",I50/H50) -> 1.541772921 | K50: =K26-K49 -> 37097361.17
A51: =head27a -> References
A52: 1. Government Finance Statistics Functions and Sub-functions are standardised to assist the compilation of national and international accounts for comparison purposes
A53: 2. Total Revenue by functional classification must reconcile to Total Operating Revenue shown in the Financial Performance Statement
A54: 3. Total Expenditure by functional classification must reconcile to total operating expenditure shown in 'Financial Performance Statement'
A55: 4. All amounts must be classified under a functional classification (modified GFS). The GFS function 'Other' is only for Abbatoirs, Air Transport, Licensing and Regulation, Markets and Tourism - and if used must be supported by footnotes. Nothing else may be placed under 'Other'. Assign associate share to relevant classification

Sheet C2C
A1: =muni& " - "&S71A& " - "&date -> KZN434 Ubuhlebezwe - Table C2 Monthly Budget Statement - Financial Performance (functional classification) - Mid-Year Assessment
A2: =desc -> Description | B2: =head27 -> Ref | C2: =Head1 -> 2016/17 | D2: =Head2 -> Budget Year 2017/18
C3: =Head5 -> Audited Outcome | D3: =Head6 -> Original Budget | E3: =Head7 -> Adjusted Budget | F3: =Head38 -> Monthly actual | G3: =Head39 -> YearTD actual | H3: =Head40 -> YearTD budget | I3: =Head41 -> YTD variance | J3: =Head41 -> YTD variance | K3: =Head8 -> Full Year Forecast | L3: C2C
A4: R thousands | B4: 1 | J4: %
A5: Revenue - Functional
A6: Municipal governance and administration | C6: =C7+C10+C25 -> 0 | D6: =D7+D10+D25 -> 125431822 | E6: 125431822 | F6: 34264271.5 | G6: 84394821.12 | H6: 62715911 | I6: =G6-H6 -> 21678910.12 | J6: =IF(I6=0,"",I6/H6) -> 0.3456684241 | K6: 125431822 | L6: 1000 REV
A7: Executive and council | C7: =SUM(C8:C9) -> 0 | D7: =SUM(D8:D9) -> 0 | E7: 0 | F7: 0 | G7: 0 | H7: 0 | I7: =G7-H7 -> 0 | J7: =IF(I7=0,"",I7/H7) ->  | K7: 0 | L7: 1100 REV
A8: Mayor and Council | C8: =-SUMIFS('C Schedule Import Data'!T:T,'C Schedule Import Data'!$A:$A,$L$3,'C Schedule Import Data'!$B:$B,$L8) -> 0 | D8: =-SUMIFS('C Schedule Import Data'!U:U,'C Schedule Import Data'!$A:$A,$L$3,'C Schedule Import Data'!$B:$B,$L8) -> 0 | E8: =-SUMIFS('C Schedule Import Data'!V:V,'C Schedule Import Data'!$A:$A,$L$3,'C Schedule Import Data'!$B:$B,$L8) -> 0 | F8: =-SUMIFS('C Schedule Import Data'!W:W,'C Schedule Import Data'!$A:$A,$L$3,'C Schedule Import Data'!$B:$B,$L8) -> 0 | G8: =-SUMIFS('C Schedule Import Data'!X:X,'C Schedule Import Data'!$A:$A,$L$3,'C Schedule Import Data'!$B:$B,$L8) -> 0 | H8: =-SUMIFS('C Schedule Import Data'!Y:Y,'C Schedule Import Data'!$A:$A,$L$3,'C Schedule Import Data'!$B:$B,$L8) -> 0 | I8: 0 | K8: =-SUMIFS('C Schedule Import Data'!Z:Z,'C Schedule Import Data'!$A:$A,$L$3,'C Schedule Import Data'!$B:$B,$L8) -> 0 | L8: 1110 REV
A9: Municipal Manager, Town Secretary and Chief Executive | C9: =-SUMIFS('C Schedule Import Data'!T:T,'C Schedule Import Data'!$A:$A,$L$3,'C Schedule Import Data'!$B:$B,$L9) -> 0 | D9: =-SUMIFS('C Schedule Import Data'!U:U,'C Schedule Import Data'!$A:$A,$L$3,'C Schedule Import Data'!$B:$B,$L9) -> 0 | E9: =-SUMIFS('C Schedule Import Data'!V:V,'C Schedule Import Data'!$A:$A,$L$3,'C Schedule Import Data'!$B:$B,$L9) -> 0 | F9: =-SUMIFS('C Schedule Import Data'!W:W,'C Schedule Import Data'!$A:$A,$L$3,'C Schedule Import Data'!$B:$B,$L9) -> 0 | G9: =-SUMIFS('C Schedule Import Data'!X:X,'C Schedule Import Data'!$A:$A,$L$3,'C Schedule Import Data'!$B:$B,$L9) -> 0 | H9: =-SUMIFS('C Schedule Import Data'!Y:Y,'C Schedule Import Data'!$A:$A,$L$3,'C Schedule Import Data'!$B:$B,$L9) -> 0 | I9: 0 | K9: =-SUMIFS('C Schedule Import Data'!Z:Z,'C Schedule Import Data'!$A:$A,$L$3,'C Schedule Import Data'!$B:$B,$L9) -> 0 | L9: 1120 REV
A10: Finance and administration | C10: =SUM(C11:C24) -> 0 | D10: 125431822 | E10: 125431822 | F10: 34264271.5 | G10: 84394821.12 | H10: 62715911 | I10: =G10-H10 -> 21678910.12 | J10: =IF(I10=0,"",I10/H10) -> 0.3456684241 | K10: =SUM(K11:K24) -> 125431822 | L10: 1200 REV
A11: Administrative and Corporate Support | C11: =-SUMIFS('C Schedule Import Data'!T:T,'C Schedule Import Data'!$A:$A,$L$3,'C Schedule Import Data'!$B:$B,$L11) -> 0 | D11: 5000000 | E11: =D11 -> 5000000 | F11: =-SUMIFS('C Schedule Import Data'!W:W,'C Schedule Import Data'!$A:$A,$L$3,'C Schedule Import Data'!$B:$B,$L11) -> -9164.13 | G11: 378815.85 | H11: =D11/12*6 -> 2500000 | I11: =G11-H11 -> -2121184.15 | J11: =IF(I11=0,"",I11/H11) -> -0.84847366 | K11: =D11 -> 5000000 | L11: 1201 REV
A12: Asset Management | C12: =-SUMIFS('C Schedule Import Data'!T:T,'C Schedule Import Data'!$A:$A,$L$3,'C Schedule Import Data'!$B:$B,$L12) -> 0 | E12: =D12 -> 0 | F12: =-SUMIFS('C Schedule Import Data'!W:W,'C Schedule Import Data'!$A:$A,$L$3,'C Schedule Import Data'!$B:$B,$L12) -> 0 | G12: =-SUMIFS('C Schedule Import Data'!X:X,'C Schedule Import Data'!$A:$A,$L$3,'C Schedule Import Data'!$B:$B,$L12) -> 0 | H12: =D12/12*6 -> 0 | I12: 0 | K12: =D12 -> 0 | L12: 1202 REV
A13: Budget and Treasury Office | C13: =-SUMIFS('C Schedule Import Data'!T:T,'C Schedule Import Data'!$A:$A,$L$3,'C Schedule Import Data'!$B:$B,$L13) -> 0 | D13: 120181822 | E13: 120181822 | F13: =-SUMIFS('C Schedule Import Data'!W:W,'C Schedule Import Data'!$A:$A,$L$3,'C Schedule Import Data'!$B:$B,$L13) -> 34273435.63 | G13: 83975457.37 | H13: 60090911 | I13: 23884546.37 | J13: 0.3974735276 | K13: 120181822 | L13: 1203 REV
A14: Finance | C14: =-SUMIFS('C Schedule Import Data'!T:T,'C Schedule Import Data'!$A:$A,$L$3,'C Schedule Import Data'!$B:$B,$L14) -> 0 | E14: 0 | F14: =-SUMIFS('C Schedule Import Data'!W:W,'C Schedule Import Data'!$A:$A,$L$3,'C Schedule Import Data'!$B:$B,$L14) -> 0 | G14: =-SUMIFS('C Schedule Import Data'!X:X,'C Schedule Import Data'!$A:$A,$L$3,'C Schedule Import Data'!$B:$B,$L14) -> 0 | H14: 0 | I14: 0 | K14: 0 | L14: 1204 REV
A15: Fleet Management | C15: =-SUMIFS('C Schedule Import Data'!T:T,'C Schedule Import Data'!$A:$A,$L$3,'C Schedule Import Data'!$B:$B,$L15) -> 0 | E15: 0 | F15: =-SUMIFS('C Schedule Import Data'!W:W,'C Schedule Import Data'!$A:$A,$L$3,'C Schedule Import Data'!$B:$B,$L15) -> 0 | G15: =-SUMIFS('C Schedule Import Data'!X:X,'C Schedule Import Data'!$A:$A,$L$3,'C Schedule Import Data'!$B:$B,$L15) -> 0 | H15: 0 | I15: 0 | K15: 0 | L15: 1205 REV
A16: Human Resources | C16: =-SUMIFS('C Schedule Import Data'!T:T,'C Schedule Import Data'!$A:$A,$L$3,'C Schedule Import Data'!$B:$B,$L16) -> 0 | E16: 0 | F16: =-SUMIFS('C Schedule Import Data'!W:W,'C Schedule Import Data'!$A:$A,$L$3,'C Schedule Import Data'!$B:$B,$L16) -> 0 | G16: =-SUMIFS('C Schedule Import Data'!X:X,'C Schedule Import Data'!$A:$A,$L$3,'C Schedule Import Data'!$B:$B,$L16) -> 0 | H16: 0 | I16: 0 | K16: 0 | L16: 1206 REV
A17: Information Technology | C17: =-SUMIFS('C Schedule Import Data'!T:T,'C Schedule Import Data'!$A:$A,$L$3,'C Schedule Import Data'!$B:$B,$L17) -> 0 | E17: 0 | F17: =-SUMIFS('C Schedule Import Data'!W:W,'C Schedule Import Data'!$A:$A,$L$3,'C Schedule Import Data'!$B:$B,$L17) -> 0 | G17: =-SUMIFS('C Schedule Import Data'!X:X,'C Schedule Import Data'!$A:$A,$L$3,'C Schedule Import Data'!$B:$B,$L17) -> 0 | H17: 0 | I17: =G17-H17 -> 0 | J17: =IF(I17=0,"",I17/H17) ->  | K17: 0 | L17: 1207 REV
A18: Legal Services | C18: =-SUMIFS('C Schedule Import Data'!T:T,'C Schedule Import Data'!$A:$A,$L$3,'C Schedule Import Data'!$B:$B,$L18) -> 0 | E18: 0 | F18: =-SUMIFS('C Schedule Import Data'!W:W,'C Schedule Import Data'!$A:$A,$L$3,'C Schedule Import Data'!$B:$B,$L18) -> 0 | G18: =-SUMIFS('C Schedule Import Data'!X:X,'C Schedule Import Data'!$A:$A,$L$3,'C Schedule Import Data'!$B:$B,$L18) -> 0 | H18: 0 | I18: 0 | K18: 0 | L18: 1208 REV
A19: Marketing, Customer Relations, Publicity and Media Co-ordination | C19: =-SUMIFS('C Schedule Import Data'!T:T,'C Schedule Import Data'!$A:$A,$L$3,'C Schedule Import Data'!$B:$B,$L19) -> 0 | E19: 0 | F19: =-SUMIFS('C Schedule Import Data'!W:W,'C Schedule Import Data'!$A:$A,$L$3,'C Schedule Import Data'!$B:$B,$L19) -> 0 | G19: =-SUMIFS('C Schedule Import Data'!X:X,'C Schedule Import Data'!$A:$A,$L$3,'C Schedule Import Data'!$B:$B,$L19) -> 0 | H19: 0 | I19: 0 | K19: 0 | L19: 1209 REV
A20: Property Services | C20: =-SUMIFS('C Schedule Import Data'!T:T,'C Schedule Import Data'!$A:$A,$L$3,'C Schedule Import Data'!$B:$B,$L20) -> 0 | D20: 250000 | E20: 250000 | F20: =-SUMIFS('C Schedule Import Data'!W:W,'C Schedule Import Data'!$A:$A,$L$3,'C Schedule Import Data'!$B:$B,$L20) -> 0 | G20: 40547.9 | H20: 125000 | I20: -84452.1 | J20: -0.6756168 | K20: 250000 | L20: 1210 REV
A21: Risk Management | C21: =-SUMIFS('C Schedule Import Data'!T:T,'C Schedule Import Data'!$A:$A,$L$3,'C Schedule Import Data'!$B:$B,$L21) -> 0 | E21: 0 | F21: =-SUMIFS('C Schedule Import Data'!W:W,'C Schedule Import Data'!$A:$A,$L$3,'C Schedule Import Data'!$B:$B,$L21) -> 0 | G21: =-SUMIFS('C Schedule Import Data'!X:X,'C Schedule Import Data'!$A:$A,$L$3,'C Schedule Import Data'!$B:$B,$L21) -> 0 | H21: 0 | I21: 0 | K21: 0 | L21: 1211 REV
A22: Security Services | C22: =-SUMIFS('C Schedule Import Data'!T:T,'C Schedule Import Data'!$A:$A,$L$3,'C Schedule Import Data'!$B:$B,$L22) -> 0 | E22: 0 | F22: =-SUMIFS('C Schedule Import Data'!W:W,'C Schedule Import Data'!$A:$A,$L$3,'C Schedule Import Data'!$B:$B,$L22) -> 0 | G22: =-SUMIFS('C Schedule Import Data'!X:X,'C Schedule Import Data'!$A:$A,$L$3,'C Schedule Import Data'!$B:$B,$L22) -> 0 | H22: 0 | I22: 0 | K22: 0 | L22: 1212 REV
A23: Supply Chain Management | C23: =-SUMIFS('C Schedule Import Data'!T:T,'C Schedule Import Data'!$A:$A,$L$3,'C Schedule Import Data'!$B:$B,$L23) -> 0 | E23: 0 | F23: =-SUMIFS('C Schedule Import Data'!W:W,'C Schedule Import Data'!$A:$A,$L$3,'C Schedule Import Data'!$B:$B,$L23) -> 0 | G23: =-SUMIFS('C Schedule Import Data'!X:X,'C Schedule Import Data'!$A:$A,$L$3,'C Schedule Import Data'!$B:$B,$L23) -> 0 | H23: 0 | I23: 0 | K23: 0 | L23: 1213 REV
A24: Valuation Service | C24: =-SUMIFS('C Schedule Import Data'!T:T,'C Schedule Import Data'!$A:$A,$L$3,'C Schedule Import Data'!$B:$B,$L24) -> 0 | E24: 0 | F24: =-SUMIFS('C Schedule Import Data'!W:W,'C Schedule Import Data'!$A:$A,$L$3,'C Schedule Import Data'!$B:$B,$L24) -> 0 | G24: =-SUMIFS('C Schedule Import Data'!X:X,'C Schedule Import Data'!$A:$A,$L$3,'C Schedule Import Data'!$B:$B,$L24) -> 0 | H24: 0 | I24: 0 | K24: 0 | L24: 1214 REV
A25: Internal audit | C25: =SUM(C26:C26) -> 0 | D25: 0 | E25: 0 | F25: 0 | G25: 0 | H25: 0 | I25: 0 | K25: =SUM(K26:K26) -> 0 | L25: 1300 REV
A26: Governance Function | C26: =-SUMIFS('C Schedule Import Data'!T:T,'C Schedule Import Data'!$A:$A,$L$3,'C Schedule Import Data'!$B:$B,$L26) -> 0 | D26: =-SUMIFS('C Schedule Import Data'!U:U,'C Schedule Import Data'!$A:$A,$L$3,'C Schedule Import Data'!$B:$B,$L26) -> 0 | E26: =-SUMIFS('C Schedule Import Data'!V:V,'C Schedule Import Data'!$A:$A,$L$3,'C Schedule Import Data'!$B:$B,$L26) -> 0 | F26: =-SUMIFS('C Schedule Import Data'!W:W,'C Schedule Import Data'!$A:$A,$L$3,'C Schedule Import Data'!$B:$B,$L26) -> 0 | G26: =-SUMIFS('C Schedule Import Data'!X:X,'C Schedule Import Data'!$A:$A,$L$3,'C Schedule Import Data'!$B:$B,$L26) -> 0 | H26: =-SUMIFS('C Schedule Import Data'!Y:Y,'C Schedule Import Data'!$A:$A,$L$3,'C Schedule Import Data'!$B:$B,$L26) -> 0 | I26: 0 | K26: =-SUMIFS('C Schedule Import Data'!Z:Z,'C Schedule Import Data'!$A:$A,$L$3,'C Schedule Import Data'!$B:$B,$L26) -> 0 | L26: 1301 REV
A27: Community and public safety | C27: =C28+C50+C56+C63+C66 -> 0 | D27: =D28+D50+D56+D63+D66 -> 4929500 | E27: 4929500 | F27: -170166 | G27: 2419174.1 | H27: 2464750 | I27: -45575.9 | J27: -0.01849108429 | K27: 4929500 | L27: 2000 REV
A28: Community and social services | C28: =SUM(C29:C49) -> 0 | D28: 1054500 | E28: 1054500 | F28: -170166 | G28: 1117195.12 | H28: 527250 | I28: 589945.12 | J28: 1.118909663 | K28: =SUM(K29:K49) -> 1054500 | L28: 2100 REV
A29: Aged Care | C29: =-SUMIFS('C Schedule Import Data'!T:T,'C Schedule Import Data'!$A:$A,$L$3,'C Schedule Import Data'!$B:$B,$L29) -> 0 | E29: =D29 -> 0 | F29: =-SUMIFS('C Schedule Import Data'!W:W,'C Schedule Import Data'!$A:$A,$L$3,'C Schedule Import Data'!$B:$B,$L29) -> 0 | G29: =-SUMIFS('C Schedule Import Data'!X:X,'C Schedule Import Data'!$A:$A,$L$3,'C Schedule Import Data'!$B:$B,$L29) -> 0 | H29: =D29/12*6 -> 0 | I29: =G29-H29 -> 0 | J29: =IF(I29=0,"",I29/H29) ->  | K29: =D29 -> 0 | L29: 2101 REV
A30: Agricultural | C30: =-SUMIFS('C Schedule Import Data'!T:T,'C Schedule Import Data'!$A:$A,$L$3,'C Schedule Import Data'!$B:$B,$L30) -> 0 | E30: 0 | F30: =-SUMIFS('C Schedule Import Data'!W:W,'C Schedule Import Data'!$A:$A,$L$3,'C Schedule Import Data'!$B:$B,$L30) -> 0 | G30: =-SUMIFS('C Schedule Import Data'!X:X,'C Schedule Import Data'!$A:$A,$L$3,'C Schedule Import Data'!$B:$B,$L30) -> 0 | H30: 0 | I30: 0 | K30: 0 | L30: 2102 REV
A31: Animal Care and Diseases | C31: =-SUMIFS('C Schedule Import Data'!T:T,'C Schedule Import Data'!$A:$A,$L$3,'C Schedule Import Data'!$B:$B,$L31) -> 0 | E31: 0 | F31: =-SUMIFS('C Schedule Import Data'!W:W,'C Schedule Import Data'!$A:$A,$L$3,'C Schedule Import Data'!$B:$B,$L31) -> 0 | G31: =-SUMIFS('C Schedule Import Data'!X:X,'C Schedule Import Data'!$A:$A,$L$3,'C Schedule Import Data'!$B:$B,$L31) -> 0 | H31: 0 | I31: 0 | K31: 0 | L31: 2103 REV
A32: Cemeteries, Funeral Parlours and Crematoriums | C32: =-SUMIFS('C Schedule Import Data'!T:T,'C Schedule Import Data'!$A:$A,$L$3,'C Schedule Import Data'!$B:$B,$L32) -> 0 | D32: 30000 | E32: 30000 | F32: =-SUMIFS('C Schedule Import Data'!W:W,'C Schedule Import Data'!$A:$A,$L$3,'C Schedule Import Data'!$B:$B,$L32) -> 0 | G32: 19510.35 | H32: 15000 | I32: 4510.35 | J32: 0.30069 | K32: 30000 | L32: 2104 REV
A33: Child Care Facilities | C33: =-SUMIFS('C Schedule Import Data'!T:T,'C Schedule Import Data'!$A:$A,$L$3,'C Schedule Import Data'!$B:$B,$L33) -> 0 | E33: 0 | F33: =-SUMIFS('C Schedule Import Data'!W:W,'C Schedule Import Data'!$A:$A,$L$3,'C Schedule Import Data'!$B:$B,$L33) -> 0 | G33: =-SUMIFS('C Schedule Import Data'!X:X,'C Schedule Import Data'!$A:$A,$L$3,'C Schedule Import Data'!$B:$B,$L33) -> 0 | H33: 0 | I33: 0 | K33: 0 | L33: 2105 REV
A34: Community Halls and Facilities | C34: =-SUMIFS('C Schedule Import Data'!T:T,'C Schedule Import Data'!$A:$A,$L$3,'C Schedule Import Data'!$B:$B,$L34) -> 0 | D34: 0 | E34: 0 | H34: 0 | I34: 0 | K34: 0 | L34: 2106 REV
A35: Consumer Protection | C35: =-SUMIFS('C Schedule Import Data'!T:T,'C Schedule Import Data'!$A:$A,$L$3,'C Schedule Import Data'!$B:$B,$L35) -> 0 | E35: 0 | F35: =-SUMIFS('C Schedule Import Data'!W:W,'C Schedule Import Data'!$A:$A,$L$3,'C Schedule Import Data'!$B:$B,$L35) -> 0 | G35: =-SUMIFS('C Schedule Import Data'!X:X,'C Schedule Import Data'!$A:$A,$L$3,'C Schedule Import Data'!$B:$B,$L35) -> 0 | H35: 0 | I35: 0 | K35: 0 | L35: 2107 REV
A36: Cultural Matters | C36: =-SUMIFS('C Schedule Import Data'!T:T,'C Schedule Import Data'!$A:$A,$L$3,'C Schedule Import Data'!$B:$B,$L36) -> 0 | E36: 0 | F36: =-SUMIFS('C Schedule Import Data'!W:W,'C Schedule Import Data'!$A:$A,$L$3,'C Schedule Import Data'!$B:$B,$L36) -> 0 | G36: =-SUMIFS('C Schedule Import Data'!X:X,'C Schedule Import Data'!$A:$A,$L$3,'C Schedule Import Data'!$B:$B,$L36) -> 0 | H36: 0 | I36: =G36-H36 -> 0 | J36: =IF(I36=0,"",I36/H36) ->  | K36: 0 | L36: 2108 REV
A37: Disaster Management | C37: =-SUMIFS('C Schedule Import Data'!T:T,'C Schedule Import Data'!$A:$A,$L$3,'C Schedule Import Data'!$B:$B,$L37) -> 0 | E37: 0 | F37: =-SUMIFS('C Schedule Import Data'!W:W,'C Schedule Import Data'!$A:$A,$L$3,'C Schedule Import Data'!$B:$B,$L37) -> 0 | G37: =-SUMIFS('C Schedule Import Data'!X:X,'C Schedule Import Data'!$A:$A,$L$3,'C Schedule Import Data'!$B:$B,$L37) -> 0 | H37: 0 | I37: 0 | K37: 0 | L37: 2109 REV
A38: Education | C38: =-SUMIFS('C Schedule Import Data'!T:T,'C Schedule Import Data'!$A:$A,$L$3,'C Schedule Import Data'!$B:$B,$L38) -> 0 | E38: 0 | F38: =-SUMIFS('C Schedule Import Data'!W:W,'C Schedule Import Data'!$A:$A,$L$3,'C Schedule Import Data'!$B:$B,$L38) -> 0 | G38: =-SUMIFS('C Schedule Import Data'!X:X,'C Schedule Import Data'!$A:$A,$L$3,'C Schedule Import Data'!$B:$B,$L38) -> 0 | H38: 0 | I38: 0 | K38: 0 | L38: 2110 REV
A39: Indigenous and Customary Law | C39: =-SUMIFS('C Schedule Import Data'!T:T,'C Schedule Import Data'!$A:$A,$L$3,'C Schedule Import Data'!$B:$B,$L39) -> 0 | E39: 0 | F39: =-SUMIFS('C Schedule Import Data'!W:W,'C Schedule Import Data'!$A:$A,$L$3,'C Schedule Import Data'!$B:$B,$L39) -> 0 | G39: =-SUMIFS('C Schedule Import Data'!X:X,'C Schedule Import Data'!$A:$A,$L$3,'C Schedule Import Data'!$B:$B,$L39) -> 0 | H39: 0 | I39: 0 | K39: 0 | L39: 2111 REV
A40: Industrial Promotion | C40: =-SUMIFS('C Schedule Import Data'!T:T,'C Schedule Import Data'!$A:$A,$L$3,'C Schedule Import Data'!$B:$B,$L40) -> 0 | E40: 0 | F40: =-SUMIFS('C Schedule Import Data'!W:W,'C Schedule Import Data'!$A:$A,$L$3,'C Schedule Import Data'!$B:$B,$L40) -> 0 | G40: =-SUMIFS('C Schedule Import Data'!X:X,'C Schedule Import Data'!$A:$A,$L$3,'C Schedule Import Data'!$B:$B,$L40) -> 0 | H40: 0 | I40: 0 | K40: 0 | L40: 2112 REV
A41: Language Policy | C41: =-SUMIFS('C Schedule Import Data'!T:T,'C Schedule Import Data'!$A:$A,$L$3,'C Schedule Import Data'!$B:$B,$L41) -> 0 | E41: 0 | F41: =-SUMIFS('C Schedule Import Data'!W:W,'C Schedule Import Data'!$A:$A,$L$3,'C Schedule Import Data'!$B:$B,$L41) -> 0 | G41: =-SUMIFS('C Schedule Import Data'!X:X,'C Schedule Import Data'!$A:$A,$L$3,'C Schedule Import Data'!$B:$B,$L41) -> 0 | H41: 0 | I41: 0 | K41: 0 | L41: 2113 REV
A42: Libraries and Archives | C42: =-SUMIFS('C Schedule Import Data'!T:T,'C Schedule Import Data'!$A:$A,$L$3,'C Schedule Import Data'!$B:$B,$L42) -> 0 | D42: 774500 | E42: 774500 | F42: =-SUMIFS('C Schedule Import Data'!W:W,'C Schedule Import Data'!$A:$A,$L$3,'C Schedule Import Data'!$B:$B,$L42) -> -170166 | G42: 604051.41 | H42: 387250 | I42: 216801.41 | J42: 0.5598487024 | K42: 774500 | L42: 2114 REV
A43: Literacy Programmes | C43: =-SUMIFS('C Schedule Import Data'!T:T,'C Schedule Import Data'!$A:$A,$L$3,'C Schedule Import Data'!$B:$B,$L43) -> 0 | E43: 0 | F43: =-SUMIFS('C Schedule Import Data'!W:W,'C Schedule Import Data'!$A:$A,$L$3,'C Schedule Import Data'!$B:$B,$L43) -> 0 | G43: =-SUMIFS('C Schedule Import Data'!X:X,'C Schedule Import Data'!$A:$A,$L$3,'C Schedule Import Data'!$B:$B,$L43) -> 0 | H43: 0 | I43: 0 | K43: 0 | L43: 2115 REV
A44: Media Services | C44: =-SUMIFS('C Schedule Import Data'!T:T,'C Schedule Import Data'!$A:$A,$L$3,'C Schedule Import Data'!$B:$B,$L44) -> 0 | E44: 0 | F44: =-SUMIFS('C Schedule Import Data'!W:W,'C Schedule Import Data'!$A:$A,$L$3,'C Schedule Import Data'!$B:$B,$L44) -> 0 | G44: =-SUMIFS('C Schedule Import Data'!X:X,'C Schedule Import Data'!$A:$A,$L$3,'C Schedule Import Data'!$B:$B,$L44) -> 0 | H44: 0 | I44: 0 | K44: 0 | L44: 2116 REV
A45: Museums and Art Galleries | C45: =-SUMIFS('C Schedule Import Data'!T:T,'C Schedule Import Data'!$A:$A,$L$3,'C Schedule Import Data'!$B:$B,$L45) -> 0 | E45: 0 | F45: =-SUMIFS('C Schedule Import Data'!W:W,'C Schedule Import Data'!$A:$A,$L$3,'C Schedule Import Data'!$B:$B,$L45) -> 0 | G45: =-SUMIFS('C Schedule Import Data'!X:X,'C Schedule Import Data'!$A:$A,$L$3,'C Schedule Import Data'!$B:$B,$L45) -> 0 | H45: 0 | I45: 0 | K45: 0 | L45: 2117 REV
A46: Population Development | C46: =-SUMIFS('C Schedule Import Data'!T:T,'C Schedule Import Data'!$A:$A,$L$3,'C Schedule Import Data'!$B:$B,$L46) -> 0 | E46: 0 | F46: =-SUMIFS('C Schedule Import Data'!W:W,'C Schedule Import Data'!$A:$A,$L$3,'C Schedule Import Data'!$B:$B,$L46) -> 0 | G46: =-SUMIFS('C Schedule Import Data'!X:X,'C Schedule Import Data'!$A:$A,$L$3,'C Schedule Import Data'!$B:$B,$L46) -> 0 | H46: 0 | I46: 0 | K46: 0 | L46: 2118 REV
A47: Provincial Cultural Matters | C47: =-SUMIFS('C Schedule Import Data'!T:T,'C Schedule Import Data'!$A:$A,$L$3,'C Schedule Import Data'!$B:$B,$L47) -> 0 | D47: 250000 | E47: 250000 | F47: =-SUMIFS('C Schedule Import Data'!W:W,'C Schedule Import Data'!$A:$A,$L$3,'C Schedule Import Data'!$B:$B,$L47) -> 0 | G47: 493633.36 | H47: 125000 | I47: 368633.36 | J47: 2.94906688 | K47: 250000 | L47: 2119 REV
A48: Theatres | C48: =-SUMIFS('C Schedule Import Data'!T:T,'C Schedule Import Data'!$A:$A,$L$3,'C Schedule Import Data'!$B:$B,$L48) -> 0 | E48: 0 | F48: =-SUMIFS('C Schedule Import Data'!W:W,'C Schedule Import Data'!$A:$A,$L$3,'C Schedule Import Data'!$B:$B,$L48) -> 0 | G48: =-SUMIFS('C Schedule Import Data'!X:X,'C Schedule Import Data'!$A:$A,$L$3,'C Schedule Import Data'!$B:$B,$L48) -> 0 | H48: 0 | I48: 0 | K48: 0 | L48: 2120 REV
A49: Zoo's | C49: =-SUMIFS('C Schedule Import Data'!T:T,'C Schedule Import Data'!$A:$A,$L$3,'C Schedule Import Data'!$B:$B,$L49) -> 0 | E49: 0 | F49: =-SUMIFS('C Schedule Import Data'!W:W,'C Schedule Import Data'!$A:$A,$L$3,'C Schedule Import Data'!$B:$B,$L49) -> 0 | G49: =-SUMIFS('C Schedule Import Data'!X:X,'C Schedule Import Data'!$A:$A,$L$3,'C Schedule Import Data'!$B:$B,$L49) -> 0 | H49: 0 | I49: 0 | K49: 0 | L49: 2121 REV
A50: Sport and recreation | C50: =SUM(C51:C55) -> 0 | D50: =SUM(D51:D55) -> 0 | E50: 0 | F50: 0 | G50: 0 | H50: 0 | I50: =G50-H50 -> 0 | J50: =IF(I50=0,"",I50/H50) ->  | K50: 0 | L50: 2200 REV
A51: Beaches and Jetties | C51: =-SUMIFS('C Schedule Import Data'!T:T,'C Schedule Import Data'!$A:$A,$L$3,'C Schedule Import Data'!$B:$B,$L51) -> 0 | D51: =-SUMIFS('C Schedule Import Data'!U:U,'C Schedule Import Data'!$A:$A,$L$3,'C Schedule Import Data'!$B:$B,$L51) -> 0 | E51: =-SUMIFS('C Schedule Import Data'!V:V,'C Schedule Import Data'!$A:$A,$L$3,'C Schedule Import Data'!$B:$B,$L51) -> 0 | F51: =-SUMIFS('C Schedule Import Data'!W:W,'C Schedule Import Data'!$A:$A,$L$3,'C Schedule Import Data'!$B:$B,$L51) -> 0 | G51: =-SUMIFS('C Schedule Import Data'!X:X,'C Schedule Import Data'!$A:$A,$L$3,'C Schedule Import Data'!$B:$B,$L51) -> 0 | H51: 0 | I51: 0 | K51: =-SUMIFS('C Schedule Import Data'!Z:Z,'C Schedule Import Data'!$A:$A,$L$3,'C Schedule Import Data'!$B:$B,$L51) -> 0 | L51: 2201 REV
A52: Casinos, Racing, Gambling, Wagering | C52: =-SUMIFS('C Schedule Import Data'!T:T,'C Schedule Import Data'!$A:$A,$L$3,'C Schedule Import Data'!$B:$B,$L52) -> 0 | D52: =-SUMIFS('C Schedule Import Data'!U:U,'C Schedule Import Data'!$A:$A,$L$3,'C Schedule Import Data'!$B:$B,$L52) -> 0 | E52: =-SUMIFS('C Schedule Import Data'!V:V,'C Schedule Import Data'!$A:$A,$L$3,'C Schedule Import Data'!$B:$B,$L52) -> 0 | F52: =-SUMIFS('C Schedule Import Data'!W:W,'C Schedule Import Data'!$A:$A,$L$3,'C Schedule Import Data'!$B:$B,$L52) -> 0 | G52: =-SUMIFS('C Schedule Import Data'!X:X,'C Schedule Import Data'!$A:$A,$L$3,'C Schedule Import Data'!$B:$B,$L52) -> 0 | H52: 0 | I52: 0 | K52: =-SUMIFS('C Schedule Import Data'!Z:Z,'C Schedule Import Data'!$A:$A,$L$3,'C Schedule Import Data'!$B:$B,$L52) -> 0 | L52: 2202 REV
A53: Community Parks (including Nurseries) | C53: =-SUMIFS('C Schedule Import Data'!T:T,'C Schedule Import Data'!$A:$A,$L$3,'C Schedule Import Data'!$B:$B,$L53) -> 0 | D53: =-SUMIFS('C Schedule Import Data'!U:U,'C Schedule Import Data'!$A:$A,$L$3,'C Schedule Import Data'!$B:$B,$L53) -> 0 | E53: =-SUMIFS('C Schedule Import Data'!V:V,'C Schedule Import Data'!$A:$A,$L$3,'C Schedule Import Data'!$B:$B,$L53) -> 0 | F53: =-SUMIFS('C Schedule Import Data'!W:W,'C Schedule Import Data'!$A:$A,$L$3,'C Schedule Import Data'!$B:$B,$L53) -> 0 | G53: =-SUMIFS('C Schedule Import Data'!X:X,'C Schedule Import Data'!$A:$A,$L$3,'C Schedule Import Data'!$B:$B,$L53) -> 0 | H53: 0 | I53: 0 | K53: =-SUMIFS('C Schedule Import Data'!Z:Z,'C Schedule Import Data'!$A:$A,$L$3,'C Schedule Import Data'!$B:$B,$L53) -> 0 | L53: 2203 REV
A54: Recreational Facilities | C54: =-SUMIFS('C Schedule Import Data'!T:T,'C Schedule Import Data'!$A:$A,$L$3,'C Schedule Import Data'!$B:$B,$L54) -> 0 | D54: =-SUMIFS('C Schedule Import Data'!U:U,'C Schedule Import Data'!$A:$A,$L$3,'C Schedule Import Data'!$B:$B,$L54) -> 0 | E54: =-SUMIFS('C Schedule Import Data'!V:V,'C Schedule Import Data'!$A:$A,$L$3,'C Schedule Import Data'!$B:$B,$L54) -> 0 | F54: =-SUMIFS('C Schedule Import Data'!W:W,'C Schedule Import Data'!$A:$A,$L$3,'C Schedule Import Data'!$B:$B,$L54) -> 0 | G54: =-SUMIFS('C Schedule Import Data'!X:X,'C Schedule Import Data'!$A:$A,$L$3,'C Schedule Import Data'!$B:$B,$L54) -> 0 | H54: 0 | I54: 0 | K54: =-SUMIFS('C Schedule Import Data'!Z:Z,'C Schedule Import Data'!$A:$A,$L$3,'C Schedule Import Data'!$B:$B,$L54) -> 0 | L54: 2204 REV
A55: Sports Grounds and Stadiums | C55: =-SUMIFS('C Schedule Import Data'!T:T,'C Schedule Import Data'!$A:$A,$L$3,'C Schedule Import Data'!$B:$B,$L55) -> 0 | D55: =-SUMIFS('C Schedule Import Data'!U:U,'C Schedule Import Data'!$A:$A,$L$3,'C Schedule Import Data'!$B:$B,$L55) -> 0 | E55: =-SUMIFS('C Schedule Import Data'!V:V,'C Schedule Import Data'!$A:$A,$L$3,'C Schedule Import Data'!$B:$B,$L55) -> 0 | F55: =-SUMIFS('C Schedule Import Data'!W:W,'C Schedule Import Data'!$A:$A,$L$3,'C Schedule Import Data'!$B:$B,$L55) -> 0 | G55: =-SUMIFS('C Schedule Import Data'!X:X,'C Schedule Import Data'!$A:$A,$L$3,'C Schedule Import Data'!$B:$B,$L55) -> 0 | H55: 0 | I55: 0 | K55: =-SUMIFS('C Schedule Import Data'!Z:Z,'C Schedule Import Data'!$A:$A,$L$3,'C Schedule Import Data'!$B:$B,$L55) -> 0 | L55: 2205 REV
A56: Public safety | C56: =SUM(C57:C62) -> 0 | D56: =SUM(D57:D62) -> 3875000 | E56: 3875000 | F56: 0 | G56: 1301978.98 | H56: 1937500 | I56: -635521.02 | J56: -0.328010849 | K56: 3875000 | L56: 2300 REV
A57: Civil Defence | C57: =-SUMIFS('C Schedule Import Data'!T:T,'C Schedule Import Data'!$A:$A,$L$3,'C Schedule Import Data'!$B:$B,$L57) -> 0 | D57: 3850000 | E57: =D57 -> 3850000 | F57: =-SUMIFS('C Schedule Import Data'!W:W,'C Schedule Import Data'!$A:$A,$L$3,'C Schedule Import Data'!$B:$B,$L57) -> 0 | G57: 1287099.96 | H57: 1925000 | I57: -637900.04 | J57: -0.3313766442 | K57: =D57 -> 3850000 | L57: 2301 REV
A58: Cleansing | C58: =-SUMIFS('C Schedule Import Data'!T:T,'C Schedule Import Data'!$A:$A,$L$3,'C Schedule Import Data'!$B:$B,$L58) -> 0 | E58: 0 | F58: =-SUMIFS('C Schedule Import Data'!W:W,'C Schedule Import Data'!$A:$A,$L$3,'C Schedule Import Data'!$B:$B,$L58) -> 0 | G58: =-SUMIFS('C Schedule Import Data'!X:X,'C Schedule Import Data'!$A:$A,$L$3,'C Schedule Import Data'!$B:$B,$L58) -> 0 | H58: 0 | I58: 0 | K58: 0 | L58: 2302 REV
A59: Control of Public Nuisances | C59: =-SUMIFS('C Schedule Import Data'!T:T,'C Schedule Import Data'!$A:$A,$L$3,'C Schedule Import Data'!$B:$B,$L59) -> 0 | E59: 0 | H59: 0 | I59: =G59-H59 -> 0 | J59: =IF(I59=0,"",I59/H59) ->  | K59: 0 | L59: 2303 REV
A60: Fencing and Fences | C60: =-SUMIFS('C Schedule Import Data'!T:T,'C Schedule Import Data'!$A:$A,$L$3,'C Schedule Import Data'!$B:$B,$L60) -> 0 | E60: 0 | F60: =-SUMIFS('C Schedule Import Data'!W:W,'C Schedule Import Data'!$A:$A,$L$3,'C Schedule Import Data'!$B:$B,$L60) -> 0 | G60: =-SUMIFS('C Schedule Import Data'!X:X,'C Schedule Import Data'!$A:$A,$L$3,'C Schedule Import Data'!$B:$B,$L60) -> 0 | H60: 0 | I60: 0 | K60: 0 | L60: 2304 REV
A61: Fire Fighting and Protection | C61: =-SUMIFS('C Schedule Import Data'!T:T,'C Schedule Import Data'!$A:$A,$L$3,'C Schedule Import Data'!$B:$B,$L61) -> 0 | D61: 25000 | E61: 25000 | F61: =-SUMIFS('C Schedule Import Data'!W:W,'C Schedule Import Data'!$A:$A,$L$3,'C Schedule Import Data'!$B:$B,$L61) -> 0 | G61: 14879.02 | H61: 12500 | I61: 2379.02 | J61: 0.1903216 | K61: 25000 | L61: 2305 REV
A62: Licensing and Control of Animals | C62: =-SUMIFS('C Schedule Import Data'!T:T,'C Schedule Import Data'!$A:$A,$L$3,'C Schedule Import Data'!$B:$B,$L62) -> 0 | E62: 0 | F62: =-SUMIFS('C Schedule Import Data'!W:W,'C Schedule Import Data'!$A:$A,$L$3,'C Schedule Import Data'!$B:$B,$L62) -> 0 | G62: =-SUMIFS('C Schedule Import Data'!X:X,'C Schedule Import Data'!$A:$A,$L$3,'C Schedule Import Data'!$B:$B,$L62) -> 0 | H62: 0 | I62: 0 | K62: 0 | L62: 2306 REV
A63: Housing | C63: =SUM(C64:C65) -> 0 | D63: 0 | E63: 0 | F63: 0 | G63: 0 | H63: 0 | I63: =G63-H63 -> 0 | J63: =IF(I63=0,"",I63/H63) ->  | K63: =SUM(K64:K65) -> 0 | L63: 2400 REV
A64: Housing | C64: =-SUMIFS('C Schedule Import Data'!T:T,'C Schedule Import Data'!$A:$A,$L$3,'C Schedule Import Data'!$B:$B,$L64) -> 0 | D64: =-SUMIFS('C Schedule Import Data'!U:U,'C Schedule Import Data'!$A:$A,$L$3,'C Schedule Import Data'!$B:$B,$L64) -> 0 | E64: =-SUMIFS('C Schedule Import Data'!V:V,'C Schedule Import Data'!$A:$A,$L$3,'C Schedule Import Data'!$B:$B,$L64) -> 0 | F64: =-SUMIFS('C Schedule Import Data'!W:W,'C Schedule Import Data'!$A:$A,$L$3,'C Schedule Import Data'!$B:$B,$L64) -> 0 | G64: =-SUMIFS('C Schedule Import Data'!X:X,'C Schedule Import Data'!$A:$A,$L$3,'C Schedule Import Data'!$B:$B,$L64) -> 0 | H64: =-SUMIFS('C Schedule Import Data'!Y:Y,'C Schedule Import Data'!$A:$A,$L$3,'C Schedule Import Data'!$B:$B,$L64) -> 0 | I64: =G64-H64 -> 0 | J64: =IF(I64=0,"",I64/H64) ->  | K64: =-SUMIFS('C Schedule Import Data'!Z:Z,'C Schedule Import Data'!$A:$A,$L$3,'C Schedule Import Data'!$B:$B,$L64) -> 0 | L64: 2401 REV
A65: Informal Settlements | C65: =-SUMIFS('C Schedule Import Data'!T:T,'C Schedule Import Data'!$A:$A,$L$3,'C Schedule Import Data'!$B:$B,$L65) -> 0 | D65: =-SUMIFS('C Schedule Import Data'!U:U,'C Schedule Import Data'!$A:$A,$L$3,'C Schedule Import Data'!$B:$B,$L65) -> 0 | E65: =-SUMIFS('C Schedule Import Data'!V:V,'C Schedule Import Data'!$A:$A,$L$3,'C Schedule Import Data'!$B:$B,$L65) -> 0 | F65: =-SUMIFS('C Schedule Import Data'!W:W,'C Schedule Import Data'!$A:$A,$L$3,'C Schedule Import Data'!$B:$B,$L65) -> 0 | G65: =-SUMIFS('C Schedule Import Data'!X:X,'C Schedule Import Data'!$A:$A,$L$3,'C Schedule Import Data'!$B:$B,$L65) -> 0 | H65: =-SUMIFS('C Schedule Import Data'!Y:Y,'C Schedule Import Data'!$A:$A,$L$3,'C Schedule Import Data'!$B:$B,$L65) -> 0 | I65: =G65-H65 -> 0 | J65: =IF(I65=0,"",I65/H65) ->  | K65: =-SUMIFS('C Schedule Import Data'!Z:Z,'C Schedule Import Data'!$A:$A,$L$3,'C Schedule Import Data'!$B:$B,$L65) -> 0 | L65: 2402 REV
A66: Health | C66: =SUM(C67:C73) -> 0 | D66: 0 | E66: 0 | F66: 0 | G66: 0 | H66: 0 | I66: 0 | K66: =SUM(K67:K73) -> 0 | L66: 2500 REV
A67: Ambulance | C67: =-SUMIFS('C Schedule Import Data'!T:T,'C Schedule Import Data'!$A:$A,$L$3,'C Schedule Import Data'!$B:$B,$L67) -> 0 | D67: =-SUMIFS('C Schedule Import Data'!U:U,'C Schedule Import Data'!$A:$A,$L$3,'C Schedule Import Data'!$B:$B,$L67) -> 0 | E67: =-SUMIFS('C Schedule Import Data'!V:V,'C Schedule Import Data'!$A:$A,$L$3,'C Schedule Import Data'!$B:$B,$L67) -> 0 | F67: =-SUMIFS('C Schedule Import Data'!W:W,'C Schedule Import Data'!$A:$A,$L$3,'C Schedule Import Data'!$B:$B,$L67) -> 0 | G67: =-SUMIFS('C Schedule Import Data'!X:X,'C Schedule Import Data'!$A:$A,$L$3,'C Schedule Import Data'!$B:$B,$L67) -> 0 | H67: =-SUMIFS('C Schedule Import Data'!Y:Y,'C Schedule Import Data'!$A:$A,$L$3,'C Schedule Import Data'!$B:$B,$L67) -> 0 | I67: 0 | K67: =-SUMIFS('C Schedule Import Data'!Z:Z,'C Schedule Import Data'!$A:$A,$L$3,'C Schedule Import Data'!$B:$B,$L67) -> 0 | L67: 2501 REV
A68: Health Services | C68: =-SUMIFS('C Schedule Import Data'!T:T,'C Schedule Import Data'!$A:$A,$L$3,'C Schedule Import Data'!$B:$B,$L68) -> 0 | D68: =-SUMIFS('C Schedule Import Data'!U:U,'C Schedule Import Data'!$A:$A,$L$3,'C Schedule Import Data'!$B:$B,$L68) -> 0 | E68: =-SUMIFS('C Schedule Import Data'!V:V,'C Schedule Import Data'!$A:$A,$L$3,'C Schedule Import Data'!$B:$B,$L68) -> 0 | F68: =-SUMIFS('C Schedule Import Data'!W:W,'C Schedule Import Data'!$A:$A,$L$3,'C Schedule Import Data'!$B:$B,$L68) -> 0 | G68: =-SUMIFS('C Schedule Import Data'!X:X,'C Schedule Import Data'!$A:$A,$L$3,'C Schedule Import Data'!$B:$B,$L68) -> 0 | H68: =-SUMIFS('C Schedule Import Data'!Y:Y,'C Schedule Import Data'!$A:$A,$L$3,'C Schedule Import Data'!$B:$B,$L68) -> 0 | I68: 0 | K68: =-SUMIFS('C Schedule Import Data'!Z:Z,'C Schedule Import Data'!$A:$A,$L$3,'C Schedule Import Data'!$B:$B,$L68) -> 0 | L68: 2502 REV
A69: Laboratory Services | C69: =-SUMIFS('C Schedule Import Data'!T:T,'C Schedule Import Data'!$A:$A,$L$3,'C Schedule Import Data'!$B:$B,$L69) -> 0 | D69: =-SUMIFS('C Schedule Import Data'!U:U,'C Schedule Import Data'!$A:$A,$L$3,'C Schedule Import Data'!$B:$B,$L69) -> 0 | E69: =-SUMIFS('C Schedule Import Data'!V:V,'C Schedule Import Data'!$A:$A,$L$3,'C Schedule Import Data'!$B:$B,$L69) -> 0 | F69: =-SUMIFS('C Schedule Import Data'!W:W,'C Schedule Import Data'!$A:$A,$L$3,'C Schedule Import Data'!$B:$B,$L69) -> 0 | G69: =-SUMIFS('C Schedule Import Data'!X:X,'C Schedule Import Data'!$A:$A,$L$3,'C Schedule Import Data'!$B:$B,$L69) -> 0 | H69: =-SUMIFS('C Schedule Import Data'!Y:Y,'C Schedule Import Data'!$A:$A,$L$3,'C Schedule Import Data'!$B:$B,$L69) -> 0 | I69: =G69-H69 -> 0 | J69: =IF(I69=0,"",I69/H69) ->  | K69: =-SUMIFS('C Schedule Import Data'!Z:Z,'C Schedule Import Data'!$A:$A,$L$3,'C Schedule Import Data'!$B:$B,$L69) -> 0 | L69: 2503 REV
A70: Food Control | C70: =-SUMIFS('C Schedule Import Data'!T:T,'C Schedule Import Data'!$A:$A,$L$3,'C Schedule Import Data'!$B:$B,$L70) -> 0 | D70: =-SUMIFS('C Schedule Import Data'!U:U,'C Schedule Import Data'!$A:$A,$L$3,'C Schedule Import Data'!$B:$B,$L70) -> 0 | E70: =-SUMIFS('C Schedule Import Data'!V:V,'C Schedule Import Data'!$A:$A,$L$3,'C Schedule Import Data'!$B:$B,$L70) -> 0 | F70: =-SUMIFS('C Schedule Import Data'!W:W,'C Schedule Import Data'!$A:$A,$L$3,'C Schedule Import Data'!$B:$B,$L70) -> 0 | G70: =-SUMIFS('C Schedule Import Data'!X:X,'C Schedule Import Data'!$A:$A,$L$3,'C Schedule Import Data'!$B:$B,$L70) -> 0 | H70: =-SUMIFS('C Schedule Import Data'!Y:Y,'C Schedule Import Data'!$A:$A,$L$3,'C Schedule Import Data'!$B:$B,$L70) -> 0 | I70: =G70-H70 -> 0 | J70: =IF(I70=0,"",I70/H70) ->  | K70: =-SUMIFS('C Schedule Import Data'!Z:Z,'C Schedule Import Data'!$A:$A,$L$3,'C Schedule Import Data'!$B:$B,$L70) -> 0 | L70: 2504 REV
A71: Health Surveillance and Prevention of Communicable Diseases including immunizations | C71: =-SUMIFS('C Schedule Import Data'!T:T,'C Schedule Import Data'!$A:$A,$L$3,'C Schedule Import Data'!$B:$B,$L71) -> 0 | D71: =-SUMIFS('C Schedule Import Data'!U:U,'C Schedule Import Data'!$A:$A,$L$3,'C Schedule Import Data'!$B:$B,$L71) -> 0 | E71: =-SUMIFS('C Schedule Import Data'!V:V,'C Schedule Import Data'!$A:$A,$L$3,'C Schedule Import Data'!$B:$B,$L71) -> 0 | F71: =-SUMIFS('C Schedule Import Data'!W:W,'C Schedule Import Data'!$A:$A,$L$3,'C Schedule Import Data'!$B:$B,$L71) -> 0 | G71: =-SUMIFS('C Schedule Import Data'!X:X,'C Schedule Import Data'!$A:$A,$L$3,'C Schedule Import Data'!$B:$B,$L71) -> 0 | H71: =-SUMIFS('C Schedule Import Data'!Y:Y,'C Schedule Import Data'!$A:$A,$L$3,'C Schedule Import Data'!$B:$B,$L71) -> 0 | I71: 0 | K71: =-SUMIFS('C Schedule Import Data'!Z:Z,'C Schedule Import Data'!$A:$A,$L$3,'C Schedule Import Data'!$B:$B,$L71) -> 0 | L71: 2505 REV
A72: Vector Control | C72: =-SUMIFS('C Schedule Import Data'!T:T,'C Schedule Import Data'!$A:$A,$L$3,'C Schedule Import Data'!$B:$B,$L72) -> 0 | D72: =-SUMIFS('C Schedule Import Data'!U:U,'C Schedule Import Data'!$A:$A,$L$3,'C Schedule Import Data'!$B:$B,$L72) -> 0 | E72: =-SUMIFS('C Schedule Import Data'!V:V,'C Schedule Import Data'!$A:$A,$L$3,'C Schedule Import Data'!$B:$B,$L72) -> 0 | F72: =-SUMIFS('C Schedule Import Data'!W:W,'C Schedule Import Data'!$A:$A,$L$3,'C Schedule Import Data'!$B:$B,$L72) -> 0 | G72: =-SUMIFS('C Schedule Import Data'!X:X,'C Schedule Import Data'!$A:$A,$L$3,'C Schedule Import Data'!$B:$B,$L72) -> 0 | H72: =-SUMIFS('C Schedule Import Data'!Y:Y,'C Schedule Import Data'!$A:$A,$L$3,'C Schedule Import Data'!$B:$B,$L72) -> 0 | I72: 0 | K72: =-SUMIFS('C Schedule Import Data'!Z:Z,'C Schedule Import Data'!$A:$A,$L$3,'C Schedule Import Data'!$B:$B,$L72) -> 0 | L72: 2506 REV
A73: Chemical Safety | C73: =-SUMIFS('C Schedule Import Data'!T:T,'C Schedule Import Data'!$A:$A,$L$3,'C Schedule Import Data'!$B:$B,$L73) -> 0 | D73: =-SUMIFS('C Schedule Import Data'!U:U,'C Schedule Import Data'!$A:$A,$L$3,'C Schedule Import Data'!$B:$B,$L73) -> 0 | E73: =-SUMIFS('C Schedule Import Data'!V:V,'C Schedule Import Data'!$A:$A,$L$3,'C Schedule Import Data'!$B:$B,$L73) -> 0 | F73: =-SUMIFS('C Schedule Import Data'!W:W,'C Schedule Import Data'!$A:$A,$L$3,'C Schedule Import Data'!$B:$B,$L73) -> 0 | G73: =-SUMIFS('C Schedule Import Data'!X:X,'C Schedule Import Data'!$A:$A,$L$3,'C Schedule Import Data'!$B:$B,$L73) -> 0 | H73: =-SUMIFS('C Schedule Import Data'!Y:Y,'C Schedule Import Data'!$A:$A,$L$3,'C Schedule Import Data'!$B:$B,$L73) -> 0 | I73: 0 | K73: =-SUMIFS('C Schedule Import Data'!Z:Z,'C Schedule Import Data'!$A:$A,$L$3,'C Schedule Import Data'!$B:$B,$L73) -> 0 | L73: 2507 REV
A74: Economic and environmental services | C74: =C75+C86+C93 -> 0 | D74: =D75+D86+D93 -> 49829051.69 | E74: 49829051.69 | F74: 236404.32 | G74: 25488598.15 | H74: 24914525.84 | I74: 574072.305 | J74: 0.02304167089 | K74: 49829051.69 | L74: 3000 REV
A75: Planning and development | C75: =SUM(C76:C85) -> 0 | D75: 47969051.69 | E75: 47969051.69 | F75: 4614.5 | G75: 24655863.53 | H75: 23984525.84 | I75: 671337.685 | J75: 0.02799045057 | K75: =SUM(K76:K85) -> 47969051.69 | L75: 3100 REV
A76: Billboards | C76: =-SUMIFS('C Schedule Import Data'!T:T,'C Schedule Import Data'!$A:$A,$L$3,'C Schedule Import Data'!$B:$B,$L76) -> 0 | E76: =D76 -> 0 | F76: =-SUMIFS('C Schedule Import Data'!W:W,'C Schedule Import Data'!$A:$A,$L$3,'C Schedule Import Data'!$B:$B,$L76) -> 0 | G76: =-SUMIFS('C Schedule Import Data'!X:X,'C Schedule Import Data'!$A:$A,$L$3,'C Schedule Import Data'!$B:$B,$L76) -> 0 | H76: =D76/12*6 -> 0 | I76: =G76-H76 -> 0 | J76: =IF(I76=0,"",I76/H76) ->  | K76: =D76 -> 0 | L76: 3101 REV
A77: Corporate Wide Strategic Planning (IDPs, LEDs) | C77: =-SUMIFS('C Schedule Import Data'!T:T,'C Schedule Import Data'!$A:$A,$L$3,'C Schedule Import Data'!$B:$B,$L77) -> 0 | E77: 0 | F77: =-SUMIFS('C Schedule Import Data'!W:W,'C Schedule Import Data'!$A:$A,$L$3,'C Schedule Import Data'!$B:$B,$L77) -> 0 | G77: =-SUMIFS('C Schedule Import Data'!X:X,'C Schedule Import Data'!$A:$A,$L$3,'C Schedule Import Data'!$B:$B,$L77) -> 0 | H77: 0 | I77: 0 | K77: 0 | L77: 3102 REV
A78: Central City Improvement District | C78: =-SUMIFS('C Schedule Import Data'!T:T,'C Schedule Import Data'!$A:$A,$L$3,'C Schedule Import Data'!$B:$B,$L78) -> 0 | E78: 0 | F78: =-SUMIFS('C Schedule Import Data'!W:W,'C Schedule Import Data'!$A:$A,$L$3,'C Schedule Import Data'!$B:$B,$L78) -> 0 | G78: =-SUMIFS('C Schedule Import Data'!X:X,'C Schedule Import Data'!$A:$A,$L$3,'C Schedule Import Data'!$B:$B,$L78) -> 0 | H78: 0 | I78: 0 | K78: 0 | L78: 3103 REV
A79: Development Facilitation | C79: =-SUMIFS('C Schedule Import Data'!T:T,'C Schedule Import Data'!$A:$A,$L$3,'C Schedule Import Data'!$B:$B,$L79) -> 0 | E79: 0 | F79: =-SUMIFS('C Schedule Import Data'!W:W,'C Schedule Import Data'!$A:$A,$L$3,'C Schedule Import Data'!$B:$B,$L79) -> 0 | G79: =-SUMIFS('C Schedule Import Data'!X:X,'C Schedule Import Data'!$A:$A,$L$3,'C Schedule Import Data'!$B:$B,$L79) -> 0 | H79: 0 | I79: =G79-H79 -> 0 | J79: =IF(I79=0,"",I79/H79) ->  | K79: 0 | L79: 3104 REV
A80: Economic Development/Planning | C80: =-SUMIFS('C Schedule Import Data'!T:T,'C Schedule Import Data'!$A:$A,$L$3,'C Schedule Import Data'!$B:$B,$L80) -> 0 | D80: 47869051.69 | E80: 47869051.69 | F80: =-SUMIFS('C Schedule Import Data'!W:W,'C Schedule Import Data'!$A:$A,$L$3,'C Schedule Import Data'!$B:$B,$L80) -> 0 | G80: 24626783.79 | H80: 23934525.84 | I80: =G80-H80 -> 692257.945 | J80: =IF(I80=0,"",I80/H80) -> 0.02892298554 | K80: 47869051.69 | L80: 3105 REV
A81: Regional Planning and Development | C81: =-SUMIFS('C Schedule Import Data'!T:T,'C Schedule Import Data'!$A:$A,$L$3,'C Schedule Import Data'!$B:$B,$L81) -> 0 | E81: 0 | F81: =-SUMIFS('C Schedule Import Data'!W:W,'C Schedule Import Data'!$A:$A,$L$3,'C Schedule Import Data'!$B:$B,$L81) -> 0 | G81: =-SUMIFS('C Schedule Import Data'!X:X,'C Schedule Import Data'!$A:$A,$L$3,'C Schedule Import Data'!$B:$B,$L81) -> 0 | H81: 0 | I81: =G81-H81 -> 0 | J81: =IF(I81=0,"",I81/H81) ->  | K81: 0 | L81: 3106 REV
A82: Town Planning, Building Regulations and Enforcement, and City Engineer | C82: =-SUMIFS('C Schedule Import Data'!T:T,'C Schedule Import Data'!$A:$A,$L$3,'C Schedule Import Data'!$B:$B,$L82) -> 0 | D82: 100000 | E82: 100000 | F82: =-SUMIFS('C Schedule Import Data'!W:W,'C Schedule Import Data'!$A:$A,$L$3,'C Schedule Import Data'!$B:$B,$L82) -> 4614.5 | G82: 29079.74 | H82: 50000 | I82: =G82-H82 -> -20920.26 | J82: =IF(I82=0,"",I82/H82) -> -0.4184052 | K82: 100000 | L82: 3107 REV
A83: Project Management Unit | C83: =-SUMIFS('C Schedule Import Data'!T:T,'C Schedule Import Data'!$A:$A,$L$3,'C Schedule Import Data'!$B:$B,$L83) -> 0 | E83: 0 | F83: =-SUMIFS('C Schedule Import Data'!W:W,'C Schedule Import Data'!$A:$A,$L$3,'C Schedule Import Data'!$B:$B,$L83) -> 0 | G83: =-SUMIFS('C Schedule Import Data'!X:X,'C Schedule Import Data'!$A:$A,$L$3,'C Schedule Import Data'!$B:$B,$L83) -> 0 | H83: 0 | I83: 0 | K83: 0 | L83: 3108 REV
A84: Provincial Planning | C84: =-SUMIFS('C Schedule Import Data'!T:T,'C Schedule Import Data'!$A:$A,$L$3,'C Schedule Import Data'!$B:$B,$L84) -> 0 | E84: 0 | F84: =-SUMIFS('C Schedule Import Data'!W:W,'C Schedule Import Data'!$A:$A,$L$3,'C Schedule Import Data'!$B:$B,$L84) -> 0 | G84: =-SUMIFS('C Schedule Import Data'!X:X,'C Schedule Import Data'!$A:$A,$L$3,'C Schedule Import Data'!$B:$B,$L84) -> 0 | H84: 0 | I84: 0 | K84: 0 | L84: 3109 REV
A85: Support to Local Municipalities | C85: =-SUMIFS('C Schedule Import Data'!T:T,'C Schedule Import Data'!$A:$A,$L$3,'C Schedule Import Data'!$B:$B,$L85) -> 0 | E85: 0 | F85: =-SUMIFS('C Schedule Import Data'!W:W,'C Schedule Import Data'!$A:$A,$L$3,'C Schedule Import Data'!$B:$B,$L85) -> 0 | G85: =-SUMIFS('C Schedule Import Data'!X:X,'C Schedule Import Data'!$A:$A,$L$3,'C Schedule Import Data'!$B:$B,$L85) -> 0 | H85: 0 | I85: 0 | K85: 0 | L85: 3110 REV
A86: Road transport | C86: =SUM(C87:C92) -> 0 | D86: =SUM(D87:D92) -> 1860000 | E86: 1860000 | F86: 231789.82 | G86: 832734.62 | H86: 930000 | I86: -97265.38 | J86: -0.1045864301 | K86: 1860000 | L86: 3200 REV
A87: Police Forces, Traffic and Street Parking Control | C87: =-SUMIFS('C Schedule Import Data'!T:T,'C Schedule Import Data'!$A:$A,$L$3,'C Schedule Import Data'!$B:$B,$L87) -> 0 | E87: =D87 -> 0 | H87: =D87/12*6 -> 0 | I87: 0 | K87: =D87 -> 0 | L87: 3201 REV
A88: Pounds | C88: =-SUMIFS('C Schedule Import Data'!T:T,'C Schedule Import Data'!$A:$A,$L$3,'C Schedule Import Data'!$B:$B,$L88) -> 0 | E88: 0 | F88: =-SUMIFS('C Schedule Import Data'!W:W,'C Schedule Import Data'!$A:$A,$L$3,'C Schedule Import Data'!$B:$B,$L88) -> 0 | G88: =-SUMIFS('C Schedule Import Data'!X:X,'C Schedule Import Data'!$A:$A,$L$3,'C Schedule Import Data'!$B:$B,$L88) -> 0 | H88: 0 | I88: =G88-H88 -> 0 | J88: =IF(I88=0,"",I88/H88) ->  | K88: 0 | L88: 3202 REV
A89: Public Transport | C89: =-SUMIFS('C Schedule Import Data'!T:T,'C Schedule Import Data'!$A:$A,$L$3,'C Schedule Import Data'!$B:$B,$L89) -> 0 | E89: 0 | F89: =-SUMIFS('C Schedule Import Data'!W:W,'C Schedule Import Data'!$A:$A,$L$3,'C Schedule Import Data'!$B:$B,$L89) -> 0 | G89: =-SUMIFS('C Schedule Import Data'!X:X,'C Schedule Import Data'!$A:$A,$L$3,'C Schedule Import Data'!$B:$B,$L89) -> 0 | H89: 0 | I89: 0 | K89: 0 | L89: 3203 REV
A90: Road and Traffic Regulation | C90: =-SUMIFS('C Schedule Import Data'!T:T,'C Schedule Import Data'!$A:$A,$L$3,'C Schedule Import Data'!$B:$B,$L90) -> 0 | D90: 800000 | E90: 800000 | F90: =-SUMIFS('C Schedule Import Data'!W:W,'C Schedule Import Data'!$A:$A,$L$3,'C Schedule Import Data'!$B:$B,$L90) -> 231789.82 | G90: 298686.32 | H90: 400000 | I90: -101313.68 | J90: -0.2532842 | K90: 800000 | L90: 3204 REV
A91: Roads | C91: =-SUMIFS('C Schedule Import Data'!T:T,'C Schedule Import Data'!$A:$A,$L$3,'C Schedule Import Data'!$B:$B,$L91) -> 0 | D91: 1060000 | E91: 1060000 | G91: 534048.3 | H91: 530000 | I91: 4048.3 | J91: 0.007638301887 | K91: 1060000 | L91: 3205 REV
A92: Taxi Ranks | C92: =-SUMIFS('C Schedule Import Data'!T:T,'C Schedule Import Data'!$A:$A,$L$3,'C Schedule Import Data'!$B:$B,$L92) -> 0 | E92: 0 | F92: =-SUMIFS('C Schedule Import Data'!W:W,'C Schedule Import Data'!$A:$A,$L$3,'C Schedule Import Data'!$B:$B,$L92) -> 0 | G92: =-SUMIFS('C Schedule Import Data'!X:X,'C Schedule Import Data'!$A:$A,$L$3,'C Schedule Import Data'!$B:$B,$L92) -> 0 | H92: 0 | I92: 0 | K92: 0 | L92: 3206 REV
A93: Environmental protection | C93: =SUM(C94:C99) -> 0 | D93: =SUM(D94:D99) -> 0 | E93: 0 | F93: 0 | G93: 0 | H93: 0 | I93: 0 | K93: 0 | L93: 3300 REV
A94: Biodiversity and Landscape | C94: =-SUMIFS('C Schedule Import Data'!T:T,'C Schedule Import Data'!$A:$A,$L$3,'C Schedule Import Data'!$B:$B,$L94) -> 0 | D94: =-SUMIFS('C Schedule Import Data'!U:U,'C Schedule Import Data'!$A:$A,$L$3,'C Schedule Import Data'!$B:$B,$L94) -> 0 | E94: =D94 -> 0 | F94: =-SUMIFS('C Schedule Import Data'!W:W,'C Schedule Import Data'!$A:$A,$L$3,'C Schedule Import Data'!$B:$B,$L94) -> 0 | G94: =-SUMIFS('C Schedule Import Data'!X:X,'C Schedule Import Data'!$A:$A,$L$3,'C Schedule Import Data'!$B:$B,$L94) -> 0 | H94: =-SUMIFS('C Schedule Import Data'!Y:Y,'C Schedule Import Data'!$A:$A,$L$3,'C Schedule Import Data'!$B:$B,$L94) -> 0 | I94: 0 | K94: =-SUMIFS('C Schedule Import Data'!Z:Z,'C Schedule Import Data'!$A:$A,$L$3,'C Schedule Import Data'!$B:$B,$L94) -> 0 | L94: 3301 REV
A95: Coastal Protection | C95: =-SUMIFS('C Schedule Import Data'!T:T,'C Schedule Import Data'!$A:$A,$L$3,'C Schedule Import Data'!$B:$B,$L95) -> 0 | D95: =-SUMIFS('C Schedule Import Data'!U:U,'C Schedule Import Data'!$A:$A,$L$3,'C Schedule Import Data'!$B:$B,$L95) -> 0 | E95: 0 | F95: =-SUMIFS('C Schedule Import Data'!W:W,'C Schedule Import Data'!$A:$A,$L$3,'C Schedule Import Data'!$B:$B,$L95) -> 0 | G95: =-SUMIFS('C Schedule Import Data'!X:X,'C Schedule Import Data'!$A:$A,$L$3,'C Schedule Import Data'!$B:$B,$L95) -> 0 | H95: =-SUMIFS('C Schedule Import Data'!Y:Y,'C Schedule Import Data'!$A:$A,$L$3,'C Schedule Import Data'!$B:$B,$L95) -> 0 | I95: 0 | K95: =-SUMIFS('C Schedule Import Data'!Z:Z,'C Schedule Import Data'!$A:$A,$L$3,'C Schedule Import Data'!$B:$B,$L95) -> 0 | L95: 3302 REV
A96: Indigenous Forests | C96: =-SUMIFS('C Schedule Import Data'!T:T,'C Schedule Import Data'!$A:$A,$L$3,'C Schedule Import Data'!$B:$B,$L96) -> 0 | D96: =-SUMIFS('C Schedule Import Data'!U:U,'C Schedule Import Data'!$A:$A,$L$3,'C Schedule Import Data'!$B:$B,$L96) -> 0 | E96: 0 | F96: =-SUMIFS('C Schedule Import Data'!W:W,'C Schedule Import Data'!$A:$A,$L$3,'C Schedule Import Data'!$B:$B,$L96) -> 0 | G96: =-SUMIFS('C Schedule Import Data'!X:X,'C Schedule Import Data'!$A:$A,$L$3,'C Schedule Import Data'!$B:$B,$L96) -> 0 | H96: =-SUMIFS('C Schedule Import Data'!Y:Y,'C Schedule Import Data'!$A:$A,$L$3,'C Schedule Import Data'!$B:$B,$L96) -> 0 | I96: =G96-H96 -> 0 | J96: =IF(I96=0,"",I96/H96) ->  | K96: =-SUMIFS('C Schedule Import Data'!Z:Z,'C Schedule Import Data'!$A:$A,$L$3,'C Schedule Import Data'!$B:$B,$L96) -> 0 | L96: 3303 REV
A97: Nature Conservation | C97: =-SUMIFS('C Schedule Import Data'!T:T,'C Schedule Import Data'!$A:$A,$L$3,'C Schedule Import Data'!$B:$B,$L97) -> 0 | D97: =-SUMIFS('C Schedule Import Data'!U:U,'C Schedule Import Data'!$A:$A,$L$3,'C Schedule Import Data'!$B:$B,$L97) -> 0 | E97: 0 | F97: =-SUMIFS('C Schedule Import Data'!W:W,'C Schedule Import Data'!$A:$A,$L$3,'C Schedule Import Data'!$B:$B,$L97) -> 0 | G97: =-SUMIFS('C Schedule Import Data'!X:X,'C Schedule Import Data'!$A:$A,$L$3,'C Schedule Import Data'!$B:$B,$L97) -> 0 | H97: =-SUMIFS('C Schedule Import Data'!Y:Y,'C Schedule Import Data'!$A:$A,$L$3,'C Schedule Import Data'!$B:$B,$L97) -> 0 | I97: =G97-H97 -> 0 | J97: =IF(I97=0,"",I97/H97) ->  | K97: =-SUMIFS('C Schedule Import Data'!Z:Z,'C Schedule Import Data'!$A:$A,$L$3,'C Schedule Import Data'!$B:$B,$L97) -> 0 | L97: 3304 REV
A98: Pollution Control | C98: =-SUMIFS('C Schedule Import Data'!T:T,'C Schedule Import Data'!$A:$A,$L$3,'C Schedule Import Data'!$B:$B,$L98) -> 0 | D98: =-SUMIFS('C Schedule Import Data'!U:U,'C Schedule Import Data'!$A:$A,$L$3,'C Schedule Import Data'!$B:$B,$L98) -> 0 | E98: 0 | F98: =-SUMIFS('C Schedule Import Data'!W:W,'C Schedule Import Data'!$A:$A,$L$3,'C Schedule Import Data'!$B:$B,$L98) -> 0 | G98: =-SUMIFS('C Schedule Import Data'!X:X,'C Schedule Import Data'!$A:$A,$L$3,'C Schedule Import Data'!$B:$B,$L98) -> 0 | H98: =-SUMIFS('C Schedule Import Data'!Y:Y,'C Schedule Import Data'!$A:$A,$L$3,'C Schedule Import Data'!$B:$B,$L98) -> 0 | I98: 0 | K98: =-SUMIFS('C Schedule Import Data'!Z:Z,'C Schedule Import Data'!$A:$A,$L$3,'C Schedule Import Data'!$B:$B,$L98) -> 0 | L98: 3305 REV
A99: Soil Conservation | C99: =-SUMIFS('C Schedule Import Data'!T:T,'C Schedule Import Data'!$A:$A,$L$3,'C Schedule Import Data'!$B:$B,$L99) -> 0 | D99: =-SUMIFS('C Schedule Import Data'!U:U,'C Schedule Import Data'!$A:$A,$L$3,'C Schedule Import Data'!$B:$B,$L99) -> 0 | E99: 0 | F99: =-SUMIFS('C Schedule Import Data'!W:W,'C Schedule Import Data'!$A:$A,$L$3,'C Schedule Import Data'!$B:$B,$L99) -> 0 | G99: =-SUMIFS('C Schedule Import Data'!X:X,'C Schedule Import Data'!$A:$A,$L$3,'C Schedule Import Data'!$B:$B,$L99) -> 0 | H99: =-SUMIFS('C Schedule Import Data'!Y:Y,'C Schedule Import Data'!$A:$A,$L$3,'C Schedule Import Data'!$B:$B,$L99) -> 0 | I99: 0 | K99: =-SUMIFS('C Schedule Import Data'!Z:Z,'C Schedule Import Data'!$A:$A,$L$3,'C Schedule Import Data'!$B:$B,$L99) -> 0 | L99: 3306 REV
A100: Trading services | C100: =C101+C105+C109+C114 -> 0 | D100: 1990711 | E100: 1990711 | F100: 178820.91 | G100: 992054.9 | H100: 995355.5 | I100: =I101+I105+I109+I114 -> -3300.6 | J100: -0.003316001167 | K100: =K101+K105+K109+K114 -> 1990711 | L100: 4000 REV
A101: Energy sources | C101: =SUM(C102:C104) -> 0 | D101: =SUM(D102:D104) -> 0 | E101: 0 | F101: 0 | G101: 0 | H101: 0 | I101: 0 | K101: 0 | L101: 4100 REV
A102: Electricity | C102: =-SUMIFS('C Schedule Import Data'!T:T,'C Schedule Import Data'!$A:$A,$L$3,'C Schedule Import Data'!$B:$B,$L102) -> 0 | D102: =-SUMIFS('C Schedule Import Data'!U:U,'C Schedule Import Data'!$A:$A,$L$3,'C Schedule Import Data'!$B:$B,$L102) -> 0 | E102: =-SUMIFS('C Schedule Import Data'!V:V,'C Schedule Import Data'!$A:$A,$L$3,'C Schedule Import Data'!$B:$B,$L102) -> 0 | H102: =-SUMIFS('C Schedule Import Data'!Y:Y,'C Schedule Import Data'!$A:$A,$L$3,'C Schedule Import Data'!$B:$B,$L102) -> 0 | I102: 0 | K102: =-SUMIFS('C Schedule Import Data'!Z:Z,'C Schedule Import Data'!$A:$A,$L$3,'C Schedule Import Data'!$B:$B,$L102) -> 0 | L102: 4101 REV
A103: Street Lighting and Signal Systems | C103: =-SUMIFS('C Schedule Import Data'!T:T,'C Schedule Import Data'!$A:$A,$L$3,'C Schedule Import Data'!$B:$B,$L103) -> 0 | D103: =-SUMIFS('C Schedule Import Data'!U:U,'C Schedule Import Data'!$A:$A,$L$3,'C Schedule Import Data'!$B:$B,$L103) -> 0 | E103: =-SUMIFS('C Schedule Import Data'!V:V,'C Schedule Import Data'!$A:$A,$L$3,'C Schedule Import Data'!$B:$B,$L103) -> 0 | F103: =-SUMIFS('C Schedule Import Data'!W:W,'C Schedule Import Data'!$A:$A,$L$3,'C Schedule Import Data'!$B:$B,$L103) -> 0 | G103: =-SUMIFS('C Schedule Import Data'!X:X,'C Schedule Import Data'!$A:$A,$L$3,'C Schedule Import Data'!$B:$B,$L103) -> 0 | H103: =-SUMIFS('C Schedule Import Data'!Y:Y,'C Schedule Import Data'!$A:$A,$L$3,'C Schedule Import Data'!$B:$B,$L103) -> 0 | I103: =G103-H103 -> 0 | J103: =IF(I103=0,"",I103/H103) ->  | K103: =-SUMIFS('C Schedule Import Data'!Z:Z,'C Schedule Import Data'!$A:$A,$L$3,'C Schedule Import Data'!$B:$B,$L103) -> 0 | L103: 4102 REV
A104: Nonelectric Energy | C104: =-SUMIFS('C Schedule Import Data'!T:T,'C Schedule Import Data'!$A:$A,$L$3,'C Schedule Import Data'!$B:$B,$L104) -> 0 | D104: =-SUMIFS('C Schedule Import Data'!U:U,'C Schedule Import Data'!$A:$A,$L$3,'C Schedule Import Data'!$B:$B,$L104) -> 0 | E104: =-SUMIFS('C Schedule Import Data'!V:V,'C Schedule Import Data'!$A:$A,$L$3,'C Schedule Import Data'!$B:$B,$L104) -> 0 | F104: =-SUMIFS('C Schedule Import Data'!W:W,'C Schedule Import Data'!$A:$A,$L$3,'C Schedule Import Data'!$B:$B,$L104) -> 0 | G104: =-SUMIFS('C Schedule Import Data'!X:X,'C Schedule Import Data'!$A:$A,$L$3,'C Schedule Import Data'!$B:$B,$L104) -> 0 | H104: =-SUMIFS('C Schedule Import Data'!Y:Y,'C Schedule Import Data'!$A:$A,$L$3,'C Schedule Import Data'!$B:$B,$L104) -> 0 | I104: 0 | K104: =-SUMIFS('C Schedule Import Data'!Z:Z,'C Schedule Import Data'!$A:$A,$L$3,'C Schedule Import Data'!$B:$B,$L104) -> 0 | L104: 4103 REV
A105: Water management | C105: =SUM(C106:C108) -> 0 | D105: =SUM(D106:D108) -> 0 | E105: 0 | F105: 0 | G105: 0 | H105: 0 | I105: 0 | K105: 0 | L105: 4200 REV
A106: Water Treatment | C106: =-SUMIFS('C Schedule Import Data'!T:T,'C Schedule Import Data'!$A:$A,$L$3,'C Schedule Import Data'!$B:$B,$L106) -> 0 | D106: =-SUMIFS('C Schedule Import Data'!U:U,'C Schedule Import Data'!$A:$A,$L$3,'C Schedule Import Data'!$B:$B,$L106) -> 0 | E106: =-SUMIFS('C Schedule Import Data'!V:V,'C Schedule Import Data'!$A:$A,$L$3,'C Schedule Import Data'!$B:$B,$L106) -> 0 | F106: =-SUMIFS('C Schedule Import Data'!W:W,'C Schedule Import Data'!$A:$A,$L$3,'C Schedule Import Data'!$B:$B,$L106) -> 0 | G106: =-SUMIFS('C Schedule Import Data'!X:X,'C Schedule Import Data'!$A:$A,$L$3,'C Schedule Import Data'!$B:$B,$L106) -> 0 | H106: =-SUMIFS('C Schedule Import Data'!Y:Y,'C Schedule Import Data'!$A:$A,$L$3,'C Schedule Import Data'!$B:$B,$L106) -> 0 | I106: 0 | K106: =-SUMIFS('C Schedule Import Data'!Z:Z,'C Schedule Import Data'!$A:$A,$L$3,'C Schedule Import Data'!$B:$B,$L106) -> 0 | L106: 4201 REV
A107: Water Distribution | C107: =-SUMIFS('C Schedule Import Data'!T:T,'C Schedule Import Data'!$A:$A,$L$3,'C Schedule Import Data'!$B:$B,$L107) -> 0 | D107: =-SUMIFS('C Schedule Import Data'!U:U,'C Schedule Import Data'!$A:$A,$L$3,'C Schedule Import Data'!$B:$B,$L107) -> 0 | E107: =-SUMIFS('C Schedule Import Data'!V:V,'C Schedule Import Data'!$A:$A,$L$3,'C Schedule Import Data'!$B:$B,$L107) -> 0 | F107: =-SUMIFS('C Schedule Import Data'!W:W,'C Schedule Import Data'!$A:$A,$L$3,'C Schedule Import Data'!$B:$B,$L107) -> 0 | G107: =-SUMIFS('C Schedule Import Data'!X:X,'C Schedule Import Data'!$A:$A,$L$3,'C Schedule Import Data'!$B:$B,$L107) -> 0 | H107: =-SUMIFS('C Schedule Import Data'!Y:Y,'C Schedule Import Data'!$A:$A,$L$3,'C Schedule Import Data'!$B:$B,$L107) -> 0 | I107: =G107-H107 -> 0 | J107: =IF(I107=0,"",I107/H107) ->  | K107: =-SUMIFS('C Schedule Import Data'!Z:Z,'C Schedule Import Data'!$A:$A,$L$3,'C Schedule Import Data'!$B:$B,$L107) -> 0 | L107: 4202 REV
A108: Water Storage | C108: =-SUMIFS('C Schedule Import Data'!T:T,'C Schedule Import Data'!$A:$A,$L$3,'C Schedule Import Data'!$B:$B,$L108) -> 0 | D108: =-SUMIFS('C Schedule Import Data'!U:U,'C Schedule Import Data'!$A:$A,$L$3,'C Schedule Import Data'!$B:$B,$L108) -> 0 | E108: =-SUMIFS('C Schedule Import Data'!V:V,'C Schedule Import Data'!$A:$A,$L$3,'C Schedule Import Data'!$B:$B,$L108) -> 0 | F108: =-SUMIFS('C Schedule Import Data'!W:W,'C Schedule Import Data'!$A:$A,$L$3,'C Schedule Import Data'!$B:$B,$L108) -> 0 | G108: =-SUMIFS('C Schedule Import Data'!X:X,'C Schedule Import Data'!$A:$A,$L$3,'C Schedule Import Data'!$B:$B,$L108) -> 0 | H108: =-SUMIFS('C Schedule Import Data'!Y:Y,'C Schedule Import Data'!$A:$A,$L$3,'C Schedule Import Data'!$B:$B,$L108) -> 0 | I108: 0 | K108: =-SUMIFS('C Schedule Import Data'!Z:Z,'C Schedule Import Data'!$A:$A,$L$3,'C Schedule Import Data'!$B:$B,$L108) -> 0 | L108: 4203 REV
A109: Waste water management | C109: =SUM(C110:C113) -> 0 | D109: =SUM(D110:D113) -> 0 | E109: 0 | F109: 0 | G109: 0 | H109: 0 | I109: 0 | K109: 0 | L109: 4300 REV
A110: Public Toilets | C110: =-SUMIFS('C Schedule Import Data'!T:T,'C Schedule Import Data'!$A:$A,$L$3,'C Schedule Import Data'!$B:$B,$L110) -> 0 | D110: =-SUMIFS('C Schedule Import Data'!U:U,'C Schedule Import Data'!$A:$A,$L$3,'C Schedule Import Data'!$B:$B,$L110) -> 0 | E110: =-SUMIFS('C Schedule Import Data'!V:V,'C Schedule Import Data'!$A:$A,$L$3,'C Schedule Import Data'!$B:$B,$L110) -> 0 | F110: =-SUMIFS('C Schedule Import Data'!W:W,'C Schedule Import Data'!$A:$A,$L$3,'C Schedule Import Data'!$B:$B,$L110) -> 0 | G110: =-SUMIFS('C Schedule Import Data'!X:X,'C Schedule Import Data'!$A:$A,$L$3,'C Schedule Import Data'!$B:$B,$L110) -> 0 | H110: =-SUMIFS('C Schedule Import Data'!Y:Y,'C Schedule Import Data'!$A:$A,$L$3,'C Schedule Import Data'!$B:$B,$L110) -> 0 | I110: 0 | K110: =-SUMIFS('C Schedule Import Data'!Z:Z,'C Schedule Import Data'!$A:$A,$L$3,'C Schedule Import Data'!$B:$B,$L110) -> 0 | L110: 4301 REV
A111: Sewerage | C111: =-SUMIFS('C Schedule Import Data'!T:T,'C Schedule Import Data'!$A:$A,$L$3,'C Schedule Import Data'!$B:$B,$L111) -> 0 | D111: =-SUMIFS('C Schedule Import Data'!U:U,'C Schedule Import Data'!$A:$A,$L$3,'C Schedule Import Data'!$B:$B,$L111) -> 0 | E111: =-SUMIFS('C Schedule Import Data'!V:V,'C Schedule Import Data'!$A:$A,$L$3,'C Schedule Import Data'!$B:$B,$L111) -> 0 | F111: =-SUMIFS('C Schedule Import Data'!W:W,'C Schedule Import Data'!$A:$A,$L$3,'C Schedule Import Data'!$B:$B,$L111) -> 0 | G111: =-SUMIFS('C Schedule Import Data'!X:X,'C Schedule Import Data'!$A:$A,$L$3,'C Schedule Import Data'!$B:$B,$L111) -> 0 | H111: =-SUMIFS('C Schedule Import Data'!Y:Y,'C Schedule Import Data'!$A:$A,$L$3,'C Schedule Import Data'!$B:$B,$L111) -> 0 | I111: 0 | K111: =-SUMIFS('C Schedule Import Data'!Z:Z,'C Schedule Import Data'!$A:$A,$L$3,'C Schedule Import Data'!$B:$B,$L111) -> 0 | L111: 4302 REV
A112: Storm Water Management | C112: =-SUMIFS('C Schedule Import Data'!T:T,'C Schedule Import Data'!$A:$A,$L$3,'C Schedule Import Data'!$B:$B,$L112) -> 0 | D112: =-SUMIFS('C Schedule Import Data'!U:U,'C Schedule Import Data'!$A:$A,$L$3,'C Schedule Import Data'!$B:$B,$L112) -> 0 | E112: =-SUMIFS('C Schedule Import Data'!V:V,'C Schedule Import Data'!$A:$A,$L$3,'C Schedule Import Data'!$B:$B,$L112) -> 0 | F112: =-SUMIFS('C Schedule Import Data'!W:W,'C Schedule Import Data'!$A:$A,$L$3,'C Schedule Import Data'!$B:$B,$L112) -> 0 | G112: =-SUMIFS('C Schedule Import Data'!X:X,'C Schedule Import Data'!$A:$A,$L$3,'C Schedule Import Data'!$B:$B,$L112) -> 0 | H112: =-SUMIFS('C Schedule Import Data'!Y:Y,'C Schedule Import Data'!$A:$A,$L$3,'C Schedule Import Data'!$B:$B,$L112) -> 0 | I112: =G112-H112 -> 0 | J112: =IF(I112=0,"",I112/H112) ->  | K112: =-SUMIFS('C Schedule Import Data'!Z:Z,'C Schedule Import Data'!$A:$A,$L$3,'C Schedule Import Data'!$B:$B,$L112) -> 0 | L112: 4303 REV
A113: Waste Water Treatment | C113: =-SUMIFS('C Schedule Import Data'!T:T,'C Schedule Import Data'!$A:$A,$L$3,'C Schedule Import Data'!$B:$B,$L113) -> 0 | D113: =-SUMIFS('C Schedule Import Data'!U:U,'C Schedule Import Data'!$A:$A,$L$3,'C Schedule Import Data'!$B:$B,$L113) -> 0 | E113: =-SUMIFS('C Schedule Import Data'!V:V,'C Schedule Import Data'!$A:$A,$L$3,'C Schedule Import Data'!$B:$B,$L113) -> 0 | F113: =-SUMIFS('C Schedule Import Data'!W:W,'C Schedule Import Data'!$A:$A,$L$3,'C Schedule Import Data'!$B:$B,$L113) -> 0 | G113: =-SUMIFS('C Schedule Import Data'!X:X,'C Schedule Import Data'!$A:$A,$L$3,'C Schedule Import Data'!$B:$B,$L113) -> 0 | H113: =-SUMIFS('C Schedule Import Data'!Y:Y,'C Schedule Import Data'!$A:$A,$L$3,'C Schedule Import Data'!$B:$B,$L113) -> 0 | I113: 0 | K113: =-SUMIFS('C Schedule Import Data'!Z:Z,'C Schedule Import Data'!$A:$A,$L$3,'C Schedule Import Data'!$B:$B,$L113) -> 0 | L113: 4304 REV
A114: Waste management | C114: =SUM(C115:C118) -> 0 | D114: 1990711 | E114: 1990711 | F114: 178820.91 | G114: 992054.9 | H114: 995355.5 | I114: -3300.6 | J114: -0.003316001167 | K114: =SUM(K115:K118) -> 1990711 | L114: 4400 REV
A115: Recycling | C115: =-SUMIFS('C Schedule Import Data'!T:T,'C Schedule Import Data'!$A:$A,$L$3,'C Schedule Import Data'!$B:$B,$L115) -> 0 | E115: =D115 -> 0 | F115: =-SUMIFS('C Schedule Import Data'!W:W,'C Schedule Import Data'!$A:$A,$L$3,'C Schedule Import Data'!$B:$B,$L115) -> 0 | G115: =-SUMIFS('C Schedule Import Data'!X:X,'C Schedule Import Data'!$A:$A,$L$3,'C Schedule Import Data'!$B:$B,$L115) -> 0 | H115: =D115/12*6 -> 0 | I115: =G115-H115 -> 0 | J115: =IF(I115=0,"",I115/H115) ->  | K115: =D115 -> 0 | L115: 4401 REV
A116: Solid Waste Disposal (Landfill Sites) | C116: =-SUMIFS('C Schedule Import Data'!T:T,'C Schedule Import Data'!$A:$A,$L$3,'C Schedule Import Data'!$B:$B,$L116) -> 0 | E116: 0 | F116: =-SUMIFS('C Schedule Import Data'!W:W,'C Schedule Import Data'!$A:$A,$L$3,'C Schedule Import Data'!$B:$B,$L116) -> 0 | G116: =-SUMIFS('C Schedule Import Data'!X:X,'C Schedule Import Data'!$A:$A,$L$3,'C Schedule Import Data'!$B:$B,$L116) -> 0 | H116: 0 | I116: =G116-H116 -> 0 | J116: =IF(I116=0,"",I116/H116) ->  | K116: 0 | L116: 4402 REV
A117: Solid Waste Removal | C117: =-SUMIFS('C Schedule Import Data'!T:T,'C Schedule Import Data'!$A:$A,$L$3,'C Schedule Import Data'!$B:$B,$L117) -> 0 | D117: 1990711 | E117: 1990711 | F117: =-SUMIFS('C Schedule Import Data'!W:W,'C Schedule Import Data'!$A:$A,$L$3,'C Schedule Import Data'!$B:$B,$L117) -> 178820.91 | G117: 992054.9 | H117: 995355.5 | I117: -3300.6 | J117: -0.003316001167 | K117: 1990711 | L117: 4403 REV
A118: Street Cleaning | C118: =-SUMIFS('C Schedule Import Data'!T:T,'C Schedule Import Data'!$A:$A,$L$3,'C Schedule Import Data'!$B:$B,$L118) -> 0 | E118: 0 | F118: =-SUMIFS('C Schedule Import Data'!W:W,'C Schedule Import Data'!$A:$A,$L$3,'C Schedule Import Data'!$B:$B,$L118) -> 0 | G118: =-SUMIFS('C Schedule Import Data'!X:X,'C Schedule Import Data'!$A:$A,$L$3,'C Schedule Import Data'!$B:$B,$L118) -> 0 | H118: 0 | I118: =G118-H118 -> 0 | J118: =IF(I118=0,"",I118/H118) ->  | K118: 0 | L118: 4404 REV
A119: Other | C119: =SUM(C120:C125) -> 0 | D119: =SUM(D120:D125) -> 0 | E119: 0 | F119: 0 | G119: 0 | H119: 0 | I119: 0 | K119: 0 | L119: 5000 REV
A120: Abattoirs | C120: =-SUMIFS('C Schedule Import Data'!T:T,'C Schedule Import Data'!$A:$A,$L$3,'C Schedule Import Data'!$B:$B,$L120) -> 0 | D120: =-SUMIFS('C Schedule Import Data'!U:U,'C Schedule Import Data'!$A:$A,$L$3,'C Schedule Import Data'!$B:$B,$L120) -> 0 | E120: =-SUMIFS('C Schedule Import Data'!V:V,'C Schedule Import Data'!$A:$A,$L$3,'C Schedule Import Data'!$B:$B,$L120) -> 0 | F120: =-SUMIFS('C Schedule Import Data'!W:W,'C Schedule Import Data'!$A:$A,$L$3,'C Schedule Import Data'!$B:$B,$L120) -> 0 | G120: =-SUMIFS('C Schedule Import Data'!X:X,'C Schedule Import Data'!$A:$A,$L$3,'C Schedule Import Data'!$B:$B,$L120) -> 0 | H120: =-SUMIFS('C Schedule Import Data'!Y:Y,'C Schedule Import Data'!$A:$A,$L$3,'C Schedule Import Data'!$B:$B,$L120) -> 0 | I120: 0 | K120: =-SUMIFS('C Schedule Import Data'!Z:Z,'C Schedule Import Data'!$A:$A,$L$3,'C Schedule Import Data'!$B:$B,$L120) -> 0 | L120: 5001 REV
A121: Air Transport | C121: =-SUMIFS('C Schedule Import Data'!T:T,'C Schedule Import Data'!$A:$A,$L$3,'C Schedule Import Data'!$B:$B,$L121) -> 0 | D121: =-SUMIFS('C Schedule Import Data'!U:U,'C Schedule Import Data'!$A:$A,$L$3,'C Schedule Import Data'!$B:$B,$L121) -> 0 | E121: =-SUMIFS('C Schedule Import Data'!V:V,'C Schedule Import Data'!$A:$A,$L$3,'C Schedule Import Data'!$B:$B,$L121) -> 0 | F121: =-SUMIFS('C Schedule Import Data'!W:W,'C Schedule Import Data'!$A:$A,$L$3,'C Schedule Import Data'!$B:$B,$L121) -> 0 | G121: =-SUMIFS('C Schedule Import Data'!X:X,'C Schedule Import Data'!$A:$A,$L$3,'C Schedule Import Data'!$B:$B,$L121) -> 0 | H121: =-SUMIFS('C Schedule Import Data'!Y:Y,'C Schedule Import Data'!$A:$A,$L$3,'C Schedule Import Data'!$B:$B,$L121) -> 0 | I121: 0 | K121: =-SUMIFS('C Schedule Import Data'!Z:Z,'C Schedule Import Data'!$A:$A,$L$3,'C Schedule Import Data'!$B:$B,$L121) -> 0 | L121: 5002 REV
A122: Forestry | C122: =-SUMIFS('C Schedule Import Data'!T:T,'C Schedule Import Data'!$A:$A,$L$3,'C Schedule Import Data'!$B:$B,$L122) -> 0 | D122: =-SUMIFS('C Schedule Import Data'!U:U,'C Schedule Import Data'!$A:$A,$L$3,'C Schedule Import Data'!$B:$B,$L122) -> 0 | E122: =-SUMIFS('C Schedule Import Data'!V:V,'C Schedule Import Data'!$A:$A,$L$3,'C Schedule Import Data'!$B:$B,$L122) -> 0 | F122: =-SUMIFS('C Schedule Import Data'!W:W,'C Schedule Import Data'!$A:$A,$L$3,'C Schedule Import Data'!$B:$B,$L122) -> 0 | G122: =-SUMIFS('C Schedule Import Data'!X:X,'C Schedule Import Data'!$A:$A,$L$3,'C Schedule Import Data'!$B:$B,$L122) -> 0 | H122: =-SUMIFS('C Schedule Import Data'!Y:Y,'C Schedule Import Data'!$A:$A,$L$3,'C Schedule Import Data'!$B:$B,$L122) -> 0 | I122: =G122-H122 -> 0 | J122: =IF(I122=0,"",I122/H122) ->  | K122: =-SUMIFS('C Schedule Import Data'!Z:Z,'C Schedule Import Data'!$A:$A,$L$3,'C Schedule Import Data'!$B:$B,$L122) -> 0 | L122: 5003 REV
A123: Licensing and Regulation | C123: =-SUMIFS('C Schedule Import Data'!T:T,'C Schedule Import Data'!$A:$A,$L$3,'C Schedule Import Data'!$B:$B,$L123) -> 0 | D123: =-SUMIFS('C Schedule Import Data'!U:U,'C Schedule Import Data'!$A:$A,$L$3,'C Schedule Import Data'!$B:$B,$L123) -> 0 | E123: =-SUMIFS('C Schedule Import Data'!V:V,'C Schedule Import Data'!$A:$A,$L$3,'C Schedule Import Data'!$B:$B,$L123) -> 0 | F123: =-SUMIFS('C Schedule Import Data'!W:W,'C Schedule Import Data'!$A:$A,$L$3,'C Schedule Import Data'!$B:$B,$L123) -> 0 | G123: =-SUMIFS('C Schedule Import Data'!X:X,'C Schedule Import Data'!$A:$A,$L$3,'C Schedule Import Data'!$B:$B,$L123) -> 0 | H123: =-SUMIFS('C Schedule Import Data'!Y:Y,'C Schedule Import Data'!$A:$A,$L$3,'C Schedule Import Data'!$B:$B,$L123) -> 0 | I123: 0 | K123: =-SUMIFS('C Schedule Import Data'!Z:Z,'C Schedule Import Data'!$A:$A,$L$3,'C Schedule Import Data'!$B:$B,$L123) -> 0 | L123: 5004 REV
A124: Markets | C124: =-SUMIFS('C Schedule Import Data'!T:T,'C Schedule Import Data'!$A:$A,$L$3,'C Schedule Import Data'!$B:$B,$L124) -> 0 | D124: =-SUMIFS('C Schedule Import Data'!U:U,'C Schedule Import Data'!$A:$A,$L$3,'C Schedule Import Data'!$B:$B,$L124) -> 0 | E124: =-SUMIFS('C Schedule Import Data'!V:V,'C Schedule Import Data'!$A:$A,$L$3,'C Schedule Import Data'!$B:$B,$L124) -> 0 | F124: =-SUMIFS('C Schedule Import Data'!W:W,'C Schedule Import Data'!$A:$A,$L$3,'C Schedule Import Data'!$B:$B,$L124) -> 0 | G124: =-SUMIFS('C Schedule Import Data'!X:X,'C Schedule Import Data'!$A:$A,$L$3,'C Schedule Import Data'!$B:$B,$L124) -> 0 | H124: =-SUMIFS('C Schedule Import Data'!Y:Y,'C Schedule Import Data'!$A:$A,$L$3,'C Schedule Import Data'!$B:$B,$L124) -> 0 | I124: 0 | K124: =-SUMIFS('C Schedule Import Data'!Z:Z,'C Schedule Import Data'!$A:$A,$L$3,'C Schedule Import Data'!$B:$B,$L124) -> 0 | L124: 5005 REV
A125: Tourism | C125: =-SUMIFS('C Schedule Import Data'!T:T,'C Schedule Import Data'!$A:$A,$L$3,'C Schedule Import Data'!$B:$B,$L125) -> 0 | D125: =-SUMIFS('C Schedule Import Data'!U:U,'C Schedule Import Data'!$A:$A,$L$3,'C Schedule Import Data'!$B:$B,$L125) -> 0 | E125: =-SUMIFS('C Schedule Import Data'!V:V,'C Schedule Import Data'!$A:$A,$L$3,'C Schedule Import Data'!$B:$B,$L125) -> 0 | F125: =-SUMIFS('C Schedule Import Data'!W:W,'C Schedule Import Data'!$A:$A,$L$3,'C Schedule Import Data'!$B:$B,$L125) -> 0 | G125: =-SUMIFS('C Schedule Import Data'!X:X,'C Schedule Import Data'!$A:$A,$L$3,'C Schedule Import Data'!$B:$B,$L125) -> 0 | H125: =-SUMIFS('C Schedule Import Data'!Y:Y,'C Schedule Import Data'!$A:$A,$L$3,'C Schedule Import Data'!$B:$B,$L125) -> 0 | I125: =G125-H125 -> 0 | J125: =IF(I125=0,"",I125/H125) ->  | K125: =-SUMIFS('C Schedule Import Data'!Z:Z,'C Schedule Import Data'!$A:$A,$L$3,'C Schedule Import Data'!$B:$B,$L125) -> 0 | L125: 5006 REV
A126: ="Total "&A5 -> Total Revenue - Functional | B126: 2 | C126: =C6+C27+C74+C100+C119 -> 0 | D126: 182181084.7 | E126: 182181084.7 | F126: 34509330.73 | G126: 113294648.3 | H126: 91090542.34 | I126: =G126-H126 -> 22204105.93 | J126: =IF(I126=0,"",I126/H126) -> 0.2437586313 | K126: =K6+K27+K74+K100+K119 -> 182181084.7
A128: Expenditure - Functional
A129: =A6 -> Municipal governance and administration | C129: =C130+C133+C148 -> 0 | D129: 85447150.9 | E129: 85447150.9 | F129: 0 | G129: 37931568.62 | H129: 42723575.45 | I129: =G129-H129 -> -4792006.83 | J129: =IF(I129=0,"",I129/H129) -> -0.112163057 | K129: 85447150.9 | L129: 1000 EXP
A130: =A7 -> Executive and council | C130: =SUM(C131:C132) -> 0 | D130: 23930097.19 | E130: 23930097.19 | F130: 0 | G130: 10219799.73 | H130: 11965048.59 | I130: -1745248.86 | J130: -0.1458622459 | K130: 23930097.19 | L130: 1100 EXP
A131: =A8 -> Mayor and Council | C131: =SUMIFS('C Schedule Import Data'!T:T,'C Schedule Import Data'!$A:$A,$L$3,'C Schedule Import Data'!$B:$B,$L131) -> 0 | D131: 13032770.67 | E131: =D131 -> 13032770.67 | F131: =SUMIFS('C Schedule Import Data'!W:W,'C Schedule Import Data'!$A:$A,$L$3,'C Schedule Import Data'!$B:$B,$L131) -> 0 | G131: 5313585.093 | H131: =D131/12*6 -> 6516385.333 | I131: -1202800.24 | J131: -0.1845808955 | K131: =D131 -> 13032770.67 | L131: 1110 EXP
A132: =A9 -> Municipal Manager, Town Secretary and Chief Executive | C132: =SUMIFS('C Schedule Import Data'!T:T,'C Schedule Import Data'!$A:$A,$L$3,'C Schedule Import Data'!$B:$B,$L132) -> 0 | D132: 10897326.52 | E132: 10897326.52 | F132: =SUMIFS('C Schedule Import Data'!W:W,'C Schedule Import Data'!$A:$A,$L$3,'C Schedule Import Data'!$B:$B,$L132) -> 0 | G132: 4906214.642 | H132: 5448663.262 | I132: -542448.62 | J132: -0.09955627536 | K132: 10897326.52 | L132: 1120 EXP
A133: =A10 -> Finance and administration | C133: =SUM(C134:C147) -> 0 | D133: 37818818.77 | E133: 37818818.77 | F133: 0 | G133: 17363661.95 | H133: 18909409.39 | I133: -1545747.44 | J133: -0.08174488205 | K133: =SUM(K134:K147) -> 37818818.77 | L133: 1200 EXP
A134: =A11 -> Administrative and Corporate Support | C134: =SUMIFS('C Schedule Import Data'!T:T,'C Schedule Import Data'!$A:$A,$L$3,'C Schedule Import Data'!$B:$B,$L134) -> 0 | E134: =D134 -> 0 | F134: =SUMIFS('C Schedule Import Data'!W:W,'C Schedule Import Data'!$A:$A,$L$3,'C Schedule Import Data'!$B:$B,$L134) -> 0 | G134: =SUMIFS('C Schedule Import Data'!X:X,'C Schedule Import Data'!$A:$A,$L$3,'C Schedule Import Data'!$B:$B,$L134) -> 0 | H134: =D134/12*6 -> 0 | I134: 0 | K134: =D134 -> 0 | L134: 1201 EXP
A135: Asset Management | C135: =SUMIFS('C Schedule Import Data'!T:T,'C Schedule Import Data'!$A:$A,$L$3,'C Schedule Import Data'!$B:$B,$L135) -> 0 | E135: 0 | F135: =SUMIFS('C Schedule Import Data'!W:W,'C Schedule Import Data'!$A:$A,$L$3,'C Schedule Import Data'!$B:$B,$L135) -> 0 | G135: =SUMIFS('C Schedule Import Data'!X:X,'C Schedule Import Data'!$A:$A,$L$3,'C Schedule Import Data'!$B:$B,$L135) -> 0 | H135: 0 | I135: 0 | K135: 0 | L135: 1202 EXP
A136: Budget and Treasury Office | C136: =SUMIFS('C Schedule Import Data'!T:T,'C Schedule Import Data'!$A:$A,$L$3,'C Schedule Import Data'!$B:$B,$L136) -> 0 | D136: 37268818.77 | E136: 37268818.77 | F136: =SUMIFS('C Schedule Import Data'!W:W,'C Schedule Import Data'!$A:$A,$L$3,'C Schedule Import Data'!$B:$B,$L136) -> 0 | G136: 17115935.93 | H136: 18634409.39 | I136: -1518473.46 | J136: -0.08148760867 | K136: 37268818.77 | L136: 1203 EXP
A137: Finance | C137: =SUMIFS('C Schedule Import Data'!T:T,'C Schedule Import Data'!$A:$A,$L$3,'C Schedule Import Data'!$B:$B,$L137) -> 0 | E137: 0 | F137: =SUMIFS('C Schedule Import Data'!W:W,'C Schedule Import Data'!$A:$A,$L$3,'C Schedule Import Data'!$B:$B,$L137) -> 0 | G137: =SUMIFS('C Schedule Import Data'!X:X,'C Schedule Import Data'!$A:$A,$L$3,'C Schedule Import Data'!$B:$B,$L137) -> 0 | H137: 0 | I137: 0 | K137: 0 | L137: 1204 EXP
A138: Fleet Management | C138: =SUMIFS('C Schedule Import Data'!T:T,'C Schedule Import Data'!$A:$A,$L$3,'C Schedule Import Data'!$B:$B,$L138) -> 0 | E138: 0 | F138: =SUMIFS('C Schedule Import Data'!W:W,'C Schedule Import Data'!$A:$A,$L$3,'C Schedule Import Data'!$B:$B,$L138) -> 0 | G138: =SUMIFS('C Schedule Import Data'!X:X,'C Schedule Import Data'!$A:$A,$L$3,'C Schedule Import Data'!$B:$B,$L138) -> 0 | H138: 0 | I138: 0 | K138: 0 | L138: 1205 EXP
A139: Human Resources | C139: =SUMIFS('C Schedule Import Data'!T:T,'C Schedule Import Data'!$A:$A,$L$3,'C Schedule Import Data'!$B:$B,$L139) -> 0 | E139: 0 | F139: =SUMIFS('C Schedule Import Data'!W:W,'C Schedule Import Data'!$A:$A,$L$3,'C Schedule Import Data'!$B:$B,$L139) -> 0 | G139: =SUMIFS('C Schedule Import Data'!X:X,'C Schedule Import Data'!$A:$A,$L$3,'C Schedule Import Data'!$B:$B,$L139) -> 0 | H139: 0 | I139: 0 | K139: 0 | L139: 1206 EXP
A140: Information Technology | C140: =SUMIFS('C Schedule Import Data'!T:T,'C Schedule Import Data'!$A:$A,$L$3,'C Schedule Import Data'!$B:$B,$L140) -> 0 | E140: 0 | F140: =SUMIFS('C Schedule Import Data'!W:W,'C Schedule Import Data'!$A:$A,$L$3,'C Schedule Import Data'!$B:$B,$L140) -> 0 | G140: =SUMIFS('C Schedule Import Data'!X:X,'C Schedule Import Data'!$A:$A,$L$3,'C Schedule Import Data'!$B:$B,$L140) -> 0 | H140: 0 | I140: 0 | K140: 0 | L140: 1207 EXP
A141: Legal Services | C141: =SUMIFS('C Schedule Import Data'!T:T,'C Schedule Import Data'!$A:$A,$L$3,'C Schedule Import Data'!$B:$B,$L141) -> 0 | E141: 0 | F141: =SUMIFS('C Schedule Import Data'!W:W,'C Schedule Import Data'!$A:$A,$L$3,'C Schedule Import Data'!$B:$B,$L141) -> 0 | G141: =SUMIFS('C Schedule Import Data'!X:X,'C Schedule Import Data'!$A:$A,$L$3,'C Schedule Import Data'!$B:$B,$L141) -> 0 | H141: 0 | I141: 0 | K141: 0 | L141: 1208 EXP
A142: Marketing, Customer Relations, Publicity and Media Co-ordination | C142: =SUMIFS('C Schedule Import Data'!T:T,'C Schedule Import Data'!$A:$A,$L$3,'C Schedule Import Data'!$B:$B,$L142) -> 0 | E142: 0 | F142: =SUMIFS('C Schedule Import Data'!W:W,'C Schedule Import Data'!$A:$A,$L$3,'C Schedule Import Data'!$B:$B,$L142) -> 0 | G142: =SUMIFS('C Schedule Import Data'!X:X,'C Schedule Import Data'!$A:$A,$L$3,'C Schedule Import Data'!$B:$B,$L142) -> 0 | H142: 0 | I142: 0 | K142: 0 | L142: 1209 EXP
A143: Property Services | C143: =SUMIFS('C Schedule Import Data'!T:T,'C Schedule Import Data'!$A:$A,$L$3,'C Schedule Import Data'!$B:$B,$L143) -> 0 | D143: 550000 | E143: 550000 | F143: =SUMIFS('C Schedule Import Data'!W:W,'C Schedule Import Data'!$A:$A,$L$3,'C Schedule Import Data'!$B:$B,$L143) -> 0 | G143: 247726.02 | H143: 275000 | I143: -27273.98 | J143: -0.09917810909 | K143: 550000 | L143: 1210 EXP
A144: Risk Management | C144: =SUMIFS('C Schedule Import Data'!T:T,'C Schedule Import Data'!$A:$A,$L$3,'C Schedule Import Data'!$B:$B,$L144) -> 0 | E144: 0 | F144: =SUMIFS('C Schedule Import Data'!W:W,'C Schedule Import Data'!$A:$A,$L$3,'C Schedule Import Data'!$B:$B,$L144) -> 0 | G144: =SUMIFS('C Schedule Import Data'!X:X,'C Schedule Import Data'!$A:$A,$L$3,'C Schedule Import Data'!$B:$B,$L144) -> 0 | H144: 0 | I144: 0 | K144: 0 | L144: 1211 EXP
A145: Security Services | C145: =SUMIFS('C Schedule Import Data'!T:T,'C Schedule Import Data'!$A:$A,$L$3,'C Schedule Import Data'!$B:$B,$L145) -> 0 | E145: 0 | F145: =SUMIFS('C Schedule Import Data'!W:W,'C Schedule Import Data'!$A:$A,$L$3,'C Schedule Import Data'!$B:$B,$L145) -> 0 | G145: =SUMIFS('C Schedule Import Data'!X:X,'C Schedule Import Data'!$A:$A,$L$3,'C Schedule Import Data'!$B:$B,$L145) -> 0 | H145: 0 | I145: 0 | K145: 0 | L145: 1212 EXP
A146: Supply Chain Management | C146: =SUMIFS('C Schedule Import Data'!T:T,'C Schedule Import Data'!$A:$A,$L$3,'C Schedule Import Data'!$B:$B,$L146) -> 0 | E146: 0 | F146: =SUMIFS('C Schedule Import Data'!W:W,'C Schedule Import Data'!$A:$A,$L$3,'C Schedule Import Data'!$B:$B,$L146) -> 0 | G146: =SUMIFS('C Schedule Import Data'!X:X,'C Schedule Import Data'!$A:$A,$L$3,'C Schedule Import Data'!$B:$B,$L146) -> 0 | H146: 0 | I146: 0 | K146: 0 | L146: 1213 EXP
A147: Valuation Service | C147: =SUMIFS('C Schedule Import Data'!T:T,'C Schedule Import Data'!$A:$A,$L$3,'C Schedule Import Data'!$B:$B,$L147) -> 0 | E147: 0 | F147: =SUMIFS('C Schedule Import Data'!W:W,'C Schedule Import Data'!$A:$A,$L$3,'C Schedule Import Data'!$B:$B,$L147) -> 0 | G147: =SUMIFS('C Schedule Import Data'!X:X,'C Schedule Import Data'!$A:$A,$L$3,'C Schedule Import Data'!$B:$B,$L147) -> 0 | H147: 0 | I147: 0 | K147: 0 | L147: 1214 EXP
A148: =A25 -> Internal audit | C148: =SUM(C149:C149) -> 0 | D148: 23698234.94 | E148: 23698234.94 | F148: 0 | G148: 10348106.94 | H148: 11849117.47 | I148: -1501010.53 | J148: -0.1266769896 | K148: =SUM(K149:K149) -> 23698234.94 | L148: 1300 EXP
A149: =A26 -> Governance Function | C149: =SUMIFS('C Schedule Import Data'!T:T,'C Schedule Import Data'!$A:$A,$L$3,'C Schedule Import Data'!$B:$B,$L149) -> 0 | D149: 23698234.94 | E149: 23698234.94 | F149: =SUMIFS('C Schedule Import Data'!W:W,'C Schedule Import Data'!$A:$A,$L$3,'C Schedule Import Data'!$B:$B,$L149) -> 0 | G149: 10348106.94 | H149: =D149/12*6 -> 11849117.47 | I149: -1501010.53 | J149: -0.1266769896 | K149: =D149 -> 23698234.94 | L149: 1301 EXP
A150: =A27 -> Community and public safety | C150: =C151+C173+C179+C186+C189 -> 0 | D150: 25673755.1 | E150: 25673755.1 | F150: 0 | G150: 12642551.09 | H150: 12836877.55 | I150: -194326.46 | J150: -0.01513814082 | K150: =K151+K173+K179+K186+K189 -> 25673755.1 | L150: 2000 EXP
A151: =A28 -> Community and social services | C151: =SUM(C152:C172) -> 0 | D151: 9718051.921 | E151: 9718051.921 | F151: 0 | G151: 4423266.36 | H151: 4859025.96 | I151: -435759.6 | J151: -0.08968044286 | K151: =SUM(K152:K172) -> 9718051.921 | L151: 2100 EXP
A152: =A29 -> Aged Care | C152: =SUMIFS('C Schedule Import Data'!T:T,'C Schedule Import Data'!$A:$A,$L$3,'C Schedule Import Data'!$B:$B,$L152) -> 0 | E152: =D152 -> 0 | F152: =SUMIFS('C Schedule Import Data'!W:W,'C Schedule Import Data'!$A:$A,$L$3,'C Schedule Import Data'!$B:$B,$L152) -> 0 | G152: =SUMIFS('C Schedule Import Data'!X:X,'C Schedule Import Data'!$A:$A,$L$3,'C Schedule Import Data'!$B:$B,$L152) -> 0 | H152: =D152/12*6 -> 0 | I152: 0 | K152: =D152 -> 0 | L152: 2101 EXP
A153: Agricultural | C153: =SUMIFS('C Schedule Import Data'!T:T,'C Schedule Import Data'!$A:$A,$L$3,'C Schedule Import Data'!$B:$B,$L153) -> 0 | E153: 0 | F153: =SUMIFS('C Schedule Import Data'!W:W,'C Schedule Import Data'!$A:$A,$L$3,'C Schedule Import Data'!$B:$B,$L153) -> 0 | G153: =SUMIFS('C Schedule Import Data'!X:X,'C Schedule Import Data'!$A:$A,$L$3,'C Schedule Import Data'!$B:$B,$L153) -> 0 | H153: 0 | I153: 0 | K153: 0 | L153: 2102 EXP
A154: Animal Care and Diseases | C154: =SUMIFS('C Schedule Import Data'!T:T,'C Schedule Import Data'!$A:$A,$L$3,'C Schedule Import Data'!$B:$B,$L154) -> 0 | E154: 0 | F154: =SUMIFS('C Schedule Import Data'!W:W,'C Schedule Import Data'!$A:$A,$L$3,'C Schedule Import Data'!$B:$B,$L154) -> 0 | G154: =SUMIFS('C Schedule Import Data'!X:X,'C Schedule Import Data'!$A:$A,$L$3,'C Schedule Import Data'!$B:$B,$L154) -> 0 | H154: 0 | I154: 0 | K154: 0 | L154: 2103 EXP
A155: Cemeteries, Funeral Parlours and Crematoriums | C155: =SUMIFS('C Schedule Import Data'!T:T,'C Schedule Import Data'!$A:$A,$L$3,'C Schedule Import Data'!$B:$B,$L155) -> 0 | E155: 0 | F155: =SUMIFS('C Schedule Import Data'!W:W,'C Schedule Import Data'!$A:$A,$L$3,'C Schedule Import Data'!$B:$B,$L155) -> 0 | G155: =SUMIFS('C Schedule Import Data'!X:X,'C Schedule Import Data'!$A:$A,$L$3,'C Schedule Import Data'!$B:$B,$L155) -> 0 | H155: 0 | I155: 0 | K155: 0 | L155: 2104 EXP
A156: Child Care Facilities | C156: =SUMIFS('C Schedule Import Data'!T:T,'C Schedule Import Data'!$A:$A,$L$3,'C Schedule Import Data'!$B:$B,$L156) -> 0 | E156: 0 | F156: =SUMIFS('C Schedule Import Data'!W:W,'C Schedule Import Data'!$A:$A,$L$3,'C Schedule Import Data'!$B:$B,$L156) -> 0 | G156: =SUMIFS('C Schedule Import Data'!X:X,'C Schedule Import Data'!$A:$A,$L$3,'C Schedule Import Data'!$B:$B,$L156) -> 0 | H156: 0 | I156: 0 | K156: 0 | L156: 2105 EXP
A157: Community Halls and Facilities | C157: =SUMIFS('C Schedule Import Data'!T:T,'C Schedule Import Data'!$A:$A,$L$3,'C Schedule Import Data'!$B:$B,$L157) -> 0 | D157: 700000 | E157: 700000 | F157: =SUMIFS('C Schedule Import Data'!W:W,'C Schedule Import Data'!$A:$A,$L$3,'C Schedule Import Data'!$B:$B,$L157) -> 0 | G157: 55668.25 | H157: 350000 | I157: -294331.75 | J157: -0.8409478571 | K157: 700000 | L157: 2106 EXP
A158: Consumer Protection | C158: =SUMIFS('C Schedule Import Data'!T:T,'C Schedule Import Data'!$A:$A,$L$3,'C Schedule Import Data'!$B:$B,$L158) -> 0 | E158: 0 | F158: =SUMIFS('C Schedule Import Data'!W:W,'C Schedule Import Data'!$A:$A,$L$3,'C Schedule Import Data'!$B:$B,$L158) -> 0 | G158: =SUMIFS('C Schedule Import Data'!X:X,'C Schedule Import Data'!$A:$A,$L$3,'C Schedule Import Data'!$B:$B,$L158) -> 0 | H158: 0 | I158: 0 | K158: 0 | L158: 2107 EXP
A159: Cultural Matters | C159: =SUMIFS('C Schedule Import Data'!T:T,'C Schedule Import Data'!$A:$A,$L$3,'C Schedule Import Data'!$B:$B,$L159) -> 0 | E159: 0 | F159: =SUMIFS('C Schedule Import Data'!W:W,'C Schedule Import Data'!$A:$A,$L$3,'C Schedule Import Data'!$B:$B,$L159) -> 0 | G159: =SUMIFS('C Schedule Import Data'!X:X,'C Schedule Import Data'!$A:$A,$L$3,'C Schedule Import Data'!$B:$B,$L159) -> 0 | H159: 0 | I159: =G159-H159 -> 0 | J159: =IF(I159=0,"",I159/H159) ->  | K159: 0 | L159: 2108 EXP
A160: Disaster Management | C160: =SUMIFS('C Schedule Import Data'!T:T,'C Schedule Import Data'!$A:$A,$L$3,'C Schedule Import Data'!$B:$B,$L160) -> 0 | E160: 0 | F160: =SUMIFS('C Schedule Import Data'!W:W,'C Schedule Import Data'!$A:$A,$L$3,'C Schedule Import Data'!$B:$B,$L160) -> 0 | G160: =SUMIFS('C Schedule Import Data'!X:X,'C Schedule Import Data'!$A:$A,$L$3,'C Schedule Import Data'!$B:$B,$L160) -> 0 | H160: 0 | I160: =G160-H160 -> 0 | J160: =IF(I160=0,"",I160/H160) ->  | K160: 0 | L160: 2109 EXP
A161: Education | C161: =SUMIFS('C Schedule Import Data'!T:T,'C Schedule Import Data'!$A:$A,$L$3,'C Schedule Import Data'!$B:$B,$L161) -> 0 | E161: 0 | F161: =SUMIFS('C Schedule Import Data'!W:W,'C Schedule Import Data'!$A:$A,$L$3,'C Schedule Import Data'!$B:$B,$L161) -> 0 | G161: =SUMIFS('C Schedule Import Data'!X:X,'C Schedule Import Data'!$A:$A,$L$3,'C Schedule Import Data'!$B:$B,$L161) -> 0 | H161: 0 | I161: =G161-H161 -> 0 | J161: =IF(I161=0,"",I161/H161) ->  | K161: 0 | L161: 2110 EXP
A162: Indigenous and Customary Law | C162: =SUMIFS('C Schedule Import Data'!T:T,'C Schedule Import Data'!$A:$A,$L$3,'C Schedule Import Data'!$B:$B,$L162) -> 0 | E162: 0 | F162: =SUMIFS('C Schedule Import Data'!W:W,'C Schedule Import Data'!$A:$A,$L$3,'C Schedule Import Data'!$B:$B,$L162) -> 0 | G162: =SUMIFS('C Schedule Import Data'!X:X,'C Schedule Import Data'!$A:$A,$L$3,'C Schedule Import Data'!$B:$B,$L162) -> 0 | H162: 0 | I162: 0 | K162: 0 | L162: 2111 EXP
A163: Industrial Promotion | C163: =SUMIFS('C Schedule Import Data'!T:T,'C Schedule Import Data'!$A:$A,$L$3,'C Schedule Import Data'!$B:$B,$L163) -> 0 | E163: 0 | F163: =SUMIFS('C Schedule Import Data'!W:W,'C Schedule Import Data'!$A:$A,$L$3,'C Schedule Import Data'!$B:$B,$L163) -> 0 | G163: =SUMIFS('C Schedule Import Data'!X:X,'C Schedule Import Data'!$A:$A,$L$3,'C Schedule Import Data'!$B:$B,$L163) -> 0 | H163: 0 | I163: 0 | K163: 0 | L163: 2112 EXP
A164: Language Policy | C164: =SUMIFS('C Schedule Import Data'!T:T,'C Schedule Import Data'!$A:$A,$L$3,'C Schedule Import Data'!$B:$B,$L164) -> 0 | E164: 0 | F164: =SUMIFS('C Schedule Import Data'!W:W,'C Schedule Import Data'!$A:$A,$L$3,'C Schedule Import Data'!$B:$B,$L164) -> 0 | G164: =SUMIFS('C Schedule Import Data'!X:X,'C Schedule Import Data'!$A:$A,$L$3,'C Schedule Import Data'!$B:$B,$L164) -> 0 | H164: 0 | I164: 0 | K164: 0 | L164: 2113 EXP
A165: Libraries and Archives | C165: =SUMIFS('C Schedule Import Data'!T:T,'C Schedule Import Data'!$A:$A,$L$3,'C Schedule Import Data'!$B:$B,$L165) -> 0 | D165: 2309950 | E165: 2309950 | F165: =SUMIFS('C Schedule Import Data'!W:W,'C Schedule Import Data'!$A:$A,$L$3,'C Schedule Import Data'!$B:$B,$L165) -> 0 | G165: 716142.38 | H165: 1154975 | I165: -438832.62 | J165: -0.3799498864 | K165: 2309950 | L165: 2114 EXP
A166: Literacy Programmes | C166: =SUMIFS('C Schedule Import Data'!T:T,'C Schedule Import Data'!$A:$A,$L$3,'C Schedule Import Data'!$B:$B,$L166) -> 0 | E166: 0 | F166: =SUMIFS('C Schedule Import Data'!W:W,'C Schedule Import Data'!$A:$A,$L$3,'C Schedule Import Data'!$B:$B,$L166) -> 0 | G166: =SUMIFS('C Schedule Import Data'!X:X,'C Schedule Import Data'!$A:$A,$L$3,'C Schedule Import Data'!$B:$B,$L166) -> 0 | H166: 0 | I166: 0 | K166: 0 | L166: 2115 EXP
A167: Media Services | C167: =SUMIFS('C Schedule Import Data'!T:T,'C Schedule Import Data'!$A:$A,$L$3,'C Schedule Import Data'!$B:$B,$L167) -> 0 | E167: 0 | F167: =SUMIFS('C Schedule Import Data'!W:W,'C Schedule Import Data'!$A:$A,$L$3,'C Schedule Import Data'!$B:$B,$L167) -> 0 | G167: =SUMIFS('C Schedule Import Data'!X:X,'C Schedule Import Data'!$A:$A,$L$3,'C Schedule Import Data'!$B:$B,$L167) -> 0 | H167: 0 | I167: 0 | K167: 0 | L167: 2116 EXP
A168: Museums and Art Galleries | C168: =SUMIFS('C Schedule Import Data'!T:T,'C Schedule Import Data'!$A:$A,$L$3,'C Schedule Import Data'!$B:$B,$L168) -> 0 | E168: 0 | F168: =SUMIFS('C Schedule Import Data'!W:W,'C Schedule Import Data'!$A:$A,$L$3,'C Schedule Import Data'!$B:$B,$L168) -> 0 | G168: =SUMIFS('C Schedule Import Data'!X:X,'C Schedule Import Data'!$A:$A,$L$3,'C Schedule Import Data'!$B:$B,$L168) -> 0 | H168: 0 | I168: 0 | K168: 0 | L168: 2117 EXP
A169: Population Development | C169: =SUMIFS('C Schedule Import Data'!T:T,'C Schedule Import Data'!$A:$A,$L$3,'C Schedule Import Data'!$B:$B,$L169) -> 0 | E169: 0 | F169: =SUMIFS('C Schedule Import Data'!W:W,'C Schedule Import Data'!$A:$A,$L$3,'C Schedule Import Data'!$B:$B,$L169) -> 0 | G169: =SUMIFS('C Schedule Import Data'!X:X,'C Schedule Import Data'!$A:$A,$L$3,'C Schedule Import Data'!$B:$B,$L169) -> 0 | H169: 0 | I169: 0 | K169: 0 | L169: 2118 EXP
A170: Provincial Cultural Matters | C170: =SUMIFS('C Schedule Import Data'!T:T,'C Schedule Import Data'!$A:$A,$L$3,'C Schedule Import Data'!$B:$B,$L170) -> 0 | D170: 6708101.921 | E170: 6708101.921 | F170: =SUMIFS('C Schedule Import Data'!W:W,'C Schedule Import Data'!$A:$A,$L$3,'C Schedule Import Data'!$B:$B,$L170) -> 0 | G170: 3651455.73 | H170: 3354050.96 | I170: 297404.77 | J170: 0.08867031942 | K170: 6708101.921 | L170: 2119 EXP
A171: Theatres | C171: =SUMIFS('C Schedule Import Data'!T:T,'C Schedule Import Data'!$A:$A,$L$3,'C Schedule Import Data'!$B:$B,$L171) -> 0 | E171: 0 | F171: =SUMIFS('C Schedule Import Data'!W:W,'C Schedule Import Data'!$A:$A,$L$3,'C Schedule Import Data'!$B:$B,$L171) -> 0 | G171: =SUMIFS('C Schedule Import Data'!X:X,'C Schedule Import Data'!$A:$A,$L$3,'C Schedule Import Data'!$B:$B,$L171) -> 0 | H171: 0 | I171: 0 | K171: 0 | L171: 2120 EXP
A172: Zoo's | C172: =SUMIFS('C Schedule Import Data'!T:T,'C Schedule Import Data'!$A:$A,$L$3,'C Schedule Import Data'!$B:$B,$L172) -> 0 | E172: 0 | F172: =SUMIFS('C Schedule Import Data'!W:W,'C Schedule Import Data'!$A:$A,$L$3,'C Schedule Import Data'!$B:$B,$L172) -> 0 | G172: =SUMIFS('C Schedule Import Data'!X:X,'C Schedule Import Data'!$A:$A,$L$3,'C Schedule Import Data'!$B:$B,$L172) -> 0 | H172: 0 | I172: 0 | K172: 0 | L172: 2121 EXP
A173: =A50 -> Sport and recreation | C173: =SUM(C174:C178) -> 0 | D173: 722735 | E173: 722735 | F173: 0 | G173: 409820.84 | H173: 361367.5 | I173: =G173-H173 -> 48453.34 | J173: =IF(I173=0,"",I173/H173) -> 0.1340832809 | K173: =SUM(K174:K178) -> 722735 | L173: 2200 EXP
A174: Beaches and Jetties | C174: =SUMIFS('C Schedule Import Data'!T:T,'C Schedule Import Data'!$A:$A,$L$3,'C Schedule Import Data'!$B:$B,$L174) -> 0 | E174: =D174 -> 0 | F174: =SUMIFS('C Schedule Import Data'!W:W,'C Schedule Import Data'!$A:$A,$L$3,'C Schedule Import Data'!$B:$B,$L174) -> 0 | G174: =SUMIFS('C Schedule Import Data'!X:X,'C Schedule Import Data'!$A:$A,$L$3,'C Schedule Import Data'!$B:$B,$L174) -> 0 | H174: =D174/12*6 -> 0 | I174: 0 | K174: =D174 -> 0 | L174: 2201 EXP
A175: Casinos, Racing, Gambling, Wagering | C175: =SUMIFS('C Schedule Import Data'!T:T,'C Schedule Import Data'!$A:$A,$L$3,'C Schedule Import Data'!$B:$B,$L175) -> 0 | E175: 0 | F175: =SUMIFS('C Schedule Import Data'!W:W,'C Schedule Import Data'!$A:$A,$L$3,'C Schedule Import Data'!$B:$B,$L175) -> 0 | G175: =SUMIFS('C Schedule Import Data'!X:X,'C Schedule Import Data'!$A:$A,$L$3,'C Schedule Import Data'!$B:$B,$L175) -> 0 | H175: 0 | I175: 0 | K175: 0 | L175: 2202 EXP
A176: Community Parks (including Nurseries) | C176: =SUMIFS('C Schedule Import Data'!T:T,'C Schedule Import Data'!$A:$A,$L$3,'C Schedule Import Data'!$B:$B,$L176) -> 0 | E176: 0 | F176: =SUMIFS('C Schedule Import Data'!W:W,'C Schedule Import Data'!$A:$A,$L$3,'C Schedule Import Data'!$B:$B,$L176) -> 0 | G176: =SUMIFS('C Schedule Import Data'!X:X,'C Schedule Import Data'!$A:$A,$L$3,'C Schedule Import Data'!$B:$B,$L176) -> 0 | H176: 0 | I176: 0 | K176: 0 | L176: 2203 EXP
A177: Recreational Facilities | C177: =SUMIFS('C Schedule Import Data'!T:T,'C Schedule Import Data'!$A:$A,$L$3,'C Schedule Import Data'!$B:$B,$L177) -> 0 | D177: 722735 | E177: 722735 | F177: =SUMIFS('C Schedule Import Data'!W:W,'C Schedule Import Data'!$A:$A,$L$3,'C Schedule Import Data'!$B:$B,$L177) -> 0 | G177: 409820.84 | H177: 361367.5 | I177: 48453.34 | J177: 0.1340832809 | K177: 722735 | L177: 2204 EXP
A178: Sports Grounds and Stadiums | C178: =SUMIFS('C Schedule Import Data'!T:T,'C Schedule Import Data'!$A:$A,$L$3,'C Schedule Import Data'!$B:$B,$L178) -> 0 | E178: 0 | F178: =SUMIFS('C Schedule Import Data'!W:W,'C Schedule Import Data'!$A:$A,$L$3,'C Schedule Import Data'!$B:$B,$L178) -> 0 | G178: =SUMIFS('C Schedule Import Data'!X:X,'C Schedule Import Data'!$A:$A,$L$3,'C Schedule Import Data'!$B:$B,$L178) -> 0 | H178: 0 | I178: 0 | K178: 0 | L178: 2205 EXP
A179: Public safety | C179: =SUM(C180:C185) -> 0 | D179: 13968206.81 | E179: 13968206.81 | F179: 0 | G179: 7221358.207 | H179: 6984103.407 | I179: 237254.8 | J179: 0.03397068832 | K179: =SUM(K180:K185) -> 13968206.81 | L179: 2300 EXP
A180: Civil Defence | C180: =SUMIFS('C Schedule Import Data'!T:T,'C Schedule Import Data'!$A:$A,$L$3,'C Schedule Import Data'!$B:$B,$L180) -> 0 | D180: 7376467.21 | E180: =D180 -> 7376467.21 | F180: =SUMIFS('C Schedule Import Data'!W:W,'C Schedule Import Data'!$A:$A,$L$3,'C Schedule Import Data'!$B:$B,$L180) -> 0 | G180: 3811708.255 | H180: =D180/12*6 -> 3688233.605 | I180: 123474.65 | J180: 0.03347799061 | K180: =D180 -> 7376467.21 | L180: 2301 EXP
A181: Cleansing | C181: =SUMIFS('C Schedule Import Data'!T:T,'C Schedule Import Data'!$A:$A,$L$3,'C Schedule Import Data'!$B:$B,$L181) -> 0 | E181: 0 | F181: =SUMIFS('C Schedule Import Data'!W:W,'C Schedule Import Data'!$A:$A,$L$3,'C Schedule Import Data'!$B:$B,$L181) -> 0 | G181: =SUMIFS('C Schedule Import Data'!X:X,'C Schedule Import Data'!$A:$A,$L$3,'C Schedule Import Data'!$B:$B,$L181) -> 0 | H181: 0 | I181: 0 | K181: 0 | L181: 2302 EXP
A182: =A59 -> Control of Public Nuisances | C182: =SUMIFS('C Schedule Import Data'!T:T,'C Schedule Import Data'!$A:$A,$L$3,'C Schedule Import Data'!$B:$B,$L182) -> 0 | E182: 0 | F182: =SUMIFS('C Schedule Import Data'!W:W,'C Schedule Import Data'!$A:$A,$L$3,'C Schedule Import Data'!$B:$B,$L182) -> 0 | G182: =SUMIFS('C Schedule Import Data'!X:X,'C Schedule Import Data'!$A:$A,$L$3,'C Schedule Import Data'!$B:$B,$L182) -> 0 | H182: 0 | I182: =G182-H182 -> 0 | J182: =IF(I182=0,"",I182/H182) ->  | K182: 0 | L182: 2303 EXP
A183: Fencing and Fences | C183: =SUMIFS('C Schedule Import Data'!T:T,'C Schedule Import Data'!$A:$A,$L$3,'C Schedule Import Data'!$B:$B,$L183) -> 0 | D183: 6591739.603 | E183: 6591739.603 | F183: =SUMIFS('C Schedule Import Data'!W:W,'C Schedule Import Data'!$A:$A,$L$3,'C Schedule Import Data'!$B:$B,$L183) -> 0 | G183: 3409649.952 | H183: 3295869.802 | I183: 113780.15 | J183: 0.03452204027 | K183: 6591739.603 | L183: 2304 EXP
A184: Fire Fighting and Protection | C184: =SUMIFS('C Schedule Import Data'!T:T,'C Schedule Import Data'!$A:$A,$L$3,'C Schedule Import Data'!$B:$B,$L184) -> 0 | E184: 0 | F184: =SUMIFS('C Schedule Import Data'!W:W,'C Schedule Import Data'!$A:$A,$L$3,'C Schedule Import Data'!$B:$B,$L184) -> 0 | G184: =SUMIFS('C Schedule Import Data'!X:X,'C Schedule Import Data'!$A:$A,$L$3,'C Schedule Import Data'!$B:$B,$L184) -> 0 | H184: 0 | I184: 0 | K184: 0 | L184: 2305 EXP
A185: Licensing and Control of Animals | C185: =SUMIFS('C Schedule Import Data'!T:T,'C Schedule Import Data'!$A:$A,$L$3,'C Schedule Import Data'!$B:$B,$L185) -> 0 | D185: =SUMIFS('C Schedule Import Data'!U:U,'C Schedule Import Data'!$A:$A,$L$3,'C Schedule Import Data'!$B:$B,$L185) -> 0 | E185: 0 | F185: =SUMIFS('C Schedule Import Data'!W:W,'C Schedule Import Data'!$A:$A,$L$3,'C Schedule Import Data'!$B:$B,$L185) -> 0 | G185: =SUMIFS('C Schedule Import Data'!X:X,'C Schedule Import Data'!$A:$A,$L$3,'C Schedule Import Data'!$B:$B,$L185) -> 0 | H185: 0 | I185: 0 | K185: 0 | L185: 2306 EXP
A186: Housing | C186: =SUM(C187:C188) -> 0 | D186: 1264761.362 | E186: 1264761.362 | F186: 0 | G186: 588105.6808 | H186: 632380.6808 | I186: =G186-H186 -> -44275 | J186: =IF(I186=0,"",I186/H186) -> -0.07001320778 | K186: =SUM(K187:K188) -> 1264761.362 | L186: 2400 EXP
A187: Housing | C187: =SUMIFS('C Schedule Import Data'!T:T,'C Schedule Import Data'!$A:$A,$L$3,'C Schedule Import Data'!$B:$B,$L187) -> 0 | D187: 1264761.362 | E187: =D187 -> 1264761.362 | F187: =SUMIFS('C Schedule Import Data'!W:W,'C Schedule Import Data'!$A:$A,$L$3,'C Schedule Import Data'!$B:$B,$L187) -> 0 | G187: 588105.6808 | H187: =D187/12*6 -> 632380.6808 | I187: =G187-H187 -> -44275 | J187: =IF(I187=0,"",I187/H187) -> -0.07001320778 | K187: =D187 -> 1264761.362 | L187: 2401 EXP
A188: Informal Settlements | C188: =SUMIFS('C Schedule Import Data'!T:T,'C Schedule Import Data'!$A:$A,$L$3,'C Schedule Import Data'!$B:$B,$L188) -> 0 | D188: =SUMIFS('C Schedule Import Data'!U:U,'C Schedule Import Data'!$A:$A,$L$3,'C Schedule Import Data'!$B:$B,$L188) -> 0 | E188: 0 | F188: =SUMIFS('C Schedule Import Data'!W:W,'C Schedule Import Data'!$A:$A,$L$3,'C Schedule Import Data'!$B:$B,$L188) -> 0 | G188: =SUMIFS('C Schedule Import Data'!X:X,'C Schedule Import Data'!$A:$A,$L$3,'C Schedule Import Data'!$B:$B,$L188) -> 0 | H188: 0 | I188: =G188-H188 -> 0 | J188: =IF(I188=0,"",I188/H188) ->  | K188: 0 | L188: 2402 EXP
A189: Health | C189: =SUM(C190:C196) -> 0 | D189: 0 | E189: 0 | F189: 0 | G189: 0 | H189: 0 | I189: 0 | K189: =SUM(K190:K196) -> 0 | L189: 2500 EXP
A190: =A67 -> Ambulance | C190: =SUMIFS('C Schedule Import Data'!T:T,'C Schedule Import Data'!$A:$A,$L$3,'C Schedule Import Data'!$B:$B,$L190) -> 0 | D190: =SUMIFS('C Schedule Import Data'!U:U,'C Schedule Import Data'!$A:$A,$L$3,'C Schedule Import Data'!$B:$B,$L190) -> 0 | E190: =SUMIFS('C Schedule Import Data'!V:V,'C Schedule Import Data'!$A:$A,$L$3,'C Schedule Import Data'!$B:$B,$L190) -> 0 | F190: =SUMIFS('C Schedule Import Data'!W:W,'C Schedule Import Data'!$A:$A,$L$3,'C Schedule Import Data'!$B:$B,$L190) -> 0 | G190: =SUMIFS('C Schedule Import Data'!X:X,'C Schedule Import Data'!$A:$A,$L$3,'C Schedule Import Data'!$B:$B,$L190) -> 0 | H190: =SUMIFS('C Schedule Import Data'!Y:Y,'C Schedule Import Data'!$A:$A,$L$3,'C Schedule Import Data'!$B:$B,$L190) -> 0 | I190: 0 | K190: =SUMIFS('C Schedule Import Data'!Z:Z,'C Schedule Import Data'!$A:$A,$L$3,'C Schedule Import Data'!$B:$B,$L190) -> 0 | L190: 2501 EXP
A191: Health Services | C191: =SUMIFS('C Schedule Import Data'!T:T,'C Schedule Import Data'!$A:$A,$L$3,'C Schedule Import Data'!$B:$B,$L191) -> 0 | D191: =SUMIFS('C Schedule Import Data'!U:U,'C Schedule Import Data'!$A:$A,$L$3,'C Schedule Import Data'!$B:$B,$L191) -> 0 | E191: =SUMIFS('C Schedule Import Data'!V:V,'C Schedule Import Data'!$A:$A,$L$3,'C Schedule Import Data'!$B:$B,$L191) -> 0 | F191: =SUMIFS('C Schedule Import Data'!W:W,'C Schedule Import Data'!$A:$A,$L$3,'C Schedule Import Data'!$B:$B,$L191) -> 0 | G191: =SUMIFS('C Schedule Import Data'!X:X,'C Schedule Import Data'!$A:$A,$L$3,'C Schedule Import Data'!$B:$B,$L191) -> 0 | H191: =SUMIFS('C Schedule Import Data'!Y:Y,'C Schedule Import Data'!$A:$A,$L$3,'C Schedule Import Data'!$B:$B,$L191) -> 0 | I191: 0 | K191: =SUMIFS('C Schedule Import Data'!Z:Z,'C Schedule Import Data'!$A:$A,$L$3,'C Schedule Import Data'!$B:$B,$L191) -> 0 | L191: 2502 EXP
A192: Laboratory Services | C192: =SUMIFS('C Schedule Import Data'!T:T,'C Schedule Import Data'!$A:$A,$L$3,'C Schedule Import Data'!$B:$B,$L192) -> 0 | D192: =SUMIFS('C Schedule Import Data'!U:U,'C Schedule Import Data'!$A:$A,$L$3,'C Schedule Import Data'!$B:$B,$L192) -> 0 | E192: =SUMIFS('C Schedule Import Data'!V:V,'C Schedule Import Data'!$A:$A,$L$3,'C Schedule Import Data'!$B:$B,$L192) -> 0 | F192: =SUMIFS('C Schedule Import Data'!W:W,'C Schedule Import Data'!$A:$A,$L$3,'C Schedule Import Data'!$B:$B,$L192) -> 0 | G192: =SUMIFS('C Schedule Import Data'!X:X,'C Schedule Import Data'!$A:$A,$L$3,'C Schedule Import Data'!$B:$B,$L192) -> 0 | H192: =SUMIFS('C Schedule Import Data'!Y:Y,'C Schedule Import Data'!$A:$A,$L$3,'C Schedule Import Data'!$B:$B,$L192) -> 0 | I192: 0 | K192: =SUMIFS('C Schedule Import Data'!Z:Z,'C Schedule Import Data'!$A:$A,$L$3,'C Schedule Import Data'!$B:$B,$L192) -> 0 | L192: 2503 EXP
A193: Food Control | C193: =SUMIFS('C Schedule Import Data'!T:T,'C Schedule Import Data'!$A:$A,$L$3,'C Schedule Import Data'!$B:$B,$L193) -> 0 | D193: =SUMIFS('C Schedule Import Data'!U:U,'C Schedule Import Data'!$A:$A,$L$3,'C Schedule Import Data'!$B:$B,$L193) -> 0 | E193: =SUMIFS('C Schedule Import Data'!V:V,'C Schedule Import Data'!$A:$A,$L$3,'C Schedule Import Data'!$B:$B,$L193) -> 0 | F193: =SUMIFS('C Schedule Import Data'!W:W,'C Schedule Import Data'!$A:$A,$L$3,'C Schedule Import Data'!$B:$B,$L193) -> 0 | G193: =SUMIFS('C Schedule Import Data'!X:X,'C Schedule Import Data'!$A:$A,$L$3,'C Schedule Import Data'!$B:$B,$L193) -> 0 | H193: =SUMIFS('C Schedule Import Data'!Y:Y,'C Schedule Import Data'!$A:$A,$L$3,'C Schedule Import Data'!$B:$B,$L193) -> 0 | I193: =G193-H193 -> 0 | J193: =IF(I193=0,"",I193/H193) ->  | K193: =SUMIFS('C Schedule Import Data'!Z:Z,'C Schedule Import Data'!$A:$A,$L$3,'C Schedule Import Data'!$B:$B,$L193) -> 0 | L193: 2504 EXP
A194: Health Surveillance and Prevention of Communicable Diseases including immunizations | C194: =SUMIFS('C Schedule Import Data'!T:T,'C Schedule Import Data'!$A:$A,$L$3,'C Schedule Import Data'!$B:$B,$L194) -> 0 | D194: =SUMIFS('C Schedule Import Data'!U:U,'C Schedule Import Data'!$A:$A,$L$3,'C Schedule Import Data'!$B:$B,$L194) -> 0 | E194: =SUMIFS('C Schedule Import Data'!V:V,'C Schedule Import Data'!$A:$A,$L$3,'C Schedule Import Data'!$B:$B,$L194) -> 0 | F194: =SUMIFS('C Schedule Import Data'!W:W,'C Schedule Import Data'!$A:$A,$L$3,'C Schedule Import Data'!$B:$B,$L194) -> 0 | G194: =SUMIFS('C Schedule Import Data'!X:X,'C Schedule Import Data'!$A:$A,$L$3,'C Schedule Import Data'!$B:$B,$L194) -> 0 | H194: =SUMIFS('C Schedule Import Data'!Y:Y,'C Schedule Import Data'!$A:$A,$L$3,'C Schedule Import Data'!$B:$B,$L194) -> 0 | I194: =G194-H194 -> 0 | J194: =IF(I194=0,"",I194/H194) ->  | K194: =SUMIFS('C Schedule Import Data'!Z:Z,'C Schedule Import Data'!$A:$A,$L$3,'C Schedule Import Data'!$B:$B,$L194) -> 0 | L194: 2505 EXP
A195: Vector Control | C195: =SUMIFS('C Schedule Import Data'!T:T,'C Schedule Import Data'!$A:$A,$L$3,'C Schedule Import Data'!$B:$B,$L195) -> 0 | D195: =SUMIFS('C Schedule Import Data'!U:U,'C Schedule Import Data'!$A:$A,$L$3,'C Schedule Import Data'!$B:$B,$L195) -> 0 | E195: =SUMIFS('C Schedule Import Data'!V:V,'C Schedule Import Data'!$A:$A,$L$3,'C Schedule Import Data'!$B:$B,$L195) -> 0 | F195: =SUMIFS('C Schedule Import Data'!W:W,'C Schedule Import Data'!$A:$A,$L$3,'C Schedule Import Data'!$B:$B,$L195) -> 0 | G195: =SUMIFS('C Schedule Import Data'!X:X,'C Schedule Import Data'!$A:$A,$L$3,'C Schedule Import Data'!$B:$B,$L195) -> 0 | H195: =SUMIFS('C Schedule Import Data'!Y:Y,'C Schedule Import Data'!$A:$A,$L$3,'C Schedule Import Data'!$B:$B,$L195) -> 0 | I195: 0 | K195: =SUMIFS('C Schedule Import Data'!Z:Z,'C Schedule Import Data'!$A:$A,$L$3,'C Schedule Import Data'!$B:$B,$L195) -> 0 | L195: 2506 EXP
A196: Chemical Safety | C196: =SUMIFS('C Schedule Import Data'!T:T,'C Schedule Import Data'!$A:$A,$L$3,'C Schedule Import Data'!$B:$B,$L196) -> 0 | D196: =SUMIFS('C Schedule Import Data'!U:U,'C Schedule Import Data'!$A:$A,$L$3,'C Schedule Import Data'!$B:$B,$L196) -> 0 | E196: =SUMIFS('C Schedule Import Data'!V:V,'C Schedule Import Data'!$A:$A,$L$3,'C Schedule Import Data'!$B:$B,$L196) -> 0 | F196: =SUMIFS('C Schedule Import Data'!W:W,'C Schedule Import Data'!$A:$A,$L$3,'C Schedule Import Data'!$B:$B,$L196) -> 0 | G196: =SUMIFS('C Schedule Import Data'!X:X,'C Schedule Import Data'!$A:$A,$L$3,'C Schedule Import Data'!$B:$B,$L196) -> 0 | H196: =SUMIFS('C Schedule Import Data'!Y:Y,'C Schedule Import Data'!$A:$A,$L$3,'C Schedule Import Data'!$B:$B,$L196) -> 0 | I196: 0 | K196: =SUMIFS('C Schedule Import Data'!Z:Z,'C Schedule Import Data'!$A:$A,$L$3,'C Schedule Import Data'!$B:$B,$L196) -> 0 | L196: 2507 EXP
A197: Economic and environmental services | C197: =C198+C209+C216 -> 0 | D197: 23835041.81 | E197: 23835041.81 | F197: 0 | G197: 10581093.9 | H197: 11917520.9 | I197: -1336427 | J197: -0.1121396816 | K197: =K198+K209+K216 -> 23835041.81 | L197: 3000 EXP
A198: Planning and development | C198: =SUM(C199:C208) -> 0 | D198: 14616162.66 | E198: 14616162.66 | F198: 0 | G198: 6480599.618 | H198: 7308081.328 | I198: -827481.71 | J198: -0.1132283116 | K198: =SUM(K199:K208) -> 14616162.66 | L198: 3100 EXP
A199: Billboards | C199: =SUMIFS('C Schedule Import Data'!T:T,'C Schedule Import Data'!$A:$A,$L$3,'C Schedule Import Data'!$B:$B,$L199) -> 0 | E199: =D199 -> 0 | F199: =SUMIFS('C Schedule Import Data'!W:W,'C Schedule Import Data'!$A:$A,$L$3,'C Schedule Import Data'!$B:$B,$L199) -> 0 | G199: =SUMIFS('C Schedule Import Data'!X:X,'C Schedule Import Data'!$A:$A,$L$3,'C Schedule Import Data'!$B:$B,$L199) -> 0 | H199: =D199/12*6 -> 0 | I199: 0 | K199: =D199 -> 0 | L199: 3101 EXP
A200: Corporate Wide Strategic Planning (IDPs, LEDs) | C200: =SUMIFS('C Schedule Import Data'!T:T,'C Schedule Import Data'!$A:$A,$L$3,'C Schedule Import Data'!$B:$B,$L200) -> 0 | E200: 0 | F200: =SUMIFS('C Schedule Import Data'!W:W,'C Schedule Import Data'!$A:$A,$L$3,'C Schedule Import Data'!$B:$B,$L200) -> 0 | G200: =SUMIFS('C Schedule Import Data'!X:X,'C Schedule Import Data'!$A:$A,$L$3,'C Schedule Import Data'!$B:$B,$L200) -> 0 | H200: 0 | I200: 0 | K200: 0 | L200: 3102 EXP
A201: Central City Improvement District | C201: =SUMIFS('C Schedule Import Data'!T:T,'C Schedule Import Data'!$A:$A,$L$3,'C Schedule Import Data'!$B:$B,$L201) -> 0 | E201: 0 | F201: =SUMIFS('C Schedule Import Data'!W:W,'C Schedule Import Data'!$A:$A,$L$3,'C Schedule Import Data'!$B:$B,$L201) -> 0 | G201: =SUMIFS('C Schedule Import Data'!X:X,'C Schedule Import Data'!$A:$A,$L$3,'C Schedule Import Data'!$B:$B,$L201) -> 0 | H201: 0 | I201: 0 | K201: 0 | L201: 3103 EXP
... 56 more rows

Sheet C3-FinPerf V
A1: =muni& " - "&S71C& " - "&date -> KZN434 Ubuhlebezwe - Table C3 Monthly Budget Statement - Financial Performance (revenue and expenditure by municipal vote) - Mid-Year Assessment
A2: =Vdesc -> Vote Description | B2: =head27 -> Ref | C2: =Head1 -> 2016/17 | D2: =Head2 -> Budget Year 2017/18
C3: =Head5 -> Audited Outcome | D3: =Head6 -> Original Budget | E3: =Head7 -> Adjusted Budget | F3: =Head38 -> Monthly actual | G3: =Head39 -> YearTD actual | H3: =Head40 -> YearTD budget | I3: =Head41 -> YTD variance | J3: =Head41 -> YTD variance | K3: =Head8 -> Full Year Forecast
A4: R thousands | J4: %
A5: Revenue by Vote | B5: 1
A6: ='Org structure'!A2 -> Vote 1 - EXECUTIVE & COUNCIL | C6: ='C3C'!C6 -> 0 | D6: ='C3C'!D6 -> 0 | E6: ='C3C'!E6 -> 0 | F6: ='C3C'!F6 -> 0 | G6: ='C3C'!G6 -> 0 | H6: ='C3C'!H6 -> 0 | I6: =G6-H6 -> 0 | J6: =IF(I6=0,"",I6/H6) ->  | K6: ='C3C'!K6 -> 0
A7: ='Org structure'!A3 -> Vote 2 - BUDGET & TREASURY | C7: ='C3C'!C17 -> 0 | D7: ='C3C'!D17 -> 120181822 | E7: ='C3C'!E17 -> 120181822 | F7: ='C3C'!F17 -> 34290517.74 | G7: ='C3C'!G17 -> 83975457.37 | H7: ='C3C'!H17 -> 60090911 | I7: =G7-H7 -> 23884546.37 | J7: =IF(I7=0,"",I7/H7) -> 0.3974735276 | K7: ='C3C'!K17 -> 120181822
A8: ='Org structure'!A4 -> Vote 3 - CORPORATE SERVCES | C8: ='C3C'!C28 -> 0 | D8: ='C3C'!D28 -> 5250000 | E8: ='C3C'!E28 -> 5250000 | F8: ='C3C'!F28 -> -9164.13 | G8: ='C3C'!G28 -> 419363.75 | H8: ='C3C'!H28 -> 2625000 | I8: -2205636.25 | J8: -0.840242381 | K8: ='C3C'!K28 -> 5250000
A9: ='Org structure'!A5 -> Vote 4 - COMMUNITY & SOCIAL SERVICES | C9: ='C3C'!C39 -> 0 | D9: ='C3C'!D39 -> 3045211 | E9: ='C3C'!E39 -> 3045211 | F9: ='C3C'!F39 -> 92761.84 | G9: ='C3C'!G39 -> 2109250.02 | H9: ='C3C'!H39 -> 1522605.5 | I9: 586644.52 | J9: 0.3852898995 | K9: ='C3C'!K39 -> 3045211
A10: ='Org structure'!A6 -> Vote 5 - SPORT & RECREATION/PARKS | C10: ='C3C'!C50 -> 0 | D10: ='C3C'!D50 -> 0 | E10: ='C3C'!E50 -> 0 | F10: ='C3C'!F50 -> 0 | G10: ='C3C'!G50 -> 0 | H10: ='C3C'!H50 -> 0 | I10: 0 | K10: ='C3C'!K50 -> 0
A11: ='Org structure'!A7 -> Vote 6 - PUBLIC SAFETY | C11: ='C3C'!C61 -> 0 | D11: ='C3C'!D61 -> 3875000 | E11: ='C3C'!E61 -> 3875000 | F11: ='C3C'!F61 -> 188301.28 | G11: ='C3C'!G61 -> 1301978.98 | H11: ='C3C'!H61 -> 1937500 | I11: -635521.02 | J11: -0.328010849 | K11: ='C3C'!K61 -> 3875000
A12: ='Org structure'!A8 -> Vote 7 - HOUSING | C12: ='C3C'!C72 -> 0 | D12: ='C3C'!D72 -> 0 | E12: ='C3C'!E72 -> 0 | F12: ='C3C'!F72 -> 0 | G12: ='C3C'!G72 -> 0 | H12: ='C3C'!H72 -> 0 | I12: 0 | K12: ='C3C'!K72 -> 0
A13: ='Org structure'!A9 -> Vote 8 - INFRASTRUCTURE, PLANNING & DEVELOPMENT | C13: ='C3C'!C83 -> 0 | D13: ='C3C'!D83 -> 135000 | E13: ='C3C'!E83 -> 135000 | F13: ='C3C'!F83 -> 4614.5 | G13: ='C3C'!G83 -> 30479.74 | H13: ='C3C'!H83 -> 67500 | I13: -37020.26 | J13: -0.5484482963 | K13: ='C3C'!K83 -> 135000
A14: ='Org structure'!A10 -> Vote 9 - ROADS TRANSPORT | C14: ='C3C'!C94 -> 0 | D14: ='C3C'!D94 -> 49694052 | E14: ='C3C'!E94 -> 49694052 | F14: ='C3C'!F94 -> 6617429.13 | G14: ='C3C'!G94 -> 25458118.41 | H14: ='C3C'!H94 -> 24847026 | I14: 611092.41 | J14: 0.02459418725 | K14: ='C3C'!K94 -> 49694052
A15: ='Org structure'!A11 -> Vote 10 - [NAME OF VOTE 10] | C15: ='C3C'!C105 -> 0 | D15: ='C3C'!D105 -> 0 | E15: ='C3C'!E105 -> 0 | F15: ='C3C'!F105 -> 0 | G15: ='C3C'!G105 -> 0 | H15: ='C3C'!H105 -> 0 | I15: 0 | K15: ='C3C'!K105 -> 0
A16: ='Org structure'!A12 -> Vote 11 - [NAME OF VOTE 11] | C16: ='C3C'!C116 -> 0 | D16: ='C3C'!D116 -> 0 | E16: ='C3C'!E116 -> 0 | F16: ='C3C'!F116 -> 0 | G16: ='C3C'!G116 -> 0 | H16: ='C3C'!H116 -> 0 | I16: 0 | K16: ='C3C'!K116 -> 0
A17: ='Org structure'!A13 -> Vote 12 - [NAME OF VOTE 12] | C17: ='C3C'!C127 -> 0 | D17: ='C3C'!D127 -> 0 | E17: ='C3C'!E127 -> 0 | F17: ='C3C'!F127 -> 0 | G17: ='C3C'!G127 -> 0 | H17: ='C3C'!H127 -> 0 | I17: 0 | K17: ='C3C'!K127 -> 0
A18: ='Org structure'!A14 -> Vote 13 - [NAME OF VOTE 13] | C18: ='C3C'!C138 -> 0 | D18: ='C3C'!D138 -> 0 | E18: ='C3C'!E138 -> 0 | F18: ='C3C'!F138 -> 0 | G18: ='C3C'!G138 -> 0 | H18: ='C3C'!H138 -> 0 | I18: 0 | K18: ='C3C'!K138 -> 0
A19: ='Org structure'!A15 -> Vote 14 - [NAME OF VOTE 14] | C19: ='C3C'!C149 -> 0 | D19: ='C3C'!D149 -> 0 | E19: ='C3C'!E149 -> 0 | F19: ='C3C'!F149 -> 0 | G19: ='C3C'!G149 -> 0 | H19: ='C3C'!H149 -> 0 | I19: 0 | K19: ='C3C'!K149 -> 0
A20: ='Org structure'!A16 -> Vote 15 - [NAME OF VOTE 15] | C20: ='C3C'!C160 -> 0 | D20: ='C3C'!D160 -> 0 | E20: ='C3C'!E160 -> 0 | F20: ='C3C'!F160 -> 0 | G20: ='C3C'!G160 -> 0 | H20: ='C3C'!H160 -> 0 | I20: 0 | K20: ='C3C'!K160 -> 0
A21: Total Revenue by Vote | B21: 2 | C21: =SUM(C6:C20) -> 0 | D21: =SUM(D6:D20) -> 182181085 | E21: 182181085 | F21: 41184460.36 | G21: 113294648.3 | H21: 91090542.5 | I21: 22204105.77 | J21: 0.2437586292 | K21: =SUM(K6:K20) -> 182181085
A23: Expenditure by Vote | B23: 1
A24: ='Org structure'!A2 -> Vote 1 - EXECUTIVE & COUNCIL | C24: ='C3C'!C174 -> 0 | D24: ='C3C'!D174 -> 23930097.19 | E24: ='C3C'!E174 -> 23930097.19 | F24: ='C3C'!F174 -> 0 | G24: ='C3C'!G174 -> 10219799.73 | H24: ='C3C'!H174 -> 11965048.59 | I24: =G24-H24 -> -1745248.86 | J24: =IF(I24=0,"",I24/H24) -> -0.1458622459 | K24: ='C3C'!K174 -> 23930097.19
A25: ='Org structure'!A3 -> Vote 2 - BUDGET & TREASURY | C25: ='C3C'!C185 -> 0 | D25: ='C3C'!D185 -> 37268818.77 | E25: ='C3C'!E185 -> 37268818.77 | F25: ='C3C'!F185 -> 0 | G25: ='C3C'!G185 -> 17115935.93 | H25: ='C3C'!H185 -> 18634409.39 | I25: -1518473.46 | J25: -0.08148760867 | K25: ='C3C'!K185 -> 37268818.77
A26: ='Org structure'!A4 -> Vote 3 - CORPORATE SERVCES | C26: ='C3C'!C196 -> 0 | D26: ='C3C'!D196 -> 24248234.94 | E26: ='C3C'!E196 -> 24248234.94 | F26: ='C3C'!F196 -> 0 | G26: ='C3C'!G196 -> 10595832.96 | H26: ='C3C'!H196 -> 12124117.47 | I26: -1528284.51 | J26: -0.1260532582 | K26: ='C3C'!K196 -> 24248234.94
A27: ='Org structure'!A5 -> Vote 4 - COMMUNITY & SOCIAL SERVICES | C27: ='C3C'!C207 -> 0 | D27: ='C3C'!D207 -> 19845827.65 | E27: ='C3C'!E207 -> 19845827.65 | F27: ='C3C'!F207 -> 0 | G27: ='C3C'!G207 -> 9416166.977 | H27: ='C3C'!H207 -> 9922913.825 | I27: -506746.8484 | J27: -0.05106835122 | K27: ='C3C'!K207 -> 19845827.65
A28: ='Org structure'!A6 -> Vote 5 - SPORT & RECREATION/PARKS | C28: ='C3C'!C218 -> 0 | D28: ='C3C'!D218 -> 722735 | E28: ='C3C'!E218 -> 722735 | F28: ='C3C'!F218 -> 0 | G28: ='C3C'!G218 -> 409820.84 | H28: ='C3C'!H218 -> 361367.5 | I28: 48453.34 | J28: 0.1340832809 | K28: ='C3C'!K218 -> 722735
A29: ='Org structure'!A7 -> Vote 6 - PUBLIC SAFETY | C29: ='C3C'!C229 -> 0 | D29: ='C3C'!D229 -> 13968206.81 | E29: ='C3C'!E229 -> 13968206.81 | F29: ='C3C'!F229 -> 290505 | G29: ='C3C'!G229 -> 7221358.207 | H29: ='C3C'!H229 -> 6984103.405 | I29: 237254.8017 | J29: 0.03397068857 | K29: ='C3C'!K229 -> 13968206.81
A30: ='Org structure'!A8 -> Vote 7 - HOUSING | C30: ='C3C'!C240 -> 0 | D30: ='C3C'!D240 -> 1264761.37 | E30: ='C3C'!E240 -> 1264761.37 | F30: ='C3C'!F240 -> 547896 | G30: ='C3C'!G240 -> 588105.6808 | H30: ='C3C'!H240 -> 632380.685 | I30: -44275.00423 | J30: =IF(I30=0,"",I30/H30) -> -0.07001321401 | K30: ='C3C'!K240 -> 1264761.37
A31: ='Org structure'!A9 -> Vote 8 - INFRASTRUCTURE, PLANNING & DEVELOPMENT | C31: ='C3C'!C251 -> 0 | D31: ='C3C'!D251 -> 7790882.81 | E31: ='C3C'!E251 -> 7790882.81 | F31: ='C3C'!F251 -> 547862 | G31: ='C3C'!G251 -> 3140834.436 | H31: ='C3C'!H251 -> 3895441.405 | I31: -754606.9692 | J31: -0.1937153947 | K31: ='C3C'!K251 -> 7790882.81
A32: ='Org structure'!A10 -> Vote 9 - ROADS TRANSPORT | C32: ='C3C'!C262 -> 0 | D32: ='C3C'!D262 -> 16044159 | E32: ='C3C'!E262 -> 16044159 | F32: ='C3C'!F262 -> 1056283 | G32: ='C3C'!G262 -> 7440259.468 | H32: ='C3C'!H262 -> 8022079.5 | I32: -581820.0318 | J32: -0.07252733307 | K32: ='C3C'!K262 -> 16044159
A33: ='Org structure'!A11 -> Vote 10 - [NAME OF VOTE 10] | C33: ='C3C'!C273 -> 0 | D33: ='C3C'!D273 -> 0 | E33: ='C3C'!E273 -> 0 | F33: ='C3C'!F273 -> 0 | G33: ='C3C'!G273 -> 0 | H33: ='C3C'!H273 -> 0 | I33: 0 | J33: =IF(I33=0,"",I33/H33) ->  | K33: ='C3C'!K273 -> 0
A34: ='Org structure'!A12 -> Vote 11 - [NAME OF VOTE 11] | C34: ='C3C'!C284 -> 0 | D34: ='C3C'!D284 -> 0 | E34: ='C3C'!E284 -> 0 | F34: ='C3C'!F284 -> 0 | G34: ='C3C'!G284 -> 0 | H34: ='C3C'!H284 -> 0 | I34: 0 | J34: =IF(I34=0,"",I34/H34) ->  | K34: ='C3C'!K284 -> 0
A35: ='Org structure'!A13 -> Vote 12 - [NAME OF VOTE 12] | C35: ='C3C'!C295 -> 0 | D35: ='C3C'!D295 -> 0 | E35: ='C3C'!E295 -> 0 | F35: ='C3C'!F295 -> 0 | G35: ='C3C'!G295 -> 0 | H35: ='C3C'!H295 -> 0 | I35: 0 | J35: =IF(I35=0,"",I35/H35) ->  | K35: ='C3C'!K295 -> 0
A36: ='Org structure'!A14 -> Vote 13 - [NAME OF VOTE 13] | C36: ='C3C'!C306 -> 0 | D36: ='C3C'!D306 -> 0 | E36: ='C3C'!E306 -> 0 | F36: ='C3C'!F306 -> 0 | G36: ='C3C'!G306 -> 0 | H36: ='C3C'!H306 -> 0 | I36: 0 | J36: =IF(I36=0,"",I36/H36) ->  | K36: ='C3C'!K306 -> 0
A37: ='Org structure'!A15 -> Vote 14 - [NAME OF VOTE 14] | C37: ='C3C'!C317 -> 0 | D37: ='C3C'!D317 -> 0 | E37: ='C3C'!E317 -> 0 | F37: ='C3C'!F317 -> 0 | G37: ='C3C'!G317 -> 0 | H37: ='C3C'!H317 -> 0 | I37: 0 | J37: =IF(I37=0,"",I37/H37) ->  | K37: ='C3C'!K317 -> 0
A38: ='Org structure'!A16 -> Vote 15 - [NAME OF VOTE 15] | C38: ='C3C'!C328 -> 0 | D38: ='C3C'!D328 -> 0 | E38: ='C3C'!E328 -> 0 | F38: ='C3C'!F328 -> 0 | G38: ='C3C'!G328 -> 0 | H38: ='C3C'!H328 -> 0 | I38: 0 | K38: ='C3C'!K328 -> 0
A39: Total Expenditure by Vote | B39: 2 | C39: =SUM(C24:C38) -> 0 | D39: =SUM(D24:D38) -> 145083723.5 | E39: 145083723.5 | F39: 2442546 | G39: 66148114.23 | H39: 72541861.77 | I39: -6393747.542 | J39: =IF(I39=0,"",I39/H39) -> -0.08813872963 | K39: =SUM(K24:K38) -> 145083723.5
A40: =result -> Surplus/ (Deficit) for the year | B40: 2 | C40: =C21-C39 -> 0 | D40: 37097361.46 | E40: 37097361.46 | F40: 38741914.36 | G40: 47146534.04 | H40: 18548680.73 | I40: =I21-I39 -> 28597853.31 | J40: =IF(I40=0,"",I40/H40) -> 1.541772902 | K40: =K21-K39 -> 37097361.46
A41: =head27a -> References
A42: 1. Insert 'Vote'; e.g. Department, if different to standard classification structure
A43: 2. Must reconcile to Monthly Budget Statement - Financial Performance Statement (standard classification)

Sheet C3C
A1: =muni& " - "&S71C& " - "&"A"& " - "&date -> KZN434 Ubuhlebezwe - Table C3 Monthly Budget Statement - Financial Performance (revenue and expenditure by municipal vote) - A - Mid-Year Assessment
A2: =Vdesc -> Vote Description | B2: =head27 -> Ref | C2: =Head1 -> 2016/17 | D2: =Head2 -> Budget Year 2017/18 | L2: =Head4 -> 
A3: R thousand | C3: =Head5 -> Audited Outcome | D3: =Head6 -> Original Budget | E3: =Head7 -> Adjusted Budget | F3: =Head38 -> Monthly actual | G3: =Head39 -> YearTD actual | H3: =Head40 -> YearTD budget | I3: =Head41 -> YTD variance | J3: =Head41 -> YTD variance | K3: =Head8 -> Full Year Forecast | L3: =Head12 -> Forecast 2010/11 | M3: =Head13 -> Forecast 2011/12 | N3: =Head14 -> Forecast 2012/13 | O3: =Head15 -> Forecast 2013/14 | P3: =Head16 -> Forecast 2014/15 | Q3: =Head17 -> Forecast 2015/16 | R3: =Head18 -> Forecast 2016/17 | S3: =Head19 -> Forecast 2017/18 | T3: =Head20 -> Forecast 2018/19 | U3: =Head21 -> Forecast 2019/20 | V3: =Head22 -> Forecast 2020/21 | W3: =Head23 -> Forecast 2021/22 | X3: C3C
J4: %
A5: Revenue by Vote | B5: 1
A6: ='Org structure'!A2 -> Vote 1 - EXECUTIVE & COUNCIL | C6: =SUM(C7:C16) -> 0 | D6: =SUM(D7:D16) -> 0 | E6: 0 | F6: 0 | G6: 0 | H6: 0 | I6: =G6-H6 -> 0 | J6: =IF(I6=0,"",I6/H6) ->  | K6: 0
A7: ='Org structure'!E3 -> 1.1 - Council | C7: =-SUMIFS('C Schedule Import Data'!T:T,'C Schedule Import Data'!$A:$A,$X$3,'C Schedule Import Data'!$B:$B,$X7) -> 0 | D7: =-SUMIFS('C Schedule Import Data'!U:U,'C Schedule Import Data'!$A:$A,$X$3,'C Schedule Import Data'!$B:$B,$X7) -> 0 | E7: =-SUMIFS('C Schedule Import Data'!V:V,'C Schedule Import Data'!$A:$A,$X$3,'C Schedule Import Data'!$B:$B,$X7) -> 0 | F7: =-SUMIFS('C Schedule Import Data'!W:W,'C Schedule Import Data'!$A:$A,$X$3,'C Schedule Import Data'!$B:$B,$X7) -> 0 | G7: =-SUMIFS('C Schedule Import Data'!X:X,'C Schedule Import Data'!$A:$A,$X$3,'C Schedule Import Data'!$B:$B,$X7) -> 0 | H7: =-SUMIFS('C Schedule Import Data'!Y:Y,'C Schedule Import Data'!$A:$A,$X$3,'C Schedule Import Data'!$B:$B,$X7) -> 0 | I7: =G7-H7 -> 0 | J7: =IF(I7=0,"",I7/H7) ->  | K7: =-SUMIFS('C Schedule Import Data'!Z:Z,'C Schedule Import Data'!$A:$A,$X$3,'C Schedule Import Data'!$B:$B,$X7) -> 0 | X7: 1.1 REV
A8: ='Org structure'!E4 -> 1.2 - Municipal Manager | C8: =-SUMIFS('C Schedule Import Data'!T:T,'C Schedule Import Data'!$A:$A,$X$3,'C Schedule Import Data'!$B:$B,$X8) -> 0 | D8: =-SUMIFS('C Schedule Import Data'!U:U,'C Schedule Import Data'!$A:$A,$X$3,'C Schedule Import Data'!$B:$B,$X8) -> 0 | E8: =-SUMIFS('C Schedule Import Data'!V:V,'C Schedule Import Data'!$A:$A,$X$3,'C Schedule Import Data'!$B:$B,$X8) -> 0 | F8: =-SUMIFS('C Schedule Import Data'!W:W,'C Schedule Import Data'!$A:$A,$X$3,'C Schedule Import Data'!$B:$B,$X8) -> 0 | G8: =-SUMIFS('C Schedule Import Data'!X:X,'C Schedule Import Data'!$A:$A,$X$3,'C Schedule Import Data'!$B:$B,$X8) -> 0 | H8: =-SUMIFS('C Schedule Import Data'!Y:Y,'C Schedule Import Data'!$A:$A,$X$3,'C Schedule Import Data'!$B:$B,$X8) -> 0 | I8: =G8-H8 -> 0 | J8: =IF(I8=0,"",I8/H8) ->  | K8: =-SUMIFS('C Schedule Import Data'!Z:Z,'C Schedule Import Data'!$A:$A,$X$3,'C Schedule Import Data'!$B:$B,$X8) -> 0 | X8: 1.2 REV
A9: ='Org structure'!E5 ->  | C9: =-SUMIFS('C Schedule Import Data'!T:T,'C Schedule Import Data'!$A:$A,$X$3,'C Schedule Import Data'!$B:$B,$X9) -> 0 | D9: =-SUMIFS('C Schedule Import Data'!U:U,'C Schedule Import Data'!$A:$A,$X$3,'C Schedule Import Data'!$B:$B,$X9) -> 0 | E9: =-SUMIFS('C Schedule Import Data'!V:V,'C Schedule Import Data'!$A:$A,$X$3,'C Schedule Import Data'!$B:$B,$X9) -> 0 | F9: =-SUMIFS('C Schedule Import Data'!W:W,'C Schedule Import Data'!$A:$A,$X$3,'C Schedule Import Data'!$B:$B,$X9) -> 0 | G9: =-SUMIFS('C Schedule Import Data'!X:X,'C Schedule Import Data'!$A:$A,$X$3,'C Schedule Import Data'!$B:$B,$X9) -> 0 | H9: =-SUMIFS('C Schedule Import Data'!Y:Y,'C Schedule Import Data'!$A:$A,$X$3,'C Schedule Import Data'!$B:$B,$X9) -> 0 | I9: 0 | K9: =-SUMIFS('C Schedule Import Data'!Z:Z,'C Schedule Import Data'!$A:$A,$X$3,'C Schedule Import Data'!$B:$B,$X9) -> 0 | X9: 1.3 REV
A10: ='Org structure'!E6 ->  | C10: =-SUMIFS('C Schedule Import Data'!T:T,'C Schedule Import Data'!$A:$A,$X$3,'C Schedule Import Data'!$B:$B,$X10) -> 0 | D10: =-SUMIFS('C Schedule Import Data'!U:U,'C Schedule Import Data'!$A:$A,$X$3,'C Schedule Import Data'!$B:$B,$X10) -> 0 | E10: =-SUMIFS('C Schedule Import Data'!V:V,'C Schedule Import Data'!$A:$A,$X$3,'C Schedule Import Data'!$B:$B,$X10) -> 0 | F10: =-SUMIFS('C Schedule Import Data'!W:W,'C Schedule Import Data'!$A:$A,$X$3,'C Schedule Import Data'!$B:$B,$X10) -> 0 | G10: =-SUMIFS('C Schedule Import Data'!X:X,'C Schedule Import Data'!$A:$A,$X$3,'C Schedule Import Data'!$B:$B,$X10) -> 0 | H10: =-SUMIFS('C Schedule Import Data'!Y:Y,'C Schedule Import Data'!$A:$A,$X$3,'C Schedule Import Data'!$B:$B,$X10) -> 0 | I10: 0 | K10: =-SUMIFS('C Schedule Import Data'!Z:Z,'C Schedule Import Data'!$A:$A,$X$3,'C Schedule Import Data'!$B:$B,$X10) -> 0 | X10: 1.4 REV
A11: ='Org structure'!E7 ->  | C11: =-SUMIFS('C Schedule Import Data'!T:T,'C Schedule Import Data'!$A:$A,$X$3,'C Schedule Import Data'!$B:$B,$X11) -> 0 | D11: =-SUMIFS('C Schedule Import Data'!U:U,'C Schedule Import Data'!$A:$A,$X$3,'C Schedule Import Data'!$B:$B,$X11) -> 0 | E11: =-SUMIFS('C Schedule Import Data'!V:V,'C Schedule Import Data'!$A:$A,$X$3,'C Schedule Import Data'!$B:$B,$X11) -> 0 | F11: =-SUMIFS('C Schedule Import Data'!W:W,'C Schedule Import Data'!$A:$A,$X$3,'C Schedule Import Data'!$B:$B,$X11) -> 0 | G11: =-SUMIFS('C Schedule Import Data'!X:X,'C Schedule Import Data'!$A:$A,$X$3,'C Schedule Import Data'!$B:$B,$X11) -> 0 | H11: =-SUMIFS('C Schedule Import Data'!Y:Y,'C Schedule Import Data'!$A:$A,$X$3,'C Schedule Import Data'!$B:$B,$X11) -> 0 | I11: 0 | K11: =-SUMIFS('C Schedule Import Data'!Z:Z,'C Schedule Import Data'!$A:$A,$X$3,'C Schedule Import Data'!$B:$B,$X11) -> 0 | X11: 1.5 REV
A12: ='Org structure'!E8 ->  | C12: =-SUMIFS('C Schedule Import Data'!T:T,'C Schedule Import Data'!$A:$A,$X$3,'C Schedule Import Data'!$B:$B,$X12) -> 0 | D12: =-SUMIFS('C Schedule Import Data'!U:U,'C Schedule Import Data'!$A:$A,$X$3,'C Schedule Import Data'!$B:$B,$X12) -> 0 | E12: =-SUMIFS('C Schedule Import Data'!V:V,'C Schedule Import Data'!$A:$A,$X$3,'C Schedule Import Data'!$B:$B,$X12) -> 0 | F12: =-SUMIFS('C Schedule Import Data'!W:W,'C Schedule Import Data'!$A:$A,$X$3,'C Schedule Import Data'!$B:$B,$X12) -> 0 | G12: =-SUMIFS('C Schedule Import Data'!X:X,'C Schedule Import Data'!$A:$A,$X$3,'C Schedule Import Data'!$B:$B,$X12) -> 0 | H12: =-SUMIFS('C Schedule Import Data'!Y:Y,'C Schedule Import Data'!$A:$A,$X$3,'C Schedule Import Data'!$B:$B,$X12) -> 0 | I12: 0 | K12: =-SUMIFS('C Schedule Import Data'!Z:Z,'C Schedule Import Data'!$A:$A,$X$3,'C Schedule Import Data'!$B:$B,$X12) -> 0 | X12: 1.6 REV
A13: ='Org structure'!E9 ->  | C13: =-SUMIFS('C Schedule Import Data'!T:T,'C Schedule Import Data'!$A:$A,$X$3,'C Schedule Import Data'!$B:$B,$X13) -> 0 | D13: =-SUMIFS('C Schedule Import Data'!U:U,'C Schedule Import Data'!$A:$A,$X$3,'C Schedule Import Data'!$B:$B,$X13) -> 0 | E13: =-SUMIFS('C Schedule Import Data'!V:V,'C Schedule Import Data'!$A:$A,$X$3,'C Schedule Import Data'!$B:$B,$X13) -> 0 | F13: =-SUMIFS('C Schedule Import Data'!W:W,'C Schedule Import Data'!$A:$A,$X$3,'C Schedule Import Data'!$B:$B,$X13) -> 0 | G13: =-SUMIFS('C Schedule Import Data'!X:X,'C Schedule Import Data'!$A:$A,$X$3,'C Schedule Import Data'!$B:$B,$X13) -> 0 | H13: =-SUMIFS('C Schedule Import Data'!Y:Y,'C Schedule Import Data'!$A:$A,$X$3,'C Schedule Import Data'!$B:$B,$X13) -> 0 | I13: 0 | K13: =-SUMIFS('C Schedule Import Data'!Z:Z,'C Schedule Import Data'!$A:$A,$X$3,'C Schedule Import Data'!$B:$B,$X13) -> 0 | X13: 1.7 REV
A14: ='Org structure'!E10 ->  | C14: =-SUMIFS('C Schedule Import Data'!T:T,'C Schedule Import Data'!$A:$A,$X$3,'C Schedule Import Data'!$B:$B,$X14) -> 0 | D14: =-SUMIFS('C Schedule Import Data'!U:U,'C Schedule Import Data'!$A:$A,$X$3,'C Schedule Import Data'!$B:$B,$X14) -> 0 | E14: =-SUMIFS('C Schedule Import Data'!V:V,'C Schedule Import Data'!$A:$A,$X$3,'C Schedule Import Data'!$B:$B,$X14) -> 0 | F14: =-SUMIFS('C Schedule Import Data'!W:W,'C Schedule Import Data'!$A:$A,$X$3,'C Schedule Import Data'!$B:$B,$X14) -> 0 | G14: =-SUMIFS('C Schedule Import Data'!X:X,'C Schedule Import Data'!$A:$A,$X$3,'C Schedule Import Data'!$B:$B,$X14) -> 0 | H14: =-SUMIFS('C Schedule Import Data'!Y:Y,'C Schedule Import Data'!$A:$A,$X$3,'C Schedule Import Data'!$B:$B,$X14) -> 0 | I14: 0 | K14: =-SUMIFS('C Schedule Import Data'!Z:Z,'C Schedule Import Data'!$A:$A,$X$3,'C Schedule Import Data'!$B:$B,$X14) -> 0 | X14: 1.8 REV
A15: ='Org structure'!E11 ->  | C15: =-SUMIFS('C Schedule Import Data'!T:T,'C Schedule Import Data'!$A:$A,$X$3,'C Schedule Import Data'!$B:$B,$X15) -> 0 | D15: =-SUMIFS('C Schedule Import Data'!U:U,'C Schedule Import Data'!$A:$A,$X$3,'C Schedule Import Data'!$B:$B,$X15) -> 0 | E15: =-SUMIFS('C Schedule Import Data'!V:V,'C Schedule Import Data'!$A:$A,$X$3,'C Schedule Import Data'!$B:$B,$X15) -> 0 | F15: =-SUMIFS('C Schedule Import Data'!W:W,'C Schedule Import Data'!$A:$A,$X$3,'C Schedule Import Data'!$B:$B,$X15) -> 0 | G15: =-SUMIFS('C Schedule Import Data'!X:X,'C Schedule Import Data'!$A:$A,$X$3,'C Schedule Import Data'!$B:$B,$X15) -> 0 | H15: =-SUMIFS('C Schedule Import Data'!Y:Y,'C Schedule Import Data'!$A:$A,$X$3,'C Schedule Import Data'!$B:$B,$X15) -> 0 | I15: 0 | K15: =-SUMIFS('C Schedule Import Data'!Z:Z,'C Schedule Import Data'!$A:$A,$X$3,'C Schedule Import Data'!$B:$B,$X15) -> 0 | X15: 1.9 REV
A16: ='Org structure'!E12 ->  | C16: =-SUMIFS('C Schedule Import Data'!T:T,'C Schedule Import Data'!$A:$A,$X$3,'C Schedule Import Data'!$B:$B,$X16) -> 0 | D16: =-SUMIFS('C Schedule Import Data'!U:U,'C Schedule Import Data'!$A:$A,$X$3,'C Schedule Import Data'!$B:$B,$X16) -> 0 | E16: =-SUMIFS('C Schedule Import Data'!V:V,'C Schedule Import Data'!$A:$A,$X$3,'C Schedule Import Data'!$B:$B,$X16) -> 0 | F16: =-SUMIFS('C Schedule Import Data'!W:W,'C Schedule Import Data'!$A:$A,$X$3,'C Schedule Import Data'!$B:$B,$X16) -> 0 | G16: =-SUMIFS('C Schedule Import Data'!X:X,'C Schedule Import Data'!$A:$A,$X$3,'C Schedule Import Data'!$B:$B,$X16) -> 0 | H16: =-SUMIFS('C Schedule Import Data'!Y:Y,'C Schedule Import Data'!$A:$A,$X$3,'C Schedule Import Data'!$B:$B,$X16) -> 0 | I16: 0 | K16: =-SUMIFS('C Schedule Import Data'!Z:Z,'C Schedule Import Data'!$A:$A,$X$3,'C Schedule Import Data'!$B:$B,$X16) -> 0 | X16: 1.10 REV
A17: ='Org structure'!A3 -> Vote 2 - BUDGET & TREASURY | C17: =SUM(C18:C27) -> 0 | D17: =SUM(D18:D27) -> 120181822 | E17: 120181822 | F17: 34290517.74 | G17: 83975457.37 | H17: 60090911 | I17: =G17-H17 -> 23884546.37 | J17: =IF(I17=0,"",I17/H17) -> 0.3974735276 | K17: 120181822
A18: ='Org structure'!E14 -> 2.1 - Budget & Treasury | C18: =-SUMIFS('C Schedule Import Data'!T:T,'C Schedule Import Data'!$A:$A,$X$3,'C Schedule Import Data'!$B:$B,$X18) -> 0 | D18: 120181822 | E18: =-SUMIFS('C Schedule Import Data'!V:V,'C Schedule Import Data'!$A:$A,$X$3,'C Schedule Import Data'!$B:$B,$X18) -> 120181822 | F18: =-SUMIFS('C Schedule Import Data'!W:W,'C Schedule Import Data'!$A:$A,$X$3,'C Schedule Import Data'!$B:$B,$X18) -> 34290517.74 | G18: 83975457.37 | H18: =D18/12*6 -> 60090911 | I18: =G18-H18 -> 23884546.37 | J18: =IF(I18=0,"",I18/H18) -> 0.3974735276 | K18: =D18 -> 120181822 | X18: 2.1 REV
A19: ='Org structure'!E15 ->  | C19: =-SUMIFS('C Schedule Import Data'!T:T,'C Schedule Import Data'!$A:$A,$X$3,'C Schedule Import Data'!$B:$B,$X19) -> 0 | D19: =-SUMIFS('C Schedule Import Data'!U:U,'C Schedule Import Data'!$A:$A,$X$3,'C Schedule Import Data'!$B:$B,$X19) -> 0 | E19: =-SUMIFS('C Schedule Import Data'!V:V,'C Schedule Import Data'!$A:$A,$X$3,'C Schedule Import Data'!$B:$B,$X19) -> 0 | F19: =-SUMIFS('C Schedule Import Data'!W:W,'C Schedule Import Data'!$A:$A,$X$3,'C Schedule Import Data'!$B:$B,$X19) -> 0 | G19: =-SUMIFS('C Schedule Import Data'!X:X,'C Schedule Import Data'!$A:$A,$X$3,'C Schedule Import Data'!$B:$B,$X19) -> 0 | H19: =-SUMIFS('C Schedule Import Data'!Y:Y,'C Schedule Import Data'!$A:$A,$X$3,'C Schedule Import Data'!$B:$B,$X19) -> 0 | I19: =G19-H19 -> 0 | J19: =IF(I19=0,"",I19/H19) ->  | K19: =-SUMIFS('C Schedule Import Data'!Z:Z,'C Schedule Import Data'!$A:$A,$X$3,'C Schedule Import Data'!$B:$B,$X19) -> 0 | X19: 2.2 REV
A20: ='Org structure'!E16 ->  | C20: =-SUMIFS('C Schedule Import Data'!T:T,'C Schedule Import Data'!$A:$A,$X$3,'C Schedule Import Data'!$B:$B,$X20) -> 0 | D20: =-SUMIFS('C Schedule Import Data'!U:U,'C Schedule Import Data'!$A:$A,$X$3,'C Schedule Import Data'!$B:$B,$X20) -> 0 | E20: =-SUMIFS('C Schedule Import Data'!V:V,'C Schedule Import Data'!$A:$A,$X$3,'C Schedule Import Data'!$B:$B,$X20) -> 0 | F20: =-SUMIFS('C Schedule Import Data'!W:W,'C Schedule Import Data'!$A:$A,$X$3,'C Schedule Import Data'!$B:$B,$X20) -> 0 | G20: =-SUMIFS('C Schedule Import Data'!X:X,'C Schedule Import Data'!$A:$A,$X$3,'C Schedule Import Data'!$B:$B,$X20) -> 0 | H20: =-SUMIFS('C Schedule Import Data'!Y:Y,'C Schedule Import Data'!$A:$A,$X$3,'C Schedule Import Data'!$B:$B,$X20) -> 0 | I20: 0 | K20: =-SUMIFS('C Schedule Import Data'!Z:Z,'C Schedule Import Data'!$A:$A,$X$3,'C Schedule Import Data'!$B:$B,$X20) -> 0 | X20: 2.3 REV
A21: ='Org structure'!E17 ->  | C21: =-SUMIFS('C Schedule Import Data'!T:T,'C Schedule Import Data'!$A:$A,$X$3,'C Schedule Import Data'!$B:$B,$X21) -> 0 | D21: =-SUMIFS('C Schedule Import Data'!U:U,'C Schedule Import Data'!$A:$A,$X$3,'C Schedule Import Data'!$B:$B,$X21) -> 0 | E21: =-SUMIFS('C Schedule Import Data'!V:V,'C Schedule Import Data'!$A:$A,$X$3,'C Schedule Import Data'!$B:$B,$X21) -> 0 | F21: =-SUMIFS('C Schedule Import Data'!W:W,'C Schedule Import Data'!$A:$A,$X$3,'C Schedule Import Data'!$B:$B,$X21) -> 0 | G21: =-SUMIFS('C Schedule Import Data'!X:X,'C Schedule Import Data'!$A:$A,$X$3,'C Schedule Import Data'!$B:$B,$X21) -> 0 | H21: =-SUMIFS('C Schedule Import Data'!Y:Y,'C Schedule Import Data'!$A:$A,$X$3,'C Schedule Import Data'!$B:$B,$X21) -> 0 | I21: 0 | K21: =-SUMIFS('C Schedule Import Data'!Z:Z,'C Schedule Import Data'!$A:$A,$X$3,'C Schedule Import Data'!$B:$B,$X21) -> 0 | X21: 2.4 REV
A22: ='Org structure'!E18 ->  | C22: =-SUMIFS('C Schedule Import Data'!T:T,'C Schedule Import Data'!$A:$A,$X$3,'C Schedule Import Data'!$B:$B,$X22) -> 0 | D22: =-SUMIFS('C Schedule Import Data'!U:U,'C Schedule Import Data'!$A:$A,$X$3,'C Schedule Import Data'!$B:$B,$X22) -> 0 | E22: =-SUMIFS('C Schedule Import Data'!V:V,'C Schedule Import Data'!$A:$A,$X$3,'C Schedule Import Data'!$B:$B,$X22) -> 0 | F22: =-SUMIFS('C Schedule Import Data'!W:W,'C Schedule Import Data'!$A:$A,$X$3,'C Schedule Import Data'!$B:$B,$X22) -> 0 | G22: =-SUMIFS('C Schedule Import Data'!X:X,'C Schedule Import Data'!$A:$A,$X$3,'C Schedule Import Data'!$B:$B,$X22) -> 0 | H22: =-SUMIFS('C Schedule Import Data'!Y:Y,'C Schedule Import Data'!$A:$A,$X$3,'C Schedule Import Data'!$B:$B,$X22) -> 0 | I22: 0 | K22: =-SUMIFS('C Schedule Import Data'!Z:Z,'C Schedule Import Data'!$A:$A,$X$3,'C Schedule Import Data'!$B:$B,$X22) -> 0 | X22: 2.5 REV
A23: ='Org structure'!E19 ->  | C23: =-SUMIFS('C Schedule Import Data'!T:T,'C Schedule Import Data'!$A:$A,$X$3,'C Schedule Import Data'!$B:$B,$X23) -> 0 | D23: =-SUMIFS('C Schedule Import Data'!U:U,'C Schedule Import Data'!$A:$A,$X$3,'C Schedule Import Data'!$B:$B,$X23) -> 0 | E23: =-SUMIFS('C Schedule Import Data'!V:V,'C Schedule Import Data'!$A:$A,$X$3,'C Schedule Import Data'!$B:$B,$X23) -> 0 | F23: =-SUMIFS('C Schedule Import Data'!W:W,'C Schedule Import Data'!$A:$A,$X$3,'C Schedule Import Data'!$B:$B,$X23) -> 0 | G23: =-SUMIFS('C Schedule Import Data'!X:X,'C Schedule Import Data'!$A:$A,$X$3,'C Schedule Import Data'!$B:$B,$X23) -> 0 | H23: =-SUMIFS('C Schedule Import Data'!Y:Y,'C Schedule Import Data'!$A:$A,$X$3,'C Schedule Import Data'!$B:$B,$X23) -> 0 | I23: 0 | K23: =-SUMIFS('C Schedule Import Data'!Z:Z,'C Schedule Import Data'!$A:$A,$X$3,'C Schedule Import Data'!$B:$B,$X23) -> 0 | X23: 2.6 REV
A24: ='Org structure'!E20 ->  | C24: =-SUMIFS('C Schedule Import Data'!T:T,'C Schedule Import Data'!$A:$A,$X$3,'C Schedule Import Data'!$B:$B,$X24) -> 0 | D24: =-SUMIFS('C Schedule Import Data'!U:U,'C Schedule Import Data'!$A:$A,$X$3,'C Schedule Import Data'!$B:$B,$X24) -> 0 | E24: =-SUMIFS('C Schedule Import Data'!V:V,'C Schedule Import Data'!$A:$A,$X$3,'C Schedule Import Data'!$B:$B,$X24) -> 0 | F24: =-SUMIFS('C Schedule Import Data'!W:W,'C Schedule Import Data'!$A:$A,$X$3,'C Schedule Import Data'!$B:$B,$X24) -> 0 | G24: =-SUMIFS('C Schedule Import Data'!X:X,'C Schedule Import Data'!$A:$A,$X$3,'C Schedule Import Data'!$B:$B,$X24) -> 0 | H24: =-SUMIFS('C Schedule Import Data'!Y:Y,'C Schedule Import Data'!$A:$A,$X$3,'C Schedule Import Data'!$B:$B,$X24) -> 0 | I24: 0 | K24: =-SUMIFS('C Schedule Import Data'!Z:Z,'C Schedule Import Data'!$A:$A,$X$3,'C Schedule Import Data'!$B:$B,$X24) -> 0 | X24: 2.7 REV
A25: ='Org structure'!E21 ->  | C25: =-SUMIFS('C Schedule Import Data'!T:T,'C Schedule Import Data'!$A:$A,$X$3,'C Schedule Import Data'!$B:$B,$X25) -> 0 | D25: =-SUMIFS('C Schedule Import Data'!U:U,'C Schedule Import Data'!$A:$A,$X$3,'C Schedule Import Data'!$B:$B,$X25) -> 0 | E25: =-SUMIFS('C Schedule Import Data'!V:V,'C Schedule Import Data'!$A:$A,$X$3,'C Schedule Import Data'!$B:$B,$X25) -> 0 | F25: =-SUMIFS('C Schedule Import Data'!W:W,'C Schedule Import Data'!$A:$A,$X$3,'C Schedule Import Data'!$B:$B,$X25) -> 0 | G25: =-SUMIFS('C Schedule Import Data'!X:X,'C Schedule Import Data'!$A:$A,$X$3,'C Schedule Import Data'!$B:$B,$X25) -> 0 | H25: =-SUMIFS('C Schedule Import Data'!Y:Y,'C Schedule Import Data'!$A:$A,$X$3,'C Schedule Import Data'!$B:$B,$X25) -> 0 | I25: 0 | K25: =-SUMIFS('C Schedule Import Data'!Z:Z,'C Schedule Import Data'!$A:$A,$X$3,'C Schedule Import Data'!$B:$B,$X25) -> 0 | X25: 2.8 REV
A26: ='Org structure'!E22 ->  | C26: =-SUMIFS('C Schedule Import Data'!T:T,'C Schedule Import Data'!$A:$A,$X$3,'C Schedule Import Data'!$B:$B,$X26) -> 0 | D26: =-SUMIFS('C Schedule Import Data'!U:U,'C Schedule Import Data'!$A:$A,$X$3,'C Schedule Import Data'!$B:$B,$X26) -> 0 | E26: =-SUMIFS('C Schedule Import Data'!V:V,'C Schedule Import Data'!$A:$A,$X$3,'C Schedule Import Data'!$B:$B,$X26) -> 0 | F26: =-SUMIFS('C Schedule Import Data'!W:W,'C Schedule Import Data'!$A:$A,$X$3,'C Schedule Import Data'!$B:$B,$X26) -> 0 | G26: =-SUMIFS('C Schedule Import Data'!X:X,'C Schedule Import Data'!$A:$A,$X$3,'C Schedule Import Data'!$B:$B,$X26) -> 0 | H26: =-SUMIFS('C Schedule Import Data'!Y:Y,'C Schedule Import Data'!$A:$A,$X$3,'C Schedule Import Data'!$B:$B,$X26) -> 0 | I26: 0 | K26: =-SUMIFS('C Schedule Import Data'!Z:Z,'C Schedule Import Data'!$A:$A,$X$3,'C Schedule Import Data'!$B:$B,$X26) -> 0 | X26: 2.9 REV
A27: ='Org structure'!E23 ->  | C27: =-SUMIFS('C Schedule Import Data'!T:T,'C Schedule Import Data'!$A:$A,$X$3,'C Schedule Import Data'!$B:$B,$X27) -> 0 | D27: =-SUMIFS('C Schedule Import Data'!U:U,'C Schedule Import Data'!$A:$A,$X$3,'C Schedule Import Data'!$B:$B,$X27) -> 0 | E27: =-SUMIFS('C Schedule Import Data'!V:V,'C Schedule Import Data'!$A:$A,$X$3,'C Schedule Import Data'!$B:$B,$X27) -> 0 | F27: =-SUMIFS('C Schedule Import Data'!W:W,'C Schedule Import Data'!$A:$A,$X$3,'C Schedule Import Data'!$B:$B,$X27) -> 0 | G27: =-SUMIFS('C Schedule Import Data'!X:X,'C Schedule Import Data'!$A:$A,$X$3,'C Schedule Import Data'!$B:$B,$X27) -> 0 | H27: =-SUMIFS('C Schedule Import Data'!Y:Y,'C Schedule Import Data'!$A:$A,$X$3,'C Schedule Import Data'!$B:$B,$X27) -> 0 | I27: 0 | K27: =-SUMIFS('C Schedule Import Data'!Z:Z,'C Schedule Import Data'!$A:$A,$X$3,'C Schedule Import Data'!$B:$B,$X27) -> 0 | X27: 2.10 REV
A28: ='Org structure'!A4 -> Vote 3 - CORPORATE SERVCES | C28: =SUM(C29:C38) -> 0 | D28: 5250000 | E28: 5250000 | F28: -9164.13 | G28: 419363.75 | H28: 2625000 | I28: =G28-H28 -> -2205636.25 | J28: =IF(I28=0,"",I28/H28) -> -0.840242381 | K28: 5250000
A29: ='Org structure'!E25 -> 3.1 - Corporate Services/Other Admin | C29: =-SUMIFS('C Schedule Import Data'!T:T,'C Schedule Import Data'!$A:$A,$X$3,'C Schedule Import Data'!$B:$B,$X29) -> 0 | D29: 5000000 | E29: =-SUMIFS('C Schedule Import Data'!V:V,'C Schedule Import Data'!$A:$A,$X$3,'C Schedule Import Data'!$B:$B,$X29) -> 5000000 | F29: =-SUMIFS('C Schedule Import Data'!W:W,'C Schedule Import Data'!$A:$A,$X$3,'C Schedule Import Data'!$B:$B,$X29) -> -9164.13 | G29: 378815.85 | H29: =D29/12*6 -> 2500000 | I29: =G29-H29 -> -2121184.15 | J29: =IF(I29=0,"",I29/H29) -> -0.84847366 | K29: =D29 -> 5000000 | X29: 3.1 REV
A30: ='Org structure'!E26 -> 3.2 - Muncipal Estates/Property Services | C30: =-SUMIFS('C Schedule Import Data'!T:T,'C Schedule Import Data'!$A:$A,$X$3,'C Schedule Import Data'!$B:$B,$X30) -> 0 | D30: 250000 | E30: =-SUMIFS('C Schedule Import Data'!V:V,'C Schedule Import Data'!$A:$A,$X$3,'C Schedule Import Data'!$B:$B,$X30) -> 250000 | F30: =-SUMIFS('C Schedule Import Data'!W:W,'C Schedule Import Data'!$A:$A,$X$3,'C Schedule Import Data'!$B:$B,$X30) -> 0 | G30: 40547.9 | H30: 125000 | I30: =G30-H30 -> -84452.1 | J30: =IF(I30=0,"",I30/H30) -> -0.6756168 | K30: 250000 | X30: 3.2 REV
A31: ='Org structure'!E27 ->  | C31: =-SUMIFS('C Schedule Import Data'!T:T,'C Schedule Import Data'!$A:$A,$X$3,'C Schedule Import Data'!$B:$B,$X31) -> 0 | D31: =-SUMIFS('C Schedule Import Data'!U:U,'C Schedule Import Data'!$A:$A,$X$3,'C Schedule Import Data'!$B:$B,$X31) -> 0 | E31: =-SUMIFS('C Schedule Import Data'!V:V,'C Schedule Import Data'!$A:$A,$X$3,'C Schedule Import Data'!$B:$B,$X31) -> 0 | F31: =-SUMIFS('C Schedule Import Data'!W:W,'C Schedule Import Data'!$A:$A,$X$3,'C Schedule Import Data'!$B:$B,$X31) -> 0 | G31: =-SUMIFS('C Schedule Import Data'!X:X,'C Schedule Import Data'!$A:$A,$X$3,'C Schedule Import Data'!$B:$B,$X31) -> 0 | H31: =-SUMIFS('C Schedule Import Data'!Y:Y,'C Schedule Import Data'!$A:$A,$X$3,'C Schedule Import Data'!$B:$B,$X31) -> 0 | I31: 0 | K31: =-SUMIFS('C Schedule Import Data'!Z:Z,'C Schedule Import Data'!$A:$A,$X$3,'C Schedule Import Data'!$B:$B,$X31) -> 0 | X31: 3.3 REV
A32: ='Org structure'!E28 ->  | C32: =-SUMIFS('C Schedule Import Data'!T:T,'C Schedule Import Data'!$A:$A,$X$3,'C Schedule Import Data'!$B:$B,$X32) -> 0 | D32: =-SUMIFS('C Schedule Import Data'!U:U,'C Schedule Import Data'!$A:$A,$X$3,'C Schedule Import Data'!$B:$B,$X32) -> 0 | E32: =-SUMIFS('C Schedule Import Data'!V:V,'C Schedule Import Data'!$A:$A,$X$3,'C Schedule Import Data'!$B:$B,$X32) -> 0 | F32: =-SUMIFS('C Schedule Import Data'!W:W,'C Schedule Import Data'!$A:$A,$X$3,'C Schedule Import Data'!$B:$B,$X32) -> 0 | G32: =-SUMIFS('C Schedule Import Data'!X:X,'C Schedule Import Data'!$A:$A,$X$3,'C Schedule Import Data'!$B:$B,$X32) -> 0 | H32: =-SUMIFS('C Schedule Import Data'!Y:Y,'C Schedule Import Data'!$A:$A,$X$3,'C Schedule Import Data'!$B:$B,$X32) -> 0 | I32: 0 | K32: =-SUMIFS('C Schedule Import Data'!Z:Z,'C Schedule Import Data'!$A:$A,$X$3,'C Schedule Import Data'!$B:$B,$X32) -> 0 | X32: 3.4 REV
A33: ='Org structure'!E29 ->  | C33: =-SUMIFS('C Schedule Import Data'!T:T,'C Schedule Import Data'!$A:$A,$X$3,'C Schedule Import Data'!$B:$B,$X33) -> 0 | D33: =-SUMIFS('C Schedule Import Data'!U:U,'C Schedule Import Data'!$A:$A,$X$3,'C Schedule Import Data'!$B:$B,$X33) -> 0 | E33: =-SUMIFS('C Schedule Import Data'!V:V,'C Schedule Import Data'!$A:$A,$X$3,'C Schedule Import Data'!$B:$B,$X33) -> 0 | F33: =-SUMIFS('C Schedule Import Data'!W:W,'C Schedule Import Data'!$A:$A,$X$3,'C Schedule Import Data'!$B:$B,$X33) -> 0 | G33: =-SUMIFS('C Schedule Import Data'!X:X,'C Schedule Import Data'!$A:$A,$X$3,'C Schedule Import Data'!$B:$B,$X33) -> 0 | H33: =-SUMIFS('C Schedule Import Data'!Y:Y,'C Schedule Import Data'!$A:$A,$X$3,'C Schedule Import Data'!$B:$B,$X33) -> 0 | I33: 0 | K33: =-SUMIFS('C Schedule Import Data'!Z:Z,'C Schedule Import Data'!$A:$A,$X$3,'C Schedule Import Data'!$B:$B,$X33) -> 0 | X33: 3.5 REV
A34: ='Org structure'!E30 ->  | C34: =-SUMIFS('C Schedule Import Data'!T:T,'C Schedule Import Data'!$A:$A,$X$3,'C Schedule Import Data'!$B:$B,$X34) -> 0 | D34: =-SUMIFS('C Schedule Import Data'!U:U,'C Schedule Import Data'!$A:$A,$X$3,'C Schedule Import Data'!$B:$B,$X34) -> 0 | E34: =-SUMIFS('C Schedule Import Data'!V:V,'C Schedule Import Data'!$A:$A,$X$3,'C Schedule Import Data'!$B:$B,$X34) -> 0 | F34: =-SUMIFS('C Schedule Import Data'!W:W,'C Schedule Import Data'!$A:$A,$X$3,'C Schedule Import Data'!$B:$B,$X34) -> 0 | G34: =-SUMIFS('C Schedule Import Data'!X:X,'C Schedule Import Data'!$A:$A,$X$3,'C Schedule Import Data'!$B:$B,$X34) -> 0 | H34: =-SUMIFS('C Schedule Import Data'!Y:Y,'C Schedule Import Data'!$A:$A,$X$3,'C Schedule Import Data'!$B:$B,$X34) -> 0 | I34: 0 | K34: =-SUMIFS('C Schedule Import Data'!Z:Z,'C Schedule Import Data'!$A:$A,$X$3,'C Schedule Import Data'!$B:$B,$X34) -> 0 | X34: 3.6 REV
A35: ='Org structure'!E31 ->  | C35: =-SUMIFS('C Schedule Import Data'!T:T,'C Schedule Import Data'!$A:$A,$X$3,'C Schedule Import Data'!$B:$B,$X35) -> 0 | D35: =-SUMIFS('C Schedule Import Data'!U:U,'C Schedule Import Data'!$A:$A,$X$3,'C Schedule Import Data'!$B:$B,$X35) -> 0 | E35: =-SUMIFS('C Schedule Import Data'!V:V,'C Schedule Import Data'!$A:$A,$X$3,'C Schedule Import Data'!$B:$B,$X35) -> 0 | F35: =-SUMIFS('C Schedule Import Data'!W:W,'C Schedule Import Data'!$A:$A,$X$3,'C Schedule Import Data'!$B:$B,$X35) -> 0 | G35: =-SUMIFS('C Schedule Import Data'!X:X,'C Schedule Import Data'!$A:$A,$X$3,'C Schedule Import Data'!$B:$B,$X35) -> 0 | H35: =-SUMIFS('C Schedule Import Data'!Y:Y,'C Schedule Import Data'!$A:$A,$X$3,'C Schedule Import Data'!$B:$B,$X35) -> 0 | I35: 0 | K35: =-SUMIFS('C Schedule Import Data'!Z:Z,'C Schedule Import Data'!$A:$A,$X$3,'C Schedule Import Data'!$B:$B,$X35) -> 0 | X35: 3.7 REV
A36: ='Org structure'!E32 ->  | C36: =-SUMIFS('C Schedule Import Data'!T:T,'C Schedule Import Data'!$A:$A,$X$3,'C Schedule Import Data'!$B:$B,$X36) -> 0 | D36: =-SUMIFS('C Schedule Import Data'!U:U,'C Schedule Import Data'!$A:$A,$X$3,'C Schedule Import Data'!$B:$B,$X36) -> 0 | E36: =-SUMIFS('C Schedule Import Data'!V:V,'C Schedule Import Data'!$A:$A,$X$3,'C Schedule Import Data'!$B:$B,$X36) -> 0 | F36: =-SUMIFS('C Schedule Import Data'!W:W,'C Schedule Import Data'!$A:$A,$X$3,'C Schedule Import Data'!$B:$B,$X36) -> 0 | G36: =-SUMIFS('C Schedule Import Data'!X:X,'C Schedule Import Data'!$A:$A,$X$3,'C Schedule Import Data'!$B:$B,$X36) -> 0 | H36: =-SUMIFS('C Schedule Import Data'!Y:Y,'C Schedule Import Data'!$A:$A,$X$3,'C Schedule Import Data'!$B:$B,$X36) -> 0 | I36: 0 | K36: =-SUMIFS('C Schedule Import Data'!Z:Z,'C Schedule Import Data'!$A:$A,$X$3,'C Schedule Import Data'!$B:$B,$X36) -> 0 | X36: 3.8 REV
A37: ='Org structure'!E33 ->  | C37: =-SUMIFS('C Schedule Import Data'!T:T,'C Schedule Import Data'!$A:$A,$X$3,'C Schedule Import Data'!$B:$B,$X37) -> 0 | D37: =-SUMIFS('C Schedule Import Data'!U:U,'C Schedule Import Data'!$A:$A,$X$3,'C Schedule Import Data'!$B:$B,$X37) -> 0 | E37: =-SUMIFS('C Schedule Import Data'!V:V,'C Schedule Import Data'!$A:$A,$X$3,'C Schedule Import Data'!$B:$B,$X37) -> 0 | F37: =-SUMIFS('C Schedule Import Data'!W:W,'C Schedule Import Data'!$A:$A,$X$3,'C Schedule Import Data'!$B:$B,$X37) -> 0 | G37: =-SUMIFS('C Schedule Import Data'!X:X,'C Schedule Import Data'!$A:$A,$X$3,'C Schedule Import Data'!$B:$B,$X37) -> 0 | H37: =-SUMIFS('C Schedule Import Data'!Y:Y,'C Schedule Import Data'!$A:$A,$X$3,'C Schedule Import Data'!$B:$B,$X37) -> 0 | I37: 0 | K37: =-SUMIFS('C Schedule Import Data'!Z:Z,'C Schedule Import Data'!$A:$A,$X$3,'C Schedule Import Data'!$B:$B,$X37) -> 0 | X37: 3.9 REV
A38: ='Org structure'!E34 ->  | C38: =-SUMIFS('C Schedule Import Data'!T:T,'C Schedule Import Data'!$A:$A,$X$3,'C Schedule Import Data'!$B:$B,$X38) -> 0 | D38: =-SUMIFS('C Schedule Import Data'!U:U,'C Schedule Import Data'!$A:$A,$X$3,'C Schedule Import Data'!$B:$B,$X38) -> 0 | E38: =-SUMIFS('C Schedule Import Data'!V:V,'C Schedule Import Data'!$A:$A,$X$3,'C Schedule Import Data'!$B:$B,$X38) -> 0 | F38: =-SUMIFS('C Schedule Import Data'!W:W,'C Schedule Import Data'!$A:$A,$X$3,'C Schedule Import Data'!$B:$B,$X38) -> 0 | G38: =-SUMIFS('C Schedule Import Data'!X:X,'C Schedule Import Data'!$A:$A,$X$3,'C Schedule Import Data'!$B:$B,$X38) -> 0 | H38: =-SUMIFS('C Schedule Import Data'!Y:Y,'C Schedule Import Data'!$A:$A,$X$3,'C Schedule Import Data'!$B:$B,$X38) -> 0 | I38: 0 | K38: =-SUMIFS('C Schedule Import Data'!Z:Z,'C Schedule Import Data'!$A:$A,$X$3,'C Schedule Import Data'!$B:$B,$X38) -> 0 | X38: 3.10 REV
A39: ='Org structure'!A5 -> Vote 4 - COMMUNITY & SOCIAL SERVICES | C39: =SUM(C40:C49) -> 0 | D39: 3045211 | E39: 3045211 | F39: 92761.84 | G39: 2109250.02 | H39: 1522605.5 | I39: =G39-H39 -> 586644.52 | J39: =IF(I39=0,"",I39/H39) -> 0.3852898995 | K39: 3045211
A40: ='Org structure'!E36 -> 4.1 - Libraries | C40: =-SUMIFS('C Schedule Import Data'!T:T,'C Schedule Import Data'!$A:$A,$X$3,'C Schedule Import Data'!$B:$B,$X40) -> 0 | D40: 774500 | E40: =-SUMIFS('C Schedule Import Data'!V:V,'C Schedule Import Data'!$A:$A,$X$3,'C Schedule Import Data'!$B:$B,$X40) -> 774500 | F40: =-SUMIFS('C Schedule Import Data'!W:W,'C Schedule Import Data'!$A:$A,$X$3,'C Schedule Import Data'!$B:$B,$X40) -> -170166 | G40: 604051.41 | H40: =D40/12*6 -> 387250 | I40: =G40-H40 -> 216801.41 | J40: =IF(I40=0,"",I40/H40) -> 0.5598487024 | K40: =D40 -> 774500 | X40: 4.1 REV
A41: ='Org structure'!E37 -> 4.2 - Community Halls & Facilities | C41: =-SUMIFS('C Schedule Import Data'!T:T,'C Schedule Import Data'!$A:$A,$X$3,'C Schedule Import Data'!$B:$B,$X41) -> 0 | D41: 0 | E41: =-SUMIFS('C Schedule Import Data'!V:V,'C Schedule Import Data'!$A:$A,$X$3,'C Schedule Import Data'!$B:$B,$X41) -> 0 | F41: =-SUMIFS('C Schedule Import Data'!W:W,'C Schedule Import Data'!$A:$A,$X$3,'C Schedule Import Data'!$B:$B,$X41) -> 0 | G41: =-SUMIFS('C Schedule Import Data'!X:X,'C Schedule Import Data'!$A:$A,$X$3,'C Schedule Import Data'!$B:$B,$X41) -> 0 | H41: 0 | I41: =G41-H41 -> 0 | J41: =IF(I41=0,"",I41/H41) ->  | K41: 0 | X41: 4.2 REV
A42: ='Org structure'!E38 -> 4.3 - Cemeteries | C42: =-SUMIFS('C Schedule Import Data'!T:T,'C Schedule Import Data'!$A:$A,$X$3,'C Schedule Import Data'!$B:$B,$X42) -> 0 | D42: 30000 | E42: =-SUMIFS('C Schedule Import Data'!V:V,'C Schedule Import Data'!$A:$A,$X$3,'C Schedule Import Data'!$B:$B,$X42) -> 30000 | F42: =-SUMIFS('C Schedule Import Data'!W:W,'C Schedule Import Data'!$A:$A,$X$3,'C Schedule Import Data'!$B:$B,$X42) -> 6309.49 | G42: 19510.35 | H42: 15000 | I42: 4510.35 | J42: 0.30069 | K42: 30000 | X42: 4.3 REV
A43: ='Org structure'!E39 -> 4.4 - Child Care | C43: =-SUMIFS('C Schedule Import Data'!T:T,'C Schedule Import Data'!$A:$A,$X$3,'C Schedule Import Data'!$B:$B,$X43) -> 0 | D43: 0 | E43: =-SUMIFS('C Schedule Import Data'!V:V,'C Schedule Import Data'!$A:$A,$X$3,'C Schedule Import Data'!$B:$B,$X43) -> 0 | F43: =-SUMIFS('C Schedule Import Data'!W:W,'C Schedule Import Data'!$A:$A,$X$3,'C Schedule Import Data'!$B:$B,$X43) -> 0 | G43: =-SUMIFS('C Schedule Import Data'!X:X,'C Schedule Import Data'!$A:$A,$X$3,'C Schedule Import Data'!$B:$B,$X43) -> 0 | H43: 0 | I43: 0 | K43: 0 | X43: 4.4 REV
A44: ='Org structure'!E40 -> 4.5 - Thusong Centre | C44: =-SUMIFS('C Schedule Import Data'!T:T,'C Schedule Import Data'!$A:$A,$X$3,'C Schedule Import Data'!$B:$B,$X44) -> 0 | D44: 250000 | E44: =-SUMIFS('C Schedule Import Data'!V:V,'C Schedule Import Data'!$A:$A,$X$3,'C Schedule Import Data'!$B:$B,$X44) -> 250000 | F44: =-SUMIFS('C Schedule Import Data'!W:W,'C Schedule Import Data'!$A:$A,$X$3,'C Schedule Import Data'!$B:$B,$X44) -> 77797.44 | G44: 493633.36 | H44: 125000 | I44: 368633.36 | J44: 2.94906688 | K44: 250000 | X44: 4.5 REV
A45: ='Org structure'!E41 -> 4.6 - Social Development | C45: =-SUMIFS('C Schedule Import Data'!T:T,'C Schedule Import Data'!$A:$A,$X$3,'C Schedule Import Data'!$B:$B,$X45) -> 0 | D45: 0 | E45: =-SUMIFS('C Schedule Import Data'!V:V,'C Schedule Import Data'!$A:$A,$X$3,'C Schedule Import Data'!$B:$B,$X45) -> 0 | F45: =-SUMIFS('C Schedule Import Data'!W:W,'C Schedule Import Data'!$A:$A,$X$3,'C Schedule Import Data'!$B:$B,$X45) -> 0 | G45: =-SUMIFS('C Schedule Import Data'!X:X,'C Schedule Import Data'!$A:$A,$X$3,'C Schedule Import Data'!$B:$B,$X45) -> 0 | H45: 0 | I45: 0 | K45: 0 | X45: 4.6 REV
A46: ='Org structure'!E42 -> 4.7 - Solid Waste Removal (Refuse) | C46: =-SUMIFS('C Schedule Import Data'!T:T,'C Schedule Import Data'!$A:$A,$X$3,'C Schedule Import Data'!$B:$B,$X46) -> 0 | D46: 1990711 | E46: =-SUMIFS('C Schedule Import Data'!V:V,'C Schedule Import Data'!$A:$A,$X$3,'C Schedule Import Data'!$B:$B,$X46) -> 1990711 | F46: =-SUMIFS('C Schedule Import Data'!W:W,'C Schedule Import Data'!$A:$A,$X$3,'C Schedule Import Data'!$B:$B,$X46) -> 178820.91 | G46: 992054.9 | H46: 995355.5 | I46: -3300.6 | J46: -0.003316001167 | K46: 1990711 | X46: 4.7 REV
A47: ='Org structure'!E43 ->  | C47: =-SUMIFS('C Schedule Import Data'!T:T,'C Schedule Import Data'!$A:$A,$X$3,'C Schedule Import Data'!$B:$B,$X47) -> 0 | D47: =-SUMIFS('C Schedule Import Data'!U:U,'C Schedule Import Data'!$A:$A,$X$3,'C Schedule Import Data'!$B:$B,$X47) -> 0 | E47: =-SUMIFS('C Schedule Import Data'!V:V,'C Schedule Import Data'!$A:$A,$X$3,'C Schedule Import Data'!$B:$B,$X47) -> 0 | F47: =-SUMIFS('C Schedule Import Data'!W:W,'C Schedule Import Data'!$A:$A,$X$3,'C Schedule Import Data'!$B:$B,$X47) -> 0 | G47: =-SUMIFS('C Schedule Import Data'!X:X,'C Schedule Import Data'!$A:$A,$X$3,'C Schedule Import Data'!$B:$B,$X47) -> 0 | H47: =-SUMIFS('C Schedule Import Data'!Y:Y,'C Schedule Import Data'!$A:$A,$X$3,'C Schedule Import Data'!$B:$B,$X47) -> 0 | I47: 0 | K47: =-SUMIFS('C Schedule Import Data'!Z:Z,'C Schedule Import Data'!$A:$A,$X$3,'C Schedule Import Data'!$B:$B,$X47) -> 0 | X47: 4.8 REV
A48: ='Org structure'!E44 ->  | C48: =-SUMIFS('C Schedule Import Data'!T:T,'C Schedule Import Data'!$A:$A,$X$3,'C Schedule Import Data'!$B:$B,$X48) -> 0 | D48: =-SUMIFS('C Schedule Import Data'!U:U,'C Schedule Import Data'!$A:$A,$X$3,'C Schedule Import Data'!$B:$B,$X48) -> 0 | E48: =-SUMIFS('C Schedule Import Data'!V:V,'C Schedule Import Data'!$A:$A,$X$3,'C Schedule Import Data'!$B:$B,$X48) -> 0 | F48: =-SUMIFS('C Schedule Import Data'!W:W,'C Schedule Import Data'!$A:$A,$X$3,'C Schedule Import Data'!$B:$B,$X48) -> 0 | G48: =-SUMIFS('C Schedule Import Data'!X:X,'C Schedule Import Data'!$A:$A,$X$3,'C Schedule Import Data'!$B:$B,$X48) -> 0 | H48: =-SUMIFS('C Schedule Import Data'!Y:Y,'C Schedule Import Data'!$A:$A,$X$3,'C Schedule Import Data'!$B:$B,$X48) -> 0 | I48: 0 | K48: =-SUMIFS('C Schedule Import Data'!Z:Z,'C Schedule Import Data'!$A:$A,$X$3,'C Schedule Import Data'!$B:$B,$X48) -> 0 | X48: 4.9 REV
A49: ='Org structure'!E45 ->  | C49: =-SUMIFS('C Schedule Import Data'!T:T,'C Schedule Import Data'!$A:$A,$X$3,'C Schedule Import Data'!$B:$B,$X49) -> 0 | D49: =-SUMIFS('C Schedule Import Data'!U:U,'C Schedule Import Data'!$A:$A,$X$3,'C Schedule Import Data'!$B:$B,$X49) -> 0 | E49: =-SUMIFS('C Schedule Import Data'!V:V,'C Schedule Import Data'!$A:$A,$X$3,'C Schedule Import Data'!$B:$B,$X49) -> 0 | F49: =-SUMIFS('C Schedule Import Data'!W:W,'C Schedule Import Data'!$A:$A,$X$3,'C Schedule Import Data'!$B:$B,$X49) -> 0 | G49: =-SUMIFS('C Schedule Import Data'!X:X,'C Schedule Import Data'!$A:$A,$X$3,'C Schedule Import Data'!$B:$B,$X49) -> 0 | H49: =-SUMIFS('C Schedule Import Data'!Y:Y,'C Schedule Import Data'!$A:$A,$X$3,'C Schedule Import Data'!$B:$B,$X49) -> 0 | I49: 0 | K49: =-SUMIFS('C Schedule Import Data'!Z:Z,'C Schedule Import Data'!$A:$A,$X$3,'C Schedule Import Data'!$B:$B,$X49) -> 0 | X49: 4.10 REV
A50: ='Org structure'!A6 -> Vote 5 - SPORT & RECREATION/PARKS | C50: =SUM(C51:C60) -> 0 | D50: =SUM(D51:D60) -> 0 | E50: 0 | F50: 0 | G50: 0 | H50: 0 | I50: =G50-H50 -> 0 | J50: =IF(I50=0,"",I50/H50) ->  | K50: 0
A51: ='Org structure'!E47 -> 5.1 - Sport & Recreation | C51: =-SUMIFS('C Schedule Import Data'!T:T,'C Schedule Import Data'!$A:$A,$X$3,'C Schedule Import Data'!$B:$B,$X51) -> 0 | D51: =-SUMIFS('C Schedule Import Data'!U:U,'C Schedule Import Data'!$A:$A,$X$3,'C Schedule Import Data'!$B:$B,$X51) -> 0 | E51: =-SUMIFS('C Schedule Import Data'!V:V,'C Schedule Import Data'!$A:$A,$X$3,'C Schedule Import Data'!$B:$B,$X51) -> 0 | F51: =-SUMIFS('C Schedule Import Data'!W:W,'C Schedule Import Data'!$A:$A,$X$3,'C Schedule Import Data'!$B:$B,$X51) -> 0 | G51: =-SUMIFS('C Schedule Import Data'!X:X,'C Schedule Import Data'!$A:$A,$X$3,'C Schedule Import Data'!$B:$B,$X51) -> 0 | H51: =-SUMIFS('C Schedule Import Data'!Y:Y,'C Schedule Import Data'!$A:$A,$X$3,'C Schedule Import Data'!$B:$B,$X51) -> 0 | I51: =G51-H51 -> 0 | J51: =IF(I51=0,"",I51/H51) ->  | K51: =-SUMIFS('C Schedule Import Data'!Z:Z,'C Schedule Import Data'!$A:$A,$X$3,'C Schedule Import Data'!$B:$B,$X51) -> 0 | X51: 5.1 REV
A52: ='Org structure'!E48 -> 5.2 - Parks | C52: =-SUMIFS('C Schedule Import Data'!T:T,'C Schedule Import Data'!$A:$A,$X$3,'C Schedule Import Data'!$B:$B,$X52) -> 0 | D52: =-SUMIFS('C Schedule Import Data'!U:U,'C Schedule Import Data'!$A:$A,$X$3,'C Schedule Import Data'!$B:$B,$X52) -> 0 | E52: =-SUMIFS('C Schedule Import Data'!V:V,'C Schedule Import Data'!$A:$A,$X$3,'C Schedule Import Data'!$B:$B,$X52) -> 0 | F52: =-SUMIFS('C Schedule Import Data'!W:W,'C Schedule Import Data'!$A:$A,$X$3,'C Schedule Import Data'!$B:$B,$X52) -> 0 | G52: =-SUMIFS('C Schedule Import Data'!X:X,'C Schedule Import Data'!$A:$A,$X$3,'C Schedule Import Data'!$B:$B,$X52) -> 0 | H52: =-SUMIFS('C Schedule Import Data'!Y:Y,'C Schedule Import Data'!$A:$A,$X$3,'C Schedule Import Data'!$B:$B,$X52) -> 0 | I52: =G52-H52 -> 0 | J52: =IF(I52=0,"",I52/H52) ->  | K52: =-SUMIFS('C Schedule Import Data'!Z:Z,'C Schedule Import Data'!$A:$A,$X$3,'C Schedule Import Data'!$B:$B,$X52) -> 0 | X52: 5.2 REV
A53: ='Org structure'!E49 ->  | C53: =-SUMIFS('C Schedule Import Data'!T:T,'C Schedule Import Data'!$A:$A,$X$3,'C Schedule Import Data'!$B:$B,$X53) -> 0 | D53: =-SUMIFS('C Schedule Import Data'!U:U,'C Schedule Import Data'!$A:$A,$X$3,'C Schedule Import Data'!$B:$B,$X53) -> 0 | E53: =-SUMIFS('C Schedule Import Data'!V:V,'C Schedule Import Data'!$A:$A,$X$3,'C Schedule Import Data'!$B:$B,$X53) -> 0 | F53: =-SUMIFS('C Schedule Import Data'!W:W,'C Schedule Import Data'!$A:$A,$X$3,'C Schedule Import Data'!$B:$B,$X53) -> 0 | G53: =-SUMIFS('C Schedule Import Data'!X:X,'C Schedule Import Data'!$A:$A,$X$3,'C Schedule Import Data'!$B:$B,$X53) -> 0 | H53: =-SUMIFS('C Schedule Import Data'!Y:Y,'C Schedule Import Data'!$A:$A,$X$3,'C Schedule Import Data'!$B:$B,$X53) -> 0 | I53: 0 | K53: =-SUMIFS('C Schedule Import Data'!Z:Z,'C Schedule Import Data'!$A:$A,$X$3,'C Schedule Import Data'!$B:$B,$X53) -> 0 | X53: 5.3 REV
A54: ='Org structure'!E50 ->  | C54: =-SUMIFS('C Schedule Import Data'!T:T,'C Schedule Import Data'!$A:$A,$X$3,'C Schedule Import Data'!$B:$B,$X54) -> 0 | D54: =-SUMIFS('C Schedule Import Data'!U:U,'C Schedule Import Data'!$A:$A,$X$3,'C Schedule Import Data'!$B:$B,$X54) -> 0 | E54: =-SUMIFS('C Schedule Import Data'!V:V,'C Schedule Import Data'!$A:$A,$X$3,'C Schedule Import Data'!$B:$B,$X54) -> 0 | F54: =-SUMIFS('C Schedule Import Data'!W:W,'C Schedule Import Data'!$A:$A,$X$3,'C Schedule Import Data'!$B:$B,$X54) -> 0 | G54: =-SUMIFS('C Schedule Import Data'!X:X,'C Schedule Import Data'!$A:$A,$X$3,'C Schedule Import Data'!$B:$B,$X54) -> 0 | H54: =-SUMIFS('C Schedule Import Data'!Y:Y,'C Schedule Import Data'!$A:$A,$X$3,'C Schedule Import Data'!$B:$B,$X54) -> 0 | I54: 0 | K54: =-SUMIFS('C Schedule Import Data'!Z:Z,'C Schedule Import Data'!$A:$A,$X$3,'C Schedule Import Data'!$B:$B,$X54) -> 0 | X54: 5.4 REV
A55: ='Org structure'!E51 ->  | C55: =-SUMIFS('C Schedule Import Data'!T:T,'C Schedule Import Data'!$A:$A,$X$3,'C Schedule Import Data'!$B:$B,$X55) -> 0 | D55: =-SUMIFS('C Schedule Import Data'!U:U,'C Schedule Import Data'!$A:$A,$X$3,'C Schedule Import Data'!$B:$B,$X55) -> 0 | E55: =-SUMIFS('C Schedule Import Data'!V:V,'C Schedule Import Data'!$A:$A,$X$3,'C Schedule Import Data'!$B:$B,$X55) -> 0 | F55: =-SUMIFS('C Schedule Import Data'!W:W,'C Schedule Import Data'!$A:$A,$X$3,'C Schedule Import Data'!$B:$B,$X55) -> 0 | G55: =-SUMIFS('C Schedule Import Data'!X:X,'C Schedule Import Data'!$A:$A,$X$3,'C Schedule Import Data'!$B:$B,$X55) -> 0 | H55: =-SUMIFS('C Schedule Import Data'!Y:Y,'C Schedule Import Data'!$A:$A,$X$3,'C Schedule Import Data'!$B:$B,$X55) -> 0 | I55: 0 | K55: =-SUMIFS('C Schedule Import Data'!Z:Z,'C Schedule Import Data'!$A:$A,$X$3,'C Schedule Import Data'!$B:$B,$X55) -> 0 | X55: 5.5 REV
A56: ='Org structure'!E52 ->  | C56: =-SUMIFS('C Schedule Import Data'!T:T,'C Schedule Import Data'!$A:$A,$X$3,'C Schedule Import Data'!$B:$B,$X56) -> 0 | D56: =-SUMIFS('C Schedule Import Data'!U:U,'C Schedule Import Data'!$A:$A,$X$3,'C Schedule Import Data'!$B:$B,$X56) -> 0 | E56: =-SUMIFS('C Schedule Import Data'!V:V,'C Schedule Import Data'!$A:$A,$X$3,'C Schedule Import Data'!$B:$B,$X56) -> 0 | F56: =-SUMIFS('C Schedule Import Data'!W:W,'C Schedule Import Data'!$A:$A,$X$3,'C Schedule Import Data'!$B:$B,$X56) -> 0 | G56: =-SUMIFS('C Schedule Import Data'!X:X,'C Schedule Import Data'!$A:$A,$X$3,'C Schedule Import Data'!$B:$B,$X56) -> 0 | H56: =-SUMIFS('C Schedule Import Data'!Y:Y,'C Schedule Import Data'!$A:$A,$X$3,'C Schedule Import Data'!$B:$B,$X56) -> 0 | I56: 0 | K56: =-SUMIFS('C Schedule Import Data'!Z:Z,'C Schedule Import Data'!$A:$A,$X$3,'C Schedule Import Data'!$B:$B,$X56) -> 0 | X56: 5.6 REV
A57: ='Org structure'!E53 ->  | C57: =-SUMIFS('C Schedule Import Data'!T:T,'C Schedule Import Data'!$A:$A,$X$3,'C Schedule Import Data'!$B:$B,$X57) -> 0 | D57: =-SUMIFS('C Schedule Import Data'!U:U,'C Schedule Import Data'!$A:$A,$X$3,'C Schedule Import Data'!$B:$B,$X57) -> 0 | E57: =-SUMIFS('C Schedule Import Data'!V:V,'C Schedule Import Data'!$A:$A,$X$3,'C Schedule Import Data'!$B:$B,$X57) -> 0 | F57: =-SUMIFS('C Schedule Import Data'!W:W,'C Schedule Import Data'!$A:$A,$X$3,'C Schedule Import Data'!$B:$B,$X57) -> 0 | G57: =-SUMIFS('C Schedule Import Data'!X:X,'C Schedule Import Data'!$A:$A,$X$3,'C Schedule Import Data'!$B:$B,$X57) -> 0 | H57: =-SUMIFS('C Schedule Import Data'!Y:Y,'C Schedule Import Data'!$A:$A,$X$3,'C Schedule Import Data'!$B:$B,$X57) -> 0 | I57: 0 | K57: =-SUMIFS('C Schedule Import Data'!Z:Z,'C Schedule Import Data'!$A:$A,$X$3,'C Schedule Import Data'!$B:$B,$X57) -> 0 | X57: 5.7 REV
A58: ='Org structure'!E54 ->  | C58: =-SUMIFS('C Schedule Import Data'!T:T,'C Schedule Import Data'!$A:$A,$X$3,'C Schedule Import Data'!$B:$B,$X58) -> 0 | D58: =-SUMIFS('C Schedule Import Data'!U:U,'C Schedule Import Data'!$A:$A,$X$3,'C Schedule Import Data'!$B:$B,$X58) -> 0 | E58: =-SUMIFS('C Schedule Import Data'!V:V,'C Schedule Import Data'!$A:$A,$X$3,'C Schedule Import Data'!$B:$B,$X58) -> 0 | F58: =-SUMIFS('C Schedule Import Data'!W:W,'C Schedule Import Data'!$A:$A,$X$3,'C Schedule Import Data'!$B:$B,$X58) -> 0 | G58: =-SUMIFS('C Schedule Import Data'!X:X,'C Schedule Import Data'!$A:$A,$X$3,'C Schedule Import Data'!$B:$B,$X58) -> 0 | H58: =-SUMIFS('C Schedule Import Data'!Y:Y,'C Schedule Import Data'!$A:$A,$X$3,'C Schedule Import Data'!$B:$B,$X58) -> 0 | I58: 0 | K58: =-SUMIFS('C Schedule Import Data'!Z:Z,'C Schedule Import Data'!$A:$A,$X$3,'C Schedule Import Data'!$B:$B,$X58) -> 0 | X58: 5.8 REV
A59: ='Org structure'!E55 ->  | C59: =-SUMIFS('C Schedule Import Data'!T:T,'C Schedule Import Data'!$A:$A,$X$3,'C Schedule Import Data'!$B:$B,$X59) -> 0 | D59: =-SUMIFS('C Schedule Import Data'!U:U,'C Schedule Import Data'!$A:$A,$X$3,'C Schedule Import Data'!$B:$B,$X59) -> 0 | E59: =-SUMIFS('C Schedule Import Data'!V:V,'C Schedule Import Data'!$A:$A,$X$3,'C Schedule Import Data'!$B:$B,$X59) -> 0 | F59: =-SUMIFS('C Schedule Import Data'!W:W,'C Schedule Import Data'!$A:$A,$X$3,'C Schedule Import Data'!$B:$B,$X59) -> 0 | G59: =-SUMIFS('C Schedule Import Data'!X:X,'C Schedule Import Data'!$A:$A,$X$3,'C Schedule Import Data'!$B:$B,$X59) -> 0 | H59: =-SUMIFS('C Schedule Import Data'!Y:Y,'C Schedule Import Data'!$A:$A,$X$3,'C Schedule Import Data'!$B:$B,$X59) -> 0 | I59: 0 | K59: =-SUMIFS('C Schedule Import Data'!Z:Z,'C Schedule Import Data'!$A:$A,$X$3,'C Schedule Import Data'!$B:$B,$X59) -> 0 | X59: 5.9 REV
A60: ='Org structure'!E56 ->  | C60: =-SUMIFS('C Schedule Import Data'!T:T,'C Schedule Import Data'!$A:$A,$X$3,'C Schedule Import Data'!$B:$B,$X60) -> 0 | D60: =-SUMIFS('C Schedule Import Data'!U:U,'C Schedule Import Data'!$A:$A,$X$3,'C Schedule Import Data'!$B:$B,$X60) -> 0 | E60: =-SUMIFS('C Schedule Import Data'!V:V,'C Schedule Import Data'!$A:$A,$X$3,'C Schedule Import Data'!$B:$B,$X60) -> 0 | F60: =-SUMIFS('C Schedule Import Data'!W:W,'C Schedule Import Data'!$A:$A,$X$3,'C Schedule Import Data'!$B:$B,$X60) -> 0 | G60: =-SUMIFS('C Schedule Import Data'!X:X,'C Schedule Import Data'!$A:$A,$X$3,'C Schedule Import Data'!$B:$B,$X60) -> 0 | H60: =-SUMIFS('C Schedule Import Data'!Y:Y,'C Schedule Import Data'!$A:$A,$X$3,'C Schedule Import Data'!$B:$B,$X60) -> 0 | I60: 0 | K60: =-SUMIFS('C Schedule Import Data'!Z:Z,'C Schedule Import Data'!$A:$A,$X$3,'C Schedule Import Data'!$B:$B,$X60) -> 0 | X60: 5.10 REV
A61: ='Org structure'!A7 -> Vote 6 - PUBLIC SAFETY | C61: =SUM(C62:C71) -> 0 | D61: =SUM(D62:D71) -> 3875000 | E61: 3875000 | F61: 188301.28 | G61: 1301978.98 | H61: 1937500 | I61: =G61-H61 -> -635521.02 | J61: =IF(I61=0,"",I61/H61) -> -0.328010849 | K61: 3875000
A62: ='Org structure'!E58 -> 6.1 - Law Enforcement/Traffic | C62: =-SUMIFS('C Schedule Import Data'!T:T,'C Schedule Import Data'!$A:$A,$X$3,'C Schedule Import Data'!$B:$B,$X62) -> 0 | D62: 3850000 | E62: =-SUMIFS('C Schedule Import Data'!V:V,'C Schedule Import Data'!$A:$A,$X$3,'C Schedule Import Data'!$B:$B,$X62) -> 3850000 | F62: =-SUMIFS('C Schedule Import Data'!W:W,'C Schedule Import Data'!$A:$A,$X$3,'C Schedule Import Data'!$B:$B,$X62) -> 188301.28 | G62: 1287099.96 | H62: =D62/12*6 -> 1925000 | I62: =G62-H62 -> -637900.04 | J62: =IF(I62=0,"",I62/H62) -> -0.3313766442 | K62: =D62 -> 3850000 | X62: 6.1 REV
A63: ='Org structure'!E59 -> 6.2 - Disaster Management - Fire | C63: =-SUMIFS('C Schedule Import Data'!T:T,'C Schedule Import Data'!$A:$A,$X$3,'C Schedule Import Data'!$B:$B,$X63) -> 0 | D63: 25000 | E63: =-SUMIFS('C Schedule Import Data'!V:V,'C Schedule Import Data'!$A:$A,$X$3,'C Schedule Import Data'!$B:$B,$X63) -> 25000 | F63: =-SUMIFS('C Schedule Import Data'!W:W,'C Schedule Import Data'!$A:$A,$X$3,'C Schedule Import Data'!$B:$B,$X63) -> 0 | G63: 14879.02 | H63: 12500 | I63: =G63-H63 -> 2379.02 | J63: =IF(I63=0,"",I63/H63) -> 0.1903216 | K63: 25000 | X63: 6.2 REV
A64: ='Org structure'!E60 ->  | C64: =-SUMIFS('C Schedule Import Data'!T:T,'C Schedule Import Data'!$A:$A,$X$3,'C Schedule Import Data'!$B:$B,$X64) -> 0 | D64: =-SUMIFS('C Schedule Import Data'!U:U,'C Schedule Import Data'!$A:$A,$X$3,'C Schedule Import Data'!$B:$B,$X64) -> 0 | E64: =-SUMIFS('C Schedule Import Data'!V:V,'C Schedule Import Data'!$A:$A,$X$3,'C Schedule Import Data'!$B:$B,$X64) -> 0 | F64: =-SUMIFS('C Schedule Import Data'!W:W,'C Schedule Import Data'!$A:$A,$X$3,'C Schedule Import Data'!$B:$B,$X64) -> 0 | G64: =-SUMIFS('C Schedule Import Data'!X:X,'C Schedule Import Data'!$A:$A,$X$3,'C Schedule Import Data'!$B:$B,$X64) -> 0 | H64: =-SUMIFS('C Schedule Import Data'!Y:Y,'C Schedule Import Data'!$A:$A,$X$3,'C Schedule Import Data'!$B:$B,$X64) -> 0 | I64: 0 | K64: =-SUMIFS('C Schedule Import Data'!Z:Z,'C Schedule Import Data'!$A:$A,$X$3,'C Schedule Import Data'!$B:$B,$X64) -> 0 | X64: 6.3 REV
A65: ='Org structure'!E61 ->  | C65: =-SUMIFS('C Schedule Import Data'!T:T,'C Schedule Import Data'!$A:$A,$X$3,'C Schedule Import Data'!$B:$B,$X65) -> 0 | D65: =-SUMIFS('C Schedule Import Data'!U:U,'C Schedule Import Data'!$A:$A,$X$3,'C Schedule Import Data'!$B:$B,$X65) -> 0 | E65: =-SUMIFS('C Schedule Import Data'!V:V,'C Schedule Import Data'!$A:$A,$X$3,'C Schedule Import Data'!$B:$B,$X65) -> 0 | F65: =-SUMIFS('C Schedule Import Data'!W:W,'C Schedule Import Data'!$A:$A,$X$3,'C Schedule Import Data'!$B:$B,$X65) -> 0 | G65: =-SUMIFS('C Schedule Import Data'!X:X,'C Schedule Import Data'!$A:$A,$X$3,'C Schedule Import Data'!$B:$B,$X65) -> 0 | H65: =-SUMIFS('C Schedule Import Data'!Y:Y,'C Schedule Import Data'!$A:$A,$X$3,'C Schedule Import Data'!$B:$B,$X65) -> 0 | I65: 0 | K65: =-SUMIFS('C Schedule Import Data'!Z:Z,'C Schedule Import Data'!$A:$A,$X$3,'C Schedule Import Data'!$B:$B,$X65) -> 0 | X65: 6.4 REV
A66: ='Org structure'!E62 ->  | C66: =-SUMIFS('C Schedule Import Data'!T:T,'C Schedule Import Data'!$A:$A,$X$3,'C Schedule Import Data'!$B:$B,$X66) -> 0 | D66: =-SUMIFS('C Schedule Import Data'!U:U,'C Schedule Import Data'!$A:$A,$X$3,'C Schedule Import Data'!$B:$B,$X66) -> 0 | E66: =-SUMIFS('C Schedule Import Data'!V:V,'C Schedule Import Data'!$A:$A,$X$3,'C Schedule Import Data'!$B:$B,$X66) -> 0 | F66: =-SUMIFS('C Schedule Import Data'!W:W,'C Schedule Import Data'!$A:$A,$X$3,'C Schedule Import Data'!$B:$B,$X66) -> 0 | G66: =-SUMIFS('C Schedule Import Data'!X:X,'C Schedule Import Data'!$A:$A,$X$3,'C Schedule Import Data'!$B:$B,$X66) -> 0 | H66: =-SUMIFS('C Schedule Import Data'!Y:Y,'C Schedule Import Data'!$A:$A,$X$3,'C Schedule Import Data'!$B:$B,$X66) -> 0 | I66: 0 | K66: =-SUMIFS('C Schedule Import Data'!Z:Z,'C Schedule Import Data'!$A:$A,$X$3,'C Schedule Import Data'!$B:$B,$X66) -> 0 | X66: 6.5 REV
A67: ='Org structure'!E63 ->  | C67: =-SUMIFS('C Schedule Import Data'!T:T,'C Schedule Import Data'!$A:$A,$X$3,'C Schedule Import Data'!$B:$B,$X67) -> 0 | D67: =-SUMIFS('C Schedule Import Data'!U:U,'C Schedule Import Data'!$A:$A,$X$3,'C Schedule Import Data'!$B:$B,$X67) -> 0 | E67: =-SUMIFS('C Schedule Import Data'!V:V,'C Schedule Import Data'!$A:$A,$X$3,'C Schedule Import Data'!$B:$B,$X67) -> 0 | F67: =-SUMIFS('C Schedule Import Data'!W:W,'C Schedule Import Data'!$A:$A,$X$3,'C Schedule Import Data'!$B:$B,$X67) -> 0 | G67: =-SUMIFS('C Schedule Import Data'!X:X,'C Schedule Import Data'!$A:$A,$X$3,'C Schedule Import Data'!$B:$B,$X67) -> 0 | H67: =-SUMIFS('C Schedule Import Data'!Y:Y,'C Schedule Import Data'!$A:$A,$X$3,'C Schedule Import Data'!$B:$B,$X67) -> 0 | I67: 0 | K67: =-SUMIFS('C Schedule Import Data'!Z:Z,'C Schedule Import Data'!$A:$A,$X$3,'C Schedule Import Data'!$B:$B,$X67) -> 0 | X67: 6.6 REV
A68: ='Org structure'!E64 ->  | C68: =-SUMIFS('C Schedule Import Data'!T:T,'C Schedule Import Data'!$A:$A,$X$3,'C Schedule Import Data'!$B:$B,$X68) -> 0 | D68: =-SUMIFS('C Schedule Import Data'!U:U,'C Schedule Import Data'!$A:$A,$X$3,'C Schedule Import Data'!$B:$B,$X68) -> 0 | E68: =-SUMIFS('C Schedule Import Data'!V:V,'C Schedule Import Data'!$A:$A,$X$3,'C Schedule Import Data'!$B:$B,$X68) -> 0 | F68: =-SUMIFS('C Schedule Import Data'!W:W,'C Schedule Import Data'!$A:$A,$X$3,'C Schedule Import Data'!$B:$B,$X68) -> 0 | G68: =-SUMIFS('C Schedule Import Data'!X:X,'C Schedule Import Data'!$A:$A,$X$3,'C Schedule Import Data'!$B:$B,$X68) -> 0 | H68: =-SUMIFS('C Schedule Import Data'!Y:Y,'C Schedule Import Data'!$A:$A,$X$3,'C Schedule Import Data'!$B:$B,$X68) -> 0 | I68: 0 | K68: =-SUMIFS('C Schedule Import Data'!Z:Z,'C Schedule Import Data'!$A:$A,$X$3,'C Schedule Import Data'!$B:$B,$X68) -> 0 | X68: 6.7 REV
A69: ='Org structure'!E65 ->  | C69: =-SUMIFS('C Schedule Import Data'!T:T,'C Schedule Import Data'!$A:$A,$X$3,'C Schedule Import Data'!$B:$B,$X69) -> 0 | D69: =-SUMIFS('C Schedule Import Data'!U:U,'C Schedule Import Data'!$A:$A,$X$3,'C Schedule Import Data'!$B:$B,$X69) -> 0 | E69: =-SUMIFS('C Schedule Import Data'!V:V,'C Schedule Import Data'!$A:$A,$X$3,'C Schedule Import Data'!$B:$B,$X69) -> 0 | F69: =-SUMIFS('C Schedule Import Data'!W:W,'C Schedule Import Data'!$A:$A,$X$3,'C Schedule Import Data'!$B:$B,$X69) -> 0 | G69: =-SUMIFS('C Schedule Import Data'!X:X,'C Schedule Import Data'!$A:$A,$X$3,'C Schedule Import Data'!$B:$B,$X69) -> 0 | H69: =-SUMIFS('C Schedule Import Data'!Y:Y,'C Schedule Import Data'!$A:$A,$X$3,'C Schedule Import Data'!$B:$B,$X69) -> 0 | I69: 0 | K69: =-SUMIFS('C Schedule Import Data'!Z:Z,'C Schedule Import Data'!$A:$A,$X$3,'C Schedule Import Data'!$B:$B,$X69) -> 0 | X69: 6.8 REV
A70: ='Org structure'!E66 ->  | C70: =-SUMIFS('C Schedule Import Data'!T:T,'C Schedule Import Data'!$A:$A,$X$3,'C Schedule Import Data'!$B:$B,$X70) -> 0 | D70: =-SUMIFS('C Schedule Import Data'!U:U,'C Schedule Import Data'!$A:$A,$X$3,'C Schedule Import Data'!$B:$B,$X70) -> 0 | E70: =-SUMIFS('C Schedule Import Data'!V:V,'C Schedule Import Data'!$A:$A,$X$3,'C Schedule Import Data'!$B:$B,$X70) -> 0 | F70: =-SUMIFS('C Schedule Import Data'!W:W,'C Schedule Import Data'!$A:$A,$X$3,'C Schedule Import Data'!$B:$B,$X70) -> 0 | G70: =-SUMIFS('C Schedule Import Data'!X:X,'C Schedule Import Data'!$A:$A,$X$3,'C Schedule Import Data'!$B:$B,$X70) -> 0 | H70: =-SUMIFS('C Schedule Import Data'!Y:Y,'C Schedule Import Data'!$A:$A,$X$3,'C Schedule Import Data'!$B:$B,$X70) -> 0 | I70: 0 | K70: =-SUMIFS('C Schedule Import Data'!Z:Z,'C Schedule Import Data'!$A:$A,$X$3,'C Schedule Import Data'!$B:$B,$X70) -> 0 | X70: 6.9 REV
A71: ='Org structure'!E67 ->  | C71: =-SUMIFS('C Schedule Import Data'!T:T,'C Schedule Import Data'!$A:$A,$X$3,'C Schedule Import Data'!$B:$B,$X71) -> 0 | D71: =-SUMIFS('C Schedule Import Data'!U:U,'C Schedule Import Data'!$A:$A,$X$3,'C Schedule Import Data'!$B:$B,$X71) -> 0 | E71: =-SUMIFS('C Schedule Import Data'!V:V,'C Schedule Import Data'!$A:$A,$X$3,'C Schedule Import Data'!$B:$B,$X71) -> 0 | F71: =-SUMIFS('C Schedule Import Data'!W:W,'C Schedule Import Data'!$A:$A,$X$3,'C Schedule Import Data'!$B:$B,$X71) -> 0 | G71: =-SUMIFS('C Schedule Import Data'!X:X,'C Schedule Import Data'!$A:$A,$X$3,'C Schedule Import Data'!$B:$B,$X71) -> 0 | H71: =-SUMIFS('C Schedule Import Data'!Y:Y,'C Schedule Import Data'!$A:$A,$X$3,'C Schedule Import Data'!$B:$B,$X71) -> 0 | I71: 0 | K71: =-SUMIFS('C Schedule Import Data'!Z:Z,'C Schedule Import Data'!$A:$A,$X$3,'C Schedule Import Data'!$B:$B,$X71) -> 0 | X71: 6.10 REV
A72: ='Org structure'!A8 -> Vote 7 - HOUSING | C72: =SUM(C73:C82) -> 0 | D72: 0 | E72: 0 | F72: 0 | G72: 0 | H72: 0 | I72: =G72-H72 -> 0 | J72: =IF(I72=0,"",I72/H72) ->  | K72: 0
A73: ='Org structure'!E69 -> 7.1 - Housing | C73: =-SUMIFS('C Schedule Import Data'!T:T,'C Schedule Import Data'!$A:$A,$X$3,'C Schedule Import Data'!$B:$B,$X73) -> 0 | D73: =-SUMIFS('C Schedule Import Data'!U:U,'C Schedule Import Data'!$A:$A,$X$3,'C Schedule Import Data'!$B:$B,$X73) -> 0 | E73: =-SUMIFS('C Schedule Import Data'!V:V,'C Schedule Import Data'!$A:$A,$X$3,'C Schedule Import Data'!$B:$B,$X73) -> 0 | F73: =-SUMIFS('C Schedule Import Data'!W:W,'C Schedule Import Data'!$A:$A,$X$3,'C Schedule Import Data'!$B:$B,$X73) -> 0 | G73: =-SUMIFS('C Schedule Import Data'!X:X,'C Schedule Import Data'!$A:$A,$X$3,'C Schedule Import Data'!$B:$B,$X73) -> 0 | H73: =-SUMIFS('C Schedule Import Data'!Y:Y,'C Schedule Import Data'!$A:$A,$X$3,'C Schedule Import Data'!$B:$B,$X73) -> 0 | I73: =G73-H73 -> 0 | J73: =IF(I73=0,"",I73/H73) ->  | K73: =-SUMIFS('C Schedule Import Data'!Z:Z,'C Schedule Import Data'!$A:$A,$X$3,'C Schedule Import Data'!$B:$B,$X73) -> 0 | X73: 7.1 REV
A74: ='Org structure'!E70 ->  | C74: =-SUMIFS('C Schedule Import Data'!T:T,'C Schedule Import Data'!$A:$A,$X$3,'C Schedule Import Data'!$B:$B,$X74) -> 0 | D74: =-SUMIFS('C Schedule Import Data'!U:U,'C Schedule Import Data'!$A:$A,$X$3,'C Schedule Import Data'!$B:$B,$X74) -> 0 | E74: =-SUMIFS('C Schedule Import Data'!V:V,'C Schedule Import Data'!$A:$A,$X$3,'C Schedule Import Data'!$B:$B,$X74) -> 0 | F74: =-SUMIFS('C Schedule Import Data'!W:W,'C Schedule Import Data'!$A:$A,$X$3,'C Schedule Import Data'!$B:$B,$X74) -> 0 | G74: =-SUMIFS('C Schedule Import Data'!X:X,'C Schedule Import Data'!$A:$A,$X$3,'C Schedule Import Data'!$B:$B,$X74) -> 0 | H74: =-SUMIFS('C Schedule Import Data'!Y:Y,'C Schedule Import Data'!$A:$A,$X$3,'C Schedule Import Data'!$B:$B,$X74) -> 0 | I74: =G74-H74 -> 0 | J74: =IF(I74=0,"",I74/H74) ->  | K74: =-SUMIFS('C Schedule Import Data'!Z:Z,'C Schedule Import Data'!$A:$A,$X$3,'C Schedule Import Data'!$B:$B,$X74) -> 0 | X74: 7.2 REV
A75: ='Org structure'!E71 ->  | C75: =-SUMIFS('C Schedule Import Data'!T:T,'C Schedule Import Data'!$A:$A,$X$3,'C Schedule Import Data'!$B:$B,$X75) -> 0 | D75: =-SUMIFS('C Schedule Import Data'!U:U,'C Schedule Import Data'!$A:$A,$X$3,'C Schedule Import Data'!$B:$B,$X75) -> 0 | E75: =-SUMIFS('C Schedule Import Data'!V:V,'C Schedule Import Data'!$A:$A,$X$3,'C Schedule Import Data'!$B:$B,$X75) -> 0 | F75: =-SUMIFS('C Schedule Import Data'!W:W,'C Schedule Import Data'!$A:$A,$X$3,'C Schedule Import Data'!$B:$B,$X75) -> 0 | G75: =-SUMIFS('C Schedule Import Data'!X:X,'C Schedule Import Data'!$A:$A,$X$3,'C Schedule Import Data'!$B:$B,$X75) -> 0 | H75: =-SUMIFS('C Schedule Import Data'!Y:Y,'C Schedule Import Data'!$A:$A,$X$3,'C Schedule Import Data'!$B:$B,$X75) -> 0 | I75: 0 | K75: =-SUMIFS('C Schedule Import Data'!Z:Z,'C Schedule Import Data'!$A:$A,$X$3,'C Schedule Import Data'!$B:$B,$X75) -> 0 | X75: 7.3 REV
A76: ='Org structure'!E72 ->  | C76: =-SUMIFS('C Schedule Import Data'!T:T,'C Schedule Import Data'!$A:$A,$X$3,'C Schedule Import Data'!$B:$B,$X76) -> 0 | D76: =-SUMIFS('C Schedule Import Data'!U:U,'C Schedule Import Data'!$A:$A,$X$3,'C Schedule Import Data'!$B:$B,$X76) -> 0 | E76: =-SUMIFS('C Schedule Import Data'!V:V,'C Schedule Import Data'!$A:$A,$X$3,'C Schedule Import Data'!$B:$B,$X76) -> 0 | F76: =-SUMIFS('C Schedule Import Data'!W:W,'C Schedule Import Data'!$A:$A,$X$3,'C Schedule Import Data'!$B:$B,$X76) -> 0 | G76: =-SUMIFS('C Schedule Import Data'!X:X,'C Schedule Import Data'!$A:$A,$X$3,'C Schedule Import Data'!$B:$B,$X76) -> 0 | H76: =-SUMIFS('C Schedule Import Data'!Y:Y,'C Schedule Import Data'!$A:$A,$X$3,'C Schedule Import Data'!$B:$B,$X76) -> 0 | I76: 0 | K76: =-SUMIFS('C Schedule Import Data'!Z:Z,'C Schedule Import Data'!$A:$A,$X$3,'C Schedule Import Data'!$B:$B,$X76) -> 0 | X76: 7.4 REV
A77: ='Org structure'!E73 ->  | C77: =-SUMIFS('C Schedule Import Data'!T:T,'C Schedule Import Data'!$A:$A,$X$3,'C Schedule Import Data'!$B:$B,$X77) -> 0 | D77: =-SUMIFS('C Schedule Import Data'!U:U,'C Schedule Import Data'!$A:$A,$X$3,'C Schedule Import Data'!$B:$B,$X77) -> 0 | E77: =-SUMIFS('C Schedule Import Data'!V:V,'C Schedule Import Data'!$A:$A,$X$3,'C Schedule Import Data'!$B:$B,$X77) -> 0 | F77: =-SUMIFS('C Schedule Import Data'!W:W,'C Schedule Import Data'!$A:$A,$X$3,'C Schedule Import Data'!$B:$B,$X77) -> 0 | G77: =-SUMIFS('C Schedule Import Data'!X:X,'C Schedule Import Data'!$A:$A,$X$3,'C Schedule Import Data'!$B:$B,$X77) -> 0 | H77: =-SUMIFS('C Schedule Import Data'!Y:Y,'C Schedule Import Data'!$A:$A,$X$3,'C Schedule Import Data'!$B:$B,$X77) -> 0 | I77: 0 | K77: =-SUMIFS('C Schedule Import Data'!Z:Z,'C Schedule Import Data'!$A:$A,$X$3,'C Schedule Import Data'!$B:$B,$X77) -> 0 | X77: 7.5 REV
A78: ='Org structure'!E74 ->  | C78: =-SUMIFS('C Schedule Import Data'!T:T,'C Schedule Import Data'!$A:$A,$X$3,'C Schedule Import Data'!$B:$B,$X78) -> 0 | D78: =-SUMIFS('C Schedule Import Data'!U:U,'C Schedule Import Data'!$A:$A,$X$3,'C Schedule Import Data'!$B:$B,$X78) -> 0 | E78: =-SUMIFS('C Schedule Import Data'!V:V,'C Schedule Import Data'!$A:$A,$X$3,'C Schedule Import Data'!$B:$B,$X78) -> 0 | F78: =-SUMIFS('C Schedule Import Data'!W:W,'C Schedule Import Data'!$A:$A,$X$3,'C Schedule Import Data'!$B:$B,$X78) -> 0 | G78: =-SUMIFS('C Schedule Import Data'!X:X,'C Schedule Import Data'!$A:$A,$X$3,'C Schedule Import Data'!$B:$B,$X78) -> 0 | H78: =-SUMIFS('C Schedule Import Data'!Y:Y,'C Schedule Import Data'!$A:$A,$X$3,'C Schedule Import Data'!$B:$B,$X78) -> 0 | I78: 0 | K78: =-SUMIFS('C Schedule Import Data'!Z:Z,'C Schedule Import Data'!$A:$A,$X$3,'C Schedule Import Data'!$B:$B,$X78) -> 0 | X78: 7.6 REV
A79: ='Org structure'!E75 ->  | C79: =-SUMIFS('C Schedule Import Data'!T:T,'C Schedule Import Data'!$A:$A,$X$3,'C Schedule Import Data'!$B:$B,$X79) -> 0 | D79: =-SUMIFS('C Schedule Import Data'!U:U,'C Schedule Import Data'!$A:$A,$X$3,'C Schedule Import Data'!$B:$B,$X79) -> 0 | E79: =-SUMIFS('C Schedule Import Data'!V:V,'C Schedule Import Data'!$A:$A,$X$3,'C Schedule Import Data'!$B:$B,$X79) -> 0 | F79: =-SUMIFS('C Schedule Import Data'!W:W,'C Schedule Import Data'!$A:$A,$X$3,'C Schedule Import Data'!$B:$B,$X79) -> 0 | G79: =-SUMIFS('C Schedule Import Data'!X:X,'C Schedule Import Data'!$A:$A,$X$3,'C Schedule Import Data'!$B:$B,$X79) -> 0 | H79: =-SUMIFS('C Schedule Import Data'!Y:Y,'C Schedule Import Data'!$A:$A,$X$3,'C Schedule Import Data'!$B:$B,$X79) -> 0 | I79: 0 | K79: =-SUMIFS('C Schedule Import Data'!Z:Z,'C Schedule Import Data'!$A:$A,$X$3,'C Schedule Import Data'!$B:$B,$X79) -> 0 | X79: 7.7 REV
A80: ='Org structure'!E76 ->  | C80: =-SUMIFS('C Schedule Import Data'!T:T,'C Schedule Import Data'!$A:$A,$X$3,'C Schedule Import Data'!$B:$B,$X80) -> 0 | D80: =-SUMIFS('C Schedule Import Data'!U:U,'C Schedule Import Data'!$A:$A,$X$3,'C Schedule Import Data'!$B:$B,$X80) -> 0 | E80: =-SUMIFS('C Schedule Import Data'!V:V,'C Schedule Import Data'!$A:$A,$X$3,'C Schedule Import Data'!$B:$B,$X80) -> 0 | F80: =-SUMIFS('C Schedule Import Data'!W:W,'C Schedule Import Data'!$A:$A,$X$3,'C Schedule Import Data'!$B:$B,$X80) -> 0 | G80: =-SUMIFS('C Schedule Import Data'!X:X,'C Schedule Import Data'!$A:$A,$X$3,'C Schedule Import Data'!$B:$B,$X80) -> 0 | H80: =-SUMIFS('C Schedule Import Data'!Y:Y,'C Schedule Import Data'!$A:$A,$X$3,'C Schedule Import Data'!$B:$B,$X80) -> 0 | I80: 0 | K80: =-SUMIFS('C Schedule Import Data'!Z:Z,'C Schedule Import Data'!$A:$A,$X$3,'C Schedule Import Data'!$B:$B,$X80) -> 0 | X80: 7.8 REV
A81: ='Org structure'!E77 ->  | C81: =-SUMIFS('C Schedule Import Data'!T:T,'C Schedule Import Data'!$A:$A,$X$3,'C Schedule Import Data'!$B:$B,$X81) -> 0 | D81: =-SUMIFS('C Schedule Import Data'!U:U,'C Schedule Import Data'!$A:$A,$X$3,'C Schedule Import Data'!$B:$B,$X81) -> 0 | E81: =-SUMIFS('C Schedule Import Data'!V:V,'C Schedule Import Data'!$A:$A,$X$3,'C Schedule Import Data'!$B:$B,$X81) -> 0 | F81: =-SUMIFS('C Schedule Import Data'!W:W,'C Schedule Import Data'!$A:$A,$X$3,'C Schedule Import Data'!$B:$B,$X81) -> 0 | G81: =-SUMIFS('C Schedule Import Data'!X:X,'C Schedule Import Data'!$A:$A,$X$3,'C Schedule Import Data'!$B:$B,$X81) -> 0 | H81: =-SUMIFS('C Schedule Import Data'!Y:Y,'C Schedule Import Data'!$A:$A,$X$3,'C Schedule Import Data'!$B:$B,$X81) -> 0 | I81: 0 | K81: =-SUMIFS('C Schedule Import Data'!Z:Z,'C Schedule Import Data'!$A:$A,$X$3,'C Schedule Import Data'!$B:$B,$X81) -> 0 | X81: 7.9 REV
A82: ='Org structure'!E78 ->  | C82: =-SUMIFS('C Schedule Import Data'!T:T,'C Schedule Import Data'!$A:$A,$X$3,'C Schedule Import Data'!$B:$B,$X82) -> 0 | D82: =-SUMIFS('C Schedule Import Data'!U:U,'C Schedule Import Data'!$A:$A,$X$3,'C Schedule Import Data'!$B:$B,$X82) -> 0 | E82: =-SUMIFS('C Schedule Import Data'!V:V,'C Schedule Import Data'!$A:$A,$X$3,'C Schedule Import Data'!$B:$B,$X82) -> 0 | F82: =-SUMIFS('C Schedule Import Data'!W:W,'C Schedule Import Data'!$A:$A,$X$3,'C Schedule Import Data'!$B:$B,$X82) -> 0 | G82: =-SUMIFS('C Schedule Import Data'!X:X,'C Schedule Import Data'!$A:$A,$X$3,'C Schedule Import Data'!$B:$B,$X82) -> 0 | H82: =-SUMIFS('C Schedule Import Data'!Y:Y,'C Schedule Import Data'!$A:$A,$X$3,'C Schedule Import Data'!$B:$B,$X82) -> 0 | I82: 0 | K82: =-SUMIFS('C Schedule Import Data'!Z:Z,'C Schedule Import Data'!$A:$A,$X$3,'C Schedule Import Data'!$B:$B,$X82) -> 0 | X82: 7.10 REV
A83: ='Org structure'!A9 -> Vote 8 - INFRASTRUCTURE, PLANNING & DEVELOPMENT | C83: =SUM(C84:C93) -> 0 | D83: =SUM(D84:D93) -> 135000 | E83: 135000 | F83: 4614.5 | G83: 30479.74 | H83: 67500 | I83: =G83-H83 -> -37020.26 | J83: =IF(I83=0,"",I83/H83) -> -0.5484482963 | K83: 135000
A84: ='Org structure'!E80 -> 8.1 - Economic Planning & Development | C84: =-SUMIFS('C Schedule Import Data'!T:T,'C Schedule Import Data'!$A:$A,$X$3,'C Schedule Import Data'!$B:$B,$X84) -> 0 | D84: 35000 | E84: =-SUMIFS('C Schedule Import Data'!V:V,'C Schedule Import Data'!$A:$A,$X$3,'C Schedule Import Data'!$B:$B,$X84) -> 35000 | F84: =-SUMIFS('C Schedule Import Data'!W:W,'C Schedule Import Data'!$A:$A,$X$3,'C Schedule Import Data'!$B:$B,$X84) -> 0 | G84: 1400 | H84: =D84/12*6 -> 17500 | I84: =G84-H84 -> -16100 | J84: =IF(I84=0,"",I84/H84) -> -0.92 | K84: =D84 -> 35000 | X84: 8.1 REV
A85: ='Org structure'!E81 -> 8.2 - Town Planning | C85: =-SUMIFS('C Schedule Import Data'!T:T,'C Schedule Import Data'!$A:$A,$X$3,'C Schedule Import Data'!$B:$B,$X85) -> 0 | D85: 100000 | E85: =-SUMIFS('C Schedule Import Data'!V:V,'C Schedule Import Data'!$A:$A,$X$3,'C Schedule Import Data'!$B:$B,$X85) -> 100000 | F85: =-SUMIFS('C Schedule Import Data'!W:W,'C Schedule Import Data'!$A:$A,$X$3,'C Schedule Import Data'!$B:$B,$X85) -> 4614.5 | G85: 29079.74 | H85: 50000 | I85: =G85-H85 -> -20920.26 | J85: =IF(I85=0,"",I85/H85) -> -0.4184052 | K85: 100000 | X85: 8.2 REV
A86: ='Org structure'!E82 ->  | C86: =-SUMIFS('C Schedule Import Data'!T:T,'C Schedule Import Data'!$A:$A,$X$3,'C Schedule Import Data'!$B:$B,$X86) -> 0 | D86: =-SUMIFS('C Schedule Import Data'!U:U,'C Schedule Import Data'!$A:$A,$X$3,'C Schedule Import Data'!$B:$B,$X86) -> 0 | E86: =-SUMIFS('C Schedule Import Data'!V:V,'C Schedule Import Data'!$A:$A,$X$3,'C Schedule Import Data'!$B:$B,$X86) -> 0 | F86: =-SUMIFS('C Schedule Import Data'!W:W,'C Schedule Import Data'!$A:$A,$X$3,'C Schedule Import Data'!$B:$B,$X86) -> 0 | G86: =-SUMIFS('C Schedule Import Data'!X:X,'C Schedule Import Data'!$A:$A,$X$3,'C Schedule Import Data'!$B:$B,$X86) -> 0 | H86: =-SUMIFS('C Schedule Import Data'!Y:Y,'C Schedule Import Data'!$A:$A,$X$3,'C Schedule Import Data'!$B:$B,$X86) -> 0 | I86: 0 | K86: =-SUMIFS('C Schedule Import Data'!Z:Z,'C Schedule Import Data'!$A:$A,$X$3,'C Schedule Import Data'!$B:$B,$X86) -> 0 | X86: 8.3 REV
A87: ='Org structure'!E83 ->  | C87: =-SUMIFS('C Schedule Import Data'!T:T,'C Schedule Import Data'!$A:$A,$X$3,'C Schedule Import Data'!$B:$B,$X87) -> 0 | D87: =-SUMIFS('C Schedule Import Data'!U:U,'C Schedule Import Data'!$A:$A,$X$3,'C Schedule Import Data'!$B:$B,$X87) -> 0 | E87: =-SUMIFS('C Schedule Import Data'!V:V,'C Schedule Import Data'!$A:$A,$X$3,'C Schedule Import Data'!$B:$B,$X87) -> 0 | F87: =-SUMIFS('C Schedule Import Data'!W:W,'C Schedule Import Data'!$A:$A,$X$3,'C Schedule Import Data'!$B:$B,$X87) -> 0 | G87: =-SUMIFS('C Schedule Import Data'!X:X,'C Schedule Import Data'!$A:$A,$X$3,'C Schedule Import Data'!$B:$B,$X87) -> 0 | H87: =-SUMIFS('C Schedule Import Data'!Y:Y,'C Schedule Import Data'!$A:$A,$X$3,'C Schedule Import Data'!$B:$B,$X87) -> 0 | I87: 0 | K87: =-SUMIFS('C Schedule Import Data'!Z:Z,'C Schedule Import Data'!$A:$A,$X$3,'C Schedule Import Data'!$B:$B,$X87) -> 0 | X87: 8.4 REV
A88: ='Org structure'!E84 ->  | C88: =-SUMIFS('C Schedule Import Data'!T:T,'C Schedule Import Data'!$A:$A,$X$3,'C Schedule Import Data'!$B:$B,$X88) -> 0 | D88: =-SUMIFS('C Schedule Import Data'!U:U,'C Schedule Import Data'!$A:$A,$X$3,'C Schedule Import Data'!$B:$B,$X88) -> 0 | E88: =-SUMIFS('C Schedule Import Data'!V:V,'C Schedule Import Data'!$A:$A,$X$3,'C Schedule Import Data'!$B:$B,$X88) -> 0 | F88: =-SUMIFS('C Schedule Import Data'!W:W,'C Schedule Import Data'!$A:$A,$X$3,'C Schedule Import Data'!$B:$B,$X88) -> 0 | G88: =-SUMIFS('C Schedule Import Data'!X:X,'C Schedule Import Data'!$A:$A,$X$3,'C Schedule Import Data'!$B:$B,$X88) -> 0 | H88: =-SUMIFS('C Schedule Import Data'!Y:Y,'C Schedule Import Data'!$A:$A,$X$3,'C Schedule Import Data'!$B:$B,$X88) -> 0 | I88: 0 | K88: =-SUMIFS('C Schedule Import Data'!Z:Z,'C Schedule Import Data'!$A:$A,$X$3,'C Schedule Import Data'!$B:$B,$X88) -> 0 | X88: 8.5 REV
A89: ='Org structure'!E85 ->  | C89: =-SUMIFS('C Schedule Import Data'!T:T,'C Schedule Import Data'!$A:$A,$X$3,'C Schedule Import Data'!$B:$B,$X89) -> 0 | D89: =-SUMIFS('C Schedule Import Data'!U:U,'C Schedule Import Data'!$A:$A,$X$3,'C Schedule Import Data'!$B:$B,$X89) -> 0 | E89: =-SUMIFS('C Schedule Import Data'!V:V,'C Schedule Import Data'!$A:$A,$X$3,'C Schedule Import Data'!$B:$B,$X89) -> 0 | F89: =-SUMIFS('C Schedule Import Data'!W:W,'C Schedule Import Data'!$A:$A,$X$3,'C Schedule Import Data'!$B:$B,$X89) -> 0 | G89: =-SUMIFS('C Schedule Import Data'!X:X,'C Schedule Import Data'!$A:$A,$X$3,'C Schedule Import Data'!$B:$B,$X89) -> 0 | H89: =-SUMIFS('C Schedule Import Data'!Y:Y,'C Schedule Import Data'!$A:$A,$X$3,'C Schedule Import Data'!$B:$B,$X89) -> 0 | I89: 0 | K89: =-SUMIFS('C Schedule Import Data'!Z:Z,'C Schedule Import Data'!$A:$A,$X$3,'C Schedule Import Data'!$B:$B,$X89) -> 0 | X89: 8.6 REV
A90: ='Org structure'!E86 ->  | C90: =-SUMIFS('C Schedule Import Data'!T:T,'C Schedule Import Data'!$A:$A,$X$3,'C Schedule Import Data'!$B:$B,$X90) -> 0 | D90: =-SUMIFS('C Schedule Import Data'!U:U,'C Schedule Import Data'!$A:$A,$X$3,'C Schedule Import Data'!$B:$B,$X90) -> 0 | E90: =-SUMIFS('C Schedule Import Data'!V:V,'C Schedule Import Data'!$A:$A,$X$3,'C Schedule Import Data'!$B:$B,$X90) -> 0 | F90: =-SUMIFS('C Schedule Import Data'!W:W,'C Schedule Import Data'!$A:$A,$X$3,'C Schedule Import Data'!$B:$B,$X90) -> 0 | G90: =-SUMIFS('C Schedule Import Data'!X:X,'C Schedule Import Data'!$A:$A,$X$3,'C Schedule Import Data'!$B:$B,$X90) -> 0 | H90: =-SUMIFS('C Schedule Import Data'!Y:Y,'C Schedule Import Data'!$A:$A,$X$3,'C Schedule Import Data'!$B:$B,$X90) -> 0 | I90: 0 | K90: =-SUMIFS('C Schedule Import Data'!Z:Z,'C Schedule Import Data'!$A:$A,$X$3,'C Schedule Import Data'!$B:$B,$X90) -> 0 | X90: 8.7 REV
A91: ='Org structure'!E87 ->  | C91: =-SUMIFS('C Schedule Import Data'!T:T,'C Schedule Import Data'!$A:$A,$X$3,'C Schedule Import Data'!$B:$B,$X91) -> 0 | D91: =-SUMIFS('C Schedule Import Data'!U:U,'C Schedule Import Data'!$A:$A,$X$3,'C Schedule Import Data'!$B:$B,$X91) -> 0 | E91: =-SUMIFS('C Schedule Import Data'!V:V,'C Schedule Import Data'!$A:$A,$X$3,'C Schedule Import Data'!$B:$B,$X91) -> 0 | F91: =-SUMIFS('C Schedule Import Data'!W:W,'C Schedule Import Data'!$A:$A,$X$3,'C Schedule Import Data'!$B:$B,$X91) -> 0 | G91: =-SUMIFS('C Schedule Import Data'!X:X,'C Schedule Import Data'!$A:$A,$X$3,'C Schedule Import Data'!$B:$B,$X91) -> 0 | H91: =-SUMIFS('C Schedule Import Data'!Y:Y,'C Schedule Import Data'!$A:$A,$X$3,'C Schedule Import Data'!$B:$B,$X91) -> 0 | I91: 0 | K91: =-SUMIFS('C Schedule Import Data'!Z:Z,'C Schedule Import Data'!$A:$A,$X$3,'C Schedule Import Data'!$B:$B,$X91) -> 0 | X91: 8.8 REV
A92: ='Org structure'!E88 ->  | C92: =-SUMIFS('C Schedule Import Data'!T:T,'C Schedule Import Data'!$A:$A,$X$3,'C Schedule Import Data'!$B:$B,$X92) -> 0 | D92: =-SUMIFS('C Schedule Import Data'!U:U,'C Schedule Import Data'!$A:$A,$X$3,'C Schedule Import Data'!$B:$B,$X92) -> 0 | E92: =-SUMIFS('C Schedule Import Data'!V:V,'C Schedule Import Data'!$A:$A,$X$3,'C Schedule Import Data'!$B:$B,$X92) -> 0 | F92: =-SUMIFS('C Schedule Import Data'!W:W,'C Schedule Import Data'!$A:$A,$X$3,'C Schedule Import Data'!$B:$B,$X92) -> 0 | G92: =-SUMIFS('C Schedule Import Data'!X:X,'C Schedule Import Data'!$A:$A,$X$3,'C Schedule Import Data'!$B:$B,$X92) -> 0 | H92: =-SUMIFS('C Schedule Import Data'!Y:Y,'C Schedule Import Data'!$A:$A,$X$3,'C Schedule Import Data'!$B:$B,$X92) -> 0 | I92: 0 | K92: =-SUMIFS('C Schedule Import Data'!Z:Z,'C Schedule Import Data'!$A:$A,$X$3,'C Schedule Import Data'!$B:$B,$X92) -> 0 | X92: 8.9 REV
A93: ='Org structure'!E89 ->  | C93: =-SUMIFS('C Schedule Import Data'!T:T,'C Schedule Import Data'!$A:$A,$X$3,'C Schedule Import Data'!$B:$B,$X93) -> 0 | D93: =-SUMIFS('C Schedule Import Data'!U:U,'C Schedule Import Data'!$A:$A,$X$3,'C Schedule Import Data'!$B:$B,$X93) -> 0 | E93: =-SUMIFS('C Schedule Import Data'!V:V,'C Schedule Import Data'!$A:$A,$X$3,'C Schedule Import Data'!$B:$B,$X93) -> 0 | F93: =-SUMIFS('C Schedule Import Data'!W:W,'C Schedule Import Data'!$A:$A,$X$3,'C Schedule Import Data'!$B:$B,$X93) -> 0 | G93: =-SUMIFS('C Schedule Import Data'!X:X,'C Schedule Import Data'!$A:$A,$X$3,'C Schedule Import Data'!$B:$B,$X93) -> 0 | H93: =-SUMIFS('C Schedule Import Data'!Y:Y,'C Schedule Import Data'!$A:$A,$X$3,'C Schedule Import Data'!$B:$B,$X93) -> 0 | I93: 0 | K93: =-SUMIFS('C Schedule Import Data'!Z:Z,'C Schedule Import Data'!$A:$A,$X$3,'C Schedule Import Data'!$B:$B,$X93) -> 0 | X93: 8.10 REV
A94: ='Org structure'!A10 -> Vote 9 - ROADS TRANSPORT | C94: =SUM(C95:C104) -> 0 | D94: =SUM(D95:D104) -> 49694052 | E94: 49694052 | F94: 6617429.13 | G94: 25458118.41 | H94: 24847026 | I94: =G94-H94 -> 611092.41 | J94: =IF(I94=0,"",I94/H94) -> 0.02459418725 | K94: 49694052
A95: ='Org structure'!E91 -> 9.1 - Roads | C95: =-SUMIFS('C Schedule Import Data'!T:T,'C Schedule Import Data'!$A:$A,$X$3,'C Schedule Import Data'!$B:$B,$X95) -> 0 | D95: 1060000 | E95: =-SUMIFS('C Schedule Import Data'!V:V,'C Schedule Import Data'!$A:$A,$X$3,'C Schedule Import Data'!$B:$B,$X95) -> 1060000 | F95: =-SUMIFS('C Schedule Import Data'!W:W,'C Schedule Import Data'!$A:$A,$X$3,'C Schedule Import Data'!$B:$B,$X95) -> 458268.51 | G95: 534048.3 | H95: =D95/12*6 -> 530000 | I95: =G95-H95 -> 4048.3 | J95: =IF(I95=0,"",I95/H95) -> 0.007638301887 | K95: =D95 -> 1060000 | X95: 9.1 REV
A96: ='Org structure'!E92 -> 9.2 - Vehicle Licencing & Testing | C96: =-SUMIFS('C Schedule Import Data'!T:T,'C Schedule Import Data'!$A:$A,$X$3,'C Schedule Import Data'!$B:$B,$X96) -> 0 | D96: 800000 | E96: =-SUMIFS('C Schedule Import Data'!V:V,'C Schedule Import Data'!$A:$A,$X$3,'C Schedule Import Data'!$B:$B,$X96) -> 800000 | F96: =-SUMIFS('C Schedule Import Data'!W:W,'C Schedule Import Data'!$A:$A,$X$3,'C Schedule Import Data'!$B:$B,$X96) -> 42822.53 | G96: 298686.32 | H96: 400000 | I96: =G96-H96 -> -101313.68 | J96: =IF(I96=0,"",I96/H96) -> -0.2532842 | K96: 800000 | X96: 9.2 REV
A97: ='Org structure'!E93 -> 9.3 - Technical Services | C97: =-SUMIFS('C Schedule Import Data'!T:T,'C Schedule Import Data'!$A:$A,$X$3,'C Schedule Import Data'!$B:$B,$X97) -> 0 | D97: 47834052 | E97: =-SUMIFS('C Schedule Import Data'!V:V,'C Schedule Import Data'!$A:$A,$X$3,'C Schedule Import Data'!$B:$B,$X97) -> 47834052 | F97: =-SUMIFS('C Schedule Import Data'!W:W,'C Schedule Import Data'!$A:$A,$X$3,'C Schedule Import Data'!$B:$B,$X97) -> 6116338.09 | G97: 24625383.79 | H97: 23917026 | I97: 708357.79 | J97: 0.02961730234 | K97: 47834052 | X97: 9.3 REV
A98: ='Org structure'!E94 ->  | C98: =-SUMIFS('C Schedule Import Data'!T:T,'C Schedule Import Data'!$A:$A,$X$3,'C Schedule Import Data'!$B:$B,$X98) -> 0 | D98: =-SUMIFS('C Schedule Import Data'!U:U,'C Schedule Import Data'!$A:$A,$X$3,'C Schedule Import Data'!$B:$B,$X98) -> 0 | E98: =-SUMIFS('C Schedule Import Data'!V:V,'C Schedule Import Data'!$A:$A,$X$3,'C Schedule Import Data'!$B:$B,$X98) -> 0 | F98: =-SUMIFS('C Schedule Import Data'!W:W,'C Schedule Import Data'!$A:$A,$X$3,'C Schedule Import Data'!$B:$B,$X98) -> 0 | G98: =-SUMIFS('C Schedule Import Data'!X:X,'C Schedule Import Data'!$A:$A,$X$3,'C Schedule Import Data'!$B:$B,$X98) -> 0 | H98: =-SUMIFS('C Schedule Import Data'!Y:Y,'C Schedule Import Data'!$A:$A,$X$3,'C Schedule Import Data'!$B:$B,$X98) -> 0 | I98: 0 | K98: =-SUMIFS('C Schedule Import Data'!Z:Z,'C Schedule Import Data'!$A:$A,$X$3,'C Schedule Import Data'!$B:$B,$X98) -> 0 | X98: 9.4 REV
A99: ='Org structure'!E95 ->  | C99: =-SUMIFS('C Schedule Import Data'!T:T,'C Schedule Import Data'!$A:$A,$X$3,'C Schedule Import Data'!$B:$B,$X99) -> 0 | D99: =-SUMIFS('C Schedule Import Data'!U:U,'C Schedule Import Data'!$A:$A,$X$3,'C Schedule Import Data'!$B:$B,$X99) -> 0 | E99: =-SUMIFS('C Schedule Import Data'!V:V,'C Schedule Import Data'!$A:$A,$X$3,'C Schedule Import Data'!$B:$B,$X99) -> 0 | F99: =-SUMIFS('C Schedule Import Data'!W:W,'C Schedule Import Data'!$A:$A,$X$3,'C Schedule Import Data'!$B:$B,$X99) -> 0 | G99: =-SUMIFS('C Schedule Import Data'!X:X,'C Schedule Import Data'!$A:$A,$X$3,'C Schedule Import Data'!$B:$B,$X99) -> 0 | H99: =-SUMIFS('C Schedule Import Data'!Y:Y,'C Schedule Import Data'!$A:$A,$X$3,'C Schedule Import Data'!$B:$B,$X99) -> 0 | I99: 0 | K99: =-SUMIFS('C Schedule Import Data'!Z:Z,'C Schedule Import Data'!$A:$A,$X$3,'C Schedule Import Data'!$B:$B,$X99) -> 0 | X99: 9.5 REV
A100: ='Org structure'!E96 ->  | C100: =-SUMIFS('C Schedule Import Data'!T:T,'C Schedule Import Data'!$A:$A,$X$3,'C Schedule Import Data'!$B:$B,$X100) -> 0 | D100: =-SUMIFS('C Schedule Import Data'!U:U,'C Schedule Import Data'!$A:$A,$X$3,'C Schedule Import Data'!$B:$B,$X100) -> 0 | E100: =-SUMIFS('C Schedule Import Data'!V:V,'C Schedule Import Data'!$A:$A,$X$3,'C Schedule Import Data'!$B:$B,$X100) -> 0 | F100: =-SUMIFS('C Schedule Import Data'!W:W,'C Schedule Import Data'!$A:$A,$X$3,'C Schedule Import Data'!$B:$B,$X100) -> 0 | G100: =-SUMIFS('C Schedule Import Data'!X:X,'C Schedule Import Data'!$A:$A,$X$3,'C Schedule Import Data'!$B:$B,$X100) -> 0 | H100: =-SUMIFS('C Schedule Import Data'!Y:Y,'C Schedule Import Data'!$A:$A,$X$3,'C Schedule Import Data'!$B:$B,$X100) -> 0 | I100: 0 | K100: =-SUMIFS('C Schedule Import Data'!Z:Z,'C Schedule Import Data'!$A:$A,$X$3,'C Schedule Import Data'!$B:$B,$X100) -> 0 | X100: 9.6 REV
A101: ='Org structure'!E97 ->  | C101: =-SUMIFS('C Schedule Import Data'!T:T,'C Schedule Import Data'!$A:$A,$X$3,'C Schedule Import Data'!$B:$B,$X101) -> 0 | D101: =-SUMIFS('C Schedule Import Data'!U:U,'C Schedule Import Data'!$A:$A,$X$3,'C Schedule Import Data'!$B:$B,$X101) -> 0 | E101: =-SUMIFS('C Schedule Import Data'!V:V,'C Schedule Import Data'!$A:$A,$X$3,'C Schedule Import Data'!$B:$B,$X101) -> 0 | F101: =-SUMIFS('C Schedule Import Data'!W:W,'C Schedule Import Data'!$A:$A,$X$3,'C Schedule Import Data'!$B:$B,$X101) -> 0 | G101: =-SUMIFS('C Schedule Import Data'!X:X,'C Schedule Import Data'!$A:$A,$X$3,'C Schedule Import Data'!$B:$B,$X101) -> 0 | H101: =-SUMIFS('C Schedule Import Data'!Y:Y,'C Schedule Import Data'!$A:$A,$X$3,'C Schedule Import Data'!$B:$B,$X101) -> 0 | I101: 0 | K101: =-SUMIFS('C Schedule Import Data'!Z:Z,'C Schedule Import Data'!$A:$A,$X$3,'C Schedule Import Data'!$B:$B,$X101) -> 0 | X101: 9.7 REV
A102: ='Org structure'!E98 ->  | C102: =-SUMIFS('C Schedule Import Data'!T:T,'C Schedule Import Data'!$A:$A,$X$3,'C Schedule Import Data'!$B:$B,$X102) -> 0 | D102: =-SUMIFS('C Schedule Import Data'!U:U,'C Schedule Import Data'!$A:$A,$X$3,'C Schedule Import Data'!$B:$B,$X102) -> 0 | E102: =-SUMIFS('C Schedule Import Data'!V:V,'C Schedule Import Data'!$A:$A,$X$3,'C Schedule Import Data'!$B:$B,$X102) -> 0 | F102: =-SUMIFS('C Schedule Import Data'!W:W,'C Schedule Import Data'!$A:$A,$X$3,'C Schedule Import Data'!$B:$B,$X102) -> 0 | G102: =-SUMIFS('C Schedule Import Data'!X:X,'C Schedule Import Data'!$A:$A,$X$3,'C Schedule Import Data'!$B:$B,$X102) -> 0 | H102: =-SUMIFS('C Schedule Import Data'!Y:Y,'C Schedule Import Data'!$A:$A,$X$3,'C Schedule Import Data'!$B:$B,$X102) -> 0 | I102: 0 | K102: =-SUMIFS('C Schedule Import Data'!Z:Z,'C Schedule Import Data'!$A:$A,$X$3,'C Schedule Import Data'!$B:$B,$X102) -> 0 | X102: 9.8 REV
A103: ='Org structure'!E99 ->  | C103: =-SUMIFS('C Schedule Import Data'!T:T,'C Schedule Import Data'!$A:$A,$X$3,'C Schedule Import Data'!$B:$B,$X103) -> 0 | D103: =-SUMIFS('C Schedule Import Data'!U:U,'C Schedule Import Data'!$A:$A,$X$3,'C Schedule Import Data'!$B:$B,$X103) -> 0 | E103: =-SUMIFS('C Schedule Import Data'!V:V,'C Schedule Import Data'!$A:$A,$X$3,'C Schedule Import Data'!$B:$B,$X103) -> 0 | F103: =-SUMIFS('C Schedule Import Data'!W:W,'C Schedule Import Data'!$A:$A,$X$3,'C Schedule Import Data'!$B:$B,$X103) -> 0 | G103: =-SUMIFS('C Schedule Import Data'!X:X,'C Schedule Import Data'!$A:$A,$X$3,'C Schedule Import Data'!$B:$B,$X103) -> 0 | H103: =-SUMIFS('C Schedule Import Data'!Y:Y,'C Schedule Import Data'!$A:$A,$X$3,'C Schedule Import Data'!$B:$B,$X103) -> 0 | I103: 0 | K103: =-SUMIFS('C Schedule Import Data'!Z:Z,'C Schedule Import Data'!$A:$A,$X$3,'C Schedule Import Data'!$B:$B,$X103) -> 0 | X103: 9.9 REV
A104: ='Org structure'!E100 ->  | C104: =-SUMIFS('C Schedule Import Data'!T:T,'C Schedule Import Data'!$A:$A,$X$3,'C Schedule Import Data'!$B:$B,$X104) -> 0 | D104: =-SUMIFS('C Schedule Import Data'!U:U,'C Schedule Import Data'!$A:$A,$X$3,'C Schedule Import Data'!$B:$B,$X104) -> 0 | E104: =-SUMIFS('C Schedule Import Data'!V:V,'C Schedule Import Data'!$A:$A,$X$3,'C Schedule Import Data'!$B:$B,$X104) -> 0 | F104: =-SUMIFS('C Schedule Import Data'!W:W,'C Schedule Import Data'!$A:$A,$X$3,'C Schedule Import Data'!$B:$B,$X104) -> 0 | G104: =-SUMIFS('C Schedule Import Data'!X:X,'C Schedule Import Data'!$A:$A,$X$3,'C Schedule Import Data'!$B:$B,$X104) -> 0 | H104: =-SUMIFS('C Schedule Import Data'!Y:Y,'C Schedule Import Data'!$A:$A,$X$3,'C Schedule Import Data'!$B:$B,$X104) -> 0 | I104: 0 | K104: =-SUMIFS('C Schedule Import Data'!Z:Z,'C Schedule Import Data'!$A:$A,$X$3,'C Schedule Import Data'!$B:$B,$X104) -> 0 | X104: 9.10 REV
A105: ='Org structure'!A11 -> Vote 10 - [NAME OF VOTE 10] | C105: =SUM(C106:C115) -> 0 | D105: =SUM(D106:D115) -> 0 | E105: 0 | F105: 0 | G105: 0 | H105: 0 | I105: =G105-H105 -> 0 | J105: =IF(I105=0,"",I105/H105) ->  | K105: 0
A106: ='Org structure'!E102 ->  | C106: =-SUMIFS('C Schedule Import Data'!T:T,'C Schedule Import Data'!$A:$A,$X$3,'C Schedule Import Data'!$B:$B,$X106) -> 0 | D106: =-SUMIFS('C Schedule Import Data'!U:U,'C Schedule Import Data'!$A:$A,$X$3,'C Schedule Import Data'!$B:$B,$X106) -> 0 | E106: =-SUMIFS('C Schedule Import Data'!V:V,'C Schedule Import Data'!$A:$A,$X$3,'C Schedule Import Data'!$B:$B,$X106) -> 0 | F106: =-SUMIFS('C Schedule Import Data'!W:W,'C Schedule Import Data'!$A:$A,$X$3,'C Schedule Import Data'!$B:$B,$X106) -> 0 | G106: =-SUMIFS('C Schedule Import Data'!X:X,'C Schedule Import Data'!$A:$A,$X$3,'C Schedule Import Data'!$B:$B,$X106) -> 0 | H106: =-SUMIFS('C Schedule Import Data'!Y:Y,'C Schedule Import Data'!$A:$A,$X$3,'C Schedule Import Data'!$B:$B,$X106) -> 0 | I106: =G106-H106 -> 0 | J106: =IF(I106=0,"",I106/H106) ->  | K106: =-SUMIFS('C Schedule Import Data'!Z:Z,'C Schedule Import Data'!$A:$A,$X$3,'C Schedule Import Data'!$B:$B,$X106) -> 0 | X106: 10.1 REV
A107: ='Org structure'!E103 ->  | C107: =-SUMIFS('C Schedule Import Data'!T:T,'C Schedule Import Data'!$A:$A,$X$3,'C Schedule Import Data'!$B:$B,$X107) -> 0 | D107: =-SUMIFS('C Schedule Import Data'!U:U,'C Schedule Import Data'!$A:$A,$X$3,'C Schedule Import Data'!$B:$B,$X107) -> 0 | E107: =-SUMIFS('C Schedule Import Data'!V:V,'C Schedule Import Data'!$A:$A,$X$3,'C Schedule Import Data'!$B:$B,$X107) -> 0 | F107: =-SUMIFS('C Schedule Import Data'!W:W,'C Schedule Import Data'!$A:$A,$X$3,'C Schedule Import Data'!$B:$B,$X107) -> 0 | G107: =-SUMIFS('C Schedule Import Data'!X:X,'C Schedule Import Data'!$A:$A,$X$3,'C Schedule Import Data'!$B:$B,$X107) -> 0 | H107: =-SUMIFS('C Schedule Import Data'!Y:Y,'C Schedule Import Data'!$A:$A,$X$3,'C Schedule Import Data'!$B:$B,$X107) -> 0 | I107: =G107-H107 -> 0 | J107: =IF(I107=0,"",I107/H107) ->  | K107: =-SUMIFS('C Schedule Import Data'!Z:Z,'C Schedule Import Data'!$A:$A,$X$3,'C Schedule Import Data'!$B:$B,$X107) -> 0 | X107: 10.2 REV
A108: ='Org structure'!E104 ->  | C108: =-SUMIFS('C Schedule Import Data'!T:T,'C Schedule Import Data'!$A:$A,$X$3,'C Schedule Import Data'!$B:$B,$X108) -> 0 | D108: =-SUMIFS('C Schedule Import Data'!U:U,'C Schedule Import Data'!$A:$A,$X$3,'C Schedule Import Data'!$B:$B,$X108) -> 0 | E108: =-SUMIFS('C Schedule Import Data'!V:V,'C Schedule Import Data'!$A:$A,$X$3,'C Schedule Import Data'!$B:$B,$X108) -> 0 | F108: =-SUMIFS('C Schedule Import Data'!W:W,'C Schedule Import Data'!$A:$A,$X$3,'C Schedule Import Data'!$B:$B,$X108) -> 0 | G108: =-SUMIFS('C Schedule Import Data'!X:X,'C Schedule Import Data'!$A:$A,$X$3,'C Schedule Import Data'!$B:$B,$X108) -> 0 | H108: =-SUMIFS('C Schedule Import Data'!Y:Y,'C Schedule Import Data'!$A:$A,$X$3,'C Schedule Import Data'!$B:$B,$X108) -> 0 | I108: 0 | K108: =-SUMIFS('C Schedule Import Data'!Z:Z,'C Schedule Import Data'!$A:$A,$X$3,'C Schedule Import Data'!$B:$B,$X108) -> 0 | X108: 10.3 REV
A109: ='Org structure'!E105 ->  | C109: =-SUMIFS('C Schedule Import Data'!T:T,'C Schedule Import Data'!$A:$A,$X$3,'C Schedule Import Data'!$B:$B,$X109) -> 0 | D109: =-SUMIFS('C Schedule Import Data'!U:U,'C Schedule Import Data'!$A:$A,$X$3,'C Schedule Import Data'!$B:$B,$X109) -> 0 | E109: =-SUMIFS('C Schedule Import Data'!V:V,'C Schedule Import Data'!$A:$A,$X$3,'C Schedule Import Data'!$B:$B,$X109) -> 0 | F109: =-SUMIFS('C Schedule Import Data'!W:W,'C Schedule Import Data'!$A:$A,$X$3,'C Schedule Import Data'!$B:$B,$X109) -> 0 | G109: =-SUMIFS('C Schedule Import Data'!X:X,'C Schedule Import Data'!$A:$A,$X$3,'C Schedule Import Data'!$B:$B,$X109) -> 0 | H109: =-SUMIFS('C Schedule Import Data'!Y:Y,'C Schedule Import Data'!$A:$A,$X$3,'C Schedule Import Data'!$B:$B,$X109) -> 0 | I109: 0 | K109: =-SUMIFS('C Schedule Import Data'!Z:Z,'C Schedule Import Data'!$A:$A,$X$3,'C Schedule Import Data'!$B:$B,$X109) -> 0 | X109: 10.4 REV
A110: ='Org structure'!E106 ->  | C110: =-SUMIFS('C Schedule Import Data'!T:T,'C Schedule Import Data'!$A:$A,$X$3,'C Schedule Import Data'!$B:$B,$X110) -> 0 | D110: =-SUMIFS('C Schedule Import Data'!U:U,'C Schedule Import Data'!$A:$A,$X$3,'C Schedule Import Data'!$B:$B,$X110) -> 0 | E110: =-SUMIFS('C Schedule Import Data'!V:V,'C Schedule Import Data'!$A:$A,$X$3,'C Schedule Import Data'!$B:$B,$X110) -> 0 | F110: =-SUMIFS('C Schedule Import Data'!W:W,'C Schedule Import Data'!$A:$A,$X$3,'C Schedule Import Data'!$B:$B,$X110) -> 0 | G110: =-SUMIFS('C Schedule Import Data'!X:X,'C Schedule Import Data'!$A:$A,$X$3,'C Schedule Import Data'!$B:$B,$X110) -> 0 | H110: =-SUMIFS('C Schedule Import Data'!Y:Y,'C Schedule Import Data'!$A:$A,$X$3,'C Schedule Import Data'!$B:$B,$X110) -> 0 | I110: 0 | K110: =-SUMIFS('C Schedule Import Data'!Z:Z,'C Schedule Import Data'!$A:$A,$X$3,'C Schedule Import Data'!$B:$B,$X110) -> 0 | X110: 10.5 REV
A111: ='Org structure'!E107 ->  | C111: =-SUMIFS('C Schedule Import Data'!T:T,'C Schedule Import Data'!$A:$A,$X$3,'C Schedule Import Data'!$B:$B,$X111) -> 0 | D111: =-SUMIFS('C Schedule Import Data'!U:U,'C Schedule Import Data'!$A:$A,$X$3,'C Schedule Import Data'!$B:$B,$X111) -> 0 | E111: =-SUMIFS('C Schedule Import Data'!V:V,'C Schedule Import Data'!$A:$A,$X$3,'C Schedule Import Data'!$B:$B,$X111) -> 0 | F111: =-SUMIFS('C Schedule Import Data'!W:W,'C Schedule Import Data'!$A:$A,$X$3,'C Schedule Import Data'!$B:$B,$X111) -> 0 | G111: =-SUMIFS('C Schedule Import Data'!X:X,'C Schedule Import Data'!$A:$A,$X$3,'C Schedule Import Data'!$B:$B,$X111) -> 0 | H111: =-SUMIFS('C Schedule Import Data'!Y:Y,'C Schedule Import Data'!$A:$A,$X$3,'C Schedule Import Data'!$B:$B,$X111) -> 0 | I111: 0 | K111: =-SUMIFS('C Schedule Import Data'!Z:Z,'C Schedule Import Data'!$A:$A,$X$3,'C Schedule Import Data'!$B:$B,$X111) -> 0 | X111: 10.6 REV
A112: ='Org structure'!E108 ->  | C112: =-SUMIFS('C Schedule Import Data'!T:T,'C Schedule Import Data'!$A:$A,$X$3,'C Schedule Import Data'!$B:$B,$X112) -> 0 | D112: =-SUMIFS('C Schedule Import Data'!U:U,'C Schedule Import Data'!$A:$A,$X$3,'C Schedule Import Data'!$B:$B,$X112) -> 0 | E112: =-SUMIFS('C Schedule Import Data'!V:V,'C Schedule Import Data'!$A:$A,$X$3,'C Schedule Import Data'!$B:$B,$X112) -> 0 | F112: =-SUMIFS('C Schedule Import Data'!W:W,'C Schedule Import Data'!$A:$A,$X$3,'C Schedule Import Data'!$B:$B,$X112) -> 0 | G112: =-SUMIFS('C Schedule Import Data'!X:X,'C Schedule Import Data'!$A:$A,$X$3,'C Schedule Import Data'!$B:$B,$X112) -> 0 | H112: =-SUMIFS('C Schedule Import Data'!Y:Y,'C Schedule Import Data'!$A:$A,$X$3,'C Schedule Import Data'!$B:$B,$X112) -> 0 | I112: 0 | K112: =-SUMIFS('C Schedule Import Data'!Z:Z,'C Schedule Import Data'!$A:$A,$X$3,'C Schedule Import Data'!$B:$B,$X112) -> 0 | X112: 10.7 REV
A113: ='Org structure'!E109 ->  | C113: =-SUMIFS('C Schedule Import Data'!T:T,'C Schedule Import Data'!$A:$A,$X$3,'C Schedule Import Data'!$B:$B,$X113) -> 0 | D113: =-SUMIFS('C Schedule Import Data'!U:U,'C Schedule Import Data'!$A:$A,$X$3,'C Schedule Import Data'!$B:$B,$X113) -> 0 | E113: =-SUMIFS('C Schedule Import Data'!V:V,'C Schedule Import Data'!$A:$A,$X$3,'C Schedule Import Data'!$B:$B,$X113) -> 0 | F113: =-SUMIFS('C Schedule Import Data'!W:W,'C Schedule Import Data'!$A:$A,$X$3,'C Schedule Import Data'!$B:$B,$X113) -> 0 | G113: =-SUMIFS('C Schedule Import Data'!X:X,'C Schedule Import Data'!$A:$A,$X$3,'C Schedule Import Data'!$B:$B,$X113) -> 0 | H113: =-SUMIFS('C Schedule Import Data'!Y:Y,'C Schedule Import Data'!$A:$A,$X$3,'C Schedule Import Data'!$B:$B,$X113) -> 0 | I113: 0 | K113: =-SUMIFS('C Schedule Import Data'!Z:Z,'C Schedule Import Data'!$A:$A,$X$3,'C Schedule Import Data'!$B:$B,$X113) -> 0 | X113: 10.8 REV
A114: ='Org structure'!E110 ->  | C114: =-SUMIFS('C Schedule Import Data'!T:T,'C Schedule Import Data'!$A:$A,$X$3,'C Schedule Import Data'!$B:$B,$X114) -> 0 | D114: =-SUMIFS('C Schedule Import Data'!U:U,'C Schedule Import Data'!$A:$A,$X$3,'C Schedule Import Data'!$B:$B,$X114) -> 0 | E114: =-SUMIFS('C Schedule Import Data'!V:V,'C Schedule Import Data'!$A:$A,$X$3,'C Schedule Import Data'!$B:$B,$X114) -> 0 | F114: =-SUMIFS('C Schedule Import Data'!W:W,'C Schedule Import Data'!$A:$A,$X$3,'C Schedule Import Data'!$B:$B,$X114) -> 0 | G114: =-SUMIFS('C Schedule Import Data'!X:X,'C Schedule Import Data'!$A:$A,$X$3,'C Schedule Import Data'!$B:$B,$X114) -> 0 | H114: =-SUMIFS('C Schedule Import Data'!Y:Y,'C Schedule Import Data'!$A:$A,$X$3,'C Schedule Import Data'!$B:$B,$X114) -> 0 | I114: 0 | K114: =-SUMIFS('C Schedule Import Data'!Z:Z,'C Schedule Import Data'!$A:$A,$X$3,'C Schedule Import Data'!$B:$B,$X114) -> 0 | X114: 10.9 REV
A115: ='Org structure'!E111 ->  | C115: =-SUMIFS('C Schedule Import Data'!T:T,'C Schedule Import Data'!$A:$A,$X$3,'C Schedule Import Data'!$B:$B,$X115) -> 0 | D115: =-SUMIFS('C Schedule Import Data'!U:U,'C Schedule Import Data'!$A:$A,$X$3,'C Schedule Import Data'!$B:$B,$X115) -> 0 | E115: =-SUMIFS('C Schedule Import Data'!V:V,'C Schedule Import Data'!$A:$A,$X$3,'C Schedule Import Data'!$B:$B,$X115) -> 0 | F115: =-SUMIFS('C Schedule Import Data'!W:W,'C Schedule Import Data'!$A:$A,$X$3,'C Schedule Import Data'!$B:$B,$X115) -> 0 | G115: =-SUMIFS('C Schedule Import Data'!X:X,'C Schedule Import Data'!$A:$A,$X$3,'C Schedule Import Data'!$B:$B,$X115) -> 0 | H115: =-SUMIFS('C Schedule Import Data'!Y:Y,'C Schedule Import Data'!$A:$A,$X$3,'C Schedule Import Data'!$B:$B,$X115) -> 0 | I115: 0 | K115: =-SUMIFS('C Schedule Import Data'!Z:Z,'C Schedule Import Data'!$A:$A,$X$3,'C Schedule Import Data'!$B:$B,$X115) -> 0 | X115: 10.10 REV
A116: ='Org structure'!A12 -> Vote 11 - [NAME OF VOTE 11] | C116: =SUM(C117:C126) -> 0 | D116: =SUM(D117:D126) -> 0 | E116: 0 | F116: 0 | G116: 0 | H116: 0 | I116: =G116-H116 -> 0 | J116: =IF(I116=0,"",I116/H116) ->  | K116: 0
A117: ='Org structure'!E113 ->  | C117: =-SUMIFS('C Schedule Import Data'!T:T,'C Schedule Import Data'!$A:$A,$X$3,'C Schedule Import Data'!$B:$B,$X117) -> 0 | D117: =-SUMIFS('C Schedule Import Data'!U:U,'C Schedule Import Data'!$A:$A,$X$3,'C Schedule Import Data'!$B:$B,$X117) -> 0 | E117: =-SUMIFS('C Schedule Import Data'!V:V,'C Schedule Import Data'!$A:$A,$X$3,'C Schedule Import Data'!$B:$B,$X117) -> 0 | F117: =-SUMIFS('C Schedule Import Data'!W:W,'C Schedule Import Data'!$A:$A,$X$3,'C Schedule Import Data'!$B:$B,$X117) -> 0 | G117: =-SUMIFS('C Schedule Import Data'!X:X,'C Schedule Import Data'!$A:$A,$X$3,'C Schedule Import Data'!$B:$B,$X117) -> 0 | H117: =-SUMIFS('C Schedule Import Data'!Y:Y,'C Schedule Import Data'!$A:$A,$X$3,'C Schedule Import Data'!$B:$B,$X117) -> 0 | I117: =G117-H117 -> 0 | J117: =IF(I117=0,"",I117/H117) ->  | K117: =-SUMIFS('C Schedule Import Data'!Z:Z,'C Schedule Import Data'!$A:$A,$X$3,'C Schedule Import Data'!$B:$B,$X117) -> 0 | X117: 11.1 REV
A118: ='Org structure'!E114 ->  | C118: =-SUMIFS('C Schedule Import Data'!T:T,'C Schedule Import Data'!$A:$A,$X$3,'C Schedule Import Data'!$B:$B,$X118) -> 0 | D118: =-SUMIFS('C Schedule Import Data'!U:U,'C Schedule Import Data'!$A:$A,$X$3,'C Schedule Import Data'!$B:$B,$X118) -> 0 | E118: =-SUMIFS('C Schedule Import Data'!V:V,'C Schedule Import Data'!$A:$A,$X$3,'C Schedule Import Data'!$B:$B,$X118) -> 0 | F118: =-SUMIFS('C Schedule Import Data'!W:W,'C Schedule Import Data'!$A:$A,$X$3,'C Schedule Import Data'!$B:$B,$X118) -> 0 | G118: =-SUMIFS('C Schedule Import Data'!X:X,'C Schedule Import Data'!$A:$A,$X$3,'C Schedule Import Data'!$B:$B,$X118) -> 0 | H118: =-SUMIFS('C Schedule Import Data'!Y:Y,'C Schedule Import Data'!$A:$A,$X$3,'C Schedule Import Data'!$B:$B,$X118) -> 0 | I118: =G118-H118 -> 0 | J118: =IF(I118=0,"",I118/H118) ->  | K118: =-SUMIFS('C Schedule Import Data'!Z:Z,'C Schedule Import Data'!$A:$A,$X$3,'C Schedule Import Data'!$B:$B,$X118) -> 0 | X118: 11.2 REV
A119: ='Org structure'!E115 ->  | C119: =-SUMIFS('C Schedule Import Data'!T:T,'C Schedule Import Data'!$A:$A,$X$3,'C Schedule Import Data'!$B:$B,$X119) -> 0 | D119: =-SUMIFS('C Schedule Import Data'!U:U,'C Schedule Import Data'!$A:$A,$X$3,'C Schedule Import Data'!$B:$B,$X119) -> 0 | E119: =-SUMIFS('C Schedule Import Data'!V:V,'C Schedule Import Data'!$A:$A,$X$3,'C Schedule Import Data'!$B:$B,$X119) -> 0 | F119: =-SUMIFS('C Schedule Import Data'!W:W,'C Schedule Import Data'!$A:$A,$X$3,'C Schedule Import Data'!$B:$B,$X119) -> 0 | G119: =-SUMIFS('C Schedule Import Data'!X:X,'C Schedule Import Data'!$A:$A,$X$3,'C Schedule Import Data'!$B:$B,$X119) -> 0 | H119: =-SUMIFS('C Schedule Import Data'!Y:Y,'C Schedule Import Data'!$A:$A,$X$3,'C Schedule Import Data'!$B:$B,$X119) -> 0 | I119: 0 | K119: =-SUMIFS('C Schedule Import Data'!Z:Z,'C Schedule Import Data'!$A:$A,$X$3,'C Schedule Import Data'!$B:$B,$X119) -> 0 | X119: 11.3 REV
A120: ='Org structure'!E116 ->  | C120: =-SUMIFS('C Schedule Import Data'!T:T,'C Schedule Import Data'!$A:$A,$X$3,'C Schedule Import Data'!$B:$B,$X120) -> 0 | D120: =-SUMIFS('C Schedule Import Data'!U:U,'C Schedule Import Data'!$A:$A,$X$3,'C Schedule Import Data'!$B:$B,$X120) -> 0 | E120: =-SUMIFS('C Schedule Import Data'!V:V,'C Schedule Import Data'!$A:$A,$X$3,'C Schedule Import Data'!$B:$B,$X120) -> 0 | F120: =-SUMIFS('C Schedule Import Data'!W:W,'C Schedule Import Data'!$A:$A,$X$3,'C Schedule Import Data'!$B:$B,$X120) -> 0 | G120: =-SUMIFS('C Schedule Import Data'!X:X,'C Schedule Import Data'!$A:$A,$X$3,'C Schedule Import Data'!$B:$B,$X120) -> 0 | H120: =-SUMIFS('C Schedule Import Data'!Y:Y,'C Schedule Import Data'!$A:$A,$X$3,'C Schedule Import Data'!$B:$B,$X120) -> 0 | I120: 0 | K120: =-SUMIFS('C Schedule Import Data'!Z:Z,'C Schedule Import Data'!$A:$A,$X$3,'C Schedule Import Data'!$B:$B,$X120) -> 0 | X120: 11.4 REV
A121: ='Org structure'!E117 ->  | C121: =-SUMIFS('C Schedule Import Data'!T:T,'C Schedule Import Data'!$A:$A,$X$3,'C Schedule Import Data'!$B:$B,$X121) -> 0 | D121: =-SUMIFS('C Schedule Import Data'!U:U,'C Schedule Import Data'!$A:$A,$X$3,'C Schedule Import Data'!$B:$B,$X121) -> 0 | E121: =-SUMIFS('C Schedule Import Data'!V:V,'C Schedule Import Data'!$A:$A,$X$3,'C Schedule Import Data'!$B:$B,$X121) -> 0 | F121: =-SUMIFS('C Schedule Import Data'!W:W,'C Schedule Import Data'!$A:$A,$X$3,'C Schedule Import Data'!$B:$B,$X121) -> 0 | G121: =-SUMIFS('C Schedule Import Data'!X:X,'C Schedule Import Data'!$A:$A,$X$3,'C Schedule Import Data'!$B:$B,$X121) -> 0 | H121: =-SUMIFS('C Schedule Import Data'!Y:Y,'C Schedule Import Data'!$A:$A,$X$3,'C Schedule Import Data'!$B:$B,$X121) -> 0 | I121: 0 | K121: =-SUMIFS('C Schedule Import Data'!Z:Z,'C Schedule Import Data'!$A:$A,$X$3,'C Schedule Import Data'!$B:$B,$X121) -> 0 | X121: 11.5 REV
A122: ='Org structure'!E118 ->  | C122: =-SUMIFS('C Schedule Import Data'!T:T,'C Schedule Import Data'!$A:$A,$X$3,'C Schedule Import Data'!$B:$B,$X122) -> 0 | D122: =-SUMIFS('C Schedule Import Data'!U:U,'C Schedule Import Data'!$A:$A,$X$3,'C Schedule Import Data'!$B:$B,$X122) -> 0 | E122: =-SUMIFS('C Schedule Import Data'!V:V,'C Schedule Import Data'!$A:$A,$X$3,'C Schedule Import Data'!$B:$B,$X122) -> 0 | F122: =-SUMIFS('C Schedule Import Data'!W:W,'C Schedule Import Data'!$A:$A,$X$3,'C Schedule Import Data'!$B:$B,$X122) -> 0 | G122: =-SUMIFS('C Schedule Import Data'!X:X,'C Schedule Import Data'!$A:$A,$X$3,'C Schedule Import Data'!$B:$B,$X122) -> 0 | H122: =-SUMIFS('C Schedule Import Data'!Y:Y,'C Schedule Import Data'!$A:$A,$X$3,'C Schedule Import Data'!$B:$B,$X122) -> 0 | I122: 0 | K122: =-SUMIFS('C Schedule Import Data'!Z:Z,'C Schedule Import Data'!$A:$A,$X$3,'C Schedule Import Data'!$B:$B,$X122) -> 0 | X122: 11.6 REV
A123: ='Org structure'!E119 ->  | C123: =-SUMIFS('C Schedule Import Data'!T:T,'C Schedule Import Data'!$A:$A,$X$3,'C Schedule Import Data'!$B:$B,$X123) -> 0 | D123: =-SUMIFS('C Schedule Import Data'!U:U,'C Schedule Import Data'!$A:$A,$X$3,'C Schedule Import Data'!$B:$B,$X123) -> 0 | E123: =-SUMIFS('C Schedule Import Data'!V:V,'C Schedule Import Data'!$A:$A,$X$3,'C Schedule Import Data'!$B:$B,$X123) -> 0 | F123: =-SUMIFS('C Schedule Import Data'!W:W,'C Schedule Import Data'!$A:$A,$X$3,'C Schedule Import Data'!$B:$B,$X123) -> 0 | G123: =-SUMIFS('C Schedule Import Data'!X:X,'C Schedule Import Data'!$A:$A,$X$3,'C Schedule Import Data'!$B:$B,$X123) -> 0 | H123: =-SUMIFS('C Schedule Import Data'!Y:Y,'C Schedule Import Data'!$A:$A,$X$3,'C Schedule Import Data'!$B:$B,$X123) -> 0 | I123: 0 | K123: =-SUMIFS('C Schedule Import Data'!Z:Z,'C Schedule Import Data'!$A:$A,$X$3,'C Schedule Import Data'!$B:$B,$X123) -> 0 | X123: 11.7 REV
A124: ='Org structure'!E120 ->  | C124: =-SUMIFS('C Schedule Import Data'!T:T,'C Schedule Import Data'!$A:$A,$X$3,'C Schedule Import Data'!$B:$B,$X124) -> 0 | D124: =-SUMIFS('C Schedule Import Data'!U:U,'C Schedule Import Data'!$A:$A,$X$3,'C Schedule Import Data'!$B:$B,$X124) -> 0 | E124: =-SUMIFS('C Schedule Import Data'!V:V,'C Schedule Import Data'!$A:$A,$X$3,'C Schedule Import Data'!$B:$B,$X124) -> 0 | F124: =-SUMIFS('C Schedule Import Data'!W:W,'C Schedule Import Data'!$A:$A,$X$3,'C Schedule Import Data'!$B:$B,$X124) -> 0 | G124: =-SUMIFS('C Schedule Import Data'!X:X,'C Schedule Import Data'!$A:$A,$X$3,'C Schedule Import Data'!$B:$B,$X124) -> 0 | H124: =-SUMIFS('C Schedule Import Data'!Y:Y,'C Schedule Import Data'!$A:$A,$X$3,'C Schedule Import Data'!$B:$B,$X124) -> 0 | I124: 0 | K124: =-SUMIFS('C Schedule Import Data'!Z:Z,'C Schedule Import Data'!$A:$A,$X$3,'C Schedule Import Data'!$B:$B,$X124) -> 0 | X124: 11.8 REV
A125: ='Org structure'!E121 ->  | C125: =-SUMIFS('C Schedule Import Data'!T:T,'C Schedule Import Data'!$A:$A,$X$3,'C Schedule Import Data'!$B:$B,$X125) -> 0 | D125: =-SUMIFS('C Schedule Import Data'!U:U,'C Schedule Import Data'!$A:$A,$X$3,'C Schedule Import Data'!$B:$B,$X125) -> 0 | E125: =-SUMIFS('C Schedule Import Data'!V:V,'C Schedule Import Data'!$A:$A,$X$3,'C Schedule Import Data'!$B:$B,$X125) -> 0 | F125: =-SUMIFS('C Schedule Import Data'!W:W,'C Schedule Import Data'!$A:$A,$X$3,'C Schedule Import Data'!$B:$B,$X125) -> 0 | G125: =-SUMIFS('C Schedule Import Data'!X:X,'C Schedule Import Data'!$A:$A,$X$3,'C Schedule Import Data'!$B:$B,$X125) -> 0 | H125: =-SUMIFS('C Schedule Import Data'!Y:Y,'C Schedule Import Data'!$A:$A,$X$3,'C Schedule Import Data'!$B:$B,$X125) -> 0 | I125: 0 | K125: =-SUMIFS('C Schedule Import Data'!Z:Z,'C Schedule Import Data'!$A:$A,$X$3,'C Schedule Import Data'!$B:$B,$X125) -> 0 | X125: 11.9 REV
A126: ='Org structure'!E122 ->  | C126: =-SUMIFS('C Schedule Import Data'!T:T,'C Schedule Import Data'!$A:$A,$X$3,'C Schedule Import Data'!$B:$B,$X126) -> 0 | D126: =-SUMIFS('C Schedule Import Data'!U:U,'C Schedule Import Data'!$A:$A,$X$3,'C Schedule Import Data'!$B:$B,$X126) -> 0 | E126: =-SUMIFS('C Schedule Import Data'!V:V,'C Schedule Import Data'!$A:$A,$X$3,'C Schedule Import Data'!$B:$B,$X126) -> 0 | F126: =-SUMIFS('C Schedule Import Data'!W:W,'C Schedule Import Data'!$A:$A,$X$3,'C Schedule Import Data'!$B:$B,$X126) -> 0 | G126: =-SUMIFS('C Schedule Import Data'!X:X,'C Schedule Import Data'!$A:$A,$X$3,'C Schedule Import Data'!$B:$B,$X126) -> 0 | H126: =-SUMIFS('C Schedule Import Data'!Y:Y,'C Schedule Import Data'!$A:$A,$X$3,'C Schedule Import Data'!$B:$B,$X126) -> 0 | I126: 0 | K126: =-SUMIFS('C Schedule Import Data'!Z:Z,'C Schedule Import Data'!$A:$A,$X$3,'C Schedule Import Data'!$B:$B,$X126) -> 0 | X126: 11.10 REV
A127: ='Org structure'!A13 -> Vote 12 - [NAME OF VOTE 12] | C127: =SUM(C128:C137) -> 0 | D127: =SUM(D128:D137) -> 0 | E127: 0 | F127: 0 | G127: 0 | H127: 0 | I127: =G127-H127 -> 0 | J127: =IF(I127=0,"",I127/H127) ->  | K127: 0
A128: ='Org structure'!E124 ->  | C128: =-SUMIFS('C Schedule Import Data'!T:T,'C Schedule Import Data'!$A:$A,$X$3,'C Schedule Import Data'!$B:$B,$X128) -> 0 | D128: =-SUMIFS('C Schedule Import Data'!U:U,'C Schedule Import Data'!$A:$A,$X$3,'C Schedule Import Data'!$B:$B,$X128) -> 0 | E128: =-SUMIFS('C Schedule Import Data'!V:V,'C Schedule Import Data'!$A:$A,$X$3,'C Schedule Import Data'!$B:$B,$X128) -> 0 | F128: =-SUMIFS('C Schedule Import Data'!W:W,'C Schedule Import Data'!$A:$A,$X$3,'C Schedule Import Data'!$B:$B,$X128) -> 0 | G128: =-SUMIFS('C Schedule Import Data'!X:X,'C Schedule Import Data'!$A:$A,$X$3,'C Schedule Import Data'!$B:$B,$X128) -> 0 | H128: =-SUMIFS('C Schedule Import Data'!Y:Y,'C Schedule Import Data'!$A:$A,$X$3,'C Schedule Import Data'!$B:$B,$X128) -> 0 | I128: =G128-H128 -> 0 | J128: =IF(I128=0,"",I128/H128) ->  | K128: =-SUMIFS('C Schedule Import Data'!Z:Z,'C Schedule Import Data'!$A:$A,$X$3,'C Schedule Import Data'!$B:$B,$X128) -> 0 | X128: 12.1 REV
A129: ='Org structure'!E125 ->  | C129: =-SUMIFS('C Schedule Import Data'!T:T,'C Schedule Import Data'!$A:$A,$X$3,'C Schedule Import Data'!$B:$B,$X129) -> 0 | D129: =-SUMIFS('C Schedule Import Data'!U:U,'C Schedule Import Data'!$A:$A,$X$3,'C Schedule Import Data'!$B:$B,$X129) -> 0 | E129: =-SUMIFS('C Schedule Import Data'!V:V,'C Schedule Import Data'!$A:$A,$X$3,'C Schedule Import Data'!$B:$B,$X129) -> 0 | F129: =-SUMIFS('C Schedule Import Data'!W:W,'C Schedule Import Data'!$A:$A,$X$3,'C Schedule Import Data'!$B:$B,$X129) -> 0 | G129: =-SUMIFS('C Schedule Import Data'!X:X,'C Schedule Import Data'!$A:$A,$X$3,'C Schedule Import Data'!$B:$B,$X129) -> 0 | H129: =-SUMIFS('C Schedule Import Data'!Y:Y,'C Schedule Import Data'!$A:$A,$X$3,'C Schedule Import Data'!$B:$B,$X129) -> 0 | I129: =G129-H129 -> 0 | J129: =IF(I129=0,"",I129/H129) ->  | K129: =-SUMIFS('C Schedule Import Data'!Z:Z,'C Schedule Import Data'!$A:$A,$X$3,'C Schedule Import Data'!$B:$B,$X129) -> 0 | X129: 12.2 REV
A130: ='Org structure'!E126 ->  | C130: =-SUMIFS('C Schedule Import Data'!T:T,'C Schedule Import Data'!$A:$A,$X$3,'C Schedule Import Data'!$B:$B,$X130) -> 0 | D130: =-SUMIFS('C Schedule Import Data'!U:U,'C Schedule Import Data'!$A:$A,$X$3,'C Schedule Import Data'!$B:$B,$X130) -> 0 | E130: =-SUMIFS('C Schedule Import Data'!V:V,'C Schedule Import Data'!$A:$A,$X$3,'C Schedule Import Data'!$B:$B,$X130) -> 0 | F130: =-SUMIFS('C Schedule Import Data'!W:W,'C Schedule Import Data'!$A:$A,$X$3,'C Schedule Import Data'!$B:$B,$X130) -> 0 | G130: =-SUMIFS('C Schedule Import Data'!X:X,'C Schedule Import Data'!$A:$A,$X$3,'C Schedule Import Data'!$B:$B,$X130) -> 0 | H130: =-SUMIFS('C Schedule Import Data'!Y:Y,'C Schedule Import Data'!$A:$A,$X$3,'C Schedule Import Data'!$B:$B,$X130) -> 0 | I130: 0 | K130: =-SUMIFS('C Schedule Import Data'!Z:Z,'C Schedule Import Data'!$A:$A,$X$3,'C Schedule Import Data'!$B:$B,$X130) -> 0 | X130: 12.3 REV
A131: ='Org structure'!E127 ->  | C131: =-SUMIFS('C Schedule Import Data'!T:T,'C Schedule Import Data'!$A:$A,$X$3,'C Schedule Import Data'!$B:$B,$X131) -> 0 | D131: =-SUMIFS('C Schedule Import Data'!U:U,'C Schedule Import Data'!$A:$A,$X$3,'C Schedule Import Data'!$B:$B,$X131) -> 0 | E131: =-SUMIFS('C Schedule Import Data'!V:V,'C Schedule Import Data'!$A:$A,$X$3,'C Schedule Import Data'!$B:$B,$X131) -> 0 | F131: =-SUMIFS('C Schedule Import Data'!W:W,'C Schedule Import Data'!$A:$A,$X$3,'C Schedule Import Data'!$B:$B,$X131) -> 0 | G131: =-SUMIFS('C Schedule Import Data'!X:X,'C Schedule Import Data'!$A:$A,$X$3,'C Schedule Import Data'!$B:$B,$X131) -> 0 | H131: =-SUMIFS('C Schedule Import Data'!Y:Y,'C Schedule Import Data'!$A:$A,$X$3,'C Schedule Import Data'!$B:$B,$X131) -> 0 | I131: 0 | K131: =-SUMIFS('C Schedule Import Data'!Z:Z,'C Schedule Import Data'!$A:$A,$X$3,'C Schedule Import Data'!$B:$B,$X131) -> 0 | X131: 12.4 REV
A132: ='Org structure'!E128 ->  | C132: =-SUMIFS('C Schedule Import Data'!T:T,'C Schedule Import Data'!$A:$A,$X$3,'C Schedule Import Data'!$B:$B,$X132) -> 0 | D132: =-SUMIFS('C Schedule Import Data'!U:U,'C Schedule Import Data'!$A:$A,$X$3,'C Schedule Import Data'!$B:$B,$X132) -> 0 | E132: =-SUMIFS('C Schedule Import Data'!V:V,'C Schedule Import Data'!$A:$A,$X$3,'C Schedule Import Data'!$B:$B,$X132) -> 0 | F132: =-SUMIFS('C Schedule Import Data'!W:W,'C Schedule Import Data'!$A:$A,$X$3,'C Schedule Import Data'!$B:$B,$X132) -> 0 | G132: =-SUMIFS('C Schedule Import Data'!X:X,'C Schedule Import Data'!$A:$A,$X$3,'C Schedule Import Data'!$B:$B,$X132) -> 0 | H132: =-SUMIFS('C Schedule Import Data'!Y:Y,'C Schedule Import Data'!$A:$A,$X$3,'C Schedule Import Data'!$B:$B,$X132) -> 0 | I132: 0 | K132: =-SUMIFS('C Schedule Import Data'!Z:Z,'C Schedule Import Data'!$A:$A,$X$3,'C Schedule Import Data'!$B:$B,$X132) -> 0 | X132: 12.5 REV
A133: ='Org structure'!E129 ->  | C133: =-SUMIFS('C Schedule Import Data'!T:T,'C Schedule Import Data'!$A:$A,$X$3,'C Schedule Import Data'!$B:$B,$X133) -> 0 | D133: =-SUMIFS('C Schedule Import Data'!U:U,'C Schedule Import Data'!$A:$A,$X$3,'C Schedule Import Data'!$B:$B,$X133) -> 0 | E133: =-SUMIFS('C Schedule Import Data'!V:V,'C Schedule Import Data'!$A:$A,$X$3,'C Schedule Import Data'!$B:$B,$X133) -> 0 | F133: =-SUMIFS('C Schedule Import Data'!W:W,'C Schedule Import Data'!$A:$A,$X$3,'C Schedule Import Data'!$B:$B,$X133) -> 0 | G133: =-SUMIFS('C Schedule Import Data'!X:X,'C Schedule Import Data'!$A:$A,$X$3,'C Schedule Import Data'!$B:$B,$X133) -> 0 | H133: =-SUMIFS('C Schedule Import Data'!Y:Y,'C Schedule Import Data'!$A:$A,$X$3,'C Schedule Import Data'!$B:$B,$X133) -> 0 | I133: 0 | K133: =-SUMIFS('C Schedule Import Data'!Z:Z,'C Schedule Import Data'!$A:$A,$X$3,'C Schedule Import Data'!$B:$B,$X133) -> 0 | X133: 12.6 REV
A134: ='Org structure'!E130 ->  | C134: =-SUMIFS('C Schedule Import Data'!T:T,'C Schedule Import Data'!$A:$A,$X$3,'C Schedule Import Data'!$B:$B,$X134) -> 0 | D134: =-SUMIFS('C Schedule Import Data'!U:U,'C Schedule Import Data'!$A:$A,$X$3,'C Schedule Import Data'!$B:$B,$X134) -> 0 | E134: =-SUMIFS('C Schedule Import Data'!V:V,'C Schedule Import Data'!$A:$A,$X$3,'C Schedule Import Data'!$B:$B,$X134) -> 0 | F134: =-SUMIFS('C Schedule Import Data'!W:W,'C Schedule Import Data'!$A:$A,$X$3,'C Schedule Import Data'!$B:$B,$X134) -> 0 | G134: =-SUMIFS('C Schedule Import Data'!X:X,'C Schedule Import Data'!$A:$A,$X$3,'C Schedule Import Data'!$B:$B,$X134) -> 0 | H134: =-SUMIFS('C Schedule Import Data'!Y:Y,'C Schedule Import Data'!$A:$A,$X$3,'C Schedule Import Data'!$B:$B,$X134) -> 0 | I134: 0 | K134: =-SUMIFS('C Schedule Import Data'!Z:Z,'C Schedule Import Data'!$A:$A,$X$3,'C Schedule Import Data'!$B:$B,$X134) -> 0 | X134: 12.7 REV
A135: ='Org structure'!E131 ->  | C135: =-SUMIFS('C Schedule Import Data'!T:T,'C Schedule Import Data'!$A:$A,$X$3,'C Schedule Import Data'!$B:$B,$X135) -> 0 | D135: =-SUMIFS('C Schedule Import Data'!U:U,'C Schedule Import Data'!$A:$A,$X$3,'C Schedule Import Data'!$B:$B,$X135) -> 0 | E135: =-SUMIFS('C Schedule Import Data'!V:V,'C Schedule Import Data'!$A:$A,$X$3,'C Schedule Import Data'!$B:$B,$X135) -> 0 | F135: =-SUMIFS('C Schedule Import Data'!W:W,'C Schedule Import Data'!$A:$A,$X$3,'C Schedule Import Data'!$B:$B,$X135) -> 0 | G135: =-SUMIFS('C Schedule Import Data'!X:X,'C Schedule Import Data'!$A:$A,$X$3,'C Schedule Import Data'!$B:$B,$X135) -> 0 | H135: =-SUMIFS('C Schedule Import Data'!Y:Y,'C Schedule Import Data'!$A:$A,$X$3,'C Schedule Import Data'!$B:$B,$X135) -> 0 | I135: 0 | K135: =-SUMIFS('C Schedule Import Data'!Z:Z,'C Schedule Import Data'!$A:$A,$X$3,'C Schedule Import Data'!$B:$B,$X135) -> 0 | X135: 12.8 REV
A136: ='Org structure'!E132 ->  | C136: =-SUMIFS('C Schedule Import Data'!T:T,'C Schedule Import Data'!$A:$A,$X$3,'C Schedule Import Data'!$B:$B,$X136) -> 0 | D136: =-SUMIFS('C Schedule Import Data'!U:U,'C Schedule Import Data'!$A:$A,$X$3,'C Schedule Import Data'!$B:$B,$X136) -> 0 | E136: =-SUMIFS('C Schedule Import Data'!V:V,'C Schedule Import Data'!$A:$A,$X$3,'C Schedule Import Data'!$B:$B,$X136) -> 0 | F136: =-SUMIFS('C Schedule Import Data'!W:W,'C Schedule Import Data'!$A:$A,$X$3,'C Schedule Import Data'!$B:$B,$X136) -> 0 | G136: =-SUMIFS('C Schedule Import Data'!X:X,'C Schedule Import Data'!$A:$A,$X$3,'C Schedule Import Data'!$B:$B,$X136) -> 0 | H136: =-SUMIFS('C Schedule Import Data'!Y:Y,'C Schedule Import Data'!$A:$A,$X$3,'C Schedule Import Data'!$B:$B,$X136) -> 0 | I136: 0 | K136: =-SUMIFS('C Schedule Import Data'!Z:Z,'C Schedule Import Data'!$A:$A,$X$3,'C Schedule Import Data'!$B:$B,$X136) -> 0 | X136: 12.9 REV
A137: ='Org structure'!E133 ->  | C137: =-SUMIFS('C Schedule Import Data'!T:T,'C Schedule Import Data'!$A:$A,$X$3,'C Schedule Import Data'!$B:$B,$X137) -> 0 | D137: =-SUMIFS('C Schedule Import Data'!U:U,'C Schedule Import Data'!$A:$A,$X$3,'C Schedule Import Data'!$B:$B,$X137) -> 0 | E137: =-SUMIFS('C Schedule Import Data'!V:V,'C Schedule Import Data'!$A:$A,$X$3,'C Schedule Import Data'!$B:$B,$X137) -> 0 | F137: =-SUMIFS('C Schedule Import Data'!W:W,'C Schedule Import Data'!$A:$A,$X$3,'C Schedule Import Data'!$B:$B,$X137) -> 0 | G137: =-SUMIFS('C Schedule Import Data'!X:X,'C Schedule Import Data'!$A:$A,$X$3,'C Schedule Import Data'!$B:$B,$X137) -> 0 | H137: =-SUMIFS('C Schedule Import Data'!Y:Y,'C Schedule Import Data'!$A:$A,$X$3,'C Schedule Import Data'!$B:$B,$X137) -> 0 | I137: 0 | K137: =-SUMIFS('C Schedule Import Data'!Z:Z,'C Schedule Import Data'!$A:$A,$X$3,'C Schedule Import Data'!$B:$B,$X137) -> 0 | X137: 12.10 REV
A138: ='Org structure'!A14 -> Vote 13 - [NAME OF VOTE 13] | C138: =SUM(C139:C148) -> 0 | D138: =SUM(D139:D148) -> 0 | E138: 0 | F138: 0 | G138: 0 | H138: 0 | I138: =G138-H138 -> 0 | J138: =IF(I138=0,"",I138/H138) ->  | K138: 0
A139: ='Org structure'!E135 ->  | C139: =-SUMIFS('C Schedule Import Data'!T:T,'C Schedule Import Data'!$A:$A,$X$3,'C Schedule Import Data'!$B:$B,$X139) -> 0 | D139: =-SUMIFS('C Schedule Import Data'!U:U,'C Schedule Import Data'!$A:$A,$X$3,'C Schedule Import Data'!$B:$B,$X139) -> 0 | E139: =-SUMIFS('C Schedule Import Data'!V:V,'C Schedule Import Data'!$A:$A,$X$3,'C Schedule Import Data'!$B:$B,$X139) -> 0 | F139: =-SUMIFS('C Schedule Import Data'!W:W,'C Schedule Import Data'!$A:$A,$X$3,'C Schedule Import Data'!$B:$B,$X139) -> 0 | G139: =-SUMIFS('C Schedule Import Data'!X:X,'C Schedule Import Data'!$A:$A,$X$3,'C Schedule Import Data'!$B:$B,$X139) -> 0 | H139: =-SUMIFS('C Schedule Import Data'!Y:Y,'C Schedule Import Data'!$A:$A,$X$3,'C Schedule Import Data'!$B:$B,$X139) -> 0 | I139: =G139-H139 -> 0 | J139: =IF(I139=0,"",I139/H139) ->  | K139: =-SUMIFS('C Schedule Import Data'!Z:Z,'C Schedule Import Data'!$A:$A,$X$3,'C Schedule Import Data'!$B:$B,$X139) -> 0 | X139: 13.1 REV
A140: ='Org structure'!E136 ->  | C140: =-SUMIFS('C Schedule Import Data'!T:T,'C Schedule Import Data'!$A:$A,$X$3,'C Schedule Import Data'!$B:$B,$X140) -> 0 | D140: =-SUMIFS('C Schedule Import Data'!U:U,'C Schedule Import Data'!$A:$A,$X$3,'C Schedule Import Data'!$B:$B,$X140) -> 0 | E140: =-SUMIFS('C Schedule Import Data'!V:V,'C Schedule Import Data'!$A:$A,$X$3,'C Schedule Import Data'!$B:$B,$X140) -> 0 | F140: =-SUMIFS('C Schedule Import Data'!W:W,'C Schedule Import Data'!$A:$A,$X$3,'C Schedule Import Data'!$B:$B,$X140) -> 0 | G140: =-SUMIFS('C Schedule Import Data'!X:X,'C Schedule Import Data'!$A:$A,$X$3,'C Schedule Import Data'!$B:$B,$X140) -> 0 | H140: =-SUMIFS('C Schedule Import Data'!Y:Y,'C Schedule Import Data'!$A:$A,$X$3,'C Schedule Import Data'!$B:$B,$X140) -> 0 | I140: =G140-H140 -> 0 | J140: =IF(I140=0,"",I140/H140) ->  | K140: =-SUMIFS('C Schedule Import Data'!Z:Z,'C Schedule Import Data'!$A:$A,$X$3,'C Schedule Import Data'!$B:$B,$X140) -> 0 | X140: 13.2 REV
A141: ='Org structure'!E137 ->  | C141: =-SUMIFS('C Schedule Import Data'!T:T,'C Schedule Import Data'!$A:$A,$X$3,'C Schedule Import Data'!$B:$B,$X141) -> 0 | D141: =-SUMIFS('C Schedule Import Data'!U:U,'C Schedule Import Data'!$A:$A,$X$3,'C Schedule Import Data'!$B:$B,$X141) -> 0 | E141: =-SUMIFS('C Schedule Import Data'!V:V,'C Schedule Import Data'!$A:$A,$X$3,'C Schedule Import Data'!$B:$B,$X141) -> 0 | F141: =-SUMIFS('C Schedule Import Data'!W:W,'C Schedule Import Data'!$A:$A,$X$3,'C Schedule Import Data'!$B:$B,$X141) -> 0 | G141: =-SUMIFS('C Schedule Import Data'!X:X,'C Schedule Import Data'!$A:$A,$X$3,'C Schedule Import Data'!$B:$B,$X141) -> 0 | H141: =-SUMIFS('C Schedule Import Data'!Y:Y,'C Schedule Import Data'!$A:$A,$X$3,'C Schedule Import Data'!$B:$B,$X141) -> 0 | I141: 0 | K141: =-SUMIFS('C Schedule Import Data'!Z:Z,'C Schedule Import Data'!$A:$A,$X$3,'C Schedule Import Data'!$B:$B,$X141) -> 0 | X141: 13.3 REV
A142: ='Org structure'!E138 ->  | C142: =-SUMIFS('C Schedule Import Data'!T:T,'C Schedule Import Data'!$A:$A,$X$3,'C Schedule Import Data'!$B:$B,$X142) -> 0 | D142: =-SUMIFS('C Schedule Import Data'!U:U,'C Schedule Import Data'!$A:$A,$X$3,'C Schedule Import Data'!$B:$B,$X142) -> 0 | E142: =-SUMIFS('C Schedule Import Data'!V:V,'C Schedule Import Data'!$A:$A,$X$3,'C Schedule Import Data'!$B:$B,$X142) -> 0 | F142: =-SUMIFS('C Schedule Import Data'!W:W,'C Schedule Import Data'!$A:$A,$X$3,'C Schedule Import Data'!$B:$B,$X142) -> 0 | G142: =-SUMIFS('C Schedule Import Data'!X:X,'C Schedule Import Data'!$A:$A,$X$3,'C Schedule Import Data'!$B:$B,$X142) -> 0 | H142: =-SUMIFS('C Schedule Import Data'!Y:Y,'C Schedule Import Data'!$A:$A,$X$3,'C Schedule Import Data'!$B:$B,$X142) -> 0 | I142: 0 | K142: =-SUMIFS('C Schedule Import Data'!Z:Z,'C Schedule Import Data'!$A:$A,$X$3,'C Schedule Import Data'!$B:$B,$X142) -> 0 | X142: 13.4 REV
A143: ='Org structure'!E139 ->  | C143: =-SUMIFS('C Schedule Import Data'!T:T,'C Schedule Import Data'!$A:$A,$X$3,'C Schedule Import Data'!$B:$B,$X143) -> 0 | D143: =-SUMIFS('C Schedule Import Data'!U:U,'C Schedule Import Data'!$A:$A,$X$3,'C Schedule Import Data'!$B:$B,$X143) -> 0 | E143: =-SUMIFS('C Schedule Import Data'!V:V,'C Schedule Import Data'!$A:$A,$X$3,'C Schedule Import Data'!$B:$B,$X143) -> 0 | F143: =-SUMIFS('C Schedule Import Data'!W:W,'C Schedule Import Data'!$A:$A,$X$3,'C Schedule Import Data'!$B:$B,$X143) -> 0 | G143: =-SUMIFS('C Schedule Import Data'!X:X,'C Schedule Import Data'!$A:$A,$X$3,'C Schedule Import Data'!$B:$B,$X143) -> 0 | H143: =-SUMIFS('C Schedule Import Data'!Y:Y,'C Schedule Import Data'!$A:$A,$X$3,'C Schedule Import Data'!$B:$B,$X143) -> 0 | I143: 0 | K143: =-SUMIFS('C Schedule Import Data'!Z:Z,'C Schedule Import Data'!$A:$A,$X$3,'C Schedule Import Data'!$B:$B,$X143) -> 0 | X143: 13.5 REV
